Workbook

Sheet INDEX
D2: Stability Calculation Based on hydrostatic and tank tables - 60m supply vessel
S3: Explanation of worksheet:
D4: Project : | F4: Test project | N4: Originator : | P4: SE | S4: Changing tank filling
D5: Doc. No : | F5: 000-000 | N5: Checked : | P5: SE | S5: Fill in all sounding heights of tanks in following cells:
D6: Subject/Remarks : | F6: Just fill in your ship | N6: Revision : | P6: O1 | S6: The following data will be calculated automatically, with help of tank tables: | Z6: Volume | AA6: m³
N7: Date : | O7: 2019-06-24 | Z7: Weight | AA7: t
Z8: LCG | AA8: m
B9: Summary Stability Results | I9: Summary Loading condition | Z9: TCG | AA9: m
E10: CHECK | I10: Item | J10: % Full | K10: Volume | M10: Weight | N10: LCG | O10: TCG | P10: VCG | Z10: VCG | AA10: m
B11: Displ. | C11: =H129 -> 4733.647617 | D11: t | E11: =IF(C11>1650,IF(C14<4800,"VALID","INVALID"),"INVALID") -> VALID | F11: Draft mark mid. | G11: =G175 -> 6.677157159 | H11: m | I11: F.O. | J11: =F33 -> 99.99109126 | K11: =G33 -> 343.6693807 | M11: =H33 -> 295.5556674 | N11: =I33 -> 29.87702819 | O11: =J33 -> 0.09977612766 | P11: =K33 -> 3.766698308 | Z11: FSM | AA11: m
B12: DW | C12: =H130 -> 3033.647617 | D12: t | F12: Draft mark aft | G12: =M173 -> 6.257841507 | H12: m | I12: HFO | J12: =F46 -> 99.99598313 | K12: =G46 -> 995.76 | M12: =H46 -> 975.8448 | N12: =I46 -> 18.41775458 | O12: =J46 -> 0 | P12: =K46 -> 4.088628284 | S12: Add or remove deckloads
B13: LCG | C13: =I129 -> 24.82937143 | D13: m | F13: Draft mark fw | G13: =M174 -> 7.096472812 | H13: m | I13: WB | J13: =F79 -> 100.0032946 | K13: =G79 -> 1032.034 | M13: =H79 -> 1057.81435 | N13: =I79 -> 22.74410812 | O13: =J79 -> -0.00736067534 | P13: =K79 -> 3.081373373 | S13: Add or remove deckloads and fill the required data in the following cells:
B14: TCG | C14: =J129 -> -0.007784412989 | D14: m | E14: =IF(C14>-0.05,IF(C14<0.05,"VALID","INVALID"),"INVALID") -> VALID | F14: KMt | G14: =G178 -> 7.613448626 | H14: m | I14: FW | J14: =F87 -> 100.0041365 | K14: =G87 -> 483.52 | M14: =H87 -> 483.52 | N14: =I87 -> 20.14157284 | O14: =J87 -> 0 | P14: =K87 -> 4.711368299 | S14: The following input data is required to calculated the stability results: | Z14: Weight | AA14: t
B15: VCG | C15: =K129 -> 4.91502062 | D15: m | F15: KGfluid | G15: =G180 -> 4.917974876 | H15: m | I15: MISC | J15: =F101 -> 100.0128452 | K15: =G101 -> 155.72 | M15: =H101 -> 150.9128 | N15: =I101 -> 36.26201755 | O15: =J101 -> -0.3879845845 | P15: =K101 -> 1.559034038 | S15: Attention! | Z15: LCG | AA15: m
B16: Trim tot. | C16: =G170 -> 0.8805628702 | D16: m | E16: =IF(C16>-1.5,IF(C16<1.5,"VALID","INVALID"),"INVALID") -> VALID | F16: GMtfluid | G16: =G182 -> 2.69547375 | H16: m | I16: (DECK) LOADS | M16: =H122 -> 70 | N16: =I122 -> 6.571428571 | O16: =J122 -> 0 | P16: =K122 -> 7 | S16: This worksheet is only valid when the heel of the vessel is equal to 0° | Z16: TCG | AA16: m
S17: The results of this worksheet are not checked to any stability criteria! | Z17: VCG | AA17: m
B18: Sheet No. | C18: Name | D18: Type of Fluid | E18: Sounding Height | F18: % Full | G18: Volume | H18: Weight | I18: LCG | J18: TCG | K18: VCG | M18: Longitudinal | N18: Transverse | O18: Vertical | P18: FSMt
I19: Fwd of AP | J19: PS:+ | K19: Above BL | M19: Moment | N19: Moment | O19: Moment
F20: % | G20: m³ | H20: t | I20: m | J20: m | K20: m | M20: t·m | N20: t·m | O20: t·m | P20: t·m
C21: SHIP DATA
C22: Lightship | H22: 1700 | I22: 30 | J22: 0 | K22: 7 | M22: =$H22*I22 -> 51000 | N22: =$H22*J22 -> 0 | O22: =$H22*K22 -> 11900
C24: ='INDEX (Corrected trim 4)'!C23 -> F.O. (SG 0.860)
B25: ='INDEX (Corrected trim 4)'!B24 -> 1 | C25: F.O. 1 PS | D25: =IF('1'!H2=0.86,"MGO","CHANGED") -> MGO | E25: 3.8 | F25: =IF(G25<'1'!M83,LinInterpolate(G25,'1'!M7:M83,'1'!I7:I83,TRUE),100) -> 100 | G25: ='INDEX (Corrected trim 4)'!AA24 -> 31.01969033 | H25: =LinInterpolate(F25,'1'!I7:I83,'1'!H7:H83,TRUE) -> 26.67693369 | I25: =LinInterpolate(F25,'1'!I7:I83,'1'!C7:C83,TRUE) -> 32.98 | J25: =LinInterpolate(F25,'1'!I7:I82,'1'!D7:D83,TRUE) -> 5.38 | K25: =LinInterpolate(F25,'1'!I7:I83,'1'!E7:E83,TRUE) -> 2.999982796 | M25: =$H25*I25 -> 879.805273 | N25: 143.5219032 | O25: 80.03034212 | P25: =IF(LinInterpolate(F25,'1'!I7:I83,'1'!F7:F83,TRUE)>0,LinInterpolate(F25,'1'!I7:I83,'1'!F7:F83,TRUE),0) -> 0.01720368565
B26: ='INDEX (Corrected trim 4)'!B25 -> 2 | C26: F.O. 1 SB | D26: =IF('2'!I2=0.86,"MGO","CHANGED") -> MGO | E26: 3.8 | F26: =IF(G26<'2'!M83,LinInterpolate(G26,'2'!M7:M83,'2'!I7:I83,TRUE),100) -> 100 | G26: ='INDEX (Corrected trim 4)'!AA25 -> 31.01969033 | H26: =LinInterpolate(F26,'2'!I7:I83,'2'!H7:H83,TRUE) -> 26.67693369 | I26: =LinInterpolate(F26,'2'!I7:I83,'2'!C7:C83,TRUE) -> 32.98 | J26: =LinInterpolate(F26,'2'!I7:I83,'2'!D7:D83,TRUE) -> -5.38 | K26: =LinInterpolate(F26,'2'!I7:I83,'2'!E7:E83,TRUE) -> 2.999982796 | M26: 879.805273 | N26: -143.5219032 | O26: 80.03034212 | P26: =IF(LinInterpolate(F26,'2'!I7:I83,'2'!F7:F83,TRUE)>0,LinInterpolate(F26,'2'!I7:I83,'2'!F7:F83,TRUE),0) -> 0.01720368565
B27: ='INDEX (Corrected trim 4)'!B26 -> 3 | C27: F.O.1 C | D27: =IF('3'!I2=0.86,"MGO","CHANGED") -> MGO | E27: 5.77 | F27: =IF(G27<'3'!M123,LinInterpolate(G27,'3'!M7:M123,'3'!I7:I123,TRUE),100) -> 100 | G27: ='INDEX (Corrected trim 4)'!AA26 -> 102.32 | H27: =LinInterpolate(F27,'3'!I7:I123,'3'!H7:H123,TRUE) -> 87.9952 | I27: =LinInterpolate(F27,'3'!I7:I123,'3'!C7:C123,TRUE) -> 26.1 | J27: =LinInterpolate(F27,'3'!I7:I123,'3'!D7:D123,TRUE) -> 0 | K27: =LinInterpolate(F27,'3'!I7:I123,'3'!E7:E123,TRUE) -> 3.9 | M27: 2296.67472 | N27: 0 | O27: 343.18128 | P27: =IF(LinInterpolate(F27,'3'!I7:I123,'3'!F7:F123,TRUE)>0,LinInterpolate(F27,'3'!I7:I123,'3'!F7:F123,TRUE),0) -> 0
B28: ='INDEX (Corrected trim 4)'!B27 -> 4 | C28: F.O. 2 PS | D28: =IF('4'!I2=0.86,"MGO","CHANGED") -> MGO | E28: 2 | F28: =IF(G28<'4'!M47,LinInterpolate(G28,'4'!M7:M47,'4'!I7:I47,TRUE),100) -> 100 | G28: ='INDEX (Corrected trim 4)'!AA27 -> 39.69 | H28: =LinInterpolate(F28,'4'!I7:I47,'4'!H7:H47,TRUE) -> 34.1334 | I28: =LinInterpolate(F28,'4'!I7:I47,'4'!C7:C47,TRUE) -> 31.5 | J28: =LinInterpolate(F28,'4'!I7:I47,'4'!D7:D47,TRUE) -> 5.47 | K28: =LinInterpolate(F28,'4'!I7:I47,'4'!E7:E47,TRUE) -> 5.8 | M28: 1075.2021 | N28: 186.709698 | O28: 197.97372 | P28: =IF(LinInterpolate(F28,'4'!I7:I47,'4'!F7:F47,TRUE)>0,LinInterpolate(F28,'4'!I7:I47,'4'!F7:F47,TRUE),0) -> 0
B29: ='INDEX (Corrected trim 4)'!B28 -> 5 | C29: F.O. 2 SB | D29: =IF('5'!I2=0.86,"MGO","CHANGED") -> MGO | E29: 2 | F29: =IF(G29<'5'!M47,LinInterpolate(G29,'5'!M7:M47,'5'!I7:I47,TRUE),100) -> 100 | G29: ='INDEX (Corrected trim 4)'!AA28 -> 39.69 | H29: =LinInterpolate(F29,'5'!I7:I47,'5'!H7:H47,TRUE) -> 34.1334 | I29: =LinInterpolate(F29,'5'!I7:I47,'5'!C7:C47,TRUE) -> 31.5 | J29: =LinInterpolate(F29,'5'!I7:I47,'5'!D7:D47,TRUE) -> -5.47 | K29: =LinInterpolate(F29,'5'!I7:I47,'5'!E7:E47,TRUE) -> 5.8 | M29: 1075.2021 | N29: -186.709698 | O29: 197.97372 | P29: =IF(LinInterpolate(F29,'5'!I7:I47,'5'!F7:F47,TRUE)>0,LinInterpolate(F29,'5'!I7:I47,'5'!F7:F47,TRUE),0) -> 0
B30: ='INDEX (Corrected trim 4)'!B29 -> 6 | C30: F.O. 3 PS | D30: =IF('6'!I2=0.86,"MGO","CHANGED") -> MGO | E30: 3.8 | F30: =IF(G30<'6'!M83,LinInterpolate(G30,'6'!M7:M83,'6'!I7:I83,TRUE),100) -> 100 | G30: ='INDEX (Corrected trim 4)'!AA29 -> 40.44 | H30: =LinInterpolate(F30,'6'!I7:I83,'6'!H7:H83,TRUE) -> 34.7784 | I30: =LinInterpolate(F30,'6'!I7:I83,'6'!C7:C83,TRUE) -> 30.3 | J30: =LinInterpolate(F30,'6'!I7:I83,'6'!D7:D83,TRUE) -> 5.45 | K30: =LinInterpolate(F30,'6'!I7:I83,'6'!E7:E83,TRUE) -> 2.96 | M30: 1053.78552 | N30: 189.54228 | O30: 102.944064 | P30: =IF(LinInterpolate(F30,'6'!I7:I83,'6'!F7:F83,TRUE)>0,LinInterpolate(F30,'6'!I7:I83,'6'!F7:F83,TRUE),0) -> 0.85
B31: ='INDEX (Corrected trim 4)'!B30 -> 7 | C31: F.O. 3 SB | D31: =IF('7'!I2=0.86,"MGO","CHANGED") -> MGO | E31: 3.8 | F31: =IF(G31<'7'!M83,LinInterpolate(G31,'7'!M7:M83,'7'!I7:I83,TRUE),100) -> 100 | G31: ='INDEX (Corrected trim 4)'!AA30 -> 40.44 | H31: =LinInterpolate(F31,'7'!I7:I83,'7'!H7:H83,TRUE) -> 34.7784 | I31: =LinInterpolate(F31,'7'!I7:I83,'7'!C7:C83,TRUE) -> 30.3 | J31: =LinInterpolate(F31,'7'!I7:I83,'7'!D7:D83,TRUE) -> -5.45 | K31: =LinInterpolate(F31,'7'!I7:I83,'7'!E7:E83,TRUE) -> 2.96 | M31: 1053.78552 | N31: -189.54228 | O31: 102.944064 | P31: =IF(LinInterpolate(F31,'7'!I7:I83,'7'!F7:F83,TRUE)>0,LinInterpolate(F31,'7'!I7:I83,'7'!F7:F83,TRUE),0) -> 11.1
B32: ='INDEX (Corrected trim 4)'!B31 -> 8 | C32: F.O. 4 PS | D32: =IF('8'!I2=0.86,"MGO","CHANGED") -> MGO | E32: 1 | F32: =IF(G32<'8'!M28,LinInterpolate(G32,'8'!M10:M28,'8'!I10:I28,TRUE),100) -> 100 | G32: ='INDEX (Corrected trim 4)'!AA31 -> 19.05 | H32: =LinInterpolate(F32,'8'!I7:I28,'8'!H7:H28,TRUE) -> 16.383 | I32: =LinInterpolate(F32,'8'!I7:I28,'8'!C7:C28,TRUE) -> 31.5 | J32: =LinInterpolate(F32,'8'!I7:I28,'8'!D7:D28,TRUE) -> 1.8 | K32: =LinInterpolate(F32,'8'!I7:I28,'8'!E7:E28,TRUE) -> 0.5 | M32: 516.0645 | N32: 29.4894 | O32: 8.1915 | P32: =IF(LinInterpolate(F32,'8'!I7:I28,'8'!F7:F28,TRUE)>0,LinInterpolate(F32,'8'!I7:I28,'8'!F7:F28,TRUE),0) -> 2
C33: ='INDEX (Corrected trim 4)'!C32 -> Total F.O. | F33: =(G33/343.7)*100 -> 99.99109126 | G33: =SUM((G25:G32)) -> 343.6693807 | H33: =SUM((H25:H32)) -> 295.5556674 | I33: =M33/H33 -> 29.87702819 | J33: =N33/H33 -> 0.09977612766 | K33: =O33/H33 -> 3.766698308 | M33: =SUM((M25:M32)) -> 8830.325006 | N33: =SUM((N25:N32)) -> 29.4894 | O33: =SUM((O25:O32)) -> 1113.269032 | P33: =SUM((P25:P32)) -> 13.98440737
C35: ='INDEX (Corrected trim 4)'!C34 -> HFO (SG 0.980)
B36: ='INDEX (Corrected trim 4)'!B35 -> 9 | C36: H.F.O 1 PS | D36: =IF('9'!I2=0.98,"HFO","CHANGED") -> HFO | E36: 5.75 | F36: =IF(G36<'9'!M122,LinInterpolate(G36,'9'!M7:M122,'9'!I7:I122,TRUE),100) -> 100 | G36: ='INDEX (Corrected trim 4)'!AA35 -> 112.74 | H36: =LinInterpolate(F36,'9'!I7:I122,'9'!H7:H122,TRUE) -> 110.4852 | I36: =LinInterpolate(F36,'9'!I7:I122,'9'!C7:C122,TRUE) -> 26.02 | J36: =LinInterpolate(F36,'9'!I7:I122,'9'!D7:D122,TRUE) -> 5.46 | K36: =LinInterpolate(F36,'9'!I7:I122,'9'!E7:E122,TRUE) -> 3.96 | M36: =$H36*I36 -> 2874.824904 | N36: 603.249192 | O36: 437.521392 | P36: =IF(LinInterpolate(F36,'9'!I7:I122,'9'!F7:F122,TRUE)>0,LinInterpolate(F36,'9'!I7:I122,'9'!F7:F122,TRUE),0) -> 0
B37: ='INDEX (Corrected trim 4)'!B36 -> 10 | C37: H.F.O 1 SB | D37: =IF('10'!I2=0.98,"HFO","CHANGED") -> HFO | E37: 5.75 | F37: =IF(G37<'10'!M122,LinInterpolate(G37,'10'!M7:M122,'10'!I7:I122,TRUE),100) -> 100 | G37: ='INDEX (Corrected trim 4)'!AA36 -> 112.74 | H37: =LinInterpolate(F37,'10'!I7:I122,'10'!H7:H122,TRUE) -> 110.4852 | I37: =LinInterpolate(F37,'10'!I7:I122,'10'!C7:C122,TRUE) -> 26.02 | J37: =LinInterpolate(F37,'10'!I7:I122,'10'!D7:D122,TRUE) -> -5.46 | K37: =LinInterpolate(F37,'10'!I7:I122,'10'!E7:E122,TRUE) -> 3.96 | M37: 2874.824904 | N37: -603.249192 | O37: 437.521392 | P37: =LinInterpolate(F37,'10'!I7:I122,'10'!F7:F122,TRUE) -> 0
B38: ='INDEX (Corrected trim 4)'!B37 -> 11 | C38: H.F.O 2 PS | D38: =IF('11'!I2=0.98,"HFO","CHANGED") -> HFO | E38: 5.75 | F38: =IF(G38<'11'!M122,LinInterpolate(G38,'11'!M7:M122,'11'!I7:I122,TRUE),100) -> 100 | G38: ='INDEX (Corrected trim 4)'!AA37 -> 100.05 | H38: =LinInterpolate(F38,'11'!I7:I122,'11'!H7:H122,TRUE) -> 98.049 | I38: =LinInterpolate(F38,'11'!I7:I122,'11'!C7:C122,TRUE) -> 20.85 | J38: =LinInterpolate(F38,'11'!I7:I122,'11'!D7:D122,TRUE) -> 5.46 | K38: =LinInterpolate(F38,'11'!I7:I122,'11'!E7:E122,TRUE) -> 3.96 | M38: 2044.32165 | N38: 535.34754 | O38: 388.27404 | P38: =IF(LinInterpolate(F38,'11'!I7:I122,'11'!F7:F122,TRUE)>0,LinInterpolate(F38,'11'!I7:I122,'11'!F7:F122,TRUE),0) -> 0
B39: ='INDEX (Corrected trim 4)'!B38 -> 12 | C39: H.F.O 2 SB | D39: =IF('12'!I2=0.98,"HFO","CHANGED") -> HFO | E39: 5.75 | F39: =IF(G39<'12'!M122,LinInterpolate(G39,'12'!M7:M122,'12'!I7:I122,TRUE),100) -> 100 | G39: ='INDEX (Corrected trim 4)'!AA38 -> 100.05 | H39: =LinInterpolate(F39,'12'!I7:I122,'12'!H7:H122,TRUE) -> 98.049 | I39: =LinInterpolate(F39,'12'!I7:I122,'12'!C7:C122,TRUE) -> 20.85 | J39: =LinInterpolate(F39,'12'!I7:I122,'12'!D7:D122,TRUE) -> -5.46 | K39: =LinInterpolate(F39,'12'!I7:I122,'12'!E7:E122,TRUE) -> 3.96 | M39: 2044.32165 | N39: -535.34754 | O39: 388.27404 | P39: =IF(LinInterpolate(F39,'12'!I7:I122,'12'!F7:F122,TRUE)>0,LinInterpolate(F39,'12'!I7:I122,'12'!F7:F122,TRUE),0) -> 0
B40: ='INDEX (Corrected trim 4)'!B39 -> 13 | C40: H.F.O 2 C | D40: =IF('13'!I2=0.98,"HFO","CHANGED") -> HFO | E40: 5.77 | F40: =IF(G40<'13'!M123,LinInterpolate(G40,'13'!M7:M123,'13'!I7:I123,TRUE),100) -> 100 | G40: ='INDEX (Corrected trim 4)'!AA39 -> 102.33 | H40: =LinInterpolate(F40,'13'!I7:I123,'13'!H7:H123,TRUE) -> 100.2834 | I40: =LinInterpolate(F40,'13'!I7:I123,'13'!C7:C123,TRUE) -> 21 | J40: =LinInterpolate(F40,'13'!I7:I123,'13'!D7:D123,TRUE) -> 0 | K40: =LinInterpolate(F40,'13'!I7:I123,'13'!E7:E123,TRUE) -> 3.9 | M40: 2105.9514 | N40: 0 | O40: 391.10526 | P40: =IF(LinInterpolate(F40,'13'!I7:I123,'13'!F7:F123,TRUE)>0,LinInterpolate(F40,'13'!I7:I123,'13'!F7:F123,TRUE),0) -> 0
B41: ='INDEX (Corrected trim 4)'!B40 -> 14 | C41: H.F.O 3 PS | D41: =IF('14'!I2=0.98,"HFO","CHANGED") -> HFO | E41: 5.76 | F41: =IF(G41<'14'!M123,LinInterpolate(G41,'14'!M7:M123,'14'!I7:I123,TRUE),100) -> 100 | G41: ='INDEX (Corrected trim 4)'!AA40 -> 99.48 | H41: =LinInterpolate(F41,'14'!I7:I123,'14'!H7:H123,TRUE) -> 97.4904 | I41: =LinInterpolate(F41,'14'!I7:I123,'14'!C7:C123,TRUE) -> 16.06 | J41: =LinInterpolate(F41,'14'!I7:I123,'14'!D7:D123,TRUE) -> 5.45 | K41: =LinInterpolate(F41,'14'!I7:I123,'14'!E7:E123,TRUE) -> 3.98 | M41: 1565.695824 | N41: 531.32268 | O41: 388.011792 | P41: =IF(LinInterpolate(F41,'14'!I7:I123,'14'!F7:F123,TRUE)>0,LinInterpolate(F41,'14'!I7:I123,'14'!F7:F123,TRUE),0) -> 0
B42: ='INDEX (Corrected trim 4)'!B41 -> 15 | C42: H.F.O 3 SB | D42: =IF('15'!I2=0.98,"HFO","CHANGED") -> HFO | E42: 5.76 | F42: =IF(G42<'15'!M123,LinInterpolate(G42,'15'!M7:M123,'15'!I7:I123,TRUE),100) -> 100 | G42: ='INDEX (Corrected trim 4)'!AA41 -> 99.48 | H42: =LinInterpolate(F42,'15'!I7:I123,'15'!H7:H123,TRUE) -> 97.4904 | I42: =LinInterpolate(F42,'15'!I7:I123,'15'!C7:C123,TRUE) -> 16.06 | J42: =LinInterpolate(F42,'15'!I7:I123,'15'!D7:D123,TRUE) -> -5.45 | K42: =LinInterpolate(F42,'15'!I7:I123,'15'!E7:E123,TRUE) -> 3.98 | M42: 1565.695824 | N42: -531.32268 | O42: 388.011792 | P42: =IF(LinInterpolate(F42,'15'!I7:I123,'15'!F7:F123,TRUE)>0,LinInterpolate(F42,'15'!I7:I123,'15'!F7:F123,TRUE),0) -> 0
B43: ='INDEX (Corrected trim 4)'!B42 -> 16 | C43: H.F.O 4 PS | D43: =IF('16'!I2=0.98,"HFO","CHANGED") -> HFO | E43: 5.46 | F43: =IF(G43<'16'!M117,LinInterpolate(G43,'16'!M7:M117,'16'!I7:I117,TRUE),100) -> 100 | G43: ='INDEX (Corrected trim 4)'!AA42 -> 90.63 | H43: =LinInterpolate(F43,'16'!I7:I117,'16'!H7:H117,TRUE) -> 88.8174 | I43: =LinInterpolate(F43,'16'!I7:I117,'16'!C7:C117,TRUE) -> 11.2 | J43: =LinInterpolate(F43,'16'!I7:I117,'16'!D7:D117,TRUE) -> 5.39 | K43: =LinInterpolate(F43,'16'!I7:I117,'16'!E7:E117,TRUE) -> 4.49 | M43: 994.75488 | N43: 478.725786 | O43: 398.790126 | P43: =IF(LinInterpolate(F43,'16'!I7:I117,'16'!F7:F117,TRUE)>0,LinInterpolate(F43,'16'!I7:I117,'16'!F7:F117,TRUE),0) -> 0
B44: ='INDEX (Corrected trim 4)'!B43 -> 17 | C44: H.F.O 4 SB | D44: =IF('17'!I2=0.98,"HFO","CHANGED") -> HFO | E44: 5.46 | F44: =IF(G44<'17'!M115,LinInterpolate(G44,'17'!M7:M115,'17'!I7:I115,TRUE),100) -> 100 | G44: ='INDEX (Corrected trim 4)'!AA43 -> 90.63 | H44: =LinInterpolate(F44,'17'!I7:I115,'17'!H7:H115,TRUE) -> 88.8174 | I44: =LinInterpolate(F44,'17'!I7:I115,'17'!C7:C115,TRUE) -> 11.2 | J44: =LinInterpolate(F44,'17'!I7:I115,'17'!D7:D115,TRUE) -> -5.39 | K44: =LinInterpolate(F44,'17'!I7:I115,'17'!E7:E115,TRUE) -> 4.49 | M44: 994.75488 | N44: -478.725786 | O44: 398.790126 | P44: =IF(LinInterpolate(F44,'17'!I7:I115,'17'!F7:F115,TRUE)>0,LinInterpolate(F44,'17'!I7:I115,'17'!F7:F115,TRUE),0) -> 0
B45: ='INDEX (Corrected trim 4)'!B44 -> 18 | C45: H.F.O 4 C | D45: =IF('18'!I2=0.98,"HFO","CHANGED") -> HFO | E45: 5.38 | F45: =IF(G45<'18'!M115,LinInterpolate(G45,'18'!M7:M115,'18'!I7:I115,TRUE),100) -> 100 | G45: ='INDEX (Corrected trim 4)'!AA44 -> 87.63 | H45: =LinInterpolate(F45,'18'!I7:I115,'18'!H7:H115,TRUE) -> 85.8774 | I45: =LinInterpolate(F45,'18'!I7:I115,'18'!C7:C115,TRUE) -> 10.57 | J45: =LinInterpolate(F45,'18'!I7:I115,'18'!D7:D115,TRUE) -> 0 | K45: =LinInterpolate(F45,'18'!I7:I115,'18'!E7:E115,TRUE) -> 4.35 | M45: 907.724118 | N45: 0 | O45: 373.56669 | P45: =IF(LinInterpolate(F45,'18'!I7:I115,'18'!F7:F115,TRUE)>0,LinInterpolate(F45,'18'!I7:I115,'18'!F7:F115,TRUE),0) -> 0
C46: ='INDEX (Corrected trim 4)'!C45 -> Total H.F.O | F46: =G46/995.8*100 -> 99.99598313 | G46: =SUM((G36:G45)) -> 995.76 | H46: =SUM((H36:H45)) -> 975.8448 | I46: =M46/H46 -> 18.41775458 | J46: =N46/H46 -> 0 | K46: =O46/H46 -> 4.088628284 | M46: =SUM((M36:M45)) -> 17972.87003 | N46: =SUM((N36:N45)) -> 0 | O46: =SUM((O36:O45)) -> 3989.86665 | P46: =SUM((P36:P45)) -> 0
C48: ='INDEX (Corrected trim 4)'!C47 -> Name | D48: ='INDEX (Corrected trim 4)'!D47 -> Sort of Fluid | E48: Sounding Height | F48: ='INDEX (Corrected trim 4)'!F47 -> % Full | G48: ='INDEX (Corrected trim 4)'!G47 -> Volume | H48: ='INDEX (Corrected trim 4)'!H47 -> Weight | I48: ='INDEX (Corrected trim 4)'!I47 -> LCG | J48: ='INDEX (Corrected trim 4)'!J47 -> TCG | K48: ='INDEX (Corrected trim 4)'!K47 -> VCG | L48: ='INDEX (Corrected trim 4)'!L47 -> 0 | M48: ='INDEX (Corrected trim 4)'!M47 -> Longitudinal | N48: ='INDEX (Corrected trim 4)'!N47 -> Transverse | O48: ='INDEX (Corrected trim 4)'!O47 -> Vertical | P48: ='INDEX (Corrected trim 4)'!P47 -> FSMt
C49: ='INDEX (Corrected trim 4)'!C48 -> 0 | D49: ='INDEX (Corrected trim 4)'!D48 -> 0 | F49: ='INDEX (Corrected trim 4)'!F48 ->  | G49: ='INDEX (Corrected trim 4)'!G48 ->  | H49: ='INDEX (Corrected trim 4)'!H48 ->  | I49: ='INDEX (Corrected trim 4)'!I48 -> Fwd of AP | J49: ='INDEX (Corrected trim 4)'!J48 -> PS:+ | K49: ='INDEX (Corrected trim 4)'!K48 -> Above BL | L49: ='INDEX (Corrected trim 4)'!L48 -> 0 | M49: ='INDEX (Corrected trim 4)'!M48 -> Moment | N49: ='INDEX (Corrected trim 4)'!N48 -> Moment | O49: ='INDEX (Corrected trim 4)'!O48 -> Moment | P49: ='INDEX (Corrected trim 4)'!P48 -> 
C50: ='INDEX (Corrected trim 4)'!C49 -> 0 | D50: ='INDEX (Corrected trim 4)'!D49 -> 0 | F50: ='INDEX (Corrected trim 4)'!F49 -> % | G50: ='INDEX (Corrected trim 4)'!G49 -> m³ | H50: ='INDEX (Corrected trim 4)'!H49 -> t | I50: ='INDEX (Corrected trim 4)'!I49 -> m | J50: ='INDEX (Corrected trim 4)'!J49 -> m | K50: ='INDEX (Corrected trim 4)'!K49 -> m | L50: ='INDEX (Corrected trim 4)'!L49 -> 0 | M50: ='INDEX (Corrected trim 4)'!M49 -> t·m | N50: ='INDEX (Corrected trim 4)'!N49 -> t·m | O50: ='INDEX (Corrected trim 4)'!O49 -> t·m | P50: ='INDEX (Corrected trim 4)'!P49 -> t·m
C51: ='INDEX (Corrected trim 4)'!C50 -> WB (S.G. 1.025)
B52: ='INDEX (Corrected trim 4)'!B51 -> 19 | C52: W.B 1 PS | D52: SW | E52: 3.25 | F52: =IF(G52<'19'!M72,LinInterpolate(G52,'19'!M7:M72,'19'!I7:I72,TRUE),100) -> 100 | G52: ='INDEX (Corrected trim 4)'!AA51 -> 63.76 | H52: =LinInterpolate(F52,'19'!I7:I72,'19'!H7:H72,TRUE) -> 65.354 | I52: =LinInterpolate(F52,'19'!I7:I72,'19'!C7:C72,TRUE) -> -2.24 | J52: =LinInterpolate(F52,'19'!I7:I72,'19'!D7:D72,TRUE) -> 4.49 | K52: =LinInterpolate(F52,'19'!I7:I72,'19'!E7:E72,TRUE) -> 5.71 | M52: =$H52*I52 -> -146.39296 | N52: 293.43946 | O52: 373.17134 | P52: =IF(LinInterpolate(F52,'19'!I7:I72,'19'!F7:F72,TRUE)>0,LinInterpolate(F52,'19'!I7:I72,'19'!F7:F72,TRUE),0) -> 0
B53: ='INDEX (Corrected trim 4)'!B52 -> 20 | C53: W.B 1 SB | D53: SW | E53: 3.25 | F53: =IF(G53<'20'!M72,LinInterpolate(G53,'20'!M7:M72,'20'!I7:I72,TRUE),100) -> 100 | G53: ='INDEX (Corrected trim 4)'!AA52 -> 63.76 | H53: =LinInterpolate(F53,'20'!I7:I72,'20'!H7:H72,TRUE) -> 65.354 | I53: =LinInterpolate(F53,'20'!I7:I72,'20'!C7:C72,TRUE) -> -2.24 | J53: =LinInterpolate(F53,'20'!I7:I72,'20'!D7:D72,TRUE) -> -4.49 | K53: =LinInterpolate(F53,'20'!I7:I72,'20'!E7:E72,TRUE) -> 5.71 | M53: -146.39296 | N53: -293.43946 | O53: 373.17134 | P53: =IF(LinInterpolate(F53,'20'!I7:I72,'20'!F7:F72,TRUE)>0,LinInterpolate(F53,'20'!I7:I72,'20'!F7:F72,TRUE),0) -> 0
B54: ='INDEX (Corrected trim 4)'!B53 -> 21 | C54: ='INDEX (Corrected trim 4)'!C53 -> W.B 1 SB | D54: =IF('21'!I2=1.025,"SW","CHANGED") -> SW | E54: 7.8 | F54: =IF(G54<'21'!M163,LinInterpolate(G54,'21'!M7:M163,'21'!I7:I163,TRUE),100) -> 100 | G54: ='INDEX (Corrected trim 4)'!AA53 -> 64.81 | H54: =LinInterpolate(F54,'21'!I7:I163,'21'!H7:H163,TRUE) -> 66.43025 | I54: =LinInterpolate(F54,'21'!I7:I163,'21'!C7:C163,TRUE) -> 51.05 | J54: =LinInterpolate(F54,'21'!I7:I163,'21'!D7:D163,TRUE) -> 0 | K54: =LinInterpolate(F54,'21'!I7:I163,'21'!E7:E163,TRUE) -> 4.75 | M54: 3391.264262 | N54: 0 | O54: 315.5436875 | P54: =IF(LinInterpolate(F54,'21'!I7:I163,'21'!F7:F163,TRUE)>0,LinInterpolate(F54,'21'!I7:I163,'21'!F7:F163,TRUE),0) -> 0
B55: ='INDEX (Corrected trim 4)'!B54 -> 22 | C55: W.B. 2 PS | D55: =IF('22'!I2=1.025,"SW","CHANGED") -> SW | E55: 7.8 | F55: =IF(G55<'22'!M163,LinInterpolate(G55,'22'!M7:M163,'22'!I7:I163,TRUE),100) -> 100 | G55: ='INDEX (Corrected trim 4)'!AA54 -> 86.038 | H55: =LinInterpolate(F55,'22'!I7:I163,'22'!H7:H163,TRUE) -> 88.18895 | I55: =LinInterpolate(F55,'22'!I7:I163,'22'!C7:C163,TRUE) -> 39.74 | J55: =LinInterpolate(F55,'22'!I7:I163,'22'!D7:D163,TRUE) -> 6.82 | K55: =LinInterpolate(F55,'22'!I7:I163,'22'!E7:E163,TRUE) -> 4.48 | M55: 3504.628873 | N55: 601.448639 | O55: 395.086496 | P55: =IF(LinInterpolate(F55,'22'!I7:I163,'22'!F7:F163,TRUE)>0,LinInterpolate(F55,'22'!I7:I163,'22'!F7:F163,TRUE),0) -> 0
B56: ='INDEX (Corrected trim 4)'!B55 -> 23 | C56: W.B. 2 SB | D56: =IF('23'!I2=1.025,"SW","CHANGED") -> SW | E56: 7.8 | F56: =IF(G56<'23'!M163,LinInterpolate(G56,'23'!M7:M163,'23'!I7:I163,TRUE),100) -> 100 | G56: ='INDEX (Corrected trim 4)'!AA55 -> 87.666 | H56: =LinInterpolate(F56,'23'!I7:I163,'23'!H7:H163,TRUE) -> 89.85765 | I56: =LinInterpolate(F56,'23'!I7:I163,'23'!C7:C163,TRUE) -> 39.83 | J56: =LinInterpolate(F56,'23'!I7:I163,'23'!D7:D163,TRUE) -> -6.78 | K56: =LinInterpolate(F56,'23'!I7:I163,'23'!E7:E163,TRUE) -> 4.42 | M56: 3579.030199 | N56: -609.234867 | O56: 397.170813 | P56: =IF(LinInterpolate(F56,'23'!I7:I163,'23'!F7:F163,TRUE)>0,LinInterpolate(F56,'23'!I7:I163,'23'!F7:F163,TRUE),0) -> 0
B57: ='INDEX (Corrected trim 4)'!B56 -> 24 | C57: W.B. 3 PS | D57: =IF('24'!I2=1.025,"SW","CHANGED") -> SW | E57: 5.48 | F57: =IF(G57<'24'!M117,LinInterpolate(G57,'24'!M7:M117,'24'!I7:I117,TRUE),100) -> 100 | G57: ='INDEX (Corrected trim 4)'!AA56 -> 28.05 | H57: =LinInterpolate(F57,'24'!I7:I117,'24'!H7:H117,TRUE) -> 28.75125 | I57: =LinInterpolate(F57,'24'!I7:I117,'24'!C7:C117,TRUE) -> 31.59 | J57: =LinInterpolate(F57,'24'!I7:I117,'24'!D7:D117,TRUE) -> 7.77 | K57: =LinInterpolate(F57,'24'!I7:I117,'24'!E7:E117,TRUE) -> 3.95 | M57: 908.2519875 | N57: 223.3972125 | O57: 113.5674375 | P57: =IF(LinInterpolate(F57,'24'!I7:I117,'24'!F7:F117,TRUE)>0,LinInterpolate(F57,'24'!I7:I117,'24'!F7:F117,TRUE),0) -> 0
B58: ='INDEX (Corrected trim 4)'!B57 -> 25 | C58: W.B. 3 SB | D58: =IF('25'!I2=1.025,"SW","CHANGED") -> SW | E58: 5.48 | F58: =IF(G58<'25'!M117,LinInterpolate(G58,'25'!M7:M117,'25'!I7:I117,TRUE),100) -> 100 | G58: ='INDEX (Corrected trim 4)'!AA57 -> 28.05 | H58: =LinInterpolate(F58,'25'!I7:I117,'25'!H7:H117,TRUE) -> 28.75125 | I58: =LinInterpolate(F58,'25'!I7:I117,'25'!C7:C117,TRUE) -> 31.59 | J58: =LinInterpolate(F58,'25'!I7:I117,'25'!D7:D117,TRUE) -> -7.77 | K58: =LinInterpolate(F58,'25'!I7:I117,'25'!E7:E117,TRUE) -> 3.95 | M58: 908.2519875 | N58: -223.3972125 | O58: 113.5674375 | P58: =IF(LinInterpolate(F58,'25'!I7:I117,'25'!F7:F117,TRUE)>0,LinInterpolate(F58,'25'!I7:I117,'25'!F7:F117,TRUE),0) -> 0
B59: ='INDEX (Corrected trim 4)'!B58 -> 26 | C59: W.B. 3 PS DB | D59: =IF('26'!I2=1.025,"SW","CHANGED") -> SW | E59: 1.35 | F59: =IF(G59<'26'!M34,LinInterpolate(G59,'26'!M7:M34,'26'!I7:I34,TRUE),100) -> 100 | G59: ='INDEX (Corrected trim 4)'!AA58 -> 24.36 | H59: =LinInterpolate(F59,'26'!I7:I34,'26'!H7:H34,TRUE) -> 24.969 | I59: =LinInterpolate(F59,'26'!I7:I34,'26'!C7:C34,TRUE) -> 31.46 | J59: =LinInterpolate(F59,'26'!I7:I34,'26'!D7:D34,TRUE) -> 5.71 | K59: =LinInterpolate(F59,'26'!I7:I34,'26'!E7:E34,TRUE) -> 0.63 | M59: 785.52474 | N59: 142.57299 | O59: 15.73047 | P59: =IF(LinInterpolate(F59,'26'!I7:I34,'26'!F7:F34,TRUE)>0,LinInterpolate(F59,'26'!I7:I34,'26'!F7:F34,TRUE),0) -> 0
B60: ='INDEX (Corrected trim 4)'!B59 -> 27 | C60: W.B. 3 SB DB | D60: =IF('27'!I2=1.025,"SW","CHANGED") -> SW | E60: 1.35 | F60: =IF(G60<'27'!M34,LinInterpolate(G60,'27'!M7:M34,'27'!I7:I34,TRUE),100) -> 100 | G60: ='INDEX (Corrected trim 4)'!AA59 -> 24.36 | H60: =LinInterpolate(F60,'27'!I7:I34,'27'!H7:H34,TRUE) -> 24.969 | I60: =LinInterpolate(F60,'27'!I7:I34,'27'!C7:C34,TRUE) -> 31.46 | J60: =LinInterpolate(F60,'27'!I7:I34,'27'!D7:D34,TRUE) -> -5.71 | K60: =LinInterpolate(F60,'27'!I7:I34,'27'!E7:E34,TRUE) -> 0.63 | M60: 785.52474 | N60: -142.57299 | O60: 15.73047 | P60: =IF(LinInterpolate(F60,'27'!I7:I34,'27'!F7:F34,TRUE)>0,LinInterpolate(F60,'27'!I7:I34,'27'!F7:F34,TRUE),0) -> 0
B61: ='INDEX (Corrected trim 4)'!B60 -> 28 | C61: W.B. 4 PS | D61: =IF('28'!I2=1.025,"SW","CHANGED") -> SW | E61: 5.52 | F61: =IF(G61<'28'!M118,LinInterpolate(G61,'28'!M7:M118,'28'!I7:I118,TRUE),100) -> 100 | G61: ='INDEX (Corrected trim 4)'!AA60 -> 26.7 | H61: =LinInterpolate(F61,'28'!I7:I118,'28'!H7:H118,TRUE) -> 27.3675 | I61: =LinInterpolate(F61,'28'!I7:I118,'28'!C7:C118,TRUE) -> 26.1 | J61: =LinInterpolate(F61,'28'!I7:I118,'28'!D7:D118,TRUE) -> 7.8 | K61: =LinInterpolate(F61,'28'!I7:I118,'28'!E7:E118,TRUE) -> 4.04 | M61: 714.29175 | N61: 213.4665 | O61: 110.5647 | P61: =IF(LinInterpolate(F61,'28'!I7:I118,'28'!F7:F118,TRUE)>0,LinInterpolate(F61,'28'!I7:I118,'28'!F7:F118,TRUE),0) -> 0
B62: ='INDEX (Corrected trim 4)'!B61 -> 29 | C62: W.B. 4 SB | D62: =IF('29'!I2=1.025,"SW","CHANGED") -> SW | E62: 5.52 | F62: =IF(G62<'29'!M118,LinInterpolate(G62,'29'!M7:M118,'29'!I7:I118,TRUE),100) -> 100 | G62: ='INDEX (Corrected trim 4)'!AA61 -> 26.7 | H62: =LinInterpolate(F62,'29'!I7:I118,'29'!H7:H118,TRUE) -> 27.3675 | I62: =LinInterpolate(F62,'29'!I7:I118,'29'!C7:C118,TRUE) -> 26.1 | J62: =LinInterpolate(F62,'29'!I7:I118,'29'!D7:D118,TRUE) -> -7.8 | K62: =LinInterpolate(F62,'29'!I7:I118,'29'!E7:E118,TRUE) -> 4.04 | M62: 714.29175 | N62: -213.4665 | O62: 110.5647 | P62: =IF(LinInterpolate(F62,'29'!I7:I118,'29'!F7:F118,TRUE)>0,LinInterpolate(F62,'29'!I7:I118,'29'!F7:F118,TRUE),0) -> 0
B63: ='INDEX (Corrected trim 4)'!B62 -> 30 | C63: W.B. 4 PS DB | D63: =IF('30'!I2=1.025,"SW","CHANGED") -> SW | E63: 1.3 | F63: =IF(G63<'30'!M34,LinInterpolate(G63,'30'!M7:M34,'30'!I7:I34,TRUE),100) -> 100 | G63: ='INDEX (Corrected trim 4)'!AA62 -> 45.49 | H63: =LinInterpolate(F63,'30'!I7:I34,'30'!H7:H34,TRUE) -> 46.62725 | I63: =LinInterpolate(F63,'30'!I7:I34,'30'!C7:C34,TRUE) -> 26.09 | J63: =LinInterpolate(F63,'30'!I7:I34,'30'!D7:D34,TRUE) -> 4.1 | K63: =LinInterpolate(F63,'30'!I7:I34,'30'!E7:E34,TRUE) -> 0.56 | M63: 1216.504952 | N63: 191.171725 | O63: 26.11126 | P63: =IF(LinInterpolate(F63,'30'!I7:I34,'30'!F7:F34,TRUE)>0,LinInterpolate(F63,'30'!I7:I34,'30'!F7:F34,TRUE),0) -> 0
B64: ='INDEX (Corrected trim 4)'!B63 -> 31 | C64: W.B. 4 SB DB | D64: =IF('31'!I2=1.025,"SW","CHANGED") -> SW | E64: 5.52 | F64: =IF(G64<'31'!M34,LinInterpolate(G64,'31'!M7:M34,'31'!I7:I34,TRUE),100) -> 100 | G64: ='INDEX (Corrected trim 4)'!AA63 -> 45.49 | H64: =LinInterpolate(F64,'31'!I7:I34,'31'!H7:H34,TRUE) -> 46.62725 | I64: =LinInterpolate(F64,'31'!I7:I34,'31'!C7:C34,TRUE) -> 26.09 | J64: =LinInterpolate(F64,'31'!I7:I34,'31'!D7:D34,TRUE) -> -4.1 | K64: =LinInterpolate(F64,'31'!I7:I34,'31'!E7:E34,TRUE) -> 0.56 | M64: 1216.504952 | N64: -191.171725 | O64: 26.11126 | P64: =IF(LinInterpolate(F64,'31'!I7:I34,'31'!F7:F34,TRUE)>0,LinInterpolate(F64,'31'!I7:I34,'31'!F7:F34,TRUE),0) -> 0
B65: ='INDEX (Corrected trim 4)'!B64 -> 32 | C65: W.B. 5 PS | D65: =IF('32'!I2=1.025,"SW","CHANGED") -> SW | E65: 5.52 | F65: =IF(G65<'32'!M118,LinInterpolate(G65,'32'!M7:M118,'32'!I7:I118,TRUE),100) -> 100 | G65: ='INDEX (Corrected trim 4)'!AA64 -> 23.67 | H65: =LinInterpolate(F65,'32'!I7:I118,'32'!H7:H118,TRUE) -> 24.26175 | I65: =LinInterpolate(F65,'32'!I7:I118,'32'!C7:C118,TRUE) -> 21 | J65: =LinInterpolate(F65,'32'!I7:I118,'32'!D7:D118,TRUE) -> 7.8 | K65: =LinInterpolate(F65,'32'!I7:I118,'32'!E7:E118,TRUE) -> 4.04 | M65: 509.49675 | N65: 189.24165 | O65: 98.01747 | P65: =IF(LinInterpolate(F65,'32'!I7:I118,'32'!F7:F118,TRUE)>0,LinInterpolate(F65,'32'!I7:I118,'32'!F7:F118,TRUE),0) -> 0
B66: ='INDEX (Corrected trim 4)'!B65 -> 33 | C66: W.B. 5 SB | D66: =IF('33'!I2=1.025,"SW","CHANGED") -> SW | E66: 5.52 | F66: =IF(G66<'33'!M118,LinInterpolate(G66,'33'!M7:M118,'33'!I7:I118,TRUE),100) -> 100 | G66: ='INDEX (Corrected trim 4)'!AA65 -> 23.67 | H66: =LinInterpolate(F66,'33'!I7:I118,'33'!H7:H118,TRUE) -> 24.26175 | I66: =LinInterpolate(F66,'33'!I7:I118,'33'!C7:C118,TRUE) -> 21 | J66: =LinInterpolate(F66,'33'!I7:I118,'33'!D7:D118,TRUE) -> -7.8 | K66: =LinInterpolate(F66,'33'!I7:I118,'33'!E7:E118,TRUE) -> 4.04 | M66: 509.49675 | N66: -189.24165 | O66: 98.01747 | P66: =IF(LinInterpolate(F66,'33'!I7:I118,'33'!F7:F118,TRUE)>0,LinInterpolate(F66,'33'!I7:I118,'33'!F7:F118,TRUE),0) -> 0
B67: ='INDEX (Corrected trim 4)'!B66 -> 34 | C67: W.B. 5 PS DB | D67: =IF('34'!I2=1.025,"SW","CHANGED") -> SW | E67: 1.35 | F67: =IF(G67<'34'!M34,LinInterpolate(G67,'34'!M7:M34,'34'!I7:I34,TRUE),100) -> 100 | G67: ='INDEX (Corrected trim 4)'!AA66 -> 40.16 | H67: =LinInterpolate(F67,'34'!I7:I34,'34'!H7:H34,TRUE) -> 41.164 | I67: =LinInterpolate(F67,'34'!I7:I34,'34'!C7:C34,TRUE) -> 21 | J67: =LinInterpolate(F67,'34'!I7:I34,'34'!D7:D34,TRUE) -> 4.15 | K67: =LinInterpolate(F67,'34'!I7:I34,'34'!E7:E34,TRUE) -> 0.56 | M67: 864.444 | N67: 170.8306 | O67: 23.05184 | P67: =IF(LinInterpolate(F67,'34'!I7:I34,'34'!F7:F34,TRUE)>0,LinInterpolate(F67,'34'!I7:I34,'34'!F7:F34,TRUE),0) -> 0
B68: ='INDEX (Corrected trim 4)'!B67 -> 35 | C68: W.B. 5 SB DB | D68: =IF('35'!I2=1.025,"SW","CHANGED") -> SW | E68: 1.35 | F68: =IF(G68<'35'!M34,LinInterpolate(G68,'35'!M7:M34,'35'!I7:I34,TRUE),100) -> 100 | G68: ='INDEX (Corrected trim 4)'!AA67 -> 40.16 | H68: =LinInterpolate(F68,'35'!I7:I34,'35'!H7:H34,TRUE) -> 41.164 | I68: =LinInterpolate(F68,'35'!I7:I34,'35'!C7:C34,TRUE) -> 21 | J68: =LinInterpolate(F68,'35'!I7:I34,'35'!D7:D34,TRUE) -> -4.15 | K68: =LinInterpolate(F68,'35'!I7:I34,'35'!E7:E34,TRUE) -> 0.56 | M68: =$H68*I68 -> 864.444 | N68: -170.8306 | O68: 23.05184 | P68: =IF(LinInterpolate(F68,'35'!I7:I34,'35'!F7:F34,TRUE)>0,LinInterpolate(F68,'35'!I7:I34,'35'!F7:F34,TRUE),0) -> 0
B69: ='INDEX (Corrected trim 4)'!B68 -> 36 | C69: W.B. 6 PS | D69: =IF('36'!I2=1.025,"SW","CHANGED") -> SW | E69: 5.51 | F69: =IF(G69<'36'!M118,LinInterpolate(G69,'36'!M7:M118,'36'!I7:I118,TRUE),100) -> 100 | G69: ='INDEX (Corrected trim 4)'!AA68 -> 22.31 | H69: =LinInterpolate(F69,'36'!I7:I118,'36'!H7:H118,TRUE) -> 22.8575 | I69: =LinInterpolate(F69,'36'!I7:I118,'36'!C7:C118,TRUE) -> 16.26 | J69: =LinInterpolate(F69,'36'!I7:I118,'36'!D7:D118,TRUE) -> 7.79 | K69: =LinInterpolate(F69,'36'!I7:I118,'36'!E7:E118,TRUE) -> 4.21 | M69: 371.66295 | N69: 178.059925 | O69: 96.230075 | P69: =IF(LinInterpolate(F69,'36'!I7:I118,'36'!F7:F118,TRUE)>0,LinInterpolate(F69,'36'!I7:I118,'36'!F7:F118,TRUE),0) -> 0
B70: ='INDEX (Corrected trim 4)'!B69 -> 37 | C70: W.B. 6 SB | D70: =IF('37'!I2=1.025,"SW","CHANGED") -> SW | E70: 5.51 | F70: =IF(G70<'37'!M118,LinInterpolate(G70,'37'!M7:M118,'37'!I7:I118,TRUE),100) -> 100 | G70: ='INDEX (Corrected trim 4)'!AA69 -> 22.31 | H70: =LinInterpolate(F70,'37'!I7:I118,'37'!H7:H118,TRUE) -> 22.8575 | I70: =LinInterpolate(F70,'37'!I7:I118,'37'!C7:C118,TRUE) -> 16.26 | J70: =LinInterpolate(F70,'37'!I7:I118,'37'!D7:D118,TRUE) -> -7.79 | K70: =LinInterpolate(F70,'37'!I7:I118,'37'!E7:E118,TRUE) -> 4.21 | M70: 371.66295 | N70: -178.059925 | O70: 96.230075 | P70: =IF(LinInterpolate(F70,'37'!I7:I118,'37'!F7:F118,TRUE)>0,LinInterpolate(F70,'37'!I7:I118,'37'!F7:F118,TRUE),0) -> 0
B71: ='INDEX (Corrected trim 4)'!B70 -> 38 | C71: W.B. 6 PS DB | D71: =IF('38'!I2=1.025,"SW","CHANGED") -> SW | E71: 2.2 | F71: =IF(G71<'38'!M51,LinInterpolate(G71,'38'!M7:M51,'38'!I7:I51,TRUE),100) -> 100 | G71: ='INDEX (Corrected trim 4)'!AA70 -> 39.67 | H71: =LinInterpolate(F71,'38'!I7:I51,'38'!H7:H51,TRUE) -> 40.66175 | I71: =LinInterpolate(F71,'38'!I7:I51,'38'!C7:C51,TRUE) -> 16.2 | J71: =LinInterpolate(F71,'38'!I7:I51,'38'!D7:D51,TRUE) -> 4.16 | K71: =LinInterpolate(F71,'38'!I7:I51,'38'!E7:E51,TRUE) -> 0.63 | M71: 658.72035 | N71: 169.15288 | O71: 25.6169025 | P71: =IF(LinInterpolate(F71,'38'!I7:I51,'38'!F7:F51,TRUE)>0,LinInterpolate(F71,'38'!I7:I51,'38'!F7:F51,TRUE),0) -> 0
B72: ='INDEX (Corrected trim 4)'!B71 -> 39 | C72: W.B. 6 SB DB | D72: =IF('39'!I2=1.025,"SW","CHANGED") -> SW | E72: 2.2 | F72: =IF(G72<'39'!M51,LinInterpolate(G72,'39'!M7:M51,'39'!I7:I51,TRUE),100) -> 100 | G72: ='INDEX (Corrected trim 4)'!AA71 -> 39.67 | H72: =LinInterpolate(F72,'39'!I7:I51,'39'!H7:H51,TRUE) -> 40.66175 | I72: =LinInterpolate(F72,'39'!I7:I51,'39'!C7:C51,TRUE) -> 16.2 | J72: =LinInterpolate(F72,'39'!I7:I51,'39'!D7:D51,TRUE) -> -4.16 | K72: =LinInterpolate(F72,'39'!I7:I51,'39'!E7:E51,TRUE) -> 0.63 | M72: 658.72035 | N72: -169.15288 | O72: 25.6169025 | P72: =IF(LinInterpolate(F72,'39'!I7:I51,'39'!F7:F51,TRUE)>0,LinInterpolate(F72,'39'!I7:I51,'39'!F7:F51,TRUE),0) -> 0
B73: ='INDEX (Corrected trim 4)'!B72 -> 40 | C73: W.B. 7 PS | D73: =IF('40'!I2=1.025,"SW","CHANGED") -> SW | E73: 4.64 | F73: =IF(G73<'40'!M100,LinInterpolate(G73,'40'!M7:M100,'40'!I7:I100,TRUE),100) -> 100 | G73: ='INDEX (Corrected trim 4)'!AA72 -> 17.48 | H73: =LinInterpolate(F73,'40'!I7:I100,'40'!H7:H100,TRUE) -> 17.917 | I73: =LinInterpolate(F73,'40'!I7:I100,'40'!C7:C100,TRUE) -> 11.34 | J73: =LinInterpolate(F73,'40'!I7:I100,'40'!D7:D100,TRUE) -> 7.79 | K73: =LinInterpolate(F73,'40'!I7:I100,'40'!E7:E100,TRUE) -> 4.92 | M73: 203.17878 | N73: 139.57343 | O73: 88.15164 | P73: =IF(LinInterpolate(F73,'40'!I7:I100,'40'!F7:F100,TRUE)>0,LinInterpolate(F73,'40'!I7:I100,'40'!F7:F100,TRUE),0) -> 0
B74: ='INDEX (Corrected trim 4)'!B73 -> 41 | C74: W.B. 7 SB | D74: =IF('41'!I2=1.025,"SW","CHANGED") -> SW | E74: 4.64 | F74: =IF(G74<'41'!M100,LinInterpolate(G74,'41'!M7:M100,'41'!I7:I100,TRUE),100) -> 100 | G74: ='INDEX (Corrected trim 4)'!AA73 -> 17.48 | H74: =LinInterpolate(F74,'41'!I7:I100,'41'!H7:H100,TRUE) -> 17.917 | I74: =LinInterpolate(F74,'41'!I7:I100,'41'!C7:C100,TRUE) -> 11.34 | J74: =LinInterpolate(F74,'41'!I7:I100,'41'!D7:D100,TRUE) -> -7.79 | K74: =LinInterpolate(F74,'41'!I7:I100,'41'!E7:E100,TRUE) -> 4.92 | M74: 203.17878 | N74: -139.57343 | O74: 88.15164 | P74: =IF(LinInterpolate(F74,'41'!I7:I100,'41'!F7:F100,TRUE)>0,LinInterpolate(F74,'41'!I7:I100,'41'!F7:F100,TRUE),0) -> 0
B75: ='INDEX (Corrected trim 4)'!B74 -> 42 | C75: W.B. 7 PS DB | D75: =IF('42'!I2=1.025,"SW","CHANGED") -> SW | E75: 4.55 | F75: =IF(G75<'42'!M98,LinInterpolate(G75,'42'!M7:M98,'42'!I7:I98,TRUE),100) -> 100 | G75: ='INDEX (Corrected trim 4)'!AA74 -> 35.4 | H75: =LinInterpolate(F75,'42'!I7:I98,'42'!H7:H98,TRUE) -> 36.285 | I75: =LinInterpolate(F75,'42'!I7:I98,'42'!C7:C98,TRUE) -> 10.63 | J75: =LinInterpolate(F75,'42'!I7:I98,'42'!D7:D98,TRUE) -> 5.9 | K75: =LinInterpolate(F75,'42'!I7:I98,'42'!E7:E98,TRUE) -> 1.98 | M75: 385.70955 | N75: 214.0815 | O75: 71.8443 | P75: =IF(LinInterpolate(F75,'42'!I7:I98,'42'!F7:F98,TRUE)>0,LinInterpolate(F75,'42'!I7:I98,'42'!F7:F98,TRUE),0) -> 0
B76: ='INDEX (Corrected trim 4)'!B75 -> 43 | C76: W.B. 7 SB DB | D76: =IF('43'!I2=1.025,"SW","CHANGED") -> SW | E76: 4.55 | F76: =IF(G76<'43'!M98,LinInterpolate(G76,'43'!M7:M98,'43'!I7:I98,TRUE),100) -> 100 | G76: ='INDEX (Corrected trim 4)'!AA75 -> 35.4 | H76: =LinInterpolate(F76,'43'!I7:I98,'43'!H7:H98,TRUE) -> 36.285 | I76: =LinInterpolate(F76,'43'!I7:I98,'43'!C7:C98,TRUE) -> 10.63 | J76: =LinInterpolate(F76,'43'!I7:I98,'43'!D7:D98,TRUE) -> -5.9 | K76: =LinInterpolate(F76,'43'!I7:I98,'43'!E7:E98,TRUE) -> 1.98 | M76: 385.70955 | N76: -214.0815 | O76: 71.8443 | P76: =IF(LinInterpolate(F76,'43'!I7:I98,'43'!F7:F98,TRUE)>0,LinInterpolate(F76,'43'!I7:I98,'43'!F7:F98,TRUE),0) -> 0
B77: ='INDEX (Corrected trim 4)'!B76 -> 44 | C77: W.B. 8 PS DB | D77: =IF('44'!I2=1.025,"SW","CHANGED") -> SW | E77: 2.7 | F77: =IF(G77<'44'!M61,LinInterpolate(G77,'44'!M7:M61,'44'!I7:I61,TRUE),100) -> 100 | G77: ='INDEX (Corrected trim 4)'!AA76 -> 29.71 | H77: =LinInterpolate(F77,'44'!I7:I61,'44'!H7:H61,TRUE) -> 30.45275 | I77: =LinInterpolate(F77,'44'!I7:I61,'44'!C7:C61,TRUE) -> 10.53 | J77: =LinInterpolate(F77,'44'!I7:I61,'44'!D7:D61,TRUE) -> 1.47 | K77: =LinInterpolate(F77,'44'!I7:I61,'44'!E7:E61,TRUE) -> 1.11 | M77: 320.6674575 | N77: 44.7655425 | O77: 33.8025525 | P77: =IF(LinInterpolate(F77,'44'!I7:I61,'44'!F7:F61,TRUE)>0,LinInterpolate(F77,'44'!I7:I61,'44'!F7:F61,TRUE),0) -> 0
B78: ='INDEX (Corrected trim 4)'!B77 -> 45 | C78: W.B. 8 SB DB | D78: =IF('45'!I2=1.025,"SW","CHANGED") -> SW | E78: 2.7 | F78: =IF(G78<'45'!M61,LinInterpolate(G78,'45'!M7:M61,'45'!I7:I61,TRUE),100) -> 100 | G78: ='INDEX (Corrected trim 4)'!AA77 -> 29.71 | H78: =LinInterpolate(F78,'45'!I7:I61,'45'!H7:H61,TRUE) -> 30.45275 | I78: =LinInterpolate(F78,'45'!I7:I61,'45'!C7:C61,TRUE) -> 10.53 | J78: =LinInterpolate(F78,'45'!I7:I61,'45'!D7:D61,TRUE) -> -1.47 | K78: =LinInterpolate(F78,'45'!I7:I61,'45'!E7:E61,TRUE) -> 1.11 | M78: 320.6674575 | N78: -44.7655425 | O78: 33.8025525 | P78: =IF(LinInterpolate(F78,'45'!I7:I61,'45'!F7:F61,TRUE)>0,LinInterpolate(F78,'45'!I7:I61,'45'!F7:F61,TRUE),0) -> 0
C79: ='INDEX (Corrected trim 4)'!C78 -> Total BW | F79: =(G79/1032)*100 -> 100.0032946 | G79: =SUM((G52:G78)) -> 1032.034 | H79: =SUM((H52:H78)) -> 1057.81435 | I79: =M79/H79 -> 22.74410812 | J79: =N79/H79 -> -0.00736067534 | K79: =O79/H79 -> 3.081373373 | M79: =SUM((M52:M78)) -> 24059.04395 | N79: =SUM((N52:N78)) -> -7.786228 | O79: =SUM((O52:O78)) -> 3259.520972 | P79: =SUM((P52:P78)) -> 0
C81: ='INDEX (Corrected trim 4)'!C80 -> FW (S.G. 1.000)
B82: ='INDEX (Corrected trim 4)'!B81 -> 46 | C82: F.W. 1 PS | D82: =IF('46'!I2=1,"FW","CHANGED") -> FW | E82: 7.77 | F82: =IF(G82<'46'!M163,LinInterpolate(G82,'46'!M7:M163,'46'!I7:I163,TRUE),100) -> 100 | G82: ='INDEX (Corrected trim 4)'!AA81 -> 73.35 | H82: =LinInterpolate(F82,'46'!I7:I163,'46'!H7:H163,TRUE) -> 73.35 | I82: =LinInterpolate(F82,'46'!I7:I163,'46'!C7:C163,TRUE) -> 47.04 | J82: =LinInterpolate(F82,'46'!I7:I163,'46'!D7:D163,TRUE) -> 2.93 | K82: =LinInterpolate(F82,'46'!I7:I163,'46'!E7:E163,TRUE) -> 4.93 | M82: =$H82*I82 -> 3450.384 | N82: 214.9155 | O82: 361.6155 | P82: =IF(LinInterpolate(F82,'46'!I7:I163,'46'!F7:F163,TRUE)>0,LinInterpolate(F82,'46'!I7:I163,'46'!F7:F163,TRUE),0) -> 0
B83: ='INDEX (Corrected trim 4)'!B82 -> 47 | C83: F.W. 1 SB | D83: =IF('47'!I2=1,"FW","CHANGED") -> FW | E83: 7.77 | F83: =IF(G83<'47'!M163,LinInterpolate(G83,'47'!M7:M163,'47'!I7:I163,TRUE),100) -> 100 | G83: ='INDEX (Corrected trim 4)'!AA82 -> 73.35 | H83: =LinInterpolate(F83,'47'!I7:I163,'47'!H7:H163,TRUE) -> 73.35 | I83: =LinInterpolate(F83,'47'!I7:I163,'47'!C7:C163,TRUE) -> 47.05 | J83: =LinInterpolate(F83,'47'!I7:I163,'47'!D7:D163,TRUE) -> -2.93 | K83: =LinInterpolate(F83,'47'!I7:I163,'47'!E7:E163,TRUE) -> 4.93 | M83: 3451.1175 | N83: -214.9155 | O83: 361.6155 | P83: =IF(LinInterpolate(F83,'47'!I7:I163,'47'!F7:F163,TRUE)>0,LinInterpolate(F83,'47'!I7:I163,'47'!F7:F163,TRUE),0) -> 0
B84: ='INDEX (Corrected trim 4)'!B83 -> 48 | C84: F.W. 1 C | D84: =IF('48'!I2=1,"FW","CHANGED") -> FW | E84: 5.77 | F84: =IF(G84<'48'!M123,LinInterpolate(G84,'48'!M7:M123,'48'!I7:I123,TRUE),100) -> 100 | G84: ='INDEX (Corrected trim 4)'!AA83 -> 103.64 | H84: =LinInterpolate(F84,'48'!I7:I123,'48'!H7:H123,TRUE) -> 103.64 | I84: =LinInterpolate(F84,'48'!I7:I123,'48'!C7:C123,TRUE) -> 15.61 | J84: =LinInterpolate(F84,'48'!I7:I123,'48'!D7:D123,TRUE) -> 0 | K84: =LinInterpolate(F84,'48'!I7:I123,'48'!E7:E123,TRUE) -> 3.91 | M84: 1617.8204 | N84: 0 | O84: 405.2324 | P84: =IF(LinInterpolate(F84,'48'!I7:I123,'48'!F7:F123,TRUE)>0,LinInterpolate(F84,'48'!I7:I123,'48'!F7:F123,TRUE),0) -> 0
B85: ='INDEX (Corrected trim 4)'!B84 -> 49 | C85: F.W. 2 PS | D85: =IF('49'!I2=1,"FW","CHANGED") -> FW | E85: 5.8 | F85: =IF(G85<'49'!M123,LinInterpolate(G85,'49'!M7:M123,'49'!I7:I123,TRUE),100) -> 100 | G85: ='INDEX (Corrected trim 4)'!AA84 -> 116.59 | H85: =LinInterpolate(F85,'49'!I7:I123,'49'!H7:H123,TRUE) -> 116.59 | I85: =LinInterpolate(F85,'49'!I7:I123,'49'!C7:C123,TRUE) -> 5.23 | J85: =LinInterpolate(F85,'49'!I7:I123,'49'!D7:D123,TRUE) -> 4.01 | K85: =LinInterpolate(F85,'49'!I7:I123,'49'!E7:E123,TRUE) -> 4.93 | M85: 609.7657 | N85: 467.5259 | O85: 574.7887 | P85: =IF(LinInterpolate(F85,'49'!I7:I123,'49'!F7:F123,TRUE)>0,LinInterpolate(F85,'49'!I7:I123,'49'!F7:F123,TRUE),0) -> 0
B86: ='INDEX (Corrected trim 4)'!B85 -> 50 | C86: F.W. 2 SB | D86: =IF('50'!I2=1,"FW","CHANGED") -> FW | E86: 5.8 | F86: =IF(G86<'50'!M123,LinInterpolate(G86,'50'!M7:M123,'50'!I7:I123,TRUE),100) -> 100 | G86: ='INDEX (Corrected trim 4)'!AA85 -> 116.59 | H86: =LinInterpolate(F86,'50'!I7:I123,'50'!H7:H123,TRUE) -> 116.59 | I86: =LinInterpolate(F86,'50'!I7:I123,'50'!C7:C123,TRUE) -> 5.23 | J86: =LinInterpolate(F86,'50'!I7:I123,'50'!D7:D123,TRUE) -> -4.01 | K86: =LinInterpolate(F86,'50'!I7:I123,'50'!E7:E123,TRUE) -> 4.93 | M86: 609.7657 | N86: -467.5259 | O86: 574.7887 | P86: =IF(LinInterpolate(F86,'50'!I7:I123,'50'!F7:F123,TRUE)>0,LinInterpolate(F86,'50'!I7:I123,'50'!F7:F123,TRUE),0) -> 0
C87: ='INDEX (Corrected trim 4)'!C86 -> TOTAL FW | F87: =(G87/483.5)*100 -> 100.0041365 | G87: =SUM((G82:G86)) -> 483.52 | H87: =SUM((H82:H86)) -> 483.52 | I87: =M87/H87 -> 20.14157284 | J87: =N87/H87 -> 0 | K87: =O87/H87 -> 4.711368299 | M87: =SUM((M82:M86)) -> 9738.8533 | N87: =SUM((N82:N86)) -> 0 | O87: =SUM((O82:O86)) -> 2278.0408 | P87: =SUM((P82:P86)) -> 0
C89: ='INDEX (Corrected trim 4)'!C88 -> Name | D89: ='INDEX (Corrected trim 4)'!D88 -> Sort of Fluid | E89: Sounding Height | F89: ='INDEX (Corrected trim 4)'!F88 -> % Full | G89: ='INDEX (Corrected trim 4)'!G88 -> Volume | H89: ='INDEX (Corrected trim 4)'!H88 -> Weight | I89: ='INDEX (Corrected trim 4)'!I88 -> LCG | J89: ='INDEX (Corrected trim 4)'!J88 -> TCG | K89: ='INDEX (Corrected trim 4)'!K88 -> VCG | L89: ='INDEX (Corrected trim 4)'!L88 -> 0 | M89: ='INDEX (Corrected trim 4)'!M88 -> Longitudinal | N89: ='INDEX (Corrected trim 4)'!N88 -> Transverse | O89: ='INDEX (Corrected trim 4)'!O88 -> Vertical | P89: ='INDEX (Corrected trim 4)'!P88 -> FSMt
C90: ='INDEX (Corrected trim 4)'!C89 -> 0 | D90: ='INDEX (Corrected trim 4)'!D89 -> 0 | F90: ='INDEX (Corrected trim 4)'!F89 ->  | G90: ='INDEX (Corrected trim 4)'!G89 ->  | H90: ='INDEX (Corrected trim 4)'!H89 ->  | I90: ='INDEX (Corrected trim 4)'!I89 -> Fwd of AP | J90: ='INDEX (Corrected trim 4)'!J89 -> PS:+ | K90: ='INDEX (Corrected trim 4)'!K89 -> Above BL | L90: ='INDEX (Corrected trim 4)'!L89 -> 0 | M90: ='INDEX (Corrected trim 4)'!M89 -> Moment | N90: ='INDEX (Corrected trim 4)'!N89 -> Moment | O90: ='INDEX (Corrected trim 4)'!O89 -> Moment | P90: ='INDEX (Corrected trim 4)'!P89 -> 
C91: ='INDEX (Corrected trim 4)'!C90 -> 0 | D91: ='INDEX (Corrected trim 4)'!D90 -> 0 | F91: ='INDEX (Corrected trim 4)'!F90 -> % | G91: ='INDEX (Corrected trim 4)'!G90 -> m³ | H91: ='INDEX (Corrected trim 4)'!H90 -> t | I91: ='INDEX (Corrected trim 4)'!I90 -> m | J91: ='INDEX (Corrected trim 4)'!J90 -> m | K91: ='INDEX (Corrected trim 4)'!K90 -> m | L91: ='INDEX (Corrected trim 4)'!L90 -> 0 | M91: ='INDEX (Corrected trim 4)'!M90 -> t·m | N91: ='INDEX (Corrected trim 4)'!N90 -> t·m | O91: ='INDEX (Corrected trim 4)'!O90 -> t·m | P91: ='INDEX (Corrected trim 4)'!P90 -> t·m
C92: ='INDEX (Corrected trim 4)'!C91 -> MISC (S.G. Various)
B93: ='INDEX (Corrected trim 4)'!B92 -> 51 | C93: DIRTY OIL | D93: =IF('51'!I2=0.98,"DIRTY","CHANGED") -> DIRTY | E93: 2 | F93: =IF(G93<'51'!M27,LinInterpolate(G93,'51'!M7:M27,'51'!I7:I27,TRUE),100) -> 100 | G93: ='INDEX (Corrected trim 4)'!AA92 -> 13.43 | H93: =LinInterpolate(F93,'51'!I7:I27,'51'!H7:H27,TRUE) -> 13.1614 | I93: =LinInterpolate(F93,'51'!I7:I27,'51'!C7:C27,TRUE) -> 36.93 | J93: =LinInterpolate(F93,'51'!I7:I27,'51'!D7:D27,TRUE) -> 0 | K93: =LinInterpolate(F93,'51'!I7:I27,'51'!E7:E27,TRUE) -> 0.5 | M93: =$H93*I93 -> 486.050502 | N93: 0 | O93: 6.5807 | P93: =IF(LinInterpolate(F93,'51'!I7:I27,'51'!F7:F27,TRUE)>0,LinInterpolate(F93,'51'!I7:I27,'51'!F7:F27,TRUE),0) -> 0
B94: ='INDEX (Corrected trim 4)'!B93 -> 52 | C94: OILY WATER | D94: =IF('52'!I2=0.98,"OILY","CHANGED") -> OILY | E94: 2 | F94: =IF(G94<'52'!M31,LinInterpolate(G94,'52'!M7:M31,'52'!I7:I31,TRUE),100) -> 100 | G94: ='INDEX (Corrected trim 4)'!AA93 -> 30.2 | H94: =LinInterpolate(F94,'52'!I7:I31,'52'!H7:H31,TRUE) -> 29.596 | I94: =LinInterpolate(F94,'52'!I7:I31,'52'!C7:C31,TRUE) -> 37.85 | J94: =LinInterpolate(F94,'52'!I7:I31,'52'!D7:D31,TRUE) -> -4.3 | K94: =LinInterpolate(F94,'52'!I7:I31,'52'!E7:E31,TRUE) -> 0.57 | M94: 1120.2086 | N94: -127.2628 | O94: 16.86972 | P94: =IF(LinInterpolate(F94,'52'!I7:I31,'52'!F7:F31,TRUE)>0,LinInterpolate(F94,'52'!I7:I31,'52'!F7:F31,TRUE),0) -> 0
B95: ='INDEX (Corrected trim 4)'!B94 -> 53 | C95: GREY WATER | D95: =IF('53'!I2=0.98,"GREY","CHANGED") -> GREY | E95: 2 | F95: =IF(G95<'53'!M27,LinInterpolate(G95,'53'!M7:M27,'53'!I7:I27,TRUE),100) -> 100 | G95: ='INDEX (Corrected trim 4)'!AA94 -> 31.1 | H95: =LinInterpolate(F95,'53'!I7:I27,'53'!H7:H27,TRUE) -> 30.478 | I95: =LinInterpolate(F95,'53'!I7:I27,'53'!C7:C27,TRUE) -> 41.56 | J95: =LinInterpolate(F95,'53'!I7:I27,'53'!D7:D27,TRUE) -> 0 | K95: =LinInterpolate(F95,'53'!I7:I27,'53'!E7:E27,TRUE) -> 0.5 | M95: 1266.66568 | N95: 0 | O95: 15.239 | P95: =IF(LinInterpolate(F95,'53'!I7:I27,'53'!F7:F27,TRUE)>0,LinInterpolate(F95,'53'!I7:I27,'53'!F7:F27,TRUE),0) -> 0
B96: ='INDEX (Corrected trim 4)'!B95 -> 54 | C96: SEWAGE | D96: =IF('54'!I2=0.98,"SEWAGE","CHANGED") -> SEWAGE | E96: 2 | F96: =IF(G96<'54'!M31,LinInterpolate(G96,'54'!M7:M31,'54'!I7:I31,TRUE),100) -> 100 | G96: ='INDEX (Corrected trim 4)'!AA95 -> 30.2 | H96: =LinInterpolate(F96,'54'!I7:I31,'54'!H7:H31,TRUE) -> 29.596 | I96: =LinInterpolate(F96,'54'!I7:I31,'54'!C7:C31,TRUE) -> 37.85 | J96: =LinInterpolate(F96,'54'!I7:I31,'54'!D7:D31,TRUE) -> 4.3 | K96: =LinInterpolate(F96,'54'!I7:I31,'54'!E7:E31,TRUE) -> 0.57 | M96: 1120.2086 | N96: 127.2628 | O96: 16.86972 | P96: =IF(LinInterpolate(F96,'54'!I7:I31,'54'!F7:F31,TRUE)>0,LinInterpolate(F96,'54'!I7:I31,'54'!F7:F31,TRUE),0) -> 0
B97: ='INDEX (Corrected trim 4)'!B96 -> 55 | C97: SLUDGE | D97: =IF('55'!I2=0.98,"SLUDGE","CHANGED") -> SLUDGE | E97: 2 | F97: =IF(G97<'55'!M27,LinInterpolate(G97,'55'!M7:M27,'55'!I7:I27,TRUE),100) -> 100 | G97: ='INDEX (Corrected trim 4)'!AA96 -> 19.05 | H97: =LinInterpolate(F97,'55'!I7:I27,'55'!H7:H27,TRUE) -> 18.669 | I97: =LinInterpolate(F97,'55'!I7:I27,'55'!C7:C27,TRUE) -> 31.5 | J97: =LinInterpolate(F97,'55'!I7:I27,'55'!D7:D27,TRUE) -> -1.8 | K97: =LinInterpolate(F97,'55'!I7:I27,'55'!E7:E27,TRUE) -> 0.5 | M97: 588.0735 | N97: -33.6042 | O97: 9.3345 | P97: =IF(LinInterpolate(F97,'55'!I7:I27,'55'!F7:F27,TRUE)>0,LinInterpolate(F97,'55'!I7:I27,'55'!F7:F27,TRUE),0) -> 0
B98: ='INDEX (Corrected trim 4)'!B97 -> 56 | C98: LUBRICATION OIL PS | D98: =IF('56'!I2=0.9,"OIL","CHANGED") -> OIL | E98: 2 | F98: =IF(G98<'56'!M47,LinInterpolate(G98,'56'!M7:M47,'56'!I7:I47,TRUE),100) -> 100 | G98: ='INDEX (Corrected trim 4)'!AA97 -> 10.58 | H98: =LinInterpolate(F98,'56'!I7:I47,'56'!H7:H47,TRUE) -> 9.522 | I98: =LinInterpolate(F98,'56'!I7:I47,'56'!C7:C47,TRUE) -> 30.3 | J98: =LinInterpolate(F98,'56'!I7:I47,'56'!D7:D47,TRUE) -> -0.9 | K98: =LinInterpolate(F98,'56'!I7:I47,'56'!E7:E47,TRUE) -> 5.8 | M98: 288.5166 | N98: -8.5698 | O98: 55.2276 | P98: =IF(LinInterpolate(F98,'56'!I7:I47,'56'!F7:F47,TRUE)>0,LinInterpolate(F98,'56'!I7:I47,'56'!F7:F47,TRUE),0) -> 0
B99: ='INDEX (Corrected trim 4)'!B98 -> 57 | C99: LUBRICATION OIL SB | D99: =IF('57'!I2=0.9,"OIL","CHANGED") -> OIL | E99: 2 | F99: =IF(G99<'57'!M47,LinInterpolate(G99,'57'!M7:M47,'57'!I7:I47,TRUE),100) -> 100 | G99: ='INDEX (Corrected trim 4)'!AA98 -> 10.58 | H99: =LinInterpolate(F99,'57'!I7:I47,'57'!H7:H47,TRUE) -> 9.522 | I99: =LinInterpolate(F99,'57'!I7:I47,'57'!C7:C47,TRUE) -> 30.3 | J99: =LinInterpolate(F99,'57'!I7:I47,'57'!D7:D47,TRUE) -> -2.7 | K99: =LinInterpolate(F99,'57'!I7:I47,'57'!E7:E47,TRUE) -> 5.8 | M99: 288.5166 | N99: -25.7094 | O99: 55.2276 | P99: =IF(LinInterpolate(F99,'57'!I7:I47,'57'!F7:F47,TRUE)>0,LinInterpolate(F99,'57'!I7:I47,'57'!F7:F47,TRUE),0) -> 0
B100: ='INDEX (Corrected trim 4)'!B99 -> 58 | C100: THERMAL OIL | D100: =IF('58'!I2=0.98,"THERM. OIL","CHANGED") -> THERM. OIL | E100: 2 | F100: =IF(G100<'58'!M47,LinInterpolate(G100,'58'!M7:M47,'58'!I7:I47,TRUE),100) -> 100 | G100: ='INDEX (Corrected trim 4)'!AA99 -> 10.58 | H100: =LinInterpolate(F100,'58'!I7:I47,'58'!H7:H47,TRUE) -> 10.3684 | I100: =LinInterpolate(F100,'58'!I7:I47,'58'!C7:C47,TRUE) -> 30.3 | J100: =LinInterpolate(F100,'58'!I7:I47,'58'!D7:D47,TRUE) -> 0.9 | K100: =LinInterpolate(F100,'58'!I7:I47,'58'!E7:E47,TRUE) -> 5.78 | M100: 314.16252 | N100: 9.33156 | O100: 59.929352 | P100: =IF(LinInterpolate(F100,'58'!I7:I47,'58'!F7:F47,TRUE)>0,LinInterpolate(F100,'58'!I7:I47,'58'!F7:F47,TRUE),0) -> 0
C101: ='INDEX (Corrected trim 4)'!C100 -> Total MISC | F101: =(G101/155.7)*100 -> 100.0128452 | G101: =SUM((G93:G100)) -> 155.72 | H101: =SUM((H93:H100)) -> 150.9128 | I101: =M101/H101 -> 36.26201755 | J101: =N101/H101 -> -0.3879845845 | K101: =O101/H101 -> 1.559034038 | M101: =SUM((M93:M100)) -> 5472.402602 | N101: =SUM((N93:N100)) -> -58.55184 | O101: =SUM((O93:O100)) -> 235.278192 | P101: =SUM((P93:P100)) -> 0
C103: ='INDEX (Corrected trim 4)'!C102 -> Total in all tanks | F103: ='INDEX (Corrected trim 4)'!F102 -> 97.52919136 | G103: ='INDEX (Corrected trim 4)'!G102 -> 3010.703381 | H103: ='INDEX (Corrected trim 4)'!H102 -> 2963.647617 | I103: ='INDEX (Corrected trim 4)'!I102 -> 22.29465288 | J103: ='INDEX (Corrected trim 4)'!J102 -> -0.01243355242 | K103: ='INDEX (Corrected trim 4)'!K102 -> 3.669793798 | L103: ='INDEX (Corrected trim 4)'!L102 -> 0 | M103: ='INDEX (Corrected trim 4)'!M102 -> 66073.49489 | N103: ='INDEX (Corrected trim 4)'!N102 -> -36.848668 | O103: ='INDEX (Corrected trim 4)'!O102 -> 10875.97565 | P103: ='INDEX (Corrected trim 4)'!P102 -> 13.98440737
C105: Name | H105: Weight | I105: LCG | J105: TCG | K105: VCG | M105: Longitudinal | N105: Transverse | O105: Vertical | P105: FSMt
I106: Fwd of AP | J106: PS:+ | K106: Above BL | M106: Moment | N106: Moment | O106: Moment
H107: t | I107: m | J107: m | K107: m | M107: t·m | N107: t·m | O107: t·m | P107: t·m
C109: (DECK) LOADS
C110: Name | H110: Weight | I110: LCG | J110: TCG | K110: VCG | M110: Longitudinal | N110: Transverse | O110: Vertical | P110: FSMt
I111: Fwd of AP | J111: PS:+ | K111: Above BL | M111: Moment | N111: Moment | O111: Moment
H112: t | I112: m | J112: m | K112: m | M112: t·m | N112: t·m | O112: t·m | P112: t·m
C113: Deck load 1 | D113: Test weight 1 | E113: Test weight 1 | F113: Test weight 1 | G113: Test weight 1 | H113: 5 | I113: 5 | J113: 1 | K113: 7 | M113: =$H113*I113 -> 25 | N113: =$H113*J113 -> 5 | O113: =$H113*K113 -> 35
C114: Deck load 2 | D114: Test weight 2 | E114: Test weight 2 | F114: Test weight 2 | G114: Test weight 2 | H114: 5 | I114: 5 | J114: -1 | K114: 7 | M114: 25 | N114: -5 | O114: 35
C115: Deck load 3 | D115: Test weight 3 | E115: Test weight 3 | F115: Test weight 3 | G115: Test weight 3 | H115: 10 | I115: 6 | J115: 1 | K115: 7 | M115: 60 | N115: 10 | O115: 70
C116: Deck load 4 | D116: Test weight 4 | E116: Test weight 4 | F116: Test weight 4 | G116: Test weight 4 | H116: 10 | I116: 6 | J116: -1 | K116: 7 | M116: 60 | N116: -10 | O116: 70
C117: Deck load 5 | D117: Test weight 5 | E117: Test weight 5 | F117: Test weight 5 | G117: Test weight 5 | H117: 15 | I117: 7 | J117: 1 | K117: 7 | M117: 105 | N117: 15 | O117: 105
C118: Deck load 6 | D118: Test weight 6 | E118: Test weight 6 | F118: Test weight 6 | G118: Test weight 6 | H118: 15 | I118: 7 | J118: -1 | K118: 7 | M118: 105 | N118: -15 | O118: 105
C119: Deck load 7 | D119: Test weight 7 | E119: Test weight 7 | F119: Test weight 7 | G119: Test weight 7 | H119: 5 | I119: 8 | J119: 1 | K119: 7 | M119: 40 | N119: 5 | O119: 35
C120: Deck load 8 | D120: Test weight 8 | E120: Test weight 8 | F120: Test weight 8 | G120: Test weight 8 | H120: 5 | I120: 8 | J120: -1 | K120: 7 | M120: 40 | N120: -5 | O120: 35
C122: Total Remaining | H122: =SUM(H113:H121) -> 70 | I122: =M122/H122 -> 6.571428571 | J122: =N122/H122 -> 0 | K122: =O122/H122 -> 7 | M122: =SUM(M113:M121) -> 460 | N122: =SUM(N113:N121) -> 0 | O122: =SUM(O113:O121) -> 490
C125: Calculation Results
C127: Ship weight | I127: LCG | J127: TCG | K127: VCG | L127: Total Moments | P127: FSMt / ∆
H128: t | I128: m | J128: m | K128: m | L128: t·m | N128: t·m | O128: t·m | P128: m
C129: Displacement | H129: =H130+H22 -> 4733.647617 | I129: =L129/H129 -> 24.82937143 | J129: =N129/H129 -> -0.007784412989 | K129: =O129/H129 -> 4.91502062 | L129: =L130+M22 -> 117533.4949 | N129: =N130+N22 -> -36.848668 | O129: =O130+O22 -> 23265.97565 | P129: =P103/H129 -> 0.002954256105
C130: Total Deadweight | H130: =H122+H103 -> 3033.647617 | I130: =L130/H130 -> 21.93184683 | J130: =N130/H130 -> -0.01214665401 | K130: =O130/H130 -> 3.746636749 | L130: =M122+M103 -> 66533.49489 | N130: =N122+N103 -> -36.848668 | O130: =O122+O103 -> 11365.97565
C132: Longitudinal Stability
C133: Sheet used for calculation data: | D133: Hydrostatics
C135: Trim | D135: Draft | E135: Displ. | F135: LCB | G135: VCB | H135: ϕ | I135: LCG' | J135: LCB' | K135: LCG'-LCB' | M135: LCF | N135: KM
D136: Moulded | F136: Fwd of AP | I136: LCG + tanϕ * VCB | J136: LCB + tanϕ * VCG | M136: Fwd of AP
C137: m | D137: m | E137: t | F137: m | G137: m | H137: rad | I137: m | J137: m | K137: m | M137: m | N137: m
C138: -1.5 | D138: =LinInterpolate(E138,Hydrostatics!D6:D86,Hydrostatics!C6:C86,TRUE) -> 6.64818642 | E138: =$H$129 -> 4733.647617 | F138: =LinInterpolate($E138,Hydrostatics!$D6:$D86,Hydrostatics!I6:I86,TRUE) -> 23.42818642 | G138: =LinInterpolate($E138,Hydrostatics!$D6:$D86,Hydrostatics!J6:J86,TRUE) -> 3.629274568 | H138: =ATAN(C138/(#REF!)) ->  | I138: =$I$129+((TAN(H138))*$K$129) ->  | J138: =F138+((TAN(H138))*G138) ->  | K138: =I138-J138 ->  | M138: =LinInterpolate($E138,Hydrostatics!$D6:$D86,Hydrostatics!K6:K86,TRUE) -> 33.98134544 | N138: =LinInterpolate($E138,Hydrostatics!$D6:$D86,Hydrostatics!E6:E86,TRUE) -> 5.574352592
C139: -1.4 | D139: =LinInterpolate(E139,Hydrostatics!D88:D168,Hydrostatics!C88:C168,TRUE) -> 6.634409241 | E139: 4733.647617 | F139: =LinInterpolate($E139,Hydrostatics!$D88:$D168,Hydrostatics!I88:I168,TRUE) -> 23.44440924 | G139: =LinInterpolate($E139,Hydrostatics!$D88:$D168,Hydrostatics!J88:J168,TRUE) -> 3.626881848 | H139: =ATAN(C139/(#REF!)) ->  | M139: =LinInterpolate($E139,Hydrostatics!$D88:$D168,Hydrostatics!K88:K168,TRUE) -> 33.57678417 | N139: =LinInterpolate($E139,Hydrostatics!$D88:$D168,Hydrostatics!E88:E168,TRUE) -> 5.644299669
C140: -1.3 | D140: =LinInterpolate(E140,Hydrostatics!D170:D250,Hydrostatics!C170:C250,TRUE) -> 6.621172763 | E140: 4733.647617 | F140: =LinInterpolate($E140,Hydrostatics!$D170:$D250,Hydrostatics!I170:I250,TRUE) -> 23.46117276 | G140: =LinInterpolate($E140,Hydrostatics!$D170:$D250,Hydrostatics!J170:J250,TRUE) -> 3.628469105 | H140: =ATAN(C140/(#REF!)) ->  | M140: =LinInterpolate($E140,Hydrostatics!$D170:$D250,Hydrostatics!K170:K250,TRUE) -> 33.24381339 | N140: =LinInterpolate($E140,Hydrostatics!$D170:$D250,Hydrostatics!E170:E250,TRUE) -> 5.704950816
C141: -1.2 | D141: =LinInterpolate(E141,Hydrostatics!D252:D332,Hydrostatics!C252:C332,TRUE) -> 6.608598416 | E141: 4733.647617 | F141: =LinInterpolate($E141,Hydrostatics!$D252:$D332,Hydrostatics!I252:I332,TRUE) -> 23.46859842 | G141: =LinInterpolate($E141,Hydrostatics!$D252:$D332,Hydrostatics!J252:J332,TRUE) -> 3.623439366 | H141: =ATAN(C141/(#REF!)) ->  | M141: =LinInterpolate($E141,Hydrostatics!$D252:$D332,Hydrostatics!K252:K332,TRUE) -> 32.82821085 | N141: =LinInterpolate($E141,Hydrostatics!$D252:$D332,Hydrostatics!E252:E332,TRUE) -> 5.777644119
C142: -1.1 | D142: =LinInterpolate(E142,Hydrostatics!D334:D414,Hydrostatics!C334:C414,TRUE) -> 6.596940032 | E142: 4733.647617 | F142: =LinInterpolate($E142,Hydrostatics!$D334:$D414,Hydrostatics!I334:I414,TRUE) -> 23.48755203 | G142: =LinInterpolate($E142,Hydrostatics!$D334:$D414,Hydrostatics!J334:J414,TRUE) -> 3.628776013 | H142: =ATAN(C142/(#REF!)) ->  | M142: =LinInterpolate($E142,Hydrostatics!$D334:$D414,Hydrostatics!K334:K414,TRUE) -> 32.22900875 | N142: =LinInterpolate($E142,Hydrostatics!$D334:$D414,Hydrostatics!E334:E414,TRUE) -> 5.870403891
C143: -1 | D143: =LinInterpolate(E143,Hydrostatics!D416:D496,Hydrostatics!C416:C496,TRUE) -> 6.586823687 | E143: 4733.647617 | F143: =LinInterpolate($E143,Hydrostatics!$D416:$D496,Hydrostatics!I416:I496,TRUE) -> 23.50945895 | G143: =LinInterpolate($E143,Hydrostatics!$D416:$D496,Hydrostatics!J416:J496,TRUE) -> 3.624729475 | H143: =ATAN(C143/(#REF!)) ->  | M143: =LinInterpolate($E143,Hydrostatics!$D416:$D496,Hydrostatics!K416:K496,TRUE) -> 31.5258627 | N143: =LinInterpolate($E143,Hydrostatics!$D416:$D496,Hydrostatics!E416:E496,TRUE) -> 5.987434727
C144: -0.9 | D144: =LinInterpolate(E144,Hydrostatics!D498:D578,Hydrostatics!C498:C578,TRUE) -> 6.57808869 | E144: 4733.647617 | F144: =LinInterpolate($E144,Hydrostatics!$D498:$D578,Hydrostatics!I498:I578,TRUE) -> 23.53247095 | G144: =LinInterpolate($E144,Hydrostatics!$D498:$D578,Hydrostatics!J498:J578,TRUE) -> 3.625617738 | H144: =ATAN(C144/(#REF!)) ->  | M144: =LinInterpolate($E144,Hydrostatics!$D498:$D578,Hydrostatics!K498:K578,TRUE) -> 30.66827843 | N144: =LinInterpolate($E144,Hydrostatics!$D498:$D578,Hydrostatics!E498:E578,TRUE) -> 6.130792028
C145: -0.8 | D145: =LinInterpolate(E145,Hydrostatics!D580:D660,Hydrostatics!C580:C660,TRUE) -> 6.571061668 | E145: 4733.647617 | F145: =LinInterpolate($E145,Hydrostatics!$D580:$D660,Hydrostatics!I580:I660,TRUE) -> 23.55684933 | G145: =LinInterpolate($E145,Hydrostatics!$D580:$D660,Hydrostatics!J580:J660,TRUE) -> 3.628424667 | H145: =ATAN(C145/(#REF!)) ->  | M145: =LinInterpolate($E145,Hydrostatics!$D580:$D660,Hydrostatics!K580:K660,TRUE) -> 29.62770638 | N145: =LinInterpolate($E145,Hydrostatics!$D580:$D660,Hydrostatics!E580:E660,TRUE) -> 6.307842327
C146: -0.7 | D146: =LinInterpolate(E146,Hydrostatics!D662:D742,Hydrostatics!C662:C742,TRUE) -> 6.566017984 | E146: 4733.647617 | F146: =LinInterpolate($E146,Hydrostatics!$D662:$D742,Hydrostatics!I662:I742,TRUE) -> 23.58961079 | G146: =LinInterpolate($E146,Hydrostatics!$D662:$D742,Hydrostatics!J662:J742,TRUE) -> 3.626407193 | H146: =ATAN(C146/(#REF!)) ->  | M146: =LinInterpolate($E146,Hydrostatics!$D662:$D742,Hydrostatics!K662:K742,TRUE) -> 28.39110855 | N146: =LinInterpolate($E146,Hydrostatics!$D662:$D742,Hydrostatics!E662:E742,TRUE) -> 6.510688502
C147: -0.6 | D147: =LinInterpolate(E147,Hydrostatics!D744:D824,Hydrostatics!C744:C824,TRUE) -> 6.563717841 | E147: 4733.647617 | F147: =LinInterpolate($E147,Hydrostatics!$D744:$D824,Hydrostatics!I744:I824,TRUE) -> 23.6282307 | G147: =LinInterpolate($E147,Hydrostatics!$D744:$D824,Hydrostatics!J744:J824,TRUE) -> 3.625487136 | H147: =ATAN(C147/(#REF!)) ->  | M147: =LinInterpolate($E147,Hydrostatics!$D744:$D824,Hydrostatics!K744:K824,TRUE) -> 26.75455928 | N147: =LinInterpolate($E147,Hydrostatics!$D744:$D824,Hydrostatics!E744:E824,TRUE) -> 6.783975113
C148: -0.5 | D148: =LinInterpolate(E148,Hydrostatics!D826:D906,Hydrostatics!C826:C906,TRUE) -> 6.564852902 | E148: 4733.647617 | F148: =LinInterpolate($E148,Hydrostatics!$D826:$D906,Hydrostatics!I826:I906,TRUE) -> 23.68297058 | G148: =LinInterpolate($E148,Hydrostatics!$D826:$D906,Hydrostatics!J826:J906,TRUE) -> 3.625941161 | H148: =ATAN(C148/(#REF!)) ->  | M148: =LinInterpolate($E148,Hydrostatics!$D826:$D906,Hydrostatics!K826:K906,TRUE) -> 24.79879195 | N148: =LinInterpolate($E148,Hydrostatics!$D826:$D906,Hydrostatics!E826:E906,TRUE) -> 7.10929446
C149: -0.4 | D149: =LinInterpolate(E149,Hydrostatics!D908:D988,Hydrostatics!C908:C988,TRUE) -> 6.570404206 | E149: 4733.647617 | F149: =LinInterpolate($E149,Hydrostatics!$D908:$D988,Hydrostatics!I908:I988,TRUE) -> 23.75183832 | G149: =LinInterpolate($E149,Hydrostatics!$D908:$D988,Hydrostatics!J908:J988,TRUE) -> 3.622242524 | H149: =ATAN(C149/(#REF!)) ->  | M149: =LinInterpolate($E149,Hydrostatics!$D908:$D988,Hydrostatics!K908:K988,TRUE) -> 22.67267433 | N149: =LinInterpolate($E149,Hydrostatics!$D908:$D988,Hydrostatics!E908:E988,TRUE) -> 7.453089715
C150: -0.3 | D150: =LinInterpolate(E150,Hydrostatics!D990:D1070,Hydrostatics!C990:C1070,TRUE) -> 6.578544614 | E150: 4733.647617 | F150: =LinInterpolate($E150,Hydrostatics!$D990:$D1070,Hydrostatics!I990:I1070,TRUE) -> 23.82858215 | G150: =LinInterpolate($E150,Hydrostatics!$D990:$D1070,Hydrostatics!J990:J1070,TRUE) -> 3.621417846 | H150: =ATAN(C150/(#REF!)) ->  | M150: =LinInterpolate($E150,Hydrostatics!$D990:$D1070,Hydrostatics!K990:K1070,TRUE) -> 21.78283569 | N150: =LinInterpolate($E150,Hydrostatics!$D990:$D1070,Hydrostatics!E990:E1070,TRUE) -> 7.61
C151: -0.2 | D151: =LinInterpolate(E151,Hydrostatics!D1072:D1152,Hydrostatics!C1072:C1152,TRUE) -> 6.587244514 | E151: 4733.647617 | F151: =LinInterpolate($E151,Hydrostatics!$D1072:$D1152,Hydrostatics!I1072:I1152,TRUE) -> 23.91510219 | G151: =LinInterpolate($E151,Hydrostatics!$D1072:$D1152,Hydrostatics!J1072:J1152,TRUE) -> 3.622346708 | H151: =ATAN(C151/(#REF!)) ->  | M151: =LinInterpolate($E151,Hydrostatics!$D1072:$D1152,Hydrostatics!K1072:K1152,TRUE) -> 21.81979561 | N151: =LinInterpolate($E151,Hydrostatics!$D1072:$D1152,Hydrostatics!E1072:E1152,TRUE) -> 7.61
C152: -0.1 | D152: =LinInterpolate(E152,Hydrostatics!D1154:D1234,Hydrostatics!C1154:C1234,TRUE) -> 6.595896199 | E152: 4733.647617 | F152: =LinInterpolate($E152,Hydrostatics!$D1154:$D1234,Hydrostatics!I1154:I1234,TRUE) -> 24.00164152 | G152: =LinInterpolate($E152,Hydrostatics!$D1154:$D1234,Hydrostatics!J1154:J1234,TRUE) -> 3.61835848 | H152: =ATAN(C152/(#REF!)) ->  | M152: =LinInterpolate($E152,Hydrostatics!$D1154:$D1234,Hydrostatics!K1154:K1234,TRUE) -> 21.85671696 | N152: =LinInterpolate($E152,Hydrostatics!$D1154:$D1234,Hydrostatics!E1154:E1234,TRUE) -> 7.62
C153: 0 | D153: =LinInterpolate(E153,Hydrostatics!D1236:D1316,Hydrostatics!C1236:C1316,TRUE) -> 6.60442558 | E153: 4733.647617 | F153: =LinInterpolate($E153,Hydrostatics!$D1236:$D1316,Hydrostatics!I1236:I1316,TRUE) -> 24.08822977 | G153: =LinInterpolate($E153,Hydrostatics!$D1236:$D1316,Hydrostatics!J1236:J1316,TRUE) -> 3.622655348 | H153: =ATAN(C153/(#REF!)) ->  | M153: =LinInterpolate($E153,Hydrostatics!$D1236:$D1316,Hydrostatics!K1236:K1316,TRUE) -> 21.89354046 | N153: =LinInterpolate($E153,Hydrostatics!$D1236:$D1316,Hydrostatics!E1236:E1316,TRUE) -> 7.62
C154: 0.1 | D154: =LinInterpolate(E154,Hydrostatics!D1318:D1398,Hydrostatics!C1318:C1398,TRUE) -> 6.612916798 | E154: 4733.647617 | F154: =LinInterpolate($E154,Hydrostatics!$D1318:$D1398,Hydrostatics!I1318:I1398,TRUE) -> 24.17483328 | G154: =LinInterpolate($E154,Hydrostatics!$D1318:$D1398,Hydrostatics!J1318:J1398,TRUE) -> 3.617750079 | H154: =ATAN(C154/(#REF!)) ->  | M154: =LinInterpolate($E154,Hydrostatics!$D1318:$D1398,Hydrostatics!K1318:K1398,TRUE) -> 21.93033344 | N154: =LinInterpolate($E154,Hydrostatics!$D1318:$D1398,Hydrostatics!E1318:E1398,TRUE) -> 7.62741664
C155: 0.2 | D155: =LinInterpolate(E155,Hydrostatics!D1400:D1480,Hydrostatics!C1400:C1480,TRUE) -> 6.621370109 | E155: 4733.647617 | F155: =LinInterpolate($E155,Hydrostatics!$D1400:$D1480,Hydrostatics!I1400:I1480,TRUE) -> 24.26145196 | G155: =LinInterpolate($E155,Hydrostatics!$D1400:$D1480,Hydrostatics!J1400:J1480,TRUE) -> 3.622822065 | H155: =ATAN(C155/(#REF!)) ->  | M155: =LinInterpolate($E155,Hydrostatics!$D1400:$D1480,Hydrostatics!K1400:K1480,TRUE) -> 21.96709609 | N155: =LinInterpolate($E155,Hydrostatics!$D1400:$D1480,Hydrostatics!E1400:E1480,TRUE) -> 7.63
C156: 0.3 | D156: =LinInterpolate(E156,Hydrostatics!D1482:D1562,Hydrostatics!C1482:C1562,TRUE) -> 6.629740644 | E156: 4733.647617 | F156: =LinInterpolate($E156,Hydrostatics!$D1482:$D1562,Hydrostatics!I1482:I1562,TRUE) -> 24.34810374 | G156: =LinInterpolate($E156,Hydrostatics!$D1482:$D1562,Hydrostatics!J1482:J1562,TRUE) -> 3.621896258 | H156: =ATAN(C156/(#REF!)) ->  | M156: =LinInterpolate($E156,Hydrostatics!$D1482:$D1562,Hydrostatics!K1482:K1562,TRUE) -> 22.00784439 | N156: =LinInterpolate($E156,Hydrostatics!$D1482:$D1562,Hydrostatics!E1482:E1562,TRUE) -> 7.64
C157: 0.4 | D157: =LinInterpolate(E157,Hydrostatics!D1564:D1644,Hydrostatics!C1564:C1644,TRUE) -> 6.637999573 | E157: 4733.647617 | F157: =LinInterpolate($E157,Hydrostatics!$D1564:$D1644,Hydrostatics!I1564:I1644,TRUE) -> 24.43480017 | G157: =LinInterpolate($E157,Hydrostatics!$D1564:$D1644,Hydrostatics!J1564:J1644,TRUE) -> 3.622799744 | H157: =ATAN(C157/(#REF!)) ->  | M157: =LinInterpolate($E157,Hydrostatics!$D1564:$D1644,Hydrostatics!K1564:K1644,TRUE) -> 22.04279974 | N157: =LinInterpolate($E157,Hydrostatics!$D1564:$D1644,Hydrostatics!E1564:E1644,TRUE) -> 7.642400085
C158: 0.5 | D158: =LinInterpolate(E158,Hydrostatics!D1646:D1726,Hydrostatics!C1646:C1726,TRUE) -> 6.646266834 | E158: 4733.647617 | F158: =LinInterpolate($E158,Hydrostatics!$D1646:$D1726,Hydrostatics!I1646:I1726,TRUE) -> 24.52149327 | G158: =LinInterpolate($E158,Hydrostatics!$D1646:$D1726,Hydrostatics!J1646:J1726,TRUE) -> 3.627760101 | H158: =ATAN(C158/(#REF!)) ->  | M158: =LinInterpolate($E158,Hydrostatics!$D1646:$D1726,Hydrostatics!K1646:K1726,TRUE) -> 22.0777601 | N158: =LinInterpolate($E158,Hydrostatics!$D1646:$D1726,Hydrostatics!E1646:E1726,TRUE) -> 7.65
C159: 0.6 | D159: =LinInterpolate(E159,Hydrostatics!D1728:D1808,Hydrostatics!C1728:C1808,TRUE) -> 6.654386242 | E159: 4733.647617 | F159: =LinInterpolate($E159,Hydrostatics!$D1728:$D1808,Hydrostatics!I1728:I1808,TRUE) -> 24.60736826 | G159: =LinInterpolate($E159,Hydrostatics!$D1728:$D1808,Hydrostatics!J1728:J1808,TRUE) -> 3.622631745 | H159: =ATAN(C159/(#REF!)) ->  | M159: =LinInterpolate($E159,Hydrostatics!$D1728:$D1808,Hydrostatics!K1728:K1808,TRUE) -> 22.11263174 | N159: =LinInterpolate($E159,Hydrostatics!$D1728:$D1808,Hydrostatics!E1728:E1808,TRUE) -> 7.65
C160: 0.7 | D160: =LinInterpolate(E160,Hydrostatics!D1810:D1890,Hydrostatics!C1810:C1890,TRUE) -> 6.662497353 | E160: 4733.647617 | F160: =LinInterpolate($E160,Hydrostatics!$D1810:$D1890,Hydrostatics!I1810:I1890,TRUE) -> 24.69250159 | G160: =LinInterpolate($E160,Hydrostatics!$D1810:$D1890,Hydrostatics!J1810:J1890,TRUE) -> 3.627498412 | H160: =ATAN(C160/(#REF!)) ->  | M160: =LinInterpolate($E160,Hydrostatics!$D1810:$D1890,Hydrostatics!K1810:K1890,TRUE) -> 22.14499894 | N160: =LinInterpolate($E160,Hydrostatics!$D1810:$D1890,Hydrostatics!E1810:E1890,TRUE) -> 7.657500529
C161: 0.8 | D161: =LinInterpolate(E161,Hydrostatics!D1892:D1972,Hydrostatics!C1892:C1972,TRUE) -> 6.670543004 | E161: 4733.647617 | F161: =LinInterpolate($E161,Hydrostatics!$D1892:$D1972,Hydrostatics!I1892:I1972,TRUE) -> 24.7776742 | G161: =LinInterpolate($E161,Hydrostatics!$D1892:$D1972,Hydrostatics!J1892:J1972,TRUE) -> 3.628217202 | H161: =ATAN(C161/(#REF!)) ->  | M161: =LinInterpolate($E161,Hydrostatics!$D1892:$D1972,Hydrostatics!K1892:K1972,TRUE) -> 22.09604519 | N161: =LinInterpolate($E161,Hydrostatics!$D1892:$D1972,Hydrostatics!E1892:E1972,TRUE) -> 7.641239795
C162: 0.9 | D162: =LinInterpolate(E162,Hydrostatics!D1974:D2054,Hydrostatics!C1974:C2054,TRUE) -> 6.678752934 | E162: 4733.647617 | F162: =LinInterpolate($E162,Hydrostatics!$D1974:$D2054,Hydrostatics!I1974:I2054,TRUE) -> 24.86849883 | G162: =LinInterpolate($E162,Hydrostatics!$D1974:$D2054,Hydrostatics!J1974:J2054,TRUE) -> 3.627251761 | H162: =ATAN(C162/(#REF!)) ->  | M162: =LinInterpolate($E162,Hydrostatics!$D1974:$D2054,Hydrostatics!K1974:K2054,TRUE) -> 22.00448005 | N162: =LinInterpolate($E162,Hydrostatics!$D1974:$D2054,Hydrostatics!E1974:E2054,TRUE) -> 7.606743545
C163: 1 | D163: =LinInterpolate(E163,Hydrostatics!D2056:D2136,Hydrostatics!C2056:C2136,TRUE) -> 6.68707406 | E163: 4733.647617 | F163: =LinInterpolate($E163,Hydrostatics!$D2056:$D2136,Hydrostatics!I2056:I2136,TRUE) -> 24.95517038 | G163: =LinInterpolate($E163,Hydrostatics!$D2056:$D2136,Hydrostatics!J2056:J2136,TRUE) -> 3.632244436 | H163: =ATAN(C163/(#REF!)) ->  | M163: =LinInterpolate($E163,Hydrostatics!$D2056:$D2136,Hydrostatics!K2056:K2136,TRUE) -> 21.90633346 | N163: =LinInterpolate($E163,Hydrostatics!$D2056:$D2136,Hydrostatics!E2056:E2136,TRUE) -> 7.561363007
C164: 1.1 | D164: =LinInterpolate(E164,Hydrostatics!D2138:D2218,Hydrostatics!C2138:C2218,TRUE) -> 6.695498425 | E164: 4733.647617 | F164: =LinInterpolate($E164,Hydrostatics!$D2138:$D2218,Hydrostatics!I2138:I2218,TRUE) -> 25.04270094 | G164: =LinInterpolate($E164,Hydrostatics!$D2138:$D2218,Hydrostatics!J2138:J2218,TRUE) -> 3.62819937 | H164: =ATAN(C164/(#REF!)) ->  | M164: =LinInterpolate($E164,Hydrostatics!$D2138:$D2218,Hydrostatics!K2138:K2218,TRUE) -> 21.84061071 | N164: =LinInterpolate($E164,Hydrostatics!$D2138:$D2218,Hydrostatics!E2138:E2218,TRUE) -> 7.540803779
C165: 1.2 | D165: =LinInterpolate(E165,Hydrostatics!D2220:D2300,Hydrostatics!C2220:C2300,TRUE) -> 6.704223354 | E165: 4733.647617 | F165: =LinInterpolate($E165,Hydrostatics!$D2220:$D2300,Hydrostatics!I2220:I2300,TRUE) -> 25.12746599 | G165: =LinInterpolate($E165,Hydrostatics!$D2220:$D2300,Hydrostatics!J2220:J2300,TRUE) -> 3.632534012 | H165: =ATAN(C165/(#REF!)) ->  | M165: =LinInterpolate($E165,Hydrostatics!$D2220:$D2300,Hydrostatics!K2220:K2300,TRUE) -> 21.73634922 | N165: =LinInterpolate($E165,Hydrostatics!$D2220:$D2300,Hydrostatics!E2220:E2300,TRUE) -> 7.49986395
C166: 1.3 | D166: =LinInterpolate(E166,Hydrostatics!D2302:D2382,Hydrostatics!C2302:C2382,TRUE) -> 6.713302646 | E166: 4733.647617 | F166: =LinInterpolate($E166,Hydrostatics!$D2302:$D2382,Hydrostatics!I2302:I2382,TRUE) -> 25.21201841 | G166: =LinInterpolate($E166,Hydrostatics!$D2302:$D2382,Hydrostatics!J2302:J2382,TRUE) -> 3.635321058 | H166: =ATAN(C166/(#REF!)) ->  | M166: =LinInterpolate($E166,Hydrostatics!$D2302:$D2382,Hydrostatics!K2302:K2382,TRUE) -> 21.66082624 | N166: =LinInterpolate($E166,Hydrostatics!$D2302:$D2382,Hydrostatics!E2302:E2382,TRUE) -> 7.45807365
C167: 1.4 | D167: =LinInterpolate(E167,Hydrostatics!D2384:D2464,Hydrostatics!C2384:C2464,TRUE) -> 6.722305762 | E167: 4733.647617 | F167: =LinInterpolate($E167,Hydrostatics!$D2384:$D2464,Hydrostatics!I2384:I2464,TRUE) -> 25.30215539 | G167: =LinInterpolate($E167,Hydrostatics!$D2384:$D2464,Hydrostatics!J2384:J2464,TRUE) -> 3.638922305 | H167: =ATAN(C167/(#REF!)) ->  | M167: =LinInterpolate($E167,Hydrostatics!$D2384:$D2464,Hydrostatics!K2384:K2464,TRUE) -> 21.63847119 | N167: =LinInterpolate($E167,Hydrostatics!$D2384:$D2464,Hydrostatics!E2384:E2464,TRUE) -> 7.44646617
C168: 1.5 | D168: =LinInterpolate(E168,Hydrostatics!D2466:D2546,Hydrostatics!C2466:C2546,TRUE) -> 6.731352059 | E168: 4733.647617 | F168: =LinInterpolate($E168,Hydrostatics!$D2466:$D2546,Hydrostatics!I2466:I2546,TRUE) -> 25.39118876 | G168: =LinInterpolate($E168,Hydrostatics!$D2466:$D2546,Hydrostatics!J2466:J2546,TRUE) -> 3.638811236 | H168: =ATAN(C168/(#REF!)) ->  | M168: =LinInterpolate($E168,Hydrostatics!$D2466:$D2546,Hydrostatics!K2466:K2546,TRUE) -> 21.59459176 | N168: =LinInterpolate($E168,Hydrostatics!$D2466:$D2546,Hydrostatics!E2466:E2546,TRUE) -> 7.407295882
C170: Total trim | G170: ='INDEX (Corrected trim 4)'!G169 -> 0.8805628702 | H170: m
C171: Mean Draft | D171: From Hydro Table | G171: ='INDEX (Corrected trim 4)'!G170 -> 6.677157159 | H171: m
C173: Draft aft (APP) | G173: ='INDEX (Corrected trim 4)'!G174 -> 6.236875724 | H173: m | I173: Draft aft (DRAFT MARK) | M173: =G173+((G170/50.4)*1.2) -> 6.257841507
C174: Draft forward (FPP) | G174: ='INDEX (Corrected trim 4)'!G175 -> 7.117438595 | H174: m | I174: Draft forward (DRAFT MARK) | M174: =G174-((G170/50.4)*1.2) -> 7.096472812
C175: Draft midships | G175: ='INDEX (Corrected trim 4)'!G176 -> 6.677157159 | H175: m
C177: Transverse Stability
C178: KMt | D178: From Hydro Table | G178: ='INDEX (Corrected trim 4)'!G179 -> 7.613448626 | H178: m
C179: KGsolid | G179: ='INDEX (Corrected trim 4)'!G180 -> 4.91502062 | H179: m
C180: KGfluid | D180: KMt-GMtfluid | G180: ='INDEX (Corrected trim 4)'!G181 -> 4.917974876 | H180: m
C181: GMtsolid | D181: KMt-KGsolid | G181: ='INDEX (Corrected trim 4)'!G182 -> 2.698428006 | H181: m
C182: GMtfluid | D182: GMtsolid-FSMt | G182: ='INDEX (Corrected trim 4)'!G183 -> 2.69547375 | H182: m

Sheet INDEX (Corrected trim 4)
D2: Stability Calculation | R2: Explanation of worksheet:
D3: Project : | N3: Originator : | R3: Changing tank filling
D4: Doc. No : | N4: Checked : | R4: Fill in all sounding heights of tanks in following cells:
D5: Subject/Remarks : | N5: Revision : | R5: The following data will be calculated automatically, with help of tank tables: | Y5: Volume | Z5: m³
N6: Date : | Y6: Weight | Z6: t
Y7: LCG | Z7: m
B8: Summary Stability Results | I8: Summary Loading condition | Y8: TCG | Z8: m
I9: Item | J9: % Full | K9: Volume | M9: Weight | N9: LCG | O9: TCG | P9: VCG | Y9: VCG | Z9: m
B10: Displ. | C10: =H128 -> 4733.647617 | D10: t | E10: Draft mid. | G10: =G176 -> 6.677157159 | H10: m | I10: F.O. | J10: =F32 -> 99.99109126 | K10: =G32 -> 343.6693807 | M10: =H32 -> 295.5556674 | N10: =I32 -> 29.87702819 | O10: =J32 -> 0.09977612766 | P10: =K32 -> 3.766698308 | Y10: FSM | Z10: m
B11: DW | C11: =H129 -> 3033.647617 | D11: t | E11: Draft aft | G11: =G174 -> 6.236875724 | H11: m | I11: HFO | J11: =F45 -> 99.99598313 | K11: =G45 -> 995.76 | M11: =H45 -> 975.8448 | N11: =I45 -> 18.41775458 | O11: =J45 -> 0 | P11: =K45 -> 4.088628284 | R11: Add or remove deckloads
B12: LCG | C12: =I128 -> 24.82937143 | D12: m | E12: Draft fw | G12: =G175 -> 7.117438595 | H12: m | I12: WB | J12: =F78 -> 100.0032946 | K12: =G78 -> 1032.034 | M12: =H78 -> 1057.81435 | N12: =I78 -> 22.74410812 | O12: =J78 -> -0.00736067534 | P12: =K78 -> 3.081373373 | R12: Add or remove deckloads and fill the required data in the following cells:
B13: TCG | C13: =J128 -> -0.007784412989 | D13: m | E13: KMt | G13: =G179 -> 7.613448626 | H13: m | I13: FW | J13: =F86 -> 100.0041365 | K13: =G86 -> 483.52 | M13: =H86 -> 483.52 | N13: =I86 -> 20.14157284 | O13: =J86 -> 0 | P13: =K86 -> 4.711368299 | R13: The following input data is required to calculated the stability results: | Y13: Weight | Z13: t
B14: VCG | C14: =K128 -> 4.91502062 | D14: m | E14: KGfluid | G14: =G181 -> 4.917974876 | H14: m | I14: MISC | J14: =F100 -> 100.0128452 | K14: =G100 -> 155.72 | M14: =H100 -> 150.9128 | N14: =I100 -> 36.26201755 | O14: =J100 -> -0.3879845845 | P14: =K100 -> 1.559034038 | R14: Attention! | Y14: LCG | Z14: m
B15: Trim tot. | C15: =G169 -> 0.8805628702 | D15: m | E15: GMtfluid | G15: =G183 -> 2.69547375 | H15: m | I15: (DECK) LOADS | M15: =H121 -> 70 | N15: =I121 -> 6.571428571 | O15: =J121 -> 0 | P15: =K121 -> 7 | R15: This worksheet is only valid when the heel of the vessel is equal to 0° | Y15: TCG | Z15: m
R16: The results of this worksheet are not checked to any stability criteria! | Y16: VCG | Z16: m
B17: Sheet No. | C17: Name | D17: Sort of Fluid | E17: Sounding Height | F17: % Full | G17: Volume | H17: Weight | I17: LCG | J17: TCG | K17: VCG | M17: Longitudinal | N17: Transverse | O17: Vertical | P17: FSMt | R17: To print the loading conditon press the button:
I18: Fwd of AP | J18: PS:+ | K18: Above BL | M18: Moment | N18: Moment | O18: Moment
F19: % | G19: m³ | H19: t | I19: m | J19: m | K19: m | M19: t·m | N19: t·m | O19: t·m | P19: t·m
C20: SHIP DATA
C21: Lightship | H21: =INDEX!H22 -> 1700 | I21: =INDEX!I22 -> 30 | J21: =INDEX!J22 -> 0 | K21: =INDEX!K22 -> 7 | M21: =INDEX!M22 -> 51000 | N21: =INDEX!N22 -> 0 | O21: =INDEX!O22 -> 11900 | R21: Volume at each Trim | Y21: Volume Interpolation
C23: F.O. (SG 0.860) | R23: -1.5 | S23: -1 | T23: -0.5 | U23: 0 | V23: 0.5 | W23: 1 | X23: 1.5 | Y23: Volume | Z23: ∆Volume | AA23: Volume2
B24: 1 | C24: F.O. 1 PS | D24: MGO | E24: =INDEX!E25 -> 3.8 | F24: =IF(G24<'1'!M83,LinInterpolate(G24,'1'!M7:M83,'1'!I7:I83,TRUE),100) -> 100 | G24: ='INDEX (Corrected trim 3)'!AA24 -> 31.01969033 | H24: =LinInterpolate(F24,'1'!I7:I83,'1'!H7:H83,TRUE) -> 26.67693369 | I24: =LinInterpolate(F24,'1'!I7:I83,'1'!C7:C83,TRUE) -> 32.98 | J24: =LinInterpolate(F24,'1'!I7:I82,'1'!D7:D83,TRUE) -> 5.38 | K24: =LinInterpolate(F24,'1'!I7:I83,'1'!E7:E83,TRUE) -> 2.999982796 | M24: =$H24*I24 -> 879.805273 | N24: 143.5219032 | O24: 80.03034212 | P24: =IF(LinInterpolate(F24,'1'!I7:I83,'1'!F7:F83,TRUE)>0,LinInterpolate(F24,'1'!I7:I83,'1'!F7:F83,TRUE),0) -> 0.01720368565 | R24: =LinInterpolate($E$24,'1'!$B7:$B83,'1'!J7:J83,TRUE) -> 31.02 | S24: =LinInterpolate($E$24,'1'!$B7:$B83,'1'!K7:K83,TRUE) -> 31.02 | T24: =LinInterpolate($E$24,'1'!$B7:$B83,'1'!L7:L83,TRUE) -> 31.02 | U24: =LinInterpolate($E$24,'1'!$B7:$B83,'1'!M7:M83,TRUE) -> 31.02 | V24: =LinInterpolate($E$24,'1'!$B7:$B83,'1'!N7:N83,TRUE) -> 31.02 | W24: =LinInterpolate($E$24,'1'!$B7:$B83,'1'!O7:O83,TRUE) -> 31.01 | X24: =LinInterpolate($E$24,'1'!$B7:$B83,'1'!P7:P83,TRUE) -> 30.96 | Y24: =G24 -> 31.01969033 | Z24: =IF(E24<'1'!B83,Y24-AA24,0) -> 0 | AA24: =IF(E24=0,0,IF(E24<'1'!B83,LinInterpolate($G$169,$R$23:$X$23,R24:X24,TRUE),Y24)) -> 31.01969033
B25: 2 | C25: F.O. 1 SB | D25: MGO | E25: =INDEX!E26 -> 3.8 | F25: =IF(G25<'2'!M83,LinInterpolate(G25,'2'!M7:M83,'2'!I7:I83,TRUE),100) -> 100 | G25: ='INDEX (Corrected trim 3)'!AA25 -> 31.01969033 | H25: =LinInterpolate(F25,'2'!I7:I83,'2'!H7:H83,TRUE) -> 26.67693369 | I25: =LinInterpolate(F25,'2'!I7:I83,'2'!C7:C83,TRUE) -> 32.98 | J25: =LinInterpolate(F25,'2'!I7:I83,'2'!D7:D83,TRUE) -> -5.38 | K25: =LinInterpolate(F25,'2'!I7:I83,'2'!E7:E83,TRUE) -> 2.999982796 | M25: 879.805273 | N25: -143.5219032 | O25: 80.03034212 | P25: =IF(LinInterpolate(F25,'2'!I7:I83,'2'!F7:F83,TRUE)>0,LinInterpolate(F25,'2'!I7:I83,'2'!F7:F83,TRUE),0) -> 0.01720368565 | R25: =LinInterpolate($E$25,'2'!$B7:$B83,'2'!J7:J83,TRUE) -> 31.02 | S25: =LinInterpolate($E$25,'2'!$B7:$B83,'2'!K7:K83,TRUE) -> 31.02 | T25: =LinInterpolate($E$25,'2'!$B7:$B83,'2'!L7:L83,TRUE) -> 31.02 | U25: =LinInterpolate($E$25,'2'!$B7:$B83,'2'!M7:M83,TRUE) -> 31.02 | V25: =LinInterpolate($E$25,'2'!$B7:$B83,'2'!N7:N83,TRUE) -> 31.02 | W25: =LinInterpolate($E$25,'2'!$B7:$B83,'2'!O7:O83,TRUE) -> 31.01 | X25: =LinInterpolate($E$25,'2'!$B7:$B83,'2'!P7:P83,TRUE) -> 30.96 | Y25: 31.01969033 | Z25: =IF(E25<'2'!B83,Y25-AA25,0) -> 0 | AA25: =IF(E25=0,0,IF(E25<'2'!B83, LinInterpolate($G$169,$R$23:$X$23,R25:X25,TRUE),Y25)) -> 31.01969033
B26: 3 | C26: F.O.1 C | D26: MGO | E26: =INDEX!E27 -> 5.77 | F26: =IF(G26<'3'!M123,LinInterpolate(G26,'3'!M7:M123,'3'!I7:I123,TRUE),100) -> 100 | G26: ='INDEX (Corrected trim 3)'!AA26 -> 102.32 | H26: =LinInterpolate(F26,'3'!I7:I123,'3'!H7:H123,TRUE) -> 87.9952 | I26: =LinInterpolate(F26,'3'!I7:I123,'3'!C7:C123,TRUE) -> 26.1 | J26: =LinInterpolate(F26,'3'!I7:I123,'3'!D7:D123,TRUE) -> 0 | K26: =LinInterpolate(F26,'3'!I7:I123,'3'!E7:E123,TRUE) -> 3.9 | M26: 2296.67472 | N26: 0 | O26: 343.18128 | P26: =IF(LinInterpolate(F26,'3'!I7:I123,'3'!F7:F123,TRUE)>0,LinInterpolate(F26,'3'!I7:I123,'3'!F7:F123,TRUE),0) -> 0 | R26: =LinInterpolate($E$26,'3'!$B7:$B123,'3'!J7:J123,TRUE) -> 102.32 | S26: =LinInterpolate($E$26,'3'!$B7:$B123,'3'!K7:K123,TRUE) -> 102.32 | T26: =LinInterpolate($E$26,'3'!$B7:$B123,'3'!L7:L123,TRUE) -> 102.32 | U26: =LinInterpolate($E$26,'3'!$B7:$B123,'3'!M7:M123,TRUE) -> 102.32 | V26: =LinInterpolate($E$26,'3'!$B7:$B123,'3'!N7:N123,TRUE) -> 101.93 | W26: =LinInterpolate($E$26,'3'!$B7:$B123,'3'!O7:O123,TRUE) -> 101.55 | X26: =LinInterpolate($E$26,'3'!$B7:$B123,'3'!P7:P123,TRUE) -> 101.17 | Y26: 102.32 | Z26: =IF(E26<'3'!B123,Y26-AA26,0) -> 0 | AA26: =IF(E26=0,0,IF(E26<'3'!B123, LinInterpolate($G$169,$R$23:$X$23,R26:X26,TRUE),Y26)) -> 102.32
B27: 4 | C27: F.O. 2 PS | D27: MGO | E27: =INDEX!E28 -> 2 | F27: =IF(G27<'4'!M47,LinInterpolate(G27,'4'!M7:M47,'4'!I7:I47,TRUE),100) -> 100 | G27: ='INDEX (Corrected trim 3)'!AA27 -> 39.69 | H27: =LinInterpolate(F27,'4'!I7:I47,'4'!H7:H47,TRUE) -> 34.1334 | I27: =LinInterpolate(F27,'4'!I7:I47,'4'!C7:C47,TRUE) -> 31.5 | J27: =LinInterpolate(F27,'4'!I7:I47,'4'!D7:D47,TRUE) -> 5.47 | K27: =LinInterpolate(F27,'4'!I7:I47,'4'!E7:E47,TRUE) -> 5.8 | M27: 1075.2021 | N27: 186.709698 | O27: 197.97372 | P27: =IF(LinInterpolate(F27,'4'!I7:I47,'4'!F7:F47,TRUE)>0,LinInterpolate(F27,'4'!I7:I47,'4'!F7:F47,TRUE),0) -> 0 | R27: =LinInterpolate($E$27,'4'!$B7:$B47,'4'!J7:J47,TRUE) -> 39.69 | S27: =LinInterpolate($E$27,'4'!$B7:$B47,'4'!K7:K47,TRUE) -> 39.69 | T27: =LinInterpolate($E$27,'4'!$B7:$B47,'4'!L7:L47,TRUE) -> 39.69 | U27: =LinInterpolate($E$27,'4'!$B7:$B47,'4'!M7:M47,TRUE) -> 39.69 | V27: =LinInterpolate($E$27,'4'!$B7:$B47,'4'!N7:N47,TRUE) -> 39.69 | W27: =LinInterpolate($E$27,'4'!$B7:$B47,'4'!O7:O47,TRUE) -> 39.69 | X27: =LinInterpolate($E$27,'4'!$B7:$B47,'4'!P7:P47,TRUE) -> 39.69 | Y27: 39.69 | Z27: =IF(E27<'4'!B47,Y27-AA27,0) -> 0 | AA27: =IF(E27=0,0,IF(E27<'4'!B47, LinInterpolate($G$169,$R$23:$X$23,R27:X27,TRUE),Y27)) -> 39.69
B28: 5 | C28: F.O. 2 SB | D28: MGO | E28: =INDEX!E29 -> 2 | F28: =IF(G28<'5'!M47,LinInterpolate(G28,'5'!M7:M47,'5'!I7:I47,TRUE),100) -> 100 | G28: ='INDEX (Corrected trim 3)'!AA28 -> 39.69 | H28: =LinInterpolate(F28,'5'!I7:I47,'5'!H7:H47,TRUE) -> 34.1334 | I28: =LinInterpolate(F28,'5'!I7:I47,'5'!C7:C47,TRUE) -> 31.5 | J28: =LinInterpolate(F28,'5'!I7:I47,'5'!D7:D47,TRUE) -> -5.47 | K28: =LinInterpolate(F28,'5'!I7:I47,'5'!E7:E47,TRUE) -> 5.8 | M28: 1075.2021 | N28: -186.709698 | O28: 197.97372 | P28: =IF(LinInterpolate(F28,'5'!I7:I47,'5'!F7:F47,TRUE)>0,LinInterpolate(F28,'5'!I7:I47,'5'!F7:F47,TRUE),0) -> 0 | R28: =LinInterpolate($E$28,'5'!$B7:$B47,'5'!J7:J47,TRUE) -> 39.69 | S28: =LinInterpolate($E$28,'5'!$B7:$B47,'5'!K7:K47,TRUE) -> 39.69 | T28: =LinInterpolate($E$28,'5'!$B7:$B47,'5'!L7:L47,TRUE) -> 39.69 | U28: =LinInterpolate($E$28,'5'!$B7:$B47,'5'!M7:M47,TRUE) -> 39.69 | V28: =LinInterpolate($E$28,'5'!$B7:$B47,'5'!N7:N47,TRUE) -> 39.69 | W28: =LinInterpolate($E$28,'5'!$B7:$B47,'5'!O7:O47,TRUE) -> 39.69 | X28: =LinInterpolate($E$28,'5'!$B7:$B47,'5'!P7:P47,TRUE) -> 39.69 | Y28: 39.69 | Z28: =IF(E28<'5'!B47,Y28-AA28,0) -> 0 | AA28: =IF(E28=0,0,IF(E28<'5'!B47, LinInterpolate($G$169,$R$23:$X$23,R28:X28,TRUE),Y28)) -> 39.69
B29: 6 | C29: F.O. 3 PS | D29: MGO | E29: =INDEX!E30 -> 3.8 | F29: =IF(G29<'6'!M83,LinInterpolate(G29,'6'!M7:M83,'6'!I7:I83,TRUE),100) -> 100 | G29: ='INDEX (Corrected trim 3)'!AA29 -> 40.44 | H29: =LinInterpolate(F29,'6'!I7:I83,'6'!H7:H83,TRUE) -> 34.7784 | I29: =LinInterpolate(F29,'6'!I7:I83,'6'!C7:C83,TRUE) -> 30.3 | J29: =LinInterpolate(F29,'6'!I7:I83,'6'!D7:D83,TRUE) -> 5.45 | K29: =LinInterpolate(F29,'6'!I7:I83,'6'!E7:E83,TRUE) -> 2.96 | M29: 1053.78552 | N29: 189.54228 | O29: 102.944064 | P29: =IF(LinInterpolate(F29,'6'!I7:I83,'6'!F7:F83,TRUE)>0,LinInterpolate(F29,'6'!I7:I83,'6'!F7:F83,TRUE),0) -> 0.85 | R29: =LinInterpolate($E$29,'6'!$B7:$B83,'6'!J7:J83,TRUE) -> 40.44 | S29: =LinInterpolate($E$29,'6'!$B7:$B83,'6'!K7:K83,TRUE) -> 40.44 | T29: =LinInterpolate($E$29,'6'!$B7:$B83,'6'!L7:L83,TRUE) -> 40.44 | U29: =LinInterpolate($E$29,'6'!$B7:$B83,'6'!M7:M83,TRUE) -> 40.44 | V29: =LinInterpolate($E$29,'6'!$B7:$B83,'6'!N7:N83,TRUE) -> 40.44 | W29: =LinInterpolate($E$29,'6'!$B7:$B83,'6'!O7:O83,TRUE) -> 40.44 | X29: =LinInterpolate($E$29,'6'!$B7:$B83,'6'!P7:P83,TRUE) -> 40.44 | Y29: 40.44 | Z29: =IF(E29<'6'!B83,Y29-AA29,0) -> 0 | AA29: =IF(E29=0,0,IF(E29<'6'!B83, LinInterpolate($G$169,$R$23:$X$23,R29:X29,TRUE),Y29)) -> 40.44
B30: 7 | C30: F.O. 3 SB | D30: MGO | E30: =INDEX!E31 -> 3.8 | F30: =IF(G30<'7'!M83,LinInterpolate(G30,'7'!M7:M83,'7'!I7:I83,TRUE),100) -> 100 | G30: ='INDEX (Corrected trim 3)'!AA30 -> 40.44 | H30: =LinInterpolate(F30,'7'!I7:I83,'7'!H7:H83,TRUE) -> 34.7784 | I30: =LinInterpolate(F30,'7'!I7:I83,'7'!C7:C83,TRUE) -> 30.3 | J30: =LinInterpolate(F30,'7'!I7:I83,'7'!D7:D83,TRUE) -> -5.45 | K30: =LinInterpolate(F30,'7'!I7:I83,'7'!E7:E83,TRUE) -> 2.96 | M30: 1053.78552 | N30: -189.54228 | O30: 102.944064 | P30: =IF(LinInterpolate(F30,'7'!I7:I83,'7'!F7:F83,TRUE)>0,LinInterpolate(F30,'7'!I7:I83,'7'!F7:F83,TRUE),0) -> 11.1 | R30: =LinInterpolate($E$30,'7'!$B7:$B83,'7'!J7:J83,TRUE) -> 40.44 | S30: =LinInterpolate($E$30,'7'!$B7:$B83,'7'!K7:K83,TRUE) -> 40.44 | T30: =LinInterpolate($E$30,'7'!$B7:$B83,'7'!L7:L83,TRUE) -> 40.44 | U30: =LinInterpolate($E$30,'7'!$B7:$B83,'7'!M7:M83,TRUE) -> 40.44 | V30: =LinInterpolate($E$30,'7'!$B7:$B83,'7'!N7:N83,TRUE) -> 40.44 | W30: =LinInterpolate($E$30,'7'!$B7:$B83,'7'!O7:O83,TRUE) -> 40.44 | X30: =LinInterpolate($E$30,'7'!$B7:$B83,'7'!P7:P83,TRUE) -> 40.44 | Y30: 40.44 | Z30: =IF(E30<'6'!B83,Y30-AA30,0) -> 0 | AA30: =IF(E30=0,0,IF(E30<'7'!B83, LinInterpolate($G$169,$R$23:$X$23,R30:X30,TRUE),Y30)) -> 40.44
B31: 8 | C31: F.O. 4 PS | D31: MGO | E31: =INDEX!E32 -> 1 | F31: =IF(G31<'8'!M28,LinInterpolate(G31,'8'!M10:M28,'8'!I10:I28,TRUE),100) -> 100 | G31: ='INDEX (Corrected trim 3)'!AA31 -> 19.05 | H31: =LinInterpolate(F31,'8'!I7:I28,'8'!H7:H28,TRUE) -> 16.383 | I31: =LinInterpolate(F31,'8'!I7:I28,'8'!C7:C28,TRUE) -> 31.5 | J31: =LinInterpolate(F31,'8'!I7:I28,'8'!D7:D28,TRUE) -> 1.8 | K31: =LinInterpolate(F31,'8'!I7:I28,'8'!E7:E28,TRUE) -> 0.5 | M31: 516.0645 | N31: 29.4894 | O31: 8.1915 | P31: =IF(LinInterpolate(F31,'8'!I7:I28,'8'!F7:F28,TRUE)>0,LinInterpolate(F31,'8'!I7:I28,'8'!F7:F28,TRUE),0) -> 2 | R31: =LinInterpolate($E$31,'8'!$B7:$B28,'8'!J7:J28,TRUE) -> 19.05 | S31: =LinInterpolate($E$31,'8'!$B7:$B28,'8'!K7:K28,TRUE) -> 19.05 | T31: =LinInterpolate($E$31,'8'!$B7:$B28,'8'!L7:L28,TRUE) -> 19.05 | U31: =LinInterpolate($E$31,'8'!$B7:$B28,'8'!M7:M28,TRUE) -> 19.05 | V31: =LinInterpolate($E$31,'8'!$B7:$B28,'8'!N7:N28,TRUE) -> 19.05 | W31: =LinInterpolate($E$31,'8'!$B7:$B28,'8'!O7:O28,TRUE) -> 19.05 | X31: =LinInterpolate($E$31,'8'!$B7:$B28,'8'!P7:P28,TRUE) -> 19.05 | Y31: 19.05 | Z31: =IF(E31<'8'!B28,Y31-AA31,0) -> 0 | AA31: =IF(E31=0,0,IF(E31<'8'!B28, LinInterpolate($G$169,$R$23:$X$23,R31:X31,TRUE),Y31)) -> 19.05
C32: Total F.O. | F32: =(G32/343.7)*100 -> 99.99109126 | G32: =SUM((G24:G31)) -> 343.6693807 | H32: =SUM((H24:H31)) -> 295.5556674 | I32: =M32/H32 -> 29.87702819 | J32: =N32/H32 -> 0.09977612766 | K32: =O32/H32 -> 3.766698308 | M32: =SUM((M24:M31)) -> 8830.325006 | N32: =SUM((N24:N31)) -> 29.4894 | O32: =SUM((O24:O31)) -> 1113.269032 | P32: =SUM((P24:P31)) -> 13.98440737 | Z32: =SUM((Z24:Z31)) -> 0 | AA32: =SUM((AA24:AA31)) -> 343.6693807
C34: HFO (SG 0.980) | R34: -1.5 | S34: -1 | T34: -0.5 | U34: 0 | V34: 0.5 | W34: 1 | X34: 1.5 | Y34: Volume | Z34: ∆Volume | AA34: Volume2
B35: 9 | C35: H.F.O 1 PS | D35: HFO | E35: =INDEX!E36 -> 5.75 | F35: =IF(G35<'9'!M122,LinInterpolate(G35,'9'!M7:M122,'9'!I7:I122,TRUE),100) -> 100 | G35: ='INDEX (Corrected trim 3)'!AA35 -> 112.74 | H35: =LinInterpolate(F35,'9'!I7:I122,'9'!H7:H122,TRUE) -> 110.4852 | I35: =LinInterpolate(F35,'9'!I7:I122,'9'!C7:C122,TRUE) -> 26.02 | J35: =LinInterpolate(F35,'9'!I7:I122,'9'!D7:D122,TRUE) -> 5.46 | K35: =LinInterpolate(F35,'9'!I7:I122,'9'!E7:E122,TRUE) -> 3.96 | M35: =$H35*I35 -> 2874.824904 | N35: 603.249192 | O35: 437.521392 | P35: =IF(LinInterpolate(F35,'9'!I7:I122,'9'!F7:F122,TRUE)>0,LinInterpolate(F35,'9'!I7:I122,'9'!F7:F122,TRUE),0) -> 0 | R35: =LinInterpolate($E$35,'9'!$B7:$B122,'9'!J7:J122,TRUE) -> 111.41 | S35: =LinInterpolate($E$35,'9'!$B7:$B122,'9'!K7:K122,TRUE) -> 111.85 | T35: =LinInterpolate($E$35,'9'!$B7:$B122,'9'!L7:L122,TRUE) -> 112.29 | U35: =LinInterpolate($E$35,'9'!$B7:$B122,'9'!M7:M122,TRUE) -> 112.74 | V35: =LinInterpolate($E$35,'9'!$B7:$B122,'9'!N7:N122,TRUE) -> 112.73 | W35: =LinInterpolate($E$35,'9'!$B7:$B122,'9'!O7:O122,TRUE) -> 112.73 | X35: =LinInterpolate($E$35,'9'!$B7:$B122,'9'!P7:P122,TRUE) -> 112.72 | Y35: =G35 -> 112.74 | Z35: =IF(E35<'9'!AB122,Y35-AA35,0) -> 0 | AA35: =IF(E35=0,0,IF(E35<'9'!B122, LinInterpolate($G$169,$R$23:$X$23,R35:X35,TRUE),Y35)) -> 112.74
B36: 10 | C36: H.F.O 1 SB | D36: HFO | E36: =INDEX!E37 -> 5.75 | F36: =IF(G36<'10'!M122,LinInterpolate(G36,'10'!M7:M122,'10'!I7:I122,TRUE),100) -> 100 | G36: ='INDEX (Corrected trim 3)'!AA36 -> 112.74 | H36: =LinInterpolate(F36,'10'!I7:I122,'10'!H7:H122,TRUE) -> 110.4852 | I36: =LinInterpolate(F36,'10'!I7:I122,'10'!C7:C122,TRUE) -> 26.02 | J36: =LinInterpolate(F36,'10'!I7:I122,'10'!D7:D122,TRUE) -> -5.46 | K36: =LinInterpolate(F36,'10'!I7:I122,'10'!E7:E122,TRUE) -> 3.96 | M36: 2874.824904 | N36: -603.249192 | O36: 437.521392 | P36: =LinInterpolate(F36,'10'!I7:I122,'10'!F7:F122,TRUE) -> 0 | R36: =LinInterpolate($E$36,'10'!$B7:$B122,'10'!J7:J122,TRUE) -> 111.41 | S36: =LinInterpolate($E$36,'10'!$B7:$B122,'10'!K7:K122,TRUE) -> 111.85 | T36: =LinInterpolate($E$36,'10'!$B7:$B122,'10'!L7:L122,TRUE) -> 112.29 | U36: =LinInterpolate($E$36,'10'!$B7:$B122,'10'!M7:M122,TRUE) -> 112.74 | V36: =LinInterpolate($E$36,'10'!$B7:$B122,'10'!N7:N122,TRUE) -> 112.73 | W36: =LinInterpolate($E$36,'10'!$B7:$B122,'10'!O7:O122,TRUE) -> 112.73 | X36: =LinInterpolate($E$36,'10'!$B7:$B122,'10'!P7:P122,TRUE) -> 112.72 | Y36: 112.74 | Z36: =IF(E36<'10'!AB122,AA36-Y36,0) -> 0 | AA36: =IF(E36=0,0,IF(E36<'10'!B122, LinInterpolate($G$169,$R$23:$X$23,R36:X36,TRUE),Y36)) -> 112.74
B37: 11 | C37: H.F.O 2 PS | D37: HFO | E37: =INDEX!E38 -> 5.75 | F37: =IF(G37<'11'!M122,LinInterpolate(G37,'11'!M7:M122,'11'!I7:I122,TRUE),100) -> 100 | G37: ='INDEX (Corrected trim 3)'!AA37 -> 100.05 | H37: =LinInterpolate(F37,'11'!I7:I122,'11'!H7:H122,TRUE) -> 98.049 | I37: =LinInterpolate(F37,'11'!I7:I122,'11'!C7:C122,TRUE) -> 20.85 | J37: =LinInterpolate(F37,'11'!I7:I122,'11'!D7:D122,TRUE) -> 5.46 | K37: =LinInterpolate(F37,'11'!I7:I122,'11'!E7:E122,TRUE) -> 3.96 | M37: 2044.32165 | N37: 535.34754 | O37: 388.27404 | P37: =IF(LinInterpolate(F37,'11'!I7:I122,'11'!F7:F122,TRUE)>0,LinInterpolate(F37,'11'!I7:I122,'11'!F7:F122,TRUE),0) -> 0 | R37: =LinInterpolate($E$37,'11'!$B7:$B122,'11'!J7:J122,TRUE) -> 99.06 | S37: =LinInterpolate($E$37,'11'!$B7:$B122,'11'!K7:K122,TRUE) -> 99.39 | T37: =LinInterpolate($E$37,'11'!$B7:$B122,'11'!L7:L122,TRUE) -> 99.72 | U37: =LinInterpolate($E$37,'11'!$B7:$B122,'11'!M7:M122,TRUE) -> 100.05 | V37: =LinInterpolate($E$37,'11'!$B7:$B122,'11'!N7:N122,TRUE) -> 100.05 | W37: =LinInterpolate($E$37,'11'!$B7:$B122,'11'!O7:O122,TRUE) -> 100.05 | X37: =LinInterpolate($E$37,'11'!$B7:$B122,'11'!P7:P122,TRUE) -> 100.04 | Y37: 100.05 | Z37: =IF(F37<'11'!AB122,Y37-AA37,0) -> 0 | AA37: =IF(E37=0,0,IF(E37<'11'!B122, LinInterpolate($G$169,$R$23:$X$23,R37:X37,TRUE),Y37)) -> 100.05
B38: 12 | C38: H.F.O 2 SB | D38: HFO | E38: =INDEX!E39 -> 5.75 | F38: =IF(G38<'12'!M122,LinInterpolate(G38,'12'!M7:M122,'12'!I7:I122,TRUE),100) -> 100 | G38: ='INDEX (Corrected trim 3)'!AA38 -> 100.05 | H38: =LinInterpolate(F38,'12'!I7:I122,'12'!H7:H122,TRUE) -> 98.049 | I38: =LinInterpolate(F38,'12'!I7:I122,'12'!C7:C122,TRUE) -> 20.85 | J38: =LinInterpolate(F38,'12'!I7:I122,'12'!D7:D122,TRUE) -> -5.46 | K38: =LinInterpolate(F38,'12'!I7:I122,'12'!E7:E122,TRUE) -> 3.96 | M38: 2044.32165 | N38: -535.34754 | O38: 388.27404 | P38: =IF(LinInterpolate(F38,'12'!I7:I122,'12'!F7:F122,TRUE)>0,LinInterpolate(F38,'12'!I7:I122,'12'!F7:F122,TRUE),0) -> 0 | R38: =LinInterpolate($E$38,'12'!$B7:$B122,'12'!J7:J122,TRUE) -> 99.06 | S38: =LinInterpolate($E$38,'12'!$B7:$B122,'12'!K7:K122,TRUE) -> 99.39 | T38: =LinInterpolate($E$38,'12'!$B7:$B122,'12'!L7:L122,TRUE) -> 99.72 | U38: =LinInterpolate($E$38,'12'!$B7:$B122,'12'!M7:M122,TRUE) -> 100.05 | V38: =LinInterpolate($E$38,'12'!$B7:$B122,'12'!N7:N122,TRUE) -> 100.05 | W38: =LinInterpolate($E$38,'12'!$B7:$B122,'12'!O7:O122,TRUE) -> 100.04 | X38: =LinInterpolate($E$38,'12'!$B7:$B122,'12'!P7:P122,TRUE) -> 100.04 | Y38: 100.05 | Z38: =IF(F38<'12'!AB122,Y38-AA38,0) -> 0 | AA38: =IF(E38=0,0,IF(E38<'12'!B122, LinInterpolate($G$169,$R$23:$X$23,R38:X38,TRUE),Y38)) -> 100.05
B39: 13 | C39: H.F.O 2 C | D39: HFO | E39: =INDEX!E40 -> 5.77 | F39: =IF(G39<'13'!M123,LinInterpolate(G39,'13'!M7:M123,'13'!I7:I123,TRUE),100) -> 100 | G39: ='INDEX (Corrected trim 3)'!AA39 -> 102.33 | H39: =LinInterpolate(F39,'13'!I7:I123,'13'!H7:H123,TRUE) -> 100.2834 | I39: =LinInterpolate(F39,'13'!I7:I123,'13'!C7:C123,TRUE) -> 21 | J39: =LinInterpolate(F39,'13'!I7:I123,'13'!D7:D123,TRUE) -> 0 | K39: =LinInterpolate(F39,'13'!I7:I123,'13'!E7:E123,TRUE) -> 3.9 | M39: 2105.9514 | N39: 0 | O39: 391.10526 | P39: =IF(LinInterpolate(F39,'13'!I7:I123,'13'!F7:F123,TRUE)>0,LinInterpolate(F39,'13'!I7:I123,'13'!F7:F123,TRUE),0) -> 0 | R39: =LinInterpolate($E$39,'13'!$B7:$B123,'13'!J7:J123,TRUE) -> 102.33 | S39: =LinInterpolate($E$39,'13'!$B7:$B123,'13'!K7:K123,TRUE) -> 102.33 | T39: =LinInterpolate($E$39,'13'!$B7:$B123,'13'!L7:L123,TRUE) -> 102.33 | U39: =LinInterpolate($E$39,'13'!$B7:$B123,'13'!M7:M123,TRUE) -> 102.33 | V39: =LinInterpolate($E$39,'13'!$B7:$B123,'13'!N7:N123,TRUE) -> 101.95 | W39: =LinInterpolate($E$39,'13'!$B7:$B123,'13'!O7:O123,TRUE) -> 101.58 | X39: =LinInterpolate($E$39,'13'!$B7:$B123,'13'!P7:P123,TRUE) -> 101.2 | Y39: 102.33 | Z39: =IF(E39<'13'!AB123,Y39-AA39,0) -> 0 | AA39: =IF(E39=0,0,IF(E39<'13'!B123, LinInterpolate($G$169,$R$23:$X$23,R39:X39,TRUE),Y39)) -> 102.33
B40: 14 | C40: H.F.O 3 PS | D40: HFO | E40: =INDEX!E41 -> 5.76 | F40: =IF(G40<'14'!M123,LinInterpolate(G40,'14'!M7:M123,'14'!I7:I123,TRUE),100) -> 100 | G40: ='INDEX (Corrected trim 3)'!AA40 -> 99.48 | H40: =LinInterpolate(F40,'14'!I7:I123,'14'!H7:H123,TRUE) -> 97.4904 | I40: =LinInterpolate(F40,'14'!I7:I123,'14'!C7:C123,TRUE) -> 16.06 | J40: =LinInterpolate(F40,'14'!I7:I123,'14'!D7:D123,TRUE) -> 5.45 | K40: =LinInterpolate(F40,'14'!I7:I123,'14'!E7:E123,TRUE) -> 3.98 | M40: 1565.695824 | N40: 531.32268 | O40: 388.011792 | P40: =IF(LinInterpolate(F40,'14'!I7:I123,'14'!F7:F123,TRUE)>0,LinInterpolate(F40,'14'!I7:I123,'14'!F7:F123,TRUE),0) -> 0 | R40: =LinInterpolate($E$40,'14'!$B7:$B123,'14'!J7:J123,TRUE) -> 99.48 | S40: =LinInterpolate($E$40,'14'!$B7:$B123,'14'!K7:K123,TRUE) -> 99.48 | T40: =LinInterpolate($E$40,'14'!$B7:$B123,'14'!L7:L123,TRUE) -> 99.48 | U40: =LinInterpolate($E$40,'14'!$B7:$B123,'14'!M7:M123,TRUE) -> 99.48 | V40: =LinInterpolate($E$40,'14'!$B7:$B123,'14'!N7:N123,TRUE) -> 99.09 | W40: =LinInterpolate($E$40,'14'!$B7:$B123,'14'!O7:O123,TRUE) -> 98.7 | X40: =LinInterpolate($E$40,'14'!$B7:$B123,'14'!P7:P123,TRUE) -> 98.31 | Y40: 99.48 | Z40: =IF(E40<'14'!AB123,Y40-AA40,0) -> 0 | AA40: =IF(E40=0,0,IF(E40<'14'!B123, LinInterpolate($G$169,$R$23:$X$23,R40:X40,TRUE),Y40)) -> 99.48
B41: 15 | C41: H.F.O 3 SB | D41: HFO | E41: =INDEX!E42 -> 5.76 | F41: =IF(G41<'15'!M123,LinInterpolate(G41,'15'!M7:M123,'15'!I7:I123,TRUE),100) -> 100 | G41: ='INDEX (Corrected trim 3)'!AA41 -> 99.48 | H41: =LinInterpolate(F41,'15'!I7:I123,'15'!H7:H123,TRUE) -> 97.4904 | I41: =LinInterpolate(F41,'15'!I7:I123,'15'!C7:C123,TRUE) -> 16.06 | J41: =LinInterpolate(F41,'15'!I7:I123,'15'!D7:D123,TRUE) -> -5.45 | K41: =LinInterpolate(F41,'15'!I7:I123,'15'!E7:E123,TRUE) -> 3.98 | M41: 1565.695824 | N41: -531.32268 | O41: 388.011792 | P41: =IF(LinInterpolate(F41,'15'!I7:I123,'15'!F7:F123,TRUE)>0,LinInterpolate(F41,'15'!I7:I123,'15'!F7:F123,TRUE),0) -> 0 | R41: =LinInterpolate($E$41,'15'!$B7:$B123,'15'!J7:J123,TRUE) -> 99.48 | S41: =LinInterpolate($E$41,'15'!$B7:$B123,'15'!K7:K123,TRUE) -> 99.48 | T41: =LinInterpolate($E$41,'15'!$B7:$B123,'15'!L7:L123,TRUE) -> 99.48 | U41: =LinInterpolate($E$41,'15'!$B7:$B123,'15'!M7:M123,TRUE) -> 99.48 | V41: =LinInterpolate($E$41,'15'!$B7:$B123,'15'!N7:N123,TRUE) -> 99.09 | W41: =LinInterpolate($E$41,'15'!$B7:$B123,'15'!O7:O123,TRUE) -> 98.7 | X41: =LinInterpolate($E$41,'15'!$B7:$B123,'15'!P7:P123,TRUE) -> 98.31 | Y41: 99.48 | Z41: =IF(E41<'15'!AB123,Y41-AA41,0) -> 0 | AA41: =IF(E41=0,0,IF(E41<'15'!B123, LinInterpolate($G$169,$R$23:$X$23,R41:X41,TRUE),Y41)) -> 99.48
B42: 16 | C42: H.F.O 4 PS | D42: HFO | E42: =INDEX!E43 -> 5.46 | F42: =IF(G42<'16'!M117,LinInterpolate(G42,'16'!M7:M117,'16'!I7:I117,TRUE),100) -> 100 | G42: ='INDEX (Corrected trim 3)'!AA42 -> 90.63 | H42: =LinInterpolate(F42,'16'!I7:I117,'16'!H7:H117,TRUE) -> 88.8174 | I42: =LinInterpolate(F42,'16'!I7:I117,'16'!C7:C117,TRUE) -> 11.2 | J42: =LinInterpolate(F42,'16'!I7:I117,'16'!D7:D117,TRUE) -> 5.39 | K42: =LinInterpolate(F42,'16'!I7:I117,'16'!E7:E117,TRUE) -> 4.49 | M42: 994.75488 | N42: 478.725786 | O42: 398.790126 | P42: =IF(LinInterpolate(F42,'16'!I7:I117,'16'!F7:F117,TRUE)>0,LinInterpolate(F42,'16'!I7:I117,'16'!F7:F117,TRUE),0) -> 0 | R42: =LinInterpolate($E$42,'16'!$B7:$B117,'16'!J7:J117,TRUE) -> 90.63 | S42: =LinInterpolate($E$42,'16'!$B7:$B117,'16'!K7:K117,TRUE) -> 90.63 | T42: =LinInterpolate($E$42,'16'!$B7:$B117,'16'!L7:L117,TRUE) -> 90.63 | U42: =LinInterpolate($E$42,'16'!$B7:$B117,'16'!M7:M117,TRUE) -> 90.63 | V42: =LinInterpolate($E$42,'16'!$B7:$B117,'16'!N7:N117,TRUE) -> 90.19 | W42: =LinInterpolate($E$42,'16'!$B7:$B117,'16'!O7:O117,TRUE) -> 89.75 | X42: =LinInterpolate($E$42,'16'!$B7:$B117,'16'!P7:P117,TRUE) -> 89.31 | Y42: 90.63 | Z42: =IF(E42<'16'!AB117,Y42-AA42,0) -> 0 | AA42: =IF(E42=0,0,IF(E42<'16'!B117, LinInterpolate($G$169,$R$23:$X$23,R42:X42,TRUE),Y42)) -> 90.63
B43: 17 | C43: H.F.O 4 SB | D43: HFO | E43: =INDEX!E44 -> 5.46 | F43: =IF(G43<'17'!M115,LinInterpolate(G43,'17'!M7:M115,'17'!I7:I115,TRUE),100) -> 100 | G43: ='INDEX (Corrected trim 3)'!AA43 -> 90.63 | H43: =LinInterpolate(F43,'17'!I7:I115,'17'!H7:H115,TRUE) -> 88.8174 | I43: =LinInterpolate(F43,'17'!I7:I115,'17'!C7:C115,TRUE) -> 11.2 | J43: =LinInterpolate(F43,'17'!I7:I115,'17'!D7:D115,TRUE) -> -5.39 | K43: =LinInterpolate(F43,'17'!I7:I115,'17'!E7:E115,TRUE) -> 4.49 | M43: 994.75488 | N43: -478.725786 | O43: 398.790126 | P43: =IF(LinInterpolate(F43,'17'!I7:I115,'17'!F7:F115,TRUE)>0,LinInterpolate(F43,'17'!I7:I115,'17'!F7:F115,TRUE),0) -> 0 | R43: =LinInterpolate($E$43,'17'!$B7:$B115,'17'!J7:J115,TRUE) -> 90.97666667 | S43: =LinInterpolate($E$43,'17'!$B7:$B115,'17'!K7:K115,TRUE) -> 91.05666667 | T43: =LinInterpolate($E$43,'17'!$B7:$B115,'17'!L7:L115,TRUE) -> 91.40333333 | U43: =LinInterpolate($E$43,'17'!$B7:$B115,'17'!M7:M115,TRUE) -> 92.49666667 | V43: =LinInterpolate($E$43,'17'!$B7:$B115,'17'!N7:N115,TRUE) -> 92.05666667 | W43: =LinInterpolate($E$43,'17'!$B7:$B115,'17'!O7:O115,TRUE) -> 91.61666667 | X43: =LinInterpolate($E$43,'17'!$B7:$B115,'17'!P7:P115,TRUE) -> 91.17666667 | Y43: 90.63 | Z43: =IF(E43<'17'!AB115,Y43-AA43,0) -> 0 | AA43: =IF(E43=0,0,IF(E43<'17'!B115, LinInterpolate($G$169,$R$23:$X$23,R43:X43,TRUE),Y43)) -> 90.63
B44: 18 | C44: H.F.O 4 C | D44: HFO | E44: =INDEX!E45 -> 5.38 | F44: =IF(G44<'18'!M115,LinInterpolate(G44,'18'!M7:M115,'18'!I7:I115,TRUE),100) -> 100 | G44: ='INDEX (Corrected trim 3)'!AA44 -> 87.63 | H44: =LinInterpolate(F44,'18'!I7:I115,'18'!H7:H115,TRUE) -> 85.8774 | I44: =LinInterpolate(F44,'18'!I7:I115,'18'!C7:C115,TRUE) -> 10.57 | J44: =LinInterpolate(F44,'18'!I7:I115,'18'!D7:D115,TRUE) -> 0 | K44: =LinInterpolate(F44,'18'!I7:I115,'18'!E7:E115,TRUE) -> 4.35 | M44: 907.724118 | N44: 0 | O44: 373.56669 | P44: =IF(LinInterpolate(F44,'18'!I7:I115,'18'!F7:F115,TRUE)>0,LinInterpolate(F44,'18'!I7:I115,'18'!F7:F115,TRUE),0) -> 0 | R44: =LinInterpolate($E$44,'18'!$B7:$B115,'18'!J7:J115,TRUE) -> 87.65 | S44: =LinInterpolate($E$44,'18'!$B7:$B115,'18'!K7:K115,TRUE) -> 87.65 | T44: =LinInterpolate($E$44,'18'!$B7:$B115,'18'!L7:L115,TRUE) -> 87.67 | U44: =LinInterpolate($E$44,'18'!$B7:$B115,'18'!M7:M115,TRUE) -> 87.99 | V44: =LinInterpolate($E$44,'18'!$B7:$B115,'18'!N7:N115,TRUE) -> 87.63 | W44: =LinInterpolate($E$44,'18'!$B7:$B115,'18'!O7:O115,TRUE) -> 87.26 | X44: =LinInterpolate($E$44,'18'!$B7:$B115,'18'!P7:P115,TRUE) -> 86.9 | Y44: 87.63 | Z44: =IF(E44<'18'!AB115,Y44-AA44,0) -> 0 | AA44: =IF(E44=0,0,IF(E44<'18'!B115, LinInterpolate($G$169,$R$23:$X$23,R44:X44,TRUE),Y44)) -> 87.63
C45: Total H.F.O | F45: =G45/995.8*100 -> 99.99598313 | G45: =SUM((G35:G44)) -> 995.76 | H45: =SUM((H35:H44)) -> 975.8448 | I45: =M45/H45 -> 18.41775458 | J45: =N45/H45 -> 0 | K45: =O45/H45 -> 4.088628284 | M45: =SUM((M35:M44)) -> 17972.87003 | N45: =SUM((N35:N44)) -> 0 | O45: =SUM((O35:O44)) -> 3989.86665 | P45: =SUM((P35:P44)) -> 0 | Z45: =SUM((Z35:Z44)) -> 0 | AA45: =SUM((AA35:AA44)) -> 995.76
B47: Sheet No. | C47: Name | D47: Sort of Fluid | E47: Sounding Height | F47: % Full | G47: Volume | H47: Weight | I47: LCG | J47: TCG | K47: VCG | M47: Longitudinal | N47: Transverse | O47: Vertical | P47: FSMt
I48: Fwd of AP | J48: PS:+ | K48: Above BL | M48: Moment | N48: Moment | O48: Moment
F49: % | G49: m³ | H49: t | I49: m | J49: m | K49: m | M49: t·m | N49: t·m | O49: t·m | P49: t·m
C50: WB (S.G. 1.025) | R50: -1.5 | S50: -1 | T50: -0.5 | U50: 0 | V50: 0.5 | W50: 1 | X50: 1.5 | Y50: Volume | Z50: ∆Volume | AA50: Volume2
B51: 19 | C51: W.B 1 PS | D51: FW | E51: =INDEX!E52 -> 3.25 | F51: =IF(G51<'19'!M72,LinInterpolate(G51,'19'!M7:M72,'19'!I7:I72,TRUE),100) -> 100 | G51: ='INDEX (Corrected trim 3)'!AA51 -> 63.76 | H51: =LinInterpolate(F51,'19'!I7:I72,'19'!H7:H72,TRUE) -> 65.354 | I51: =LinInterpolate(F51,'19'!I7:I72,'19'!C7:C72,TRUE) -> -2.24 | J51: =LinInterpolate(F51,'19'!I7:I72,'19'!D7:D72,TRUE) -> 4.49 | K51: =LinInterpolate(F51,'19'!I7:I72,'19'!E7:E72,TRUE) -> 5.71 | M51: =$H51*I51 -> -146.39296 | N51: 293.43946 | O51: 373.17134 | P51: =IF(LinInterpolate(F51,'19'!I7:I72,'19'!F7:F72,TRUE)>0,LinInterpolate(F51,'19'!I7:I72,'19'!F7:F72,TRUE),0) -> 0 | R51: =LinInterpolate($E$51,'19'!$B7:$B72,'19'!J7:J72,TRUE) -> 63.62666667 | S51: =LinInterpolate($E$51,'19'!$B7:$B72,'19'!K7:K72,TRUE) -> 63.81333333 | T51: =LinInterpolate($E$51,'19'!$B7:$B72,'19'!L7:L72,TRUE) -> 64.07333333 | U51: =LinInterpolate($E$51,'19'!$B7:$B72,'19'!M7:M72,TRUE) -> 64.38 | V51: =LinInterpolate($E$51,'19'!$B7:$B72,'19'!N7:N72,TRUE) -> 64.03666667 | W51: =LinInterpolate($E$51,'19'!$B7:$B72,'19'!O7:O72,TRUE) -> 63.74 | X51: =LinInterpolate($E$51,'19'!$B7:$B72,'19'!P7:P72,TRUE) -> 63.49333333 | Y51: =G51 -> 63.76 | Z51: =IF(E51<'19'!B72,Y51-AA51,0) -> 0 | AA51: =IF(E51=0,0,IF(E51<'19'!B72, LinInterpolate($G$169,$R$23:$X$23,R51:X51,TRUE),Y51)) -> 63.76
B52: 20 | C52: W.B 1 SB | D52: FW | E52: =INDEX!E53 -> 3.25 | F52: =IF(G52<'20'!M72,LinInterpolate(G52,'20'!M7:M72,'20'!I7:I72,TRUE),100) -> 100 | G52: ='INDEX (Corrected trim 3)'!AA52 -> 63.76 | H52: =LinInterpolate(F52,'20'!I7:I72,'20'!H7:H72,TRUE) -> 65.354 | I52: =LinInterpolate(F52,'20'!I7:I72,'20'!C7:C72,TRUE) -> -2.24 | J52: =LinInterpolate(F52,'20'!I7:I72,'20'!D7:D72,TRUE) -> -4.49 | K52: =LinInterpolate(F52,'20'!I7:I72,'20'!E7:E72,TRUE) -> 5.71 | M52: -146.39296 | N52: -293.43946 | O52: 373.17134 | P52: =IF(LinInterpolate(F52,'20'!I7:I72,'20'!F7:F72,TRUE)>0,LinInterpolate(F52,'20'!I7:I72,'20'!F7:F72,TRUE),0) -> 0 | R52: =LinInterpolate($E$52,'20'!$B7:$B72,'20'!J7:J72,TRUE) -> 63.34 | S52: =LinInterpolate($E$52,'20'!$B7:$B72,'20'!K7:K72,TRUE) -> 63.48 | T52: =LinInterpolate($E$52,'20'!$B7:$B72,'20'!L7:L72,TRUE) -> 63.62 | U52: =LinInterpolate($E$52,'20'!$B7:$B72,'20'!M7:M72,TRUE) -> 63.76 | V52: =LinInterpolate($E$52,'20'!$B7:$B72,'20'!N7:N72,TRUE) -> 63.51 | W52: =LinInterpolate($E$52,'20'!$B7:$B72,'20'!O7:O72,TRUE) -> 63.26 | X52: =LinInterpolate($E$52,'20'!$B7:$B72,'20'!P7:P72,TRUE) -> 63.02 | Y52: 63.76 | Z52: =IF(E52<'19'!B72,Y52-AA52,0) -> 0 | AA52: =IF(E52=0,0,IF(E52<'20'!B72, LinInterpolate($G$169,$R$23:$X$23,R52:X52,TRUE),Y52)) -> 63.76
B53: 21 | C53: ='INDEX (Corrected trim 4)'!C52 -> W.B 1 SB | D53: SW | E53: =INDEX!E54 -> 7.8 | F53: =IF(G53<'21'!M163,LinInterpolate(G53,'21'!M7:M163,'21'!I7:I163,TRUE),100) -> 100 | G53: ='INDEX (Corrected trim 3)'!AA53 -> 64.81 | H53: =LinInterpolate(F53,'21'!I7:I163,'21'!H7:H163,TRUE) -> 66.43025 | I53: =LinInterpolate(F53,'21'!I7:I163,'21'!C7:C163,TRUE) -> 51.05 | J53: =LinInterpolate(F53,'21'!I7:I163,'21'!D7:D163,TRUE) -> 0 | K53: =LinInterpolate(F53,'21'!I7:I163,'21'!E7:E163,TRUE) -> 4.75 | M53: 3391.264262 | N53: 0 | O53: 315.5436875 | P53: =IF(LinInterpolate(F53,'21'!I7:I163,'21'!F7:F163,TRUE)>0,LinInterpolate(F53,'21'!I7:I163,'21'!F7:F163,TRUE),0) -> 0 | R53: =LinInterpolate($E$53,'21'!$B7:$B163,'21'!J7:J163,TRUE) -> 64.8 | S53: =LinInterpolate($E$53,'21'!$B7:$B163,'21'!K7:K163,TRUE) -> 64.81 | T53: =LinInterpolate($E$53,'21'!$B7:$B163,'21'!L7:L163,TRUE) -> 64.81 | U53: =LinInterpolate($E$53,'21'!$B7:$B163,'21'!M7:M163,TRUE) -> 64.81 | V53: =LinInterpolate($E$53,'21'!$B7:$B163,'21'!N7:N163,TRUE) -> 64.81 | W53: =LinInterpolate($E$53,'21'!$B7:$B163,'21'!O7:O163,TRUE) -> 64.78 | X53: =LinInterpolate($E$53,'21'!$B7:$B163,'21'!P7:P163,TRUE) -> 64.66 | Y53: 64.81 | Z53: =IF(E53<'19'!B163,Y53-AA53,0) -> 0 | AA53: =IF(E53=0,0,IF(E53<'21'!B163, LinInterpolate($G$169,$R$23:$X$23,R53:X53,TRUE),Y53)) -> 64.81
B54: 22 | C54: W.B. 2 PS | D54: SW | E54: =INDEX!E55 -> 7.8 | F54: =IF(G54<'22'!M163,LinInterpolate(G54,'22'!M7:M163,'22'!I7:I163,TRUE),100) -> 100 | G54: ='INDEX (Corrected trim 3)'!AA54 -> 86.038 | H54: =LinInterpolate(F54,'22'!I7:I163,'22'!H7:H163,TRUE) -> 88.18895 | I54: =LinInterpolate(F54,'22'!I7:I163,'22'!C7:C163,TRUE) -> 39.74 | J54: =LinInterpolate(F54,'22'!I7:I163,'22'!D7:D163,TRUE) -> 6.82 | K54: =LinInterpolate(F54,'22'!I7:I163,'22'!E7:E163,TRUE) -> 4.48 | M54: 3504.628873 | N54: 601.448639 | O54: 395.086496 | P54: =IF(LinInterpolate(F54,'22'!I7:I163,'22'!F7:F163,TRUE)>0,LinInterpolate(F54,'22'!I7:I163,'22'!F7:F163,TRUE),0) -> 0 | R54: =LinInterpolate(E54,'22'!$B7:$B163,'22'!J7:J163,TRUE) -> 85.09 | S54: =LinInterpolate(E54,'22'!$B7:$B163,'22'!K7:K163,TRUE) -> 85.85 | T54: =LinInterpolate(E54,'22'!$B7:$B163,'22'!L7:L163,TRUE) -> 86.03 | U54: =LinInterpolate(E54,'22'!$B7:$B163,'22'!M7:M163,TRUE) -> 86.038 | V54: =LinInterpolate(E54,'22'!$B7:$B163,'22'!N7:N163,TRUE) -> 86.03 | W54: =LinInterpolate(E54,'22'!$B7:$B163,'22'!O7:O163,TRUE) -> 86.03 | X54: =LinInterpolate(E54,'22'!$B7:$B163,'22'!P7:P163,TRUE) -> 86.03 | Y54: 86.038 | Z54: =IF(E54<'19'!B163,Y54-AA54,0) -> 0 | AA54: =IF(E54=0,0,IF(E54<'22'!B163, LinInterpolate($G$169,$R$23:$X$23,R54:X54,TRUE),Y54)) -> 86.038
B55: 23 | C55: W.B. 2 SB | D55: SW | E55: =INDEX!E56 -> 7.8 | F55: =IF(G55<'23'!M163,LinInterpolate(G55,'23'!M7:M163,'23'!I7:I163,TRUE),100) -> 100 | G55: ='INDEX (Corrected trim 3)'!AA55 -> 87.666 | H55: =LinInterpolate(F55,'23'!I7:I163,'23'!H7:H163,TRUE) -> 89.85765 | I55: =LinInterpolate(F55,'23'!I7:I163,'23'!C7:C163,TRUE) -> 39.83 | J55: =LinInterpolate(F55,'23'!I7:I163,'23'!D7:D163,TRUE) -> -6.78 | K55: =LinInterpolate(F55,'23'!I7:I163,'23'!E7:E163,TRUE) -> 4.42 | M55: 3579.030199 | N55: -609.234867 | O55: 397.170813 | P55: =IF(LinInterpolate(F55,'23'!I7:I163,'23'!F7:F163,TRUE)>0,LinInterpolate(F55,'23'!I7:I163,'23'!F7:F163,TRUE),0) -> 0 | R55: =LinInterpolate(E55,'23'!$B7:$B163,'23'!J7:J163,TRUE) -> 86.72 | S55: =LinInterpolate(E55,'23'!$B7:$B163,'23'!K7:K163,TRUE) -> 87.48 | T55: =LinInterpolate(E55,'23'!$B7:$B163,'23'!L7:L163,TRUE) -> 87.66 | U55: =LinInterpolate(E55,'23'!$B7:$B163,'23'!M7:M163,TRUE) -> 87.666 | V55: =LinInterpolate(E55,'23'!$B7:$B163,'23'!N7:N163,TRUE) -> 87.66 | W55: =LinInterpolate(E55,'23'!$B7:$B163,'23'!O7:O163,TRUE) -> 87.66 | X55: =LinInterpolate(E55,'23'!$B7:$B163,'23'!P7:P163,TRUE) -> 87.66 | Y55: 87.666 | Z55: =IF(E55<'19'!B163,Y55-AA55,0) -> 0 | AA55: =IF(E55=0,0,IF(E55<'23'!B163, LinInterpolate($G$169,$R$23:$X$23,R55:X55,TRUE),Y55)) -> 87.666
B56: 24 | C56: W.B. 3 PS | D56: SW | E56: =INDEX!E57 -> 5.48 | F56: =IF(G56<'24'!M117,LinInterpolate(G56,'24'!M7:M117,'24'!I7:I117,TRUE),100) -> 100 | G56: ='INDEX (Corrected trim 3)'!AA56 -> 28.05 | H56: =LinInterpolate(F56,'24'!I7:I117,'24'!H7:H117,TRUE) -> 28.75125 | I56: =LinInterpolate(F56,'24'!I7:I117,'24'!C7:C117,TRUE) -> 31.59 | J56: =LinInterpolate(F56,'24'!I7:I117,'24'!D7:D117,TRUE) -> 7.77 | K56: =LinInterpolate(F56,'24'!I7:I117,'24'!E7:E117,TRUE) -> 3.95 | M56: 908.2519875 | N56: 223.3972125 | O56: 113.5674375 | P56: =IF(LinInterpolate(F56,'24'!I7:I117,'24'!F7:F117,TRUE)>0,LinInterpolate(F56,'24'!I7:I117,'24'!F7:F117,TRUE),0) -> 0 | R56: =LinInterpolate(E56,'24'!$B7:$B117,'24'!J7:J117,TRUE) -> 27.91 | S56: =LinInterpolate(E56,'24'!$B7:$B117,'24'!K7:K117,TRUE) -> 27.95 | T56: =LinInterpolate(E56,'24'!$B7:$B117,'24'!L7:L117,TRUE) -> 28 | U56: =LinInterpolate(E56,'24'!$B7:$B117,'24'!M7:M117,TRUE) -> 28.05 | V56: =LinInterpolate(E56,'24'!$B7:$B117,'24'!N7:N117,TRUE) -> 28.03 | W56: =LinInterpolate(E56,'24'!$B7:$B117,'24'!O7:O117,TRUE) -> 28.01 | X56: =LinInterpolate(E56,'24'!$B7:$B117,'24'!P7:P117,TRUE) -> 28 | Y56: 28.05 | Z56: =IF(E56<'19'!B117,Y56-AA56,0) -> 0 | AA56: =IF(E56=0,0,IF(E56<'24'!B117,LinInterpolate($G$169,$R$23:$X$23,R56:X56,TRUE),Y56)) -> 28.05
B57: 25 | C57: W.B. 3 SB | D57: SW | E57: =INDEX!E58 -> 5.48 | F57: =IF(G57<'25'!M117,LinInterpolate(G57,'25'!M7:M117,'25'!I7:I117,TRUE),100) -> 100 | G57: ='INDEX (Corrected trim 3)'!AA57 -> 28.05 | H57: =LinInterpolate(F57,'25'!I7:I117,'25'!H7:H117,TRUE) -> 28.75125 | I57: =LinInterpolate(F57,'25'!I7:I117,'25'!C7:C117,TRUE) -> 31.59 | J57: =LinInterpolate(F57,'25'!I7:I117,'25'!D7:D117,TRUE) -> -7.77 | K57: =LinInterpolate(F57,'25'!I7:I117,'25'!E7:E117,TRUE) -> 3.95 | M57: 908.2519875 | N57: -223.3972125 | O57: 113.5674375 | P57: =IF(LinInterpolate(F57,'25'!I7:I117,'25'!F7:F117,TRUE)>0,LinInterpolate(F57,'25'!I7:I117,'25'!F7:F117,TRUE),0) -> 0 | R57: =LinInterpolate(E57,'25'!$B7:$B117,'25'!J7:J117,TRUE) -> 28.03 | S57: =LinInterpolate(E57,'25'!$B7:$B117,'25'!K7:K117,TRUE) -> 28.04 | T57: =LinInterpolate(E57,'25'!$B7:$B117,'25'!L7:L117,TRUE) -> 28.04 | U57: =LinInterpolate(E57,'25'!$B7:$B117,'25'!M7:M117,TRUE) -> 28.05 | V57: =LinInterpolate(E57,'25'!$B7:$B117,'25'!N7:N117,TRUE) -> 27.98 | W57: =LinInterpolate(E57,'25'!$B7:$B117,'25'!O7:O117,TRUE) -> 27.91 | X57: =LinInterpolate(E57,'25'!$B7:$B117,'25'!P7:P117,TRUE) -> 27.84 | Y57: 28.05 | Z57: =IF(E57<'19'!B117,Y57-AA57,0) -> 0 | AA57: =IF(E57=0,0,IF(E57<'25'!B117, LinInterpolate($G$169,$R$23:$X$23,R57:X57,TRUE),Y57)) -> 28.05
B58: 26 | C58: W.B. 3 PS DB | D58: SW | E58: =INDEX!E59 -> 1.35 | F58: =IF(G58<'26'!M34,LinInterpolate(G58,'26'!M7:M34,'26'!I7:I34,TRUE),100) -> 100 | G58: ='INDEX (Corrected trim 3)'!AA58 -> 24.36 | H58: =LinInterpolate(F58,'26'!I7:I34,'26'!H7:H34,TRUE) -> 24.969 | I58: =LinInterpolate(F58,'26'!I7:I34,'26'!C7:C34,TRUE) -> 31.46 | J58: =LinInterpolate(F58,'26'!I7:I34,'26'!D7:D34,TRUE) -> 5.71 | K58: =LinInterpolate(F58,'26'!I7:I34,'26'!E7:E34,TRUE) -> 0.63 | M58: 785.52474 | N58: 142.57299 | O58: 15.73047 | P58: =IF(LinInterpolate(F58,'26'!I7:I34,'26'!F7:F34,TRUE)>0,LinInterpolate(F58,'26'!I7:I34,'26'!F7:F34,TRUE),0) -> 0 | R58: =LinInterpolate(E58,'26'!$B7:$B34,'26'!J7:J34,TRUE) -> 24.36 | S58: =LinInterpolate(E58,'26'!$B7:$B34,'26'!K7:K34,TRUE) -> 24.36 | T58: =LinInterpolate(E58,'26'!$B7:$B34,'26'!L7:L34,TRUE) -> 24.36 | U58: =LinInterpolate(E58,'26'!$B7:$B34,'26'!M7:M34,TRUE) -> 24.36 | V58: =LinInterpolate(E58,'26'!$B7:$B34,'26'!N7:N34,TRUE) -> 24.36 | W58: =LinInterpolate(E58,'26'!$B7:$B34,'26'!O7:O34,TRUE) -> 24.36 | X58: =LinInterpolate(E58,'26'!$B7:$B34,'26'!P7:P34,TRUE) -> 24.33 | Y58: 24.36 | Z58: =IF(E58<'19'!B34,Y58-AA58,0) -> 0 | AA58: =IF(E58=0,0,IF(E58<'26'!B34,LinInterpolate($G$169,$R$23:$X$23,R58:X58,TRUE),Y58)) -> 24.36
B59: 27 | C59: W.B. 3 SB DB | D59: SW | E59: =INDEX!E60 -> 1.35 | F59: =IF(G59<'27'!M34,LinInterpolate(G59,'27'!M7:M34,'27'!I7:I34,TRUE),100) -> 100 | G59: ='INDEX (Corrected trim 3)'!AA59 -> 24.36 | H59: =LinInterpolate(F59,'27'!I7:I34,'27'!H7:H34,TRUE) -> 24.969 | I59: =LinInterpolate(F59,'27'!I7:I34,'27'!C7:C34,TRUE) -> 31.46 | J59: =LinInterpolate(F59,'27'!I7:I34,'27'!D7:D34,TRUE) -> -5.71 | K59: =LinInterpolate(F59,'27'!I7:I34,'27'!E7:E34,TRUE) -> 0.63 | M59: 785.52474 | N59: -142.57299 | O59: 15.73047 | P59: =IF(LinInterpolate(F59,'27'!I7:I34,'27'!F7:F34,TRUE)>0,LinInterpolate(F59,'27'!I7:I34,'27'!F7:F34,TRUE),0) -> 0 | R59: =LinInterpolate(E59,'27'!$B7:$B34,'27'!J7:J34,TRUE) -> 24.36 | S59: =LinInterpolate(E59,'27'!$B7:$B34,'27'!K7:K34,TRUE) -> 24.36 | T59: =LinInterpolate(E59,'27'!$B7:$B34,'27'!L7:L34,TRUE) -> 24.36 | U59: =LinInterpolate(E59,'27'!$B7:$B34,'27'!M7:M34,TRUE) -> 24.36 | V59: =LinInterpolate(E59,'27'!$B7:$B34,'27'!N7:N34,TRUE) -> 24.36 | W59: =LinInterpolate(E59,'27'!$B7:$B34,'27'!O7:O34,TRUE) -> 24.36 | X59: =LinInterpolate(E59,'27'!$B7:$B34,'27'!P7:P34,TRUE) -> 24.33 | Y59: 24.36 | Z59: =IF(E59<'19'!B34,Y59-AA59,0) -> 0 | AA59: =IF(E59=0,0,IF(E59<'27'!B34, LinInterpolate($G$169,$R$23:$X$23,R59:X59,TRUE),Y59)) -> 24.36
B60: 28 | C60: W.B. 4 PS | D60: SW | E60: =INDEX!E61 -> 5.52 | F60: =IF(G60<'28'!M118,LinInterpolate(G60,'28'!M7:M118,'28'!I7:I118,TRUE),100) -> 100 | G60: ='INDEX (Corrected trim 3)'!AA60 -> 26.7 | H60: =LinInterpolate(F60,'28'!I7:I118,'28'!H7:H118,TRUE) -> 27.3675 | I60: =LinInterpolate(F60,'28'!I7:I118,'28'!C7:C118,TRUE) -> 26.1 | J60: =LinInterpolate(F60,'28'!I7:I118,'28'!D7:D118,TRUE) -> 7.8 | K60: =LinInterpolate(F60,'28'!I7:I118,'28'!E7:E118,TRUE) -> 4.04 | M60: 714.29175 | N60: 213.4665 | O60: 110.5647 | P60: =IF(LinInterpolate(F60,'28'!I7:I118,'28'!F7:F118,TRUE)>0,LinInterpolate(F60,'28'!I7:I118,'28'!F7:F118,TRUE),0) -> 0 | R60: =LinInterpolate(E60,'28'!$B7:$B118,'28'!J7:J118,TRUE) -> 26.35 | S60: =LinInterpolate(E60,'28'!$B7:$B118,'28'!K7:K118,TRUE) -> 26.47 | T60: =LinInterpolate(E60,'28'!$B7:$B118,'28'!L7:L118,TRUE) -> 26.58 | U60: =LinInterpolate(E60,'28'!$B7:$B118,'28'!M7:M118,TRUE) -> 26.7 | V60: =LinInterpolate(E60,'28'!$B7:$B118,'28'!N7:N118,TRUE) -> 26.7 | W60: =LinInterpolate(E60,'28'!$B7:$B118,'28'!O7:O118,TRUE) -> 26.7 | X60: =LinInterpolate(E60,'28'!$B7:$B118,'28'!P7:P118,TRUE) -> 26.7 | Y60: 26.7 | Z60: =IF(E60<'19'!B118,Y60-AA60,0) -> 0 | AA60: =IF(E60=0,0,IF(E60<'28'!B118,LinInterpolate($G$169,$R$23:$X$23,R60:X60,TRUE),Y60)) -> 26.7
B61: 29 | C61: W.B. 4 SB | D61: SW | E61: =INDEX!E62 -> 5.52 | F61: =IF(G61<'29'!M118,LinInterpolate(G61,'29'!M7:M118,'29'!I7:I118,TRUE),100) -> 100 | G61: ='INDEX (Corrected trim 3)'!AA61 -> 26.7 | H61: =LinInterpolate(F61,'29'!I7:I118,'29'!H7:H118,TRUE) -> 27.3675 | I61: =LinInterpolate(F61,'29'!I7:I118,'29'!C7:C118,TRUE) -> 26.1 | J61: =LinInterpolate(F61,'29'!I7:I118,'29'!D7:D118,TRUE) -> -7.8 | K61: =LinInterpolate(F61,'29'!I7:I118,'29'!E7:E118,TRUE) -> 4.04 | M61: 714.29175 | N61: -213.4665 | O61: 110.5647 | P61: =IF(LinInterpolate(F61,'29'!I7:I118,'29'!F7:F118,TRUE)>0,LinInterpolate(F61,'29'!I7:I118,'29'!F7:F118,TRUE),0) -> 0 | R61: =LinInterpolate(E61,'29'!$B7:$B118,'29'!J7:J118,TRUE) -> 26.35 | S61: =LinInterpolate(E61,'29'!$B7:$B118,'29'!K7:K118,TRUE) -> 26.47 | T61: =LinInterpolate(E61,'29'!$B7:$B118,'29'!L7:L118,TRUE) -> 26.58 | U61: =LinInterpolate(E61,'29'!$B7:$B118,'29'!M7:M118,TRUE) -> 26.7 | V61: =LinInterpolate(E61,'29'!$B7:$B118,'29'!N7:N118,TRUE) -> 26.7 | W61: =LinInterpolate(E61,'29'!$B7:$B118,'29'!O7:O118,TRUE) -> 26.7 | X61: =LinInterpolate(E61,'29'!$B7:$B118,'29'!P7:P118,TRUE) -> 26.7 | Y61: 26.7 | Z61: =IF(E61<'19'!B118,Y61-AA61,0) -> 0 | AA61: =IF(E61=0,0,IF(E61<'29'!B118,LinInterpolate($G$169,$R$23:$X$23,R61:X61,TRUE),Y61)) -> 26.7
B62: 30 | C62: W.B. 4 PS DB | D62: SW | E62: =INDEX!E63 -> 1.3 | F62: =IF(G62<'30'!M34,LinInterpolate(G62,'30'!M7:M34,'30'!I7:I34,TRUE),100) -> 100 | G62: ='INDEX (Corrected trim 3)'!AA62 -> 45.49 | H62: =LinInterpolate(F62,'30'!I7:I34,'30'!H7:H34,TRUE) -> 46.62725 | I62: =LinInterpolate(F62,'30'!I7:I34,'30'!C7:C34,TRUE) -> 26.09 | J62: =LinInterpolate(F62,'30'!I7:I34,'30'!D7:D34,TRUE) -> 4.1 | K62: =LinInterpolate(F62,'30'!I7:I34,'30'!E7:E34,TRUE) -> 0.56 | M62: 1216.504952 | N62: 191.171725 | O62: 26.11126 | P62: =IF(LinInterpolate(F62,'30'!I7:I34,'30'!F7:F34,TRUE)>0,LinInterpolate(F62,'30'!I7:I34,'30'!F7:F34,TRUE),0) -> 0 | R62: =LinInterpolate(E62,'30'!$B7:$B34,'30'!J7:J34,TRUE) -> 45.38 | S62: =LinInterpolate(E62,'30'!$B7:$B34,'30'!K7:K34,TRUE) -> 45.46 | T62: =LinInterpolate(E62,'30'!$B7:$B34,'30'!L7:L34,TRUE) -> 45.49 | U62: =LinInterpolate(E62,'30'!$B7:$B34,'30'!M7:M34,TRUE) -> 45.49 | V62: =LinInterpolate(E62,'30'!$B7:$B34,'30'!N7:N34,TRUE) -> 45.49 | W62: =LinInterpolate(E62,'30'!$B7:$B34,'30'!O7:O34,TRUE) -> 45.49 | X62: =LinInterpolate(E62,'30'!$B7:$B34,'30'!P7:P34,TRUE) -> 45.49 | Y62: 45.49 | Z62: =IF(E62<'19'!B34,Y62-AA62,0) -> 0 | AA62: =IF(E62=0,0,IF(E62<'30'!B34, LinInterpolate($G$169,$R$23:$X$23,S62:X62,TRUE),Y62)) -> 45.49
B63: 31 | C63: W.B. 4 SB DB | D63: SW | E63: =INDEX!E64 -> 5.52 | F63: =IF(G63<'31'!M34,LinInterpolate(G63,'31'!M7:M34,'31'!I7:I34,TRUE),100) -> 100 | G63: ='INDEX (Corrected trim 3)'!AA63 -> 45.49 | H63: =LinInterpolate(F63,'31'!I7:I34,'31'!H7:H34,TRUE) -> 46.62725 | I63: =LinInterpolate(F63,'31'!I7:I34,'31'!C7:C34,TRUE) -> 26.09 | J63: =LinInterpolate(F63,'31'!I7:I34,'31'!D7:D34,TRUE) -> -4.1 | K63: =LinInterpolate(F63,'31'!I7:I34,'31'!E7:E34,TRUE) -> 0.56 | M63: 1216.504952 | N63: -191.171725 | O63: 26.11126 | P63: =IF(LinInterpolate(F63,'31'!I7:I34,'31'!F7:F34,TRUE)>0,LinInterpolate(F63,'31'!I7:I34,'31'!F7:F34,TRUE),0) -> 0 | R63: =LinInterpolate(E63,'31'!$B7:$B34,'31'!J7:J34,TRUE) -> 53.81 | S63: =LinInterpolate(E63,'31'!$B7:$B34,'31'!K7:K34,TRUE) -> 48.826 | T63: =LinInterpolate(E63,'31'!$B7:$B34,'31'!L7:L34,TRUE) -> 45.49 | U63: =LinInterpolate(E63,'31'!$B7:$B34,'31'!M7:M34,TRUE) -> 45.49 | V63: =LinInterpolate(E63,'31'!$B7:$B34,'31'!N7:N34,TRUE) -> 45.49 | W63: =LinInterpolate(E63,'31'!$B7:$B34,'31'!O7:O34,TRUE) -> 45.49 | X63: =LinInterpolate(E63,'31'!$B7:$B34,'31'!P7:P34,TRUE) -> 45.49 | Y63: 45.49 | Z63: =IF(E63<'19'!B34,Y63-AA63,0) -> 0 | AA63: =IF(E63=0,0,IF(E63<'31'!B34,LinInterpolate($G$169,$R$23:$X$23,R63:X63,TRUE),Y63)) -> 45.49
B64: 32 | C64: W.B. 5 PS | D64: SW | E64: =INDEX!E65 -> 5.52 | F64: =IF(G64<'32'!M118,LinInterpolate(G64,'32'!M7:M118,'32'!I7:I118,TRUE),100) -> 100 | G64: ='INDEX (Corrected trim 3)'!AA64 -> 23.67 | H64: =LinInterpolate(F64,'32'!I7:I118,'32'!H7:H118,TRUE) -> 24.26175 | I64: =LinInterpolate(F64,'32'!I7:I118,'32'!C7:C118,TRUE) -> 21 | J64: =LinInterpolate(F64,'32'!I7:I118,'32'!D7:D118,TRUE) -> 7.8 | K64: =LinInterpolate(F64,'32'!I7:I118,'32'!E7:E118,TRUE) -> 4.04 | M64: 509.49675 | N64: 189.24165 | O64: 98.01747 | P64: =IF(LinInterpolate(F64,'32'!I7:I118,'32'!F7:F118,TRUE)>0,LinInterpolate(F64,'32'!I7:I118,'32'!F7:F118,TRUE),0) -> 0 | R64: =LinInterpolate(E64,'32'!$B7:$B118,'32'!J7:J118,TRUE) -> 23.41 | S64: =LinInterpolate(E64,'32'!$B7:$B118,'32'!K7:K118,TRUE) -> 23.5 | T64: =LinInterpolate(E64,'32'!$B7:$B118,'32'!L7:L118,TRUE) -> 23.58 | U64: =LinInterpolate(E64,'32'!$B7:$B118,'32'!M7:M118,TRUE) -> 23.67 | V64: =LinInterpolate(E64,'32'!$B7:$B118,'32'!N7:N118,TRUE) -> 23.67 | W64: =LinInterpolate(E64,'32'!$B7:$B118,'32'!O7:O118,TRUE) -> 23.67 | X64: =LinInterpolate(E64,'32'!$B7:$B118,'32'!P7:P118,TRUE) -> 23.67 | Y64: 23.67 | Z64: =IF(E64<'19'!B118,Y64-AA64,0) -> 0 | AA64: =IF(E64=0,0,IF(E64<'32'!B118,LinInterpolate($G$169,$R$23:$X$23,R64:X64,TRUE),Y64)) -> 23.67
B65: 33 | C65: W.B. 5 SB | D65: SW | E65: =INDEX!E66 -> 5.52 | F65: =IF(G65<'33'!M118,LinInterpolate(G65,'33'!M7:M118,'33'!I7:I118,TRUE),100) -> 100 | G65: ='INDEX (Corrected trim 3)'!AA65 -> 23.67 | H65: =LinInterpolate(F65,'33'!I7:I118,'33'!H7:H118,TRUE) -> 24.26175 | I65: =LinInterpolate(F65,'33'!I7:I118,'33'!C7:C118,TRUE) -> 21 | J65: =LinInterpolate(F65,'33'!I7:I118,'33'!D7:D118,TRUE) -> -7.8 | K65: =LinInterpolate(F65,'33'!I7:I118,'33'!E7:E118,TRUE) -> 4.04 | M65: 509.49675 | N65: -189.24165 | O65: 98.01747 | P65: =IF(LinInterpolate(F65,'33'!I7:I118,'33'!F7:F118,TRUE)>0,LinInterpolate(F65,'33'!I7:I118,'33'!F7:F118,TRUE),0) -> 0 | R65: =LinInterpolate(E65,'33'!$B7:$B118,'33'!J7:J118,TRUE) -> 23.41 | S65: =LinInterpolate(E65,'33'!$B7:$B118,'33'!K7:K118,TRUE) -> 23.5 | T65: =LinInterpolate(E65,'33'!$B7:$B118,'33'!L7:L118,TRUE) -> 23.58 | U65: =LinInterpolate(E65,'33'!$B7:$B118,'33'!M7:M118,TRUE) -> 23.67 | V65: =LinInterpolate(E65,'33'!$B7:$B118,'33'!N7:N118,TRUE) -> 23.67 | W65: =LinInterpolate(E65,'33'!$B7:$B118,'33'!O7:O118,TRUE) -> 23.67 | X65: =LinInterpolate(E65,'33'!$B7:$B118,'33'!P7:P118,TRUE) -> 23.67 | Y65: 23.67 | Z65: =IF(E65<'19'!B118,Y65-AA65,0) -> 0 | AA65: =IF(E65=0,0,IF(E65<'33'!B118, LinInterpolate($G$169,$R$23:$X$23,R65:X65,TRUE),Y65)) -> 23.67
B66: 34 | C66: W.B. 5 PS DB | D66: SW | E66: =INDEX!E67 -> 1.35 | F66: =IF(G66<'34'!M34,LinInterpolate(G66,'34'!M7:M34,'34'!I7:I34,TRUE),100) -> 100 | G66: ='INDEX (Corrected trim 3)'!AA66 -> 40.16 | H66: =LinInterpolate(F66,'34'!I7:I34,'34'!H7:H34,TRUE) -> 41.164 | I66: =LinInterpolate(F66,'34'!I7:I34,'34'!C7:C34,TRUE) -> 21 | J66: =LinInterpolate(F66,'34'!I7:I34,'34'!D7:D34,TRUE) -> 4.15 | K66: =LinInterpolate(F66,'34'!I7:I34,'34'!E7:E34,TRUE) -> 0.56 | M66: 864.444 | N66: 170.8306 | O66: 23.05184 | P66: =IF(LinInterpolate(F66,'34'!I7:I34,'34'!F7:F34,TRUE)>0,LinInterpolate(F66,'34'!I7:I34,'34'!F7:F34,TRUE),0) -> 0 | R66: =LinInterpolate(E66,'34'!$B7:$B34,'34'!J7:J34,TRUE) -> 40.14 | S66: =LinInterpolate(E66,'34'!$B7:$B34,'34'!K7:K34,TRUE) -> 40.16 | T66: =LinInterpolate(E66,'34'!$B7:$B34,'34'!L7:L34,TRUE) -> 40.16 | U66: =LinInterpolate(E66,'34'!$B7:$B34,'34'!M7:M34,TRUE) -> 40.16 | V66: =LinInterpolate(E66,'34'!$B7:$B34,'34'!N7:N34,TRUE) -> 40.16 | W66: =LinInterpolate(E66,'34'!$B7:$B34,'34'!O7:O34,TRUE) -> 40.16 | X66: =LinInterpolate(E66,'34'!$B7:$B34,'34'!P7:P34,TRUE) -> 40.16 | Y66: 40.16 | Z66: =IF(E66<'19'!B34,Y66-AA66,0) -> 0 | AA66: =IF(E66=0,0,IF(E66<'34'!B34,LinInterpolate($G$169,$R$23:$X$23,R66:X66,TRUE),Y66)) -> 40.16
B67: 35 | C67: W.B. 5 SB DB | D67: SW | E67: =INDEX!E68 -> 1.35 | F67: =IF(G67<'35'!M34,LinInterpolate(G67,'35'!M7:M34,'35'!I7:I34,TRUE),100) -> 100 | G67: ='INDEX (Corrected trim 3)'!AA67 -> 40.16 | H67: =LinInterpolate(F67,'35'!I7:I34,'35'!H7:H34,TRUE) -> 41.164 | I67: =LinInterpolate(F67,'35'!I7:I34,'35'!C7:C34,TRUE) -> 21 | J67: =LinInterpolate(F67,'35'!I7:I34,'35'!D7:D34,TRUE) -> -4.15 | K67: =LinInterpolate(F67,'35'!I7:I34,'35'!E7:E34,TRUE) -> 0.56 | M67: =$H67*I67 -> 864.444 | N67: -170.8306 | O67: 23.05184 | P67: =IF(LinInterpolate(F67,'35'!I7:I34,'35'!F7:F34,TRUE)>0,LinInterpolate(F67,'35'!I7:I34,'35'!F7:F34,TRUE),0) -> 0 | R67: =LinInterpolate(E67,'35'!$B7:$B34,'35'!J7:J34,TRUE) -> 40.14 | S67: =LinInterpolate(E67,'35'!$B7:$B34,'35'!K7:K34,TRUE) -> 40.16 | T67: =LinInterpolate(E67,'35'!$B7:$B34,'35'!L7:L34,TRUE) -> 40.16 | U67: =LinInterpolate(E67,'35'!$B7:$B34,'35'!M7:M34,TRUE) -> 40.16 | V67: =LinInterpolate(E67,'35'!$B7:$B34,'35'!N7:N34,TRUE) -> 40.16 | W67: =LinInterpolate(E67,'35'!$B7:$B34,'35'!O7:O34,TRUE) -> 40.16 | X67: =LinInterpolate(E67,'35'!$B7:$B34,'35'!P7:P34,TRUE) -> 40.16 | Y67: 40.16 | Z67: =IF(E67<'19'!B34,Y67-AA67,0) -> 0 | AA67: =IF(E67=0,0,IF(E67<'35'!B34,LinInterpolate($G$169,$R$23:$X$23,R67:X67,TRUE),Y67)) -> 40.16
B68: 36 | C68: W.B. 6 PS | D68: SW | E68: =INDEX!E69 -> 5.51 | F68: =IF(G68<'36'!M118,LinInterpolate(G68,'36'!M7:M118,'36'!I7:I118,TRUE),100) -> 100 | G68: ='INDEX (Corrected trim 3)'!AA68 -> 22.31 | H68: =LinInterpolate(F68,'36'!I7:I118,'36'!H7:H118,TRUE) -> 22.8575 | I68: =LinInterpolate(F68,'36'!I7:I118,'36'!C7:C118,TRUE) -> 16.26 | J68: =LinInterpolate(F68,'36'!I7:I118,'36'!D7:D118,TRUE) -> 7.79 | K68: =LinInterpolate(F68,'36'!I7:I118,'36'!E7:E118,TRUE) -> 4.21 | M68: 371.66295 | N68: 178.059925 | O68: 96.230075 | P68: =IF(LinInterpolate(F68,'36'!I7:I118,'36'!F7:F118,TRUE)>0,LinInterpolate(F68,'36'!I7:I118,'36'!F7:F118,TRUE),0) -> 0 | R68: =LinInterpolate(E68,'36'!$B21:$B118,'36'!J21:J118,TRUE) -> 22.3 | S68: =LinInterpolate(E68,'36'!$B21:$B118,'36'!K21:K118,TRUE) -> 22.3 | T68: =LinInterpolate(E68,'36'!$B21:$B118,'36'!L21:L118,TRUE) -> 22.31 | U68: =LinInterpolate(E68,'36'!$B21:$B118,'36'!M21:M118,TRUE) -> 22.31 | V68: =LinInterpolate(E68,'36'!$B21:$B118,'36'!N21:N118,TRUE) -> 22.24 | W68: =LinInterpolate(E68,'36'!$B21:$B118,'36'!O21:O118,TRUE) -> 22.17 | X68: =LinInterpolate(E68,'36'!$B21:$B118,'36'!P21:P118,TRUE) -> 22.1 | Y68: 22.31 | Z68: =IF(E68<'19'!B118,Y68-AA68,0) -> 0 | AA68: =IF(E68=0,0,IF(E68<'36'!B118,LinInterpolate($G$169,$R$23:$X$23,R68:X68,TRUE),Y68)) -> 22.31
B69: 37 | C69: W.B. 6 SB | D69: SW | E69: =INDEX!E70 -> 5.51 | F69: =IF(G69<'37'!M118,LinInterpolate(G69,'37'!M7:M118,'37'!I7:I118,TRUE),100) -> 100 | G69: ='INDEX (Corrected trim 3)'!AA69 -> 22.31 | H69: =LinInterpolate(F69,'37'!I7:I118,'37'!H7:H118,TRUE) -> 22.8575 | I69: =LinInterpolate(F69,'37'!I7:I118,'37'!C7:C118,TRUE) -> 16.26 | J69: =LinInterpolate(F69,'37'!I7:I118,'37'!D7:D118,TRUE) -> -7.79 | K69: =LinInterpolate(F69,'37'!I7:I118,'37'!E7:E118,TRUE) -> 4.21 | M69: 371.66295 | N69: -178.059925 | O69: 96.230075 | P69: =IF(LinInterpolate(F69,'37'!I7:I118,'37'!F7:F118,TRUE)>0,LinInterpolate(F69,'37'!I7:I118,'37'!F7:F118,TRUE),0) -> 0 | R69: =LinInterpolate(E69,'37'!$B7:$B118,'37'!J7:J118,TRUE) -> 22.3 | S69: =LinInterpolate(E69,'37'!$B7:$B118,'37'!K7:K118,TRUE) -> 22.3 | T69: =LinInterpolate(E69,'37'!$B7:$B118,'37'!L7:L118,TRUE) -> 22.3 | U69: =LinInterpolate(E69,'37'!$B7:$B118,'37'!M7:M118,TRUE) -> 22.31 | V69: =LinInterpolate(E69,'37'!$B7:$B118,'37'!N7:N118,TRUE) -> 22.24 | W69: =LinInterpolate(E69,'37'!$B7:$B118,'37'!O7:O118,TRUE) -> 22.18 | X69: =LinInterpolate(E69,'37'!$B7:$B118,'37'!P7:P118,TRUE) -> 22.11 | Y69: 22.31 | Z69: =IF(E69<'19'!B118,Y69-AA69,0) -> 0 | AA69: =IF(E69=0,0,IF(E69<'37'!B118,LinInterpolate($G$169,$R$23:$X$23,R69:X69,TRUE),Y69)) -> 22.31
B70: 38 | C70: W.B. 6 PS DB | D70: SW | E70: =INDEX!E71 -> 2.2 | F70: =IF(G70<'38'!M51,LinInterpolate(G70,'38'!M7:M51,'38'!I7:I51,TRUE),100) -> 100 | G70: ='INDEX (Corrected trim 3)'!AA70 -> 39.67 | H70: =LinInterpolate(F70,'38'!I7:I51,'38'!H7:H51,TRUE) -> 40.66175 | I70: =LinInterpolate(F70,'38'!I7:I51,'38'!C7:C51,TRUE) -> 16.2 | J70: =LinInterpolate(F70,'38'!I7:I51,'38'!D7:D51,TRUE) -> 4.16 | K70: =LinInterpolate(F70,'38'!I7:I51,'38'!E7:E51,TRUE) -> 0.63 | M70: 658.72035 | N70: 169.15288 | O70: 25.6169025 | P70: =IF(LinInterpolate(F70,'38'!I7:I51,'38'!F7:F51,TRUE)>0,LinInterpolate(F70,'38'!I7:I51,'38'!F7:F51,TRUE),0) -> 0 | R70: =LinInterpolate(E70,'38'!$B7:$B51,'38'!J7:J51,TRUE) -> 39.67 | S70: =LinInterpolate(E70,'38'!$B7:$B51,'38'!K7:K51,TRUE) -> 39.67 | T70: =LinInterpolate(E70,'38'!$B7:$B51,'38'!L7:L51,TRUE) -> 39.67 | U70: =LinInterpolate(E70,'38'!$B7:$B51,'38'!M7:M51,TRUE) -> 39.67 | V70: =LinInterpolate(E70,'38'!$B7:$B51,'38'!N7:N51,TRUE) -> 39.66 | W70: =LinInterpolate(E70,'38'!$B7:$B51,'38'!O7:O51,TRUE) -> 39.66 | X70: =LinInterpolate(E70,'38'!$B7:$B51,'38'!P7:P51,TRUE) -> 39.65 | Y70: 39.67 | Z70: =IF(E70<'19'!B51,Y70-AA70,0) -> 0 | AA70: =IF(E70=0,0,IF(E70<'38'!B51, LinInterpolate($G$169,$R$23:$X$23,R70:X70,TRUE),Y70)) -> 39.67
B71: 39 | C71: W.B. 6 SB DB | D71: SW | E71: =INDEX!E72 -> 2.2 | F71: =IF(G71<'39'!M51,LinInterpolate(G71,'39'!M7:M51,'39'!I7:I51,TRUE),100) -> 100 | G71: ='INDEX (Corrected trim 3)'!AA71 -> 39.67 | H71: =LinInterpolate(F71,'39'!I7:I51,'39'!H7:H51,TRUE) -> 40.66175 | I71: =LinInterpolate(F71,'39'!I7:I51,'39'!C7:C51,TRUE) -> 16.2 | J71: =LinInterpolate(F71,'39'!I7:I51,'39'!D7:D51,TRUE) -> -4.16 | K71: =LinInterpolate(F71,'39'!I7:I51,'39'!E7:E51,TRUE) -> 0.63 | M71: 658.72035 | N71: -169.15288 | O71: 25.6169025 | P71: =IF(LinInterpolate(F71,'39'!I7:I51,'39'!F7:F51,TRUE)>0,LinInterpolate(F71,'39'!I7:I51,'39'!F7:F51,TRUE),0) -> 0 | R71: =LinInterpolate(E71,'39'!$B7:$B51,'39'!J7:J51,TRUE) -> 39.67 | S71: =LinInterpolate(E71,'39'!$B7:$B51,'39'!K7:K51,TRUE) -> 39.67 | T71: =LinInterpolate(E71,'39'!$B7:$B51,'39'!L7:L51,TRUE) -> 39.67 | U71: =LinInterpolate(E71,'39'!$B7:$B51,'39'!M7:M51,TRUE) -> 39.67 | V71: =LinInterpolate(E71,'39'!$B7:$B51,'39'!N7:N51,TRUE) -> 39.66 | W71: =LinInterpolate(E71,'39'!$B7:$B51,'39'!O7:O51,TRUE) -> 39.66 | X71: =LinInterpolate(E71,'39'!$B7:$B51,'39'!P7:P51,TRUE) -> 39.66 | Y71: 39.67 | Z71: =IF(E71<'19'!B51,Y71-AA71,0) -> 0 | AA71: =IF(E71=0,0,IF(E71<'39'!B51, LinInterpolate($G$169,$R$23:$X$23,R71:X71,TRUE),Y71)) -> 39.67
B72: 40 | C72: W.B. 7 PS | D72: SW | E72: =INDEX!E73 -> 4.64 | F72: =IF(G72<'40'!M100,LinInterpolate(G72,'40'!M7:M100,'40'!I7:I100,TRUE),100) -> 100 | G72: ='INDEX (Corrected trim 3)'!AA72 -> 17.48 | H72: =LinInterpolate(F72,'40'!I7:I100,'40'!H7:H100,TRUE) -> 17.917 | I72: =LinInterpolate(F72,'40'!I7:I100,'40'!C7:C100,TRUE) -> 11.34 | J72: =LinInterpolate(F72,'40'!I7:I100,'40'!D7:D100,TRUE) -> 7.79 | K72: =LinInterpolate(F72,'40'!I7:I100,'40'!E7:E100,TRUE) -> 4.92 | M72: 203.17878 | N72: 139.57343 | O72: 88.15164 | P72: =IF(LinInterpolate(F72,'40'!I7:I100,'40'!F7:F100,TRUE)>0,LinInterpolate(F72,'40'!I7:I100,'40'!F7:F100,TRUE),0) -> 0 | R72: =LinInterpolate(E72,'40'!$B7:$B100,'40'!J7:J100,TRUE) -> 17.48 | S72: =LinInterpolate(E72,'40'!$B7:$B100,'40'!K7:K100,TRUE) -> 17.48 | T72: =LinInterpolate(E72,'40'!$B7:$B100,'40'!L7:L100,TRUE) -> 17.48 | U72: =LinInterpolate(E72,'40'!$B7:$B100,'40'!M7:M100,TRUE) -> 17.48 | V72: =LinInterpolate(E72,'40'!$B7:$B100,'40'!N7:N100,TRUE) -> 17.37 | W72: =LinInterpolate(E72,'40'!$B7:$B100,'40'!O7:O100,TRUE) -> 17.26 | X72: =LinInterpolate(E72,'40'!$B7:$B100,'40'!P7:P100,TRUE) -> 17.15 | Y72: 17.48 | Z72: =IF(E72<'19'!B100,Y72-AA72,0) -> 0 | AA72: =IF(E72=0,0,IF(E72<'40'!B100,LinInterpolate($G$169,$R$23:$X$23,R72:X72,TRUE),Y72)) -> 17.48
B73: 41 | C73: W.B. 7 SB | D73: SW | E73: =INDEX!E74 -> 4.64 | F73: =IF(G73<'41'!M100,LinInterpolate(G73,'41'!M7:M100,'41'!I7:I100,TRUE),100) -> 100 | G73: ='INDEX (Corrected trim 3)'!AA73 -> 17.48 | H73: =LinInterpolate(F73,'41'!I7:I100,'41'!H7:H100,TRUE) -> 17.917 | I73: =LinInterpolate(F73,'41'!I7:I100,'41'!C7:C100,TRUE) -> 11.34 | J73: =LinInterpolate(F73,'41'!I7:I100,'41'!D7:D100,TRUE) -> -7.79 | K73: =LinInterpolate(F73,'41'!I7:I100,'41'!E7:E100,TRUE) -> 4.92 | M73: 203.17878 | N73: -139.57343 | O73: 88.15164 | P73: =IF(LinInterpolate(F73,'41'!I7:I100,'41'!F7:F100,TRUE)>0,LinInterpolate(F73,'41'!I7:I100,'41'!F7:F100,TRUE),0) -> 0 | R73: =LinInterpolate(E73,'41'!$B7:$B100,'41'!J7:J100,TRUE) -> 17.48 | S73: =LinInterpolate(E73,'41'!$B7:$B100,'41'!K7:K100,TRUE) -> 17.48 | T73: =LinInterpolate(E73,'41'!$B7:$B100,'41'!L7:L100,TRUE) -> 17.48 | U73: =LinInterpolate(E73,'41'!$B7:$B100,'41'!M7:M100,TRUE) -> 17.48 | V73: =LinInterpolate(E73,'41'!$B7:$B100,'41'!N7:N100,TRUE) -> 17.37 | W73: =LinInterpolate(E73,'41'!$B7:$B100,'41'!O7:O100,TRUE) -> 17.26 | X73: =LinInterpolate(E73,'41'!$B7:$B100,'41'!P7:P100,TRUE) -> 17.15 | Y73: 17.48 | Z73: =IF(E73<'19'!B100,Y73-AA73,0) -> 0 | AA73: =IF(E73=0,0,IF(E73<'41'!B100, LinInterpolate($G$169,$R$23:$X$23,R73:X73,TRUE),Y73)) -> 17.48
B74: 42 | C74: W.B. 7 PS DB | D74: SW | E74: =INDEX!E75 -> 4.55 | F74: =IF(G74<'42'!M98,LinInterpolate(G74,'42'!M7:M98,'42'!I7:I98,TRUE),100) -> 100 | G74: ='INDEX (Corrected trim 3)'!AA74 -> 35.4 | H74: =LinInterpolate(F74,'42'!I7:I98,'42'!H7:H98,TRUE) -> 36.285 | I74: =LinInterpolate(F74,'42'!I7:I98,'42'!C7:C98,TRUE) -> 10.63 | J74: =LinInterpolate(F74,'42'!I7:I98,'42'!D7:D98,TRUE) -> 5.9 | K74: =LinInterpolate(F74,'42'!I7:I98,'42'!E7:E98,TRUE) -> 1.98 | M74: 385.70955 | N74: 214.0815 | O74: 71.8443 | P74: =IF(LinInterpolate(F74,'42'!I7:I98,'42'!F7:F98,TRUE)>0,LinInterpolate(F74,'42'!I7:I98,'42'!F7:F98,TRUE),0) -> 0 | R74: =LinInterpolate(E74,'42'!$B7:$B98,'42'!J7:J98,TRUE) -> 35.4 | S74: =LinInterpolate(E74,'42'!$B7:$B98,'42'!K7:K98,TRUE) -> 35.4 | T74: =LinInterpolate(E74,'42'!$B7:$B98,'42'!L7:L98,TRUE) -> 35.4 | U74: =LinInterpolate(E74,'42'!$B7:$B98,'42'!M7:M98,TRUE) -> 35.4 | V74: =LinInterpolate(E74,'42'!$B7:$B98,'42'!N7:N98,TRUE) -> 35.39 | W74: =LinInterpolate(E74,'42'!$B7:$B98,'42'!O7:O98,TRUE) -> 35.39 | X74: =LinInterpolate(E74,'42'!$B7:$B98,'42'!P7:P98,TRUE) -> 35.38 | Y74: 35.4 | Z74: =IF(E74<'19'!B98,Y74-AA74,0) -> 0 | AA74: =IF(E74=0,0,IF(E74<'42'!B98,LinInterpolate($G$169,$R$23:$X$23,R74:X74,TRUE),Y74)) -> 35.4
B75: 43 | C75: W.B. 7 SB DB | D75: SW | E75: =INDEX!E76 -> 4.55 | F75: =IF(G75<'43'!M98,LinInterpolate(G75,'43'!M7:M98,'43'!I7:I98,TRUE),100) -> 100 | G75: ='INDEX (Corrected trim 3)'!AA75 -> 35.4 | H75: =LinInterpolate(F75,'43'!I7:I98,'43'!H7:H98,TRUE) -> 36.285 | I75: =LinInterpolate(F75,'43'!I7:I98,'43'!C7:C98,TRUE) -> 10.63 | J75: =LinInterpolate(F75,'43'!I7:I98,'43'!D7:D98,TRUE) -> -5.9 | K75: =LinInterpolate(F75,'43'!I7:I98,'43'!E7:E98,TRUE) -> 1.98 | M75: 385.70955 | N75: -214.0815 | O75: 71.8443 | P75: =IF(LinInterpolate(F75,'43'!I7:I98,'43'!F7:F98,TRUE)>0,LinInterpolate(F75,'43'!I7:I98,'43'!F7:F98,TRUE),0) -> 0 | R75: =LinInterpolate(E75,'43'!$B7:$B98,'43'!J7:J98,TRUE) -> 35.4 | S75: =LinInterpolate(E75,'43'!$B7:$B98,'43'!K7:K98,TRUE) -> 35.4 | T75: =LinInterpolate(E75,'43'!$B7:$B98,'43'!L7:L98,TRUE) -> 35.4 | U75: =LinInterpolate(E75,'43'!$B7:$B98,'43'!M7:M98,TRUE) -> 35.4 | V75: =LinInterpolate(E75,'43'!$B7:$B98,'43'!N7:N98,TRUE) -> 35.39 | W75: =LinInterpolate(E75,'43'!$B7:$B98,'43'!O7:O98,TRUE) -> 35.39 | X75: =LinInterpolate(E75,'43'!$B7:$B98,'43'!P7:P98,TRUE) -> 35.38 | Y75: 35.4 | Z75: =IF(E75<'19'!B98,Y75-AA75,0) -> 0 | AA75: =IF(E75=0,0,IF(E75<'43'!B98,LinInterpolate($G$169,$R$23:$X$23,R75:X75,TRUE),Y75)) -> 35.4
B76: 44 | C76: W.B. 8 PS DB | D76: SW | E76: =INDEX!E77 -> 2.7 | F76: =IF(G76<'44'!M61,LinInterpolate(G76,'44'!M7:M61,'44'!I7:I61,TRUE),100) -> 100 | G76: ='INDEX (Corrected trim 3)'!AA76 -> 29.71 | H76: =LinInterpolate(F76,'44'!I7:I61,'44'!H7:H61,TRUE) -> 30.45275 | I76: =LinInterpolate(F76,'44'!I7:I61,'44'!C7:C61,TRUE) -> 10.53 | J76: =LinInterpolate(F76,'44'!I7:I61,'44'!D7:D61,TRUE) -> 1.47 | K76: =LinInterpolate(F76,'44'!I7:I61,'44'!E7:E61,TRUE) -> 1.11 | M76: 320.6674575 | N76: 44.7655425 | O76: 33.8025525 | P76: =IF(LinInterpolate(F76,'44'!I7:I61,'44'!F7:F61,TRUE)>0,LinInterpolate(F76,'44'!I7:I61,'44'!F7:F61,TRUE),0) -> 0 | R76: =LinInterpolate(E76,'44'!$B7:$B61,'44'!J7:J61,TRUE) -> 29.71 | S76: =LinInterpolate(E76,'44'!$B7:$B61,'44'!K7:K61,TRUE) -> 29.71 | T76: =LinInterpolate(E76,'44'!$B7:$B61,'44'!L7:L61,TRUE) -> 29.71 | U76: =LinInterpolate(E76,'44'!$B7:$B61,'44'!M7:M61,TRUE) -> 29.71 | V76: =LinInterpolate(E76,'44'!$B7:$B61,'44'!N7:N61,TRUE) -> 29.7 | W76: =LinInterpolate(E76,'44'!$B7:$B61,'44'!O7:O61,TRUE) -> 29.67 | X76: =LinInterpolate(E76,'44'!$B7:$B61,'44'!P7:P61,TRUE) -> 29.59 | Y76: 29.71 | Z76: =IF(E76<'19'!B61,Y76-AA76,0) -> 0 | AA76: =IF(E76=0,0,IF(E76<'44'!B61,LinInterpolate($G$169,$R$23:$X$23,R76:X76,TRUE),Y76)) -> 29.71
B77: 45 | C77: W.B. 8 SB DB | D77: SW | E77: =INDEX!E78 -> 2.7 | F77: =IF(G77<'45'!M61,LinInterpolate(G77,'45'!M7:M61,'45'!I7:I61,TRUE),100) -> 100 | G77: ='INDEX (Corrected trim 3)'!AA77 -> 29.71 | H77: =LinInterpolate(F77,'45'!I7:I61,'45'!H7:H61,TRUE) -> 30.45275 | I77: =LinInterpolate(F77,'45'!I7:I61,'45'!C7:C61,TRUE) -> 10.53 | J77: =LinInterpolate(F77,'45'!I7:I61,'45'!D7:D61,TRUE) -> -1.47 | K77: =LinInterpolate(F77,'45'!I7:I61,'45'!E7:E61,TRUE) -> 1.11 | M77: 320.6674575 | N77: -44.7655425 | O77: 33.8025525 | P77: =IF(LinInterpolate(F77,'45'!I7:I61,'45'!F7:F61,TRUE)>0,LinInterpolate(F77,'45'!I7:I61,'45'!F7:F61,TRUE),0) -> 0 | R77: =LinInterpolate(E77,'45'!$B7:$B61,'45'!J7:J61,TRUE) -> 29.71 | S77: =LinInterpolate(E77,'45'!$B7:$B61,'45'!K7:K61,TRUE) -> 29.71 | T77: =LinInterpolate(E77,'45'!$B7:$B61,'45'!L7:L61,TRUE) -> 29.71 | U77: =LinInterpolate(E77,'45'!$B7:$B61,'45'!M7:M61,TRUE) -> 29.71 | V77: =LinInterpolate(E77,'45'!$B7:$B61,'45'!N7:N61,TRUE) -> 29.7 | W77: =LinInterpolate(E77,'45'!$B7:$B61,'45'!O7:O61,TRUE) -> 29.67 | X77: =LinInterpolate(E77,'45'!$B7:$B61,'45'!P7:P61,TRUE) -> 29.59 | Y77: 29.71 | Z77: =IF(E77<'19'!B61,Y77-AA77,0) -> 0 | AA77: =IF(E77=0,0,IF(E77<'45'!B61, LinInterpolate($G$169,$R$23:$X$23,R77:X77,TRUE),Y77)) -> 29.71
C78: Total BW | F78: =(G78/1032)*100 -> 100.0032946 | G78: =SUM((G51:G77)) -> 1032.034 | H78: =SUM((H51:H77)) -> 1057.81435 | I78: =M78/H78 -> 22.74410812 | J78: =N78/H78 -> -0.00736067534 | K78: =O78/H78 -> 3.081373373 | M78: =SUM((M51:M77)) -> 24059.04395 | N78: =SUM((N51:N77)) -> -7.786228 | O78: =SUM((O51:O77)) -> 3259.520972 | P78: =SUM((P51:P77)) -> 0 | Z78: =SUM((Z51:Z77)) -> 0 | AA78: =SUM((AA51:AA77)) -> 1032.034
C80: FW (S.G. 1.000) | R80: -1.5 | S80: -1 | T80: -0.5 | U80: 0 | V80: 0.5 | W80: 1 | X80: 1.5 | Y80: Volume | Z80: ∆Volume | AA80: Volume2
B81: 46 | C81: F.W. 1 PS | D81: FW | E81: =INDEX!E82 -> 7.77 | F81: =IF(G81<'46'!M163,LinInterpolate(G81,'46'!M7:M163,'46'!I7:I163,TRUE),100) -> 100 | G81: ='INDEX (Corrected trim 3)'!AA81 -> 73.35 | H81: =LinInterpolate(F81,'46'!I7:I163,'46'!H7:H163,TRUE) -> 73.35 | I81: =LinInterpolate(F81,'46'!I7:I163,'46'!C7:C163,TRUE) -> 47.04 | J81: =LinInterpolate(F81,'46'!I7:I163,'46'!D7:D163,TRUE) -> 2.93 | K81: =LinInterpolate(F81,'46'!I7:I163,'46'!E7:E163,TRUE) -> 4.93 | M81: =$H81*I81 -> 3450.384 | N81: 214.9155 | O81: 361.6155 | P81: =IF(LinInterpolate(F81,'46'!I7:I163,'46'!F7:F163,TRUE)>0,LinInterpolate(F81,'46'!I7:I163,'46'!F7:F163,TRUE),0) -> 0 | R81: =LinInterpolate(E81,'46'!$B7:$B163,'46'!J7:J163,TRUE) -> 72.15 | S81: =LinInterpolate(E81,'46'!$B7:$B163,'46'!K7:K163,TRUE) -> 72.55 | T81: =LinInterpolate(E81,'46'!$B7:$B163,'46'!L7:L163,TRUE) -> 72.95 | U81: =LinInterpolate(E81,'46'!$B7:$B163,'46'!M7:M163,TRUE) -> 73.35 | V81: =LinInterpolate(E81,'46'!$B7:$B163,'46'!N7:N163,TRUE) -> 73.35 | W81: =LinInterpolate(E81,'46'!$B7:$B163,'46'!O7:O163,TRUE) -> 73.35 | X81: =LinInterpolate(E81,'46'!$B7:$B163,'46'!P7:P163,TRUE) -> 73.35 | Y81: =G81 -> 73.35 | Z81: =IF(E81<'19'!B163,Y81-AA81,0) -> 0 | AA81: =IF(E81=0,0,IF(E81<'46'!B163,LinInterpolate($G$169,$R$23:$X$23,R81:X81,TRUE),Y81)) -> 73.35
B82: 47 | C82: F.W. 1 SB | D82: FW | E82: =INDEX!E83 -> 7.77 | F82: =IF(G82<'47'!M163,LinInterpolate(G82,'47'!M7:M163,'47'!I7:I163,TRUE),100) -> 100 | G82: ='INDEX (Corrected trim 3)'!AA82 -> 73.35 | H82: =LinInterpolate(F82,'47'!I7:I163,'47'!H7:H163,TRUE) -> 73.35 | I82: =LinInterpolate(F82,'47'!I7:I163,'47'!C7:C163,TRUE) -> 47.05 | J82: =LinInterpolate(F82,'47'!I7:I163,'47'!D7:D163,TRUE) -> -2.93 | K82: =LinInterpolate(F82,'47'!I7:I163,'47'!E7:E163,TRUE) -> 4.93 | M82: 3451.1175 | N82: -214.9155 | O82: 361.6155 | P82: =IF(LinInterpolate(F82,'47'!I7:I163,'47'!F7:F163,TRUE)>0,LinInterpolate(F82,'47'!I7:I163,'47'!F7:F163,TRUE),0) -> 0 | R82: =LinInterpolate(E82,'47'!$B7:$B163,'47'!J7:J163,TRUE) -> 72.15 | S82: =LinInterpolate(E82,'47'!$B7:$B163,'47'!K7:K163,TRUE) -> 72.55 | T82: =LinInterpolate(E82,'47'!$B7:$B163,'47'!L7:L163,TRUE) -> 72.95 | U82: =LinInterpolate(E82,'47'!$B7:$B163,'47'!M7:M163,TRUE) -> 73.35 | V82: =LinInterpolate(E82,'47'!$B7:$B163,'47'!N7:N163,TRUE) -> 73.35 | W82: =LinInterpolate(E82,'47'!$B7:$B163,'47'!O7:O163,TRUE) -> 73.35 | X82: =LinInterpolate(E82,'47'!$B7:$B163,'47'!P7:P163,TRUE) -> 73.35 | Y82: =G82 -> 73.35 | Z82: =IF(E82<'19'!B163,Y82-AA82,0) -> 0 | AA82: =IF(E82=0,0,IF(E82<'47'!B163, LinInterpolate($G$169,$R$23:$X$23,R82:X82,TRUE),Y82)) -> 73.35
B83: 48 | C83: F.W. 1 C | D83: FW | E83: =INDEX!E84 -> 5.77 | F83: =IF(G83<'48'!M123,LinInterpolate(G83,'48'!M7:M123,'48'!I7:I123,TRUE),100) -> 100 | G83: ='INDEX (Corrected trim 3)'!AA83 -> 103.64 | H83: =LinInterpolate(F83,'48'!I7:I123,'48'!H7:H123,TRUE) -> 103.64 | I83: =LinInterpolate(F83,'48'!I7:I123,'48'!C7:C123,TRUE) -> 15.61 | J83: =LinInterpolate(F83,'48'!I7:I123,'48'!D7:D123,TRUE) -> 0 | K83: =LinInterpolate(F83,'48'!I7:I123,'48'!E7:E123,TRUE) -> 3.91 | M83: 1617.8204 | N83: 0 | O83: 405.2324 | P83: =IF(LinInterpolate(F83,'48'!I7:I123,'48'!F7:F123,TRUE)>0,LinInterpolate(F83,'48'!I7:I123,'48'!F7:F123,TRUE),0) -> 0 | R83: =LinInterpolate(E83,'48'!$B7:$B123,'48'!J7:J123,TRUE) -> 103.63 | S83: =LinInterpolate(E83,'48'!$B7:$B123,'48'!K7:K123,TRUE) -> 103.64 | T83: =LinInterpolate(E83,'48'!$B7:$B123,'48'!L7:L123,TRUE) -> 103.64 | U83: =LinInterpolate(E83,'48'!$B7:$B123,'48'!M7:M123,TRUE) -> 103.64 | V83: =LinInterpolate(E83,'48'!$B7:$B123,'48'!N7:N123,TRUE) -> 103.28 | W83: =LinInterpolate(E83,'48'!$B7:$B123,'48'!O7:O123,TRUE) -> 102.93 | X83: =LinInterpolate(E83,'48'!$B7:$B123,'48'!P7:P123,TRUE) -> 102.58 | Y83: =G83 -> 103.64 | Z83: =IF(E83<'19'!B123,Y83-AA83,0) -> 0 | AA83: =IF(E83=0,0,IF(E83<'48'!B123, LinInterpolate($G$169,$R$23:$X$23,R83:X83,TRUE),Y83)) -> 103.64
B84: 49 | C84: F.W. 2 PS | D84: FW | E84: =INDEX!E85 -> 5.8 | F84: =IF(G84<'49'!M123,LinInterpolate(G84,'49'!M7:M123,'49'!I7:I123,TRUE),100) -> 100 | G84: ='INDEX (Corrected trim 3)'!AA84 -> 116.59 | H84: =LinInterpolate(F84,'49'!I7:I123,'49'!H7:H123,TRUE) -> 116.59 | I84: =LinInterpolate(F84,'49'!I7:I123,'49'!C7:C123,TRUE) -> 5.23 | J84: =LinInterpolate(F84,'49'!I7:I123,'49'!D7:D123,TRUE) -> 4.01 | K84: =LinInterpolate(F84,'49'!I7:I123,'49'!E7:E123,TRUE) -> 4.93 | M84: 609.7657 | N84: 467.5259 | O84: 574.7887 | P84: =IF(LinInterpolate(F84,'49'!I7:I123,'49'!F7:F123,TRUE)>0,LinInterpolate(F84,'49'!I7:I123,'49'!F7:F123,TRUE),0) -> 0 | R84: =LinInterpolate(E84,'49'!$B7:$B123,'49'!J7:J123,TRUE) -> 116.59 | S84: =LinInterpolate(E84,'49'!$B7:$B123,'49'!K7:K123,TRUE) -> 116.59 | T84: =LinInterpolate(E84,'49'!$B7:$B123,'49'!L7:L123,TRUE) -> 116.59 | U84: =LinInterpolate(E84,'49'!$B7:$B123,'49'!M7:M123,TRUE) -> 116.59 | V84: =LinInterpolate(E84,'49'!$B7:$B123,'49'!N7:N123,TRUE) -> 115.95 | W84: =LinInterpolate(E84,'49'!$B7:$B123,'49'!O7:O123,TRUE) -> 115.32 | X84: =LinInterpolate(E84,'49'!$B7:$B123,'49'!P7:P123,TRUE) -> 114.68 | Y84: =G84 -> 116.59 | Z84: =IF(E84<'19'!B123,Y84-AA84,0) -> 0 | AA84: =IF(E84=0,0,IF(E84<'49'!B123,LinInterpolate($G$169,$R$23:$X$23,R84:X84,TRUE),Y84)) -> 116.59
B85: 50 | C85: F.W. 2 SB | D85: FW | E85: =INDEX!E86 -> 5.8 | F85: =IF(G85<'50'!M123,LinInterpolate(G85,'50'!M7:M123,'50'!I7:I123,TRUE),100) -> 100 | G85: ='INDEX (Corrected trim 3)'!AA85 -> 116.59 | H85: =LinInterpolate(F85,'50'!I7:I123,'50'!H7:H123,TRUE) -> 116.59 | I85: =LinInterpolate(F85,'50'!I7:I123,'50'!C7:C123,TRUE) -> 5.23 | J85: =LinInterpolate(F85,'50'!I7:I123,'50'!D7:D123,TRUE) -> -4.01 | K85: =LinInterpolate(F85,'50'!I7:I123,'50'!E7:E123,TRUE) -> 4.93 | M85: 609.7657 | N85: -467.5259 | O85: 574.7887 | P85: =IF(LinInterpolate(F85,'50'!I7:I123,'50'!F7:F123,TRUE)>0,LinInterpolate(F85,'50'!I7:I123,'50'!F7:F123,TRUE),0) -> 0 | R85: =LinInterpolate(E85,'50'!$B7:$B123,'50'!J7:J123,TRUE) -> 116.59 | S85: =LinInterpolate(E85,'50'!$B7:$B123,'50'!K7:K123,TRUE) -> 116.59 | T85: =LinInterpolate(E85,'50'!$B7:$B123,'50'!L7:L123,TRUE) -> 116.59 | U85: =LinInterpolate(E85,'50'!$B7:$B123,'50'!M7:M123,TRUE) -> 116.59 | V85: =LinInterpolate(E85,'50'!$B7:$B123,'50'!N7:N123,TRUE) -> 115.95 | W85: =LinInterpolate(E85,'50'!$B7:$B123,'50'!O7:O123,TRUE) -> 115.32 | X85: =LinInterpolate(E85,'50'!$B7:$B123,'50'!P7:P123,TRUE) -> 114.68 | Y85: =G85 -> 116.59 | Z85: =IF(E85<'19'!B123,Y85-AA85,0) -> 0 | AA85: =IF(E85=0,0,IF(E85<'50'!B123,LinInterpolate($G$169,$R$23:$X$23,R85:X85,TRUE),Y85)) -> 116.59
C86: TOTAL FW | F86: =(G86/483.5)*100 -> 100.0041365 | G86: =SUM((G81:G85)) -> 483.52 | H86: =SUM((H81:H85)) -> 483.52 | I86: =M86/H86 -> 20.14157284 | J86: =N86/H86 -> 0 | K86: =O86/H86 -> 4.711368299 | M86: =SUM((M81:M85)) -> 9738.8533 | N86: =SUM((N81:N85)) -> 0 | O86: =SUM((O81:O85)) -> 2278.0408 | P86: =SUM((P81:P85)) -> 0 | Z86: =SUM((Z81:Z85)) -> 0 | AA86: =SUM((AA81:AA85)) -> 483.52
B88: Sheet No. | C88: Name | D88: Sort of Fluid | E88: Sounding Height | F88: % Full | G88: Volume | H88: Weight | I88: LCG | J88: TCG | K88: VCG | M88: Longitudinal | N88: Transverse | O88: Vertical | P88: FSMt
I89: Fwd of AP | J89: PS:+ | K89: Above BL | M89: Moment | N89: Moment | O89: Moment
F90: % | G90: m³ | H90: t | I90: m | J90: m | K90: m | M90: t·m | N90: t·m | O90: t·m | P90: t·m
C91: MISC (S.G. Various) | R91: -1.5 | S91: -1 | T91: -0.5 | U91: 0 | V91: 0.5 | W91: 1 | X91: 1.5 | Y91: Volume | Z91: ∆Volume | AA91: Volume2
B92: 51 | C92: DIRTY OIL | D92: DIRTY | E92: =INDEX!E93 -> 2 | F92: =IF(G92<'51'!M27,LinInterpolate(G92,'51'!M7:M27,'51'!I7:I27,TRUE),100) -> 100 | G92: ='INDEX (Corrected trim 3)'!AA92 -> 13.43 | H92: =LinInterpolate(F92,'51'!I7:I27,'51'!H7:H27,TRUE) -> 13.1614 | I92: =LinInterpolate(F92,'51'!I7:I27,'51'!C7:C27,TRUE) -> 36.93 | J92: =LinInterpolate(F92,'51'!I7:I27,'51'!D7:D27,TRUE) -> 0 | K92: =LinInterpolate(F92,'51'!I7:I27,'51'!E7:E27,TRUE) -> 0.5 | M92: =$H92*I92 -> 486.050502 | N92: 0 | O92: 6.5807 | P92: =IF(LinInterpolate(F92,'51'!I7:I27,'51'!F7:F27,TRUE)>0,LinInterpolate(F92,'51'!I7:I27,'51'!F7:F27,TRUE),0) -> 0 | R92: =LinInterpolate(E92,'51'!$B7:$B27,'51'!J7:J27,TRUE) -> 24.64 | S92: =LinInterpolate(E92,'51'!$B7:$B27,'51'!K7:K27,TRUE) -> 24.17 | T92: =LinInterpolate(E92,'51'!$B7:$B27,'51'!L7:L27,TRUE) -> 22.03 | U92: =LinInterpolate(E92,'51'!$B7:$B27,'51'!M7:M27,TRUE) -> 18.83 | V92: =LinInterpolate(E92,'51'!$B7:$B27,'51'!N7:N27,TRUE) -> 15.83 | W92: =LinInterpolate(E92,'51'!$B7:$B27,'51'!O7:O27,TRUE) -> 14.83 | X92: =LinInterpolate(E92,'51'!$B7:$B27,'51'!P7:P27,TRUE) -> 14.63 | Y92: =G92 -> 13.43 | Z92: =IF(E92<'19'!B27,Y92-AA92,0) -> 0 | AA92: =IF(E92=0,0,IF(E92<'51'!B27,LinInterpolate($G$169,$R$23:$X$23,R92:X92,TRUE),Y92)) -> 13.43
B93: 52 | C93: OILY WATER | D93: OILY | E93: =INDEX!E94 -> 2 | F93: =IF(G93<'52'!M31,LinInterpolate(G93,'52'!M7:M31,'52'!I7:I31,TRUE),100) -> 100 | G93: ='INDEX (Corrected trim 3)'!AA93 -> 30.2 | H93: =LinInterpolate(F93,'52'!I7:I31,'52'!H7:H31,TRUE) -> 29.596 | I93: =LinInterpolate(F93,'52'!I7:I31,'52'!C7:C31,TRUE) -> 37.85 | J93: =LinInterpolate(F93,'52'!I7:I31,'52'!D7:D31,TRUE) -> -4.3 | K93: =LinInterpolate(F93,'52'!I7:I31,'52'!E7:E31,TRUE) -> 0.57 | M93: 1120.2086 | N93: -127.2628 | O93: 16.86972 | P93: =IF(LinInterpolate(F93,'52'!I7:I31,'52'!F7:F31,TRUE)>0,LinInterpolate(F93,'52'!I7:I31,'52'!F7:F31,TRUE),0) -> 0 | R93: =LinInterpolate(E93,'52'!$B7:$B31,'52'!J7:J31,TRUE) -> 38.54 | S93: =LinInterpolate(E93,'52'!$B7:$B31,'52'!K7:K31,TRUE) -> 34.8 | T93: =LinInterpolate(E93,'52'!$B7:$B31,'52'!L7:L31,TRUE) -> 31.48 | U93: =LinInterpolate(E93,'52'!$B7:$B31,'52'!M7:M31,TRUE) -> 30.52 | V93: =LinInterpolate(E93,'52'!$B7:$B31,'52'!N7:N31,TRUE) -> 30.2 | W93: =LinInterpolate(E93,'52'!$B7:$B31,'52'!O7:O31,TRUE) -> 30.2 | X93: =LinInterpolate(E93,'52'!$B7:$B31,'52'!P7:P31,TRUE) -> 30.2 | Y93: 30.2 | Z93: =IF(E93<'19'!B31,Y93-AA93,0) -> 0 | AA93: =IF(E93=0,0,IF(E93<'52'!B31, LinInterpolate($G$169,$R$23:$X$23,R93:X93,TRUE),Y93)) -> 30.2
B94: 53 | C94: GREY WATER | D94: GREY | E94: =INDEX!E95 -> 2 | F94: =IF(G94<'53'!M27,LinInterpolate(G94,'53'!M7:M27,'53'!I7:I27,TRUE),100) -> 100 | G94: ='INDEX (Corrected trim 3)'!AA94 -> 31.1 | H94: =LinInterpolate(F94,'53'!I7:I27,'53'!H7:H27,TRUE) -> 30.478 | I94: =LinInterpolate(F94,'53'!I7:I27,'53'!C7:C27,TRUE) -> 41.56 | J94: =LinInterpolate(F94,'53'!I7:I27,'53'!D7:D27,TRUE) -> 0 | K94: =LinInterpolate(F94,'53'!I7:I27,'53'!E7:E27,TRUE) -> 0.5 | M94: 1266.66568 | N94: 0 | O94: 15.239 | P94: =IF(LinInterpolate(F94,'53'!I7:I27,'53'!F7:F27,TRUE)>0,LinInterpolate(F94,'53'!I7:I27,'53'!F7:F27,TRUE),0) -> 0 | R94: =LinInterpolate(E94,'53'!$B7:$B27,'53'!J7:J27,TRUE) -> 44.62 | S94: =LinInterpolate(E94,'53'!$B7:$B27,'53'!K7:K27,TRUE) -> 44.39 | T94: =LinInterpolate(E94,'53'!$B7:$B27,'53'!L7:L27,TRUE) -> 43.3 | U94: =LinInterpolate(E94,'53'!$B7:$B27,'53'!M7:M27,TRUE) -> 43.5 | V94: =LinInterpolate(E94,'53'!$B7:$B27,'53'!N7:N27,TRUE) -> 44.9 | W94: =LinInterpolate(E94,'53'!$B7:$B27,'53'!O7:O27,TRUE) -> 45.96 | X94: =LinInterpolate(E94,'53'!$B7:$B27,'53'!P7:P27,TRUE) -> 46.14 | Y94: 31.1 | Z94: =IF(E94<'19'!B27,Y94-AA94,0) -> 0 | AA94: =IF(E94=0,0,IF(E94<'53'!B27, LinInterpolate($G$169,$R$23:$X$23,R94:X94,TRUE),Y94)) -> 31.1
B95: 54 | C95: SEWAGE | D95: SEWAGE | E95: =INDEX!E96 -> 2 | F95: =IF(G95<'54'!M31,LinInterpolate(G95,'54'!M7:M31,'54'!I7:I31,TRUE),100) -> 100 | G95: ='INDEX (Corrected trim 3)'!AA95 -> 30.2 | H95: =LinInterpolate(F95,'54'!I7:I31,'54'!H7:H31,TRUE) -> 29.596 | I95: =LinInterpolate(F95,'54'!I7:I31,'54'!C7:C31,TRUE) -> 37.85 | J95: =LinInterpolate(F95,'54'!I7:I31,'54'!D7:D31,TRUE) -> 4.3 | K95: =LinInterpolate(F95,'54'!I7:I31,'54'!E7:E31,TRUE) -> 0.57 | M95: 1120.2086 | N95: 127.2628 | O95: 16.86972 | P95: =IF(LinInterpolate(F95,'54'!I7:I31,'54'!F7:F31,TRUE)>0,LinInterpolate(F95,'54'!I7:I31,'54'!F7:F31,TRUE),0) -> 0 | R95: =LinInterpolate(E95,'54'!$B7:$B31,'54'!J7:J31,TRUE) -> 38.54 | S95: =LinInterpolate(E95,'54'!$B7:$B31,'54'!K7:K31,TRUE) -> 34.8 | T95: =LinInterpolate(E95,'54'!$B7:$B31,'54'!L7:L31,TRUE) -> 31.48 | U95: =LinInterpolate(E95,'54'!$B7:$B31,'54'!M7:M31,TRUE) -> 30.52 | V95: =LinInterpolate(E95,'54'!$B7:$B31,'54'!N7:N31,TRUE) -> 30.2 | W95: =LinInterpolate(E95,'54'!$B7:$B31,'54'!O7:O31,TRUE) -> 30.2 | X95: =LinInterpolate(E95,'54'!$B7:$B31,'54'!P7:P31,TRUE) -> 30.2 | Y95: 30.2 | Z95: =IF(E95<'19'!B31,Y95-AA95,0) -> 0 | AA95: =IF(E95=0,0,IF(E95<'54'!B31,LinInterpolate($G$169,$R$23:$X$23,R95:X95,TRUE),Y95)) -> 30.2
B96: 55 | C96: SLUDGE | D96: SLUDGE | E96: =INDEX!E97 -> 2 | F96: =IF(G96<'55'!M27,LinInterpolate(G96,'55'!M7:M27,'55'!I7:I27,TRUE),100) -> 100 | G96: ='INDEX (Corrected trim 3)'!AA96 -> 19.05 | H96: =LinInterpolate(F96,'55'!I7:I27,'55'!H7:H27,TRUE) -> 18.669 | I96: =LinInterpolate(F96,'55'!I7:I27,'55'!C7:C27,TRUE) -> 31.5 | J96: =LinInterpolate(F96,'55'!I7:I27,'55'!D7:D27,TRUE) -> -1.8 | K96: =LinInterpolate(F96,'55'!I7:I27,'55'!E7:E27,TRUE) -> 0.5 | M96: 588.0735 | N96: -33.6042 | O96: 9.3345 | P96: =IF(LinInterpolate(F96,'55'!I7:I27,'55'!F7:F27,TRUE)>0,LinInterpolate(F96,'55'!I7:I27,'55'!F7:F27,TRUE),0) -> 0 | R96: =LinInterpolate(E96,'55'!$B7:$B27,'55'!J7:J27,TRUE) -> 35.59 | S96: =LinInterpolate(E96,'55'!$B7:$B27,'55'!K7:K27,TRUE) -> 35.41 | T96: =LinInterpolate(E96,'55'!$B7:$B27,'55'!L7:L27,TRUE) -> 34.18 | U96: =LinInterpolate(E96,'55'!$B7:$B27,'55'!M7:M27,TRUE) -> 26.65 | V96: =LinInterpolate(E96,'55'!$B7:$B27,'55'!N7:N27,TRUE) -> 20.85 | W96: =LinInterpolate(E96,'55'!$B7:$B27,'55'!O7:O27,TRUE) -> 20.05 | X96: =LinInterpolate(E96,'55'!$B7:$B27,'55'!P7:P27,TRUE) -> 19.85 | Y96: 19.05 | Z96: =IF(E96<'19'!B27,Y96-AA96,0) -> 0 | AA96: =IF(E96=0,0,IF(E96<'55'!B27,LinInterpolate($G$169,$R$23:$X$23,R96:X96,TRUE),Y96)) -> 19.05
B97: 56 | C97: LUBRICATION OIL PS | D97: OIL | E97: =INDEX!E98 -> 2 | F97: =IF(G97<'56'!M47,LinInterpolate(G97,'56'!M7:M47,'56'!I7:I47,TRUE),100) -> 100 | G97: ='INDEX (Corrected trim 3)'!AA97 -> 10.58 | H97: =LinInterpolate(F97,'56'!I7:I47,'56'!H7:H47,TRUE) -> 9.522 | I97: =LinInterpolate(F97,'56'!I7:I47,'56'!C7:C47,TRUE) -> 30.3 | J97: =LinInterpolate(F97,'56'!I7:I47,'56'!D7:D47,TRUE) -> -0.9 | K97: =LinInterpolate(F97,'56'!I7:I47,'56'!E7:E47,TRUE) -> 5.8 | M97: 288.5166 | N97: -8.5698 | O97: 55.2276 | P97: =IF(LinInterpolate(F97,'56'!I7:I47,'56'!F7:F47,TRUE)>0,LinInterpolate(F97,'56'!I7:I47,'56'!F7:F47,TRUE),0) -> 0 | R97: =LinInterpolate(E97,'56'!$B7:$B47,'56'!J7:J47,TRUE) -> 10.595 | S97: =LinInterpolate(E97,'56'!$B7:$B47,'56'!K7:K47,TRUE) -> 10.61 | T97: =LinInterpolate(E97,'56'!$B7:$B47,'56'!L7:L47,TRUE) -> 10.64 | U97: =LinInterpolate(E97,'56'!$B7:$B47,'56'!M7:M47,TRUE) -> 10.73 | V97: =LinInterpolate(E97,'56'!$B7:$B47,'56'!N7:N47,TRUE) -> 10.685 | W97: =LinInterpolate(E97,'56'!$B7:$B47,'56'!O7:O47,TRUE) -> 10.615 | X97: =LinInterpolate(E97,'56'!$B7:$B47,'56'!P7:P47,TRUE) -> 10.53 | Y97: 10.58 | Z97: =IF(E97<'19'!B47,Y97-AA97,0) -> 0 | AA97: =IF(E97=0,0,IF(E97<'56'!B47, LinInterpolate($G$169,$R$23:$X$23,R97:X97,TRUE),Y97)) -> 10.58
B98: 57 | C98: LUBRICATION OIL SB | D98: OIL | E98: =INDEX!E99 -> 2 | F98: =IF(G98<'57'!M47,LinInterpolate(G98,'57'!M7:M47,'57'!I7:I47,TRUE),100) -> 100 | G98: ='INDEX (Corrected trim 3)'!AA98 -> 10.58 | H98: =LinInterpolate(F98,'57'!I7:I47,'57'!H7:H47,TRUE) -> 9.522 | I98: =LinInterpolate(F98,'57'!I7:I47,'57'!C7:C47,TRUE) -> 30.3 | J98: =LinInterpolate(F98,'57'!I7:I47,'57'!D7:D47,TRUE) -> -2.7 | K98: =LinInterpolate(F98,'57'!I7:I47,'57'!E7:E47,TRUE) -> 5.8 | M98: 288.5166 | N98: -25.7094 | O98: 55.2276 | P98: =IF(LinInterpolate(F98,'57'!I7:I47,'57'!F7:F47,TRUE)>0,LinInterpolate(F98,'57'!I7:I47,'57'!F7:F47,TRUE),0) -> 0 | R98: =LinInterpolate(E98,'57'!$B7:$B47,'57'!J7:J47,TRUE) -> 10.595 | S98: =LinInterpolate(E98,'57'!$B7:$B47,'57'!K7:K47,TRUE) -> 10.61 | T98: =LinInterpolate(E98,'57'!$B7:$B47,'57'!L7:L47,TRUE) -> 10.64 | U98: =LinInterpolate(E98,'57'!$B7:$B47,'57'!M7:M47,TRUE) -> 10.73 | V98: =LinInterpolate(E98,'57'!$B7:$B47,'57'!N7:N47,TRUE) -> 10.685 | W98: =LinInterpolate(E98,'57'!$B7:$B47,'57'!O7:O47,TRUE) -> 10.615 | X98: =LinInterpolate(E98,'57'!$B7:$B47,'57'!P7:P47,TRUE) -> 10.53 | Y98: 10.58 | Z98: =IF(E98<'19'!B47,Y98-AA98,0) -> 0 | AA98: =IF(E98=0,0,IF(E98<'57'!B47,LinInterpolate($G$169,$R$23:$X$23,R98:X98,TRUE),Y98)) -> 10.58
B99: 58 | C99: THERMAL OIL | D99: OIL | E99: =INDEX!E100 -> 2 | F99: =IF(G99<'58'!M47,LinInterpolate(G99,'58'!M7:M47,'58'!I7:I47,TRUE),100) -> 100 | G99: ='INDEX (Corrected trim 3)'!AA99 -> 10.58 | H99: =LinInterpolate(F99,'58'!I7:I47,'58'!H7:H47,TRUE) -> 10.3684 | I99: =LinInterpolate(F99,'58'!I7:I47,'58'!C7:C47,TRUE) -> 30.3 | J99: =LinInterpolate(F99,'58'!I7:I47,'58'!D7:D47,TRUE) -> 0.9 | K99: =LinInterpolate(F99,'58'!I7:I47,'58'!E7:E47,TRUE) -> 5.78 | M99: 314.16252 | N99: 9.33156 | O99: 59.929352 | P99: =IF(LinInterpolate(F99,'58'!I7:I47,'58'!F7:F47,TRUE)>0,LinInterpolate(F99,'58'!I7:I47,'58'!F7:F47,TRUE),0) -> 0 | R99: =LinInterpolate(E99,'58'!$B7:$B47,'58'!J7:J47,TRUE) -> 10.58 | S99: =LinInterpolate(E99,'58'!$B7:$B47,'58'!K7:K47,TRUE) -> 10.58 | T99: =LinInterpolate(E99,'58'!$B7:$B47,'58'!L7:L47,TRUE) -> 10.58 | U99: =LinInterpolate(E99,'58'!$B7:$B47,'58'!M7:M47,TRUE) -> 10.58 | V99: =LinInterpolate(E99,'58'!$B7:$B47,'58'!N7:N47,TRUE) -> 10.58 | W99: =LinInterpolate(E99,'58'!$B7:$B47,'58'!O7:O47,TRUE) -> 10.58 | X99: =LinInterpolate(E99,'58'!$B7:$B47,'58'!P7:P47,TRUE) -> 10.58 | Y99: 10.58 | Z99: =IF(E99<'19'!B47,Y99-AA99,0) -> 0 | AA99: =IF(E99=0,0,IF(E99<'58'!B47, LinInterpolate($G$169,$R$23:$X$23,R99:X99,TRUE),Y99)) -> 10.58
C100: Total MISC | F100: =(G100/155.7)*100 -> 100.0128452 | G100: =SUM((G92:G99)) -> 155.72 | H100: =SUM((H92:H99)) -> 150.9128 | I100: =M100/H100 -> 36.26201755 | J100: =N100/H100 -> -0.3879845845 | K100: =O100/H100 -> 1.559034038 | M100: =SUM((M92:M99)) -> 5472.402602 | N100: =SUM((N92:N99)) -> -58.55184 | O100: =SUM((O92:O99)) -> 235.278192 | P100: =SUM((P92:P99)) -> 0 | Z100: =SUM((Z92:Z99)) -> 0 | AA100: =SUM((AA92:AA99)) -> 155.72
C102: Total in all tanks | F102: =(G102/3086.976667)*100 -> 97.52919136 | G102: =G100+G86+G78+G45+G32 -> 3010.703381 | H102: =H100+H86+H78+H45+H32 -> 2963.647617 | I102: =M102/H102 -> 22.29465288 | J102: =N102/H102 -> -0.01243355242 | K102: =O102/H102 -> 3.669793798 | M102: =M100+M86+M78+M45+M32 -> 66073.49489 | N102: =N100+N86+N78+N45+N32 -> -36.848668 | O102: =O100+O86+O78+O45+O32 -> 10875.97565 | P102: =P100+P86+P78+P45+P32 -> 13.98440737 | Z102: =Z100+Z86+Z78+Z45+Z32 -> 0 | AA102: =AA100+AA86+AA78+AA45+AA32 -> 3010.703381
C104: Name | H104: Weight | I104: LCG | J104: TCG | K104: VCG | M104: Longitudinal | N104: Transverse | O104: Vertical | P104: FSMt
I105: Fwd of AP | J105: PS:+ | K105: Above BL | M105: Moment | N105: Moment | O105: Moment
H106: t | I106: m | J106: m | K106: m | M106: t·m | N106: t·m | O106: t·m | P106: t·m
C108: (DECK) LOADS
C109: Name | H109: Weight | I109: LCG | J109: TCG | K109: VCG | M109: Longitudinal | N109: Transverse | O109: Vertical | P109: FSMt
I110: Fwd of AP | J110: PS:+ | K110: Above BL | M110: Moment | N110: Moment | O110: Moment
H111: t | I111: m | J111: m | K111: m | M111: t·m | N111: t·m | O111: t·m | P111: t·m
C112: =INDEX!C113 -> Deck load 1 | D112: =INDEX!#REF! ->  | E112: =INDEX!#REF! ->  | F112: =INDEX!#REF! ->  | G112: =INDEX!#REF! ->  | H112: =INDEX!H113 -> 5 | I112: =INDEX!I113 -> 5 | J112: =INDEX!J113 -> 1 | K112: =INDEX!K113 -> 7 | M112: =$H112*I112 -> 25 | N112: =$H112*J112 -> 5 | O112: =$H112*K112 -> 35
C113: =INDEX!C114 -> Deck load 2 | D113: =INDEX!#REF! ->  | E113: =INDEX!#REF! ->  | F113: =INDEX!#REF! ->  | G113: =INDEX!#REF! ->  | H113: =INDEX!H114 -> 5 | I113: =INDEX!I114 -> 5 | J113: =INDEX!J114 -> -1 | K113: =INDEX!K114 -> 7 | M113: =$H113*I113 -> 25 | N113: =$H113*J113 -> -5 | O113: =$H113*K113 -> 35
C114: =INDEX!C115 -> Deck load 3 | D114: =INDEX!#REF! ->  | E114: =INDEX!#REF! ->  | F114: =INDEX!#REF! ->  | G114: =INDEX!#REF! ->  | H114: =INDEX!H115 -> 10 | I114: =INDEX!I115 -> 6 | J114: =INDEX!J115 -> 1 | K114: =INDEX!K115 -> 7 | M114: =$H114*I114 -> 60 | N114: =$H114*J114 -> 10 | O114: =$H114*K114 -> 70
C115: =INDEX!C116 -> Deck load 4 | D115: =INDEX!#REF! ->  | E115: =INDEX!#REF! ->  | F115: =INDEX!#REF! ->  | G115: =INDEX!#REF! ->  | H115: =INDEX!H116 -> 10 | I115: =INDEX!I116 -> 6 | J115: =INDEX!J116 -> -1 | K115: =INDEX!K116 -> 7 | M115: =$H115*I115 -> 60 | N115: =$H115*J115 -> -10 | O115: =$H115*K115 -> 70
C116: =INDEX!C117 -> Deck load 5 | H116: =INDEX!H117 -> 15 | I116: =INDEX!I117 -> 7 | J116: =INDEX!J117 -> 1 | K116: =INDEX!K117 -> 7 | M116: =$H116*I116 -> 105 | N116: =$H116*J116 -> 15 | O116: =$H116*K116 -> 105
C117: =INDEX!C118 -> Deck load 6 | H117: =INDEX!H118 -> 15 | I117: =INDEX!I118 -> 7 | J117: =INDEX!J118 -> -1 | K117: =INDEX!K118 -> 7 | M117: =$H117*I117 -> 105 | N117: =$H117*J117 -> -15 | O117: =$H117*K117 -> 105
C118: =INDEX!C119 -> Deck load 7 | H118: =INDEX!H119 -> 5 | I118: =INDEX!I119 -> 8 | J118: =INDEX!J119 -> 1 | K118: =INDEX!K119 -> 7 | M118: =$H118*I118 -> 40 | N118: =$H118*J118 -> 5 | O118: =$H118*K118 -> 35
C119: =INDEX!C120 -> Deck load 8 | H119: =INDEX!H120 -> 5 | I119: =INDEX!I120 -> 8 | J119: =INDEX!J120 -> -1 | K119: =INDEX!K120 -> 7 | M119: =$H119*I119 -> 40 | N119: =$H119*J119 -> -5 | O119: =$H119*K119 -> 35
C121: Total Remaining | H121: =SUM(H112:H120) -> 70 | I121: =M121/H121 -> 6.571428571 | J121: =N121/H121 -> 0 | K121: =O121/H121 -> 7 | M121: =SUM(M112:M120) -> 460 | N121: =SUM(N112:N120) -> 0 | O121: =SUM(O112:O120) -> 490
C124: Calculation Results
C126: Ship weight | I126: LCG | J126: TCG | K126: VCG | L126: Total Moments | P126: FSMt / ∆
H127: t | I127: m | J127: m | K127: m | L127: t·m | N127: t·m | O127: t·m | P127: m
C128: Displacement | H128: =H129+H21 -> 4733.647617 | I128: =L128/H128 -> 24.82937143 | J128: =N128/H128 -> -0.007784412989 | K128: =O128/H128 -> 4.91502062 | L128: =L129+M21 -> 117533.4949 | N128: =N129+N21 -> -36.848668 | O128: =O129+O21 -> 23265.97565 | P128: =P102/H128 -> 0.002954256105
C129: Total Deadweight | H129: =H121+H102 -> 3033.647617 | I129: =L129/H129 -> 21.93184683 | J129: =N129/H129 -> -0.01214665401 | K129: =O129/H129 -> 3.746636749 | L129: =M121+M102 -> 66533.49489 | N129: =N121+N102 -> -36.848668 | O129: =O121+O102 -> 11365.97565
C131: Longitudinal Stability
C132: Sheet used for calculation data: | D132: Hydrostatics
C134: Trim | D134: Draft | E134: Displ. | F134: LCB | G134: VCB | H134: ϕ | I134: LCG' | J134: LCB' | K134: LCG'-LCB' | M134: LCF | N134: KM
D135: Moulded | F135: Fwd of AP | I135: LCG + tanϕ * VCG | J135: LCB + tanϕ * VCB | M135: Fwd of AP
C136: m | D136: m | E136: t | F136: m | G136: m | H136: rad | I136: m | J136: m | K136: m | M136: m | N136: m
C137: -1.5 | D137: =LinInterpolate(E137,Hydrostatics!D6:D86,Hydrostatics!C6:C86,TRUE) -> 6.64818642 | E137: =$H$128 -> 4733.647617 | F137: =LinInterpolate($E137,Hydrostatics!$D6:$D86,Hydrostatics!I6:I86,TRUE) -> 23.42818642 | G137: =LinInterpolate($E137,Hydrostatics!$D6:$D86,Hydrostatics!J6:J86,TRUE) -> 3.629274568 | H137: =ATAN(C137/($G$172)) -> -0.02840145184 | I137: =$I$128+((TAN(H137))*$K$128) -> 24.68974016 | J137: =F137+((TAN(H137))*G137) -> 23.32508203 | K137: =I137-J137 -> 1.36465813 | M137: =LinInterpolate($E137,Hydrostatics!$D6:$D86,Hydrostatics!K6:K86,TRUE) -> 33.98134544 | N137: =LinInterpolate($E137,Hydrostatics!$D6:$D86,Hydrostatics!E6:E86,TRUE) -> 5.574352592
C138: -1.4 | D138: =LinInterpolate(E138,Hydrostatics!D88:D168,Hydrostatics!C88:C168,TRUE) -> 6.634409241 | E138: 4733.647617 | F138: =LinInterpolate($E138,Hydrostatics!$D88:$D168,Hydrostatics!I88:I168,TRUE) -> 23.44440924 | G138: =LinInterpolate($E138,Hydrostatics!$D88:$D168,Hydrostatics!J88:J168,TRUE) -> 3.626881848 | H138: -0.02650894028 | I138: 24.69904891 | J138: 23.34824192 | K138: 1.35080699 | M138: =LinInterpolate($E138,Hydrostatics!$D88:$D168,Hydrostatics!K88:K168,TRUE) -> 33.57678417 | N138: =LinInterpolate($E138,Hydrostatics!$D88:$D168,Hydrostatics!E88:E168,TRUE) -> 5.644299669
C139: -1.3 | D139: =LinInterpolate(E139,Hydrostatics!D170:D250,Hydrostatics!C170:C250,TRUE) -> 6.621172763 | E139: 4733.647617 | F139: =LinInterpolate($E139,Hydrostatics!$D170:$D250,Hydrostatics!I170:I250,TRUE) -> 23.46117276 | G139: =LinInterpolate($E139,Hydrostatics!$D170:$D250,Hydrostatics!J170:J250,TRUE) -> 3.628469105 | H139: -0.02461623877 | I139: 24.70835766 | J139: 23.37183546 | K139: 1.336522205 | M139: =LinInterpolate($E139,Hydrostatics!$D170:$D250,Hydrostatics!K170:K250,TRUE) -> 33.24381339 | N139: =LinInterpolate($E139,Hydrostatics!$D170:$D250,Hydrostatics!E170:E250,TRUE) -> 5.704950816
C140: -1.2 | D140: =LinInterpolate(E140,Hydrostatics!D252:D332,Hydrostatics!C252:C332,TRUE) -> 6.608598416 | E140: 4733.647617 | F140: =LinInterpolate($E140,Hydrostatics!$D252:$D332,Hydrostatics!I252:I332,TRUE) -> 23.46859842 | G140: =LinInterpolate($E140,Hydrostatics!$D252:$D332,Hydrostatics!J252:J332,TRUE) -> 3.623439366 | H140: -0.02272336084 | I140: 24.71766641 | J140: 23.38624752 | K140: 1.331418891 | M140: =LinInterpolate($E140,Hydrostatics!$D252:$D332,Hydrostatics!K252:K332,TRUE) -> 32.82821085 | N140: =LinInterpolate($E140,Hydrostatics!$D252:$D332,Hydrostatics!E252:E332,TRUE) -> 5.777644119
C141: -1.1 | D141: =LinInterpolate(E141,Hydrostatics!D334:D414,Hydrostatics!C334:C414,TRUE) -> 6.596940032 | E141: 4733.647617 | F141: =LinInterpolate($E141,Hydrostatics!$D334:$D414,Hydrostatics!I334:I414,TRUE) -> 23.48755203 | G141: =LinInterpolate($E141,Hydrostatics!$D334:$D414,Hydrostatics!J334:J414,TRUE) -> 3.628776013 | H141: -0.02083032004 | I141: 24.72697516 | J141: 23.41195253 | K141: 1.315022638 | M141: =LinInterpolate($E141,Hydrostatics!$D334:$D414,Hydrostatics!K334:K414,TRUE) -> 32.22900875 | N141: =LinInterpolate($E141,Hydrostatics!$D334:$D414,Hydrostatics!E334:E414,TRUE) -> 5.870403891
C142: -1 | D142: =LinInterpolate(E142,Hydrostatics!D416:D496,Hydrostatics!C416:C496,TRUE) -> 6.586823687 | E142: 4733.647617 | F142: =LinInterpolate($E142,Hydrostatics!$D416:$D496,Hydrostatics!I416:I496,TRUE) -> 23.50945895 | G142: =LinInterpolate($E142,Hydrostatics!$D416:$D496,Hydrostatics!J416:J496,TRUE) -> 3.624729475 | H142: -0.0189371299 | I142: 24.73628391 | J142: 23.44080877 | K142: 1.295475144 | M142: =LinInterpolate($E142,Hydrostatics!$D416:$D496,Hydrostatics!K416:K496,TRUE) -> 31.5258627 | N142: =LinInterpolate($E142,Hydrostatics!$D416:$D496,Hydrostatics!E416:E496,TRUE) -> 5.987434727
C143: -0.9 | D143: =LinInterpolate(E143,Hydrostatics!D498:D578,Hydrostatics!C498:C578,TRUE) -> 6.57808869 | E143: 4733.647617 | F143: =LinInterpolate($E143,Hydrostatics!$D498:$D578,Hydrostatics!I498:I578,TRUE) -> 23.53247095 | G143: =LinInterpolate($E143,Hydrostatics!$D498:$D578,Hydrostatics!J498:J578,TRUE) -> 3.625617738 | H143: -0.01704380399 | I143: 24.74559267 | J143: 23.47067065 | K143: 1.274922016 | M143: =LinInterpolate($E143,Hydrostatics!$D498:$D578,Hydrostatics!K498:K578,TRUE) -> 30.66827843 | N143: =LinInterpolate($E143,Hydrostatics!$D498:$D578,Hydrostatics!E498:E578,TRUE) -> 6.130792028
C144: -0.8 | D144: =LinInterpolate(E144,Hydrostatics!D580:D660,Hydrostatics!C580:C660,TRUE) -> 6.571061668 | E144: 4733.647617 | F144: =LinInterpolate($E144,Hydrostatics!$D580:$D660,Hydrostatics!I580:I660,TRUE) -> 23.55684933 | G144: =LinInterpolate($E144,Hydrostatics!$D580:$D660,Hydrostatics!J580:J660,TRUE) -> 3.628424667 | H144: -0.01515035587 | I144: 24.75490142 | J144: 23.5018732 | K144: 1.253028214 | M144: =LinInterpolate($E144,Hydrostatics!$D580:$D660,Hydrostatics!K580:K660,TRUE) -> 29.62770638 | N144: =LinInterpolate($E144,Hydrostatics!$D580:$D660,Hydrostatics!E580:E660,TRUE) -> 6.307842327
C145: -0.7 | D145: =LinInterpolate(E145,Hydrostatics!D662:D742,Hydrostatics!C662:C742,TRUE) -> 6.566017984 | E145: 4733.647617 | F145: =LinInterpolate($E145,Hydrostatics!$D662:$D742,Hydrostatics!I662:I742,TRUE) -> 23.58961079 | G145: =LinInterpolate($E145,Hydrostatics!$D662:$D742,Hydrostatics!J662:J742,TRUE) -> 3.626407193 | H145: -0.01325679911 | I145: 24.76421017 | J145: 23.54153342 | K145: 1.222676746 | M145: =LinInterpolate($E145,Hydrostatics!$D662:$D742,Hydrostatics!K662:K742,TRUE) -> 28.39110855 | N145: =LinInterpolate($E145,Hydrostatics!$D662:$D742,Hydrostatics!E662:E742,TRUE) -> 6.510688502
C146: -0.6 | D146: =LinInterpolate(E146,Hydrostatics!D744:D824,Hydrostatics!C744:C824,TRUE) -> 6.563717841 | E146: 4733.647617 | F146: =LinInterpolate($E146,Hydrostatics!$D744:$D824,Hydrostatics!I744:I824,TRUE) -> 23.6282307 | G146: =LinInterpolate($E146,Hydrostatics!$D744:$D824,Hydrostatics!J744:J824,TRUE) -> 3.625487136 | H146: -0.01136314726 | I146: 24.77351892 | J146: 23.58703199 | K146: 1.186486932 | M146: =LinInterpolate($E146,Hydrostatics!$D744:$D824,Hydrostatics!K744:K824,TRUE) -> 26.75455928 | N146: =LinInterpolate($E146,Hydrostatics!$D744:$D824,Hydrostatics!E744:E824,TRUE) -> 6.783975113
C147: -0.5 | D147: =LinInterpolate(E147,Hydrostatics!D826:D906,Hydrostatics!C826:C906,TRUE) -> 6.564852902 | E147: 4733.647617 | F147: =LinInterpolate($E147,Hydrostatics!$D826:$D906,Hydrostatics!I826:I906,TRUE) -> 23.68297058 | G147: =LinInterpolate($E147,Hydrostatics!$D826:$D906,Hydrostatics!J826:J906,TRUE) -> 3.625941161 | H147: -0.009469413919 | I147: 24.78282767 | J147: 23.64863402 | K147: 1.134193654 | M147: =LinInterpolate($E147,Hydrostatics!$D826:$D906,Hydrostatics!K826:K906,TRUE) -> 24.79879195 | N147: =LinInterpolate($E147,Hydrostatics!$D826:$D906,Hydrostatics!E826:E906,TRUE) -> 7.10929446
C148: -0.4 | D148: =LinInterpolate(E148,Hydrostatics!D908:D988,Hydrostatics!C908:C988,TRUE) -> 6.570404206 | E148: 4733.647617 | F148: =LinInterpolate($E148,Hydrostatics!$D908:$D988,Hydrostatics!I908:I988,TRUE) -> 23.75183832 | G148: =LinInterpolate($E148,Hydrostatics!$D908:$D988,Hydrostatics!J908:J988,TRUE) -> 3.622242524 | H148: -0.007575612651 | I148: 24.79213642 | J148: 23.72439709 | K148: 1.067739335 | M148: =LinInterpolate($E148,Hydrostatics!$D908:$D988,Hydrostatics!K908:K988,TRUE) -> 22.67267433 | N148: =LinInterpolate($E148,Hydrostatics!$D908:$D988,Hydrostatics!E908:E988,TRUE) -> 7.453089715
C149: -0.3 | D149: =LinInterpolate(E149,Hydrostatics!D990:D1070,Hydrostatics!C990:C1070,TRUE) -> 6.578544614 | E149: 4733.647617 | F149: =LinInterpolate($E149,Hydrostatics!$D990:$D1070,Hydrostatics!I990:I1070,TRUE) -> 23.82858215 | G149: =LinInterpolate($E149,Hydrostatics!$D990:$D1070,Hydrostatics!J990:J1070,TRUE) -> 3.621417846 | H149: -0.005681757041 | I149: 24.80144517 | J149: 23.80800592 | K149: 0.993439256 | M149: =LinInterpolate($E149,Hydrostatics!$D990:$D1070,Hydrostatics!K990:K1070,TRUE) -> 21.78283569 | N149: =LinInterpolate($E149,Hydrostatics!$D990:$D1070,Hydrostatics!E990:E1070,TRUE) -> 7.61
C150: -0.2 | D150: =LinInterpolate(E150,Hydrostatics!D1072:D1152,Hydrostatics!C1072:C1152,TRUE) -> 6.587244514 | E150: 4733.647617 | F150: =LinInterpolate($E150,Hydrostatics!$D1072:$D1152,Hydrostatics!I1072:I1152,TRUE) -> 23.91510219 | G150: =LinInterpolate($E150,Hydrostatics!$D1072:$D1152,Hydrostatics!J1072:J1152,TRUE) -> 3.622346708 | H150: -0.003787860672 | I150: 24.81075392 | J150: 23.90138118 | K150: 0.9093727396 | M150: =LinInterpolate($E150,Hydrostatics!$D1072:$D1152,Hydrostatics!K1072:K1152,TRUE) -> 21.81979561 | N150: =LinInterpolate($E150,Hydrostatics!$D1072:$D1152,Hydrostatics!E1072:E1152,TRUE) -> 7.61
C151: -0.1 | D151: =LinInterpolate(E151,Hydrostatics!D1154:D1234,Hydrostatics!C1154:C1234,TRUE) -> 6.595896199 | E151: 4733.647617 | F151: =LinInterpolate($E151,Hydrostatics!$D1154:$D1234,Hydrostatics!I1154:I1234,TRUE) -> 24.00164152 | G151: =LinInterpolate($E151,Hydrostatics!$D1154:$D1234,Hydrostatics!J1154:J1234,TRUE) -> 3.61835848 | H151: -0.001893937129 | I151: 24.82006267 | J151: 23.99478857 | K151: 0.8252741063 | M151: =LinInterpolate($E151,Hydrostatics!$D1154:$D1234,Hydrostatics!K1154:K1234,TRUE) -> 21.85671696 | N151: =LinInterpolate($E151,Hydrostatics!$D1154:$D1234,Hydrostatics!E1154:E1234,TRUE) -> 7.62
C152: 0 | D152: =LinInterpolate(E152,Hydrostatics!D1236:D1316,Hydrostatics!C1236:C1316,TRUE) -> 6.60442558 | E152: 4733.647617 | F152: =LinInterpolate($E152,Hydrostatics!$D1236:$D1316,Hydrostatics!I1236:I1316,TRUE) -> 24.08822977 | G152: =LinInterpolate($E152,Hydrostatics!$D1236:$D1316,Hydrostatics!J1236:J1316,TRUE) -> 3.622655348 | H152: 0 | I152: 24.82937143 | J152: 24.08822977 | K152: 0.7411416581 | M152: =LinInterpolate($E152,Hydrostatics!$D1236:$D1316,Hydrostatics!K1236:K1316,TRUE) -> 21.89354046 | N152: =LinInterpolate($E152,Hydrostatics!$D1236:$D1316,Hydrostatics!E1236:E1316,TRUE) -> 7.62
C153: 0.1 | D153: =LinInterpolate(E153,Hydrostatics!D1318:D1398,Hydrostatics!C1318:C1398,TRUE) -> 6.612916798 | E153: 4733.647617 | F153: =LinInterpolate($E153,Hydrostatics!$D1318:$D1398,Hydrostatics!I1318:I1398,TRUE) -> 24.17483328 | G153: =LinInterpolate($E153,Hydrostatics!$D1318:$D1398,Hydrostatics!J1318:J1398,TRUE) -> 3.617750079 | H153: 0.001893937129 | I153: 24.83868018 | J153: 24.18168508 | K153: 0.6569950971 | M153: =LinInterpolate($E153,Hydrostatics!$D1318:$D1398,Hydrostatics!K1318:K1398,TRUE) -> 21.93033344 | N153: =LinInterpolate($E153,Hydrostatics!$D1318:$D1398,Hydrostatics!E1318:E1398,TRUE) -> 7.62741664
C154: 0.2 | D154: =LinInterpolate(E154,Hydrostatics!D1400:D1480,Hydrostatics!C1400:C1480,TRUE) -> 6.621370109 | E154: 4733.647617 | F154: =LinInterpolate($E154,Hydrostatics!$D1400:$D1480,Hydrostatics!I1400:I1480,TRUE) -> 24.26145196 | G154: =LinInterpolate($E154,Hydrostatics!$D1400:$D1480,Hydrostatics!J1400:J1480,TRUE) -> 3.622822065 | H154: 0.003787860672 | I154: 24.84798893 | J154: 24.27517477 | K154: 0.5728141611 | M154: =LinInterpolate($E154,Hydrostatics!$D1400:$D1480,Hydrostatics!K1400:K1480,TRUE) -> 21.96709609 | N154: =LinInterpolate($E154,Hydrostatics!$D1400:$D1480,Hydrostatics!E1400:E1480,TRUE) -> 7.63
C155: 0.3 | D155: =LinInterpolate(E155,Hydrostatics!D1482:D1562,Hydrostatics!C1482:C1562,TRUE) -> 6.629740644 | E155: 4733.647617 | F155: =LinInterpolate($E155,Hydrostatics!$D1482:$D1562,Hydrostatics!I1482:I1562,TRUE) -> 24.34810374 | G155: =LinInterpolate($E155,Hydrostatics!$D1482:$D1562,Hydrostatics!J1482:J1562,TRUE) -> 3.621896258 | H155: 0.005681757041 | I155: 24.85729768 | J155: 24.3686827 | K155: 0.4886149814 | M155: =LinInterpolate($E155,Hydrostatics!$D1482:$D1562,Hydrostatics!K1482:K1562,TRUE) -> 22.00784439 | N155: =LinInterpolate($E155,Hydrostatics!$D1482:$D1562,Hydrostatics!E1482:E1562,TRUE) -> 7.64
C156: 0.4 | D156: =LinInterpolate(E156,Hydrostatics!D1564:D1644,Hydrostatics!C1564:C1644,TRUE) -> 6.637999573 | E156: 4733.647617 | F156: =LinInterpolate($E156,Hydrostatics!$D1564:$D1644,Hydrostatics!I1564:I1644,TRUE) -> 24.43480017 | G156: =LinInterpolate($E156,Hydrostatics!$D1564:$D1644,Hydrostatics!J1564:J1644,TRUE) -> 3.622799744 | H156: 0.007575612651 | I156: 24.86660643 | J156: 24.46224562 | K156: 0.4043608074 | M156: =LinInterpolate($E156,Hydrostatics!$D1564:$D1644,Hydrostatics!K1564:K1644,TRUE) -> 22.04279974 | N156: =LinInterpolate($E156,Hydrostatics!$D1564:$D1644,Hydrostatics!E1564:E1644,TRUE) -> 7.642400085
C157: 0.5 | D157: =LinInterpolate(E157,Hydrostatics!D1646:D1726,Hydrostatics!C1646:C1726,TRUE) -> 6.646266834 | E157: 4733.647617 | F157: =LinInterpolate($E157,Hydrostatics!$D1646:$D1726,Hydrostatics!I1646:I1726,TRUE) -> 24.52149327 | G157: =LinInterpolate($E157,Hydrostatics!$D1646:$D1726,Hydrostatics!J1646:J1726,TRUE) -> 3.627760101 | H157: 0.009469413919 | I157: 24.87591518 | J157: 24.55584706 | K157: 0.3200681269 | M157: =LinInterpolate($E157,Hydrostatics!$D1646:$D1726,Hydrostatics!K1646:K1726,TRUE) -> 22.0777601 | N157: =LinInterpolate($E157,Hydrostatics!$D1646:$D1726,Hydrostatics!E1646:E1726,TRUE) -> 7.65
C158: 0.6 | D158: =LinInterpolate(E158,Hydrostatics!D1728:D1808,Hydrostatics!C1728:C1808,TRUE) -> 6.654386242 | E158: 4733.647617 | F158: =LinInterpolate($E158,Hydrostatics!$D1728:$D1808,Hydrostatics!I1728:I1808,TRUE) -> 24.60736826 | G158: =LinInterpolate($E158,Hydrostatics!$D1728:$D1808,Hydrostatics!J1728:J1808,TRUE) -> 3.622631745 | H158: 0.01136314726 | I158: 24.88522393 | J158: 24.64853452 | K158: 0.2366894082 | M158: =LinInterpolate($E158,Hydrostatics!$D1728:$D1808,Hydrostatics!K1728:K1808,TRUE) -> 22.11263174 | N158: =LinInterpolate($E158,Hydrostatics!$D1728:$D1808,Hydrostatics!E1728:E1808,TRUE) -> 7.65
C159: 0.7 | D159: =LinInterpolate(E159,Hydrostatics!D1810:D1890,Hydrostatics!C1810:C1890,TRUE) -> 6.662497353 | E159: 4733.647617 | F159: =LinInterpolate($E159,Hydrostatics!$D1810:$D1890,Hydrostatics!I1810:I1890,TRUE) -> 24.69250159 | G159: =LinInterpolate($E159,Hydrostatics!$D1810:$D1890,Hydrostatics!J1810:J1890,TRUE) -> 3.627498412 | H159: 0.01325679911 | I159: 24.89453268 | J159: 24.74059342 | K159: 0.1539392609 | M159: =LinInterpolate($E159,Hydrostatics!$D1810:$D1890,Hydrostatics!K1810:K1890,TRUE) -> 22.14499894 | N159: =LinInterpolate($E159,Hydrostatics!$D1810:$D1890,Hydrostatics!E1810:E1890,TRUE) -> 7.657500529
C160: 0.8 | D160: =LinInterpolate(E160,Hydrostatics!D1892:D1972,Hydrostatics!C1892:C1972,TRUE) -> 6.670543004 | E160: 4733.647617 | F160: =LinInterpolate($E160,Hydrostatics!$D1892:$D1972,Hydrostatics!I1892:I1972,TRUE) -> 24.7776742 | G160: =LinInterpolate($E160,Hydrostatics!$D1892:$D1972,Hydrostatics!J1892:J1972,TRUE) -> 3.628217202 | H160: 0.01515035587 | I160: 24.90384144 | J160: 24.83264719 | K160: 0.07119424983 | M160: =LinInterpolate($E160,Hydrostatics!$D1892:$D1972,Hydrostatics!K1892:K1972,TRUE) -> 22.09604519 | N160: =LinInterpolate($E160,Hydrostatics!$D1892:$D1972,Hydrostatics!E1892:E1972,TRUE) -> 7.641239795
C161: 0.9 | D161: =LinInterpolate(E161,Hydrostatics!D1974:D2054,Hydrostatics!C1974:C2054,TRUE) -> 6.678752934 | E161: 4733.647617 | F161: =LinInterpolate($E161,Hydrostatics!$D1974:$D2054,Hydrostatics!I1974:I2054,TRUE) -> 24.86849883 | G161: =LinInterpolate($E161,Hydrostatics!$D1974:$D2054,Hydrostatics!J1974:J2054,TRUE) -> 3.627251761 | H161: 0.01704380399 | I161: 24.91315019 | J161: 24.93032698 | K161: -0.01717679465 | M161: =LinInterpolate($E161,Hydrostatics!$D1974:$D2054,Hydrostatics!K1974:K2054,TRUE) -> 22.00448005 | N161: =LinInterpolate($E161,Hydrostatics!$D1974:$D2054,Hydrostatics!E1974:E2054,TRUE) -> 7.606743545
C162: 1 | D162: =LinInterpolate(E162,Hydrostatics!D2056:D2136,Hydrostatics!C2056:C2136,TRUE) -> 6.68707406 | E162: 4733.647617 | F162: =LinInterpolate($E162,Hydrostatics!$D2056:$D2136,Hydrostatics!I2056:I2136,TRUE) -> 24.95517038 | G162: =LinInterpolate($E162,Hydrostatics!$D2056:$D2136,Hydrostatics!J2056:J2136,TRUE) -> 3.632244436 | H162: 0.0189371299 | I162: 24.92245894 | J162: 25.02396288 | K162: -0.1015039463 | M162: =LinInterpolate($E162,Hydrostatics!$D2056:$D2136,Hydrostatics!K2056:K2136,TRUE) -> 21.90633346 | N162: =LinInterpolate($E162,Hydrostatics!$D2056:$D2136,Hydrostatics!E2056:E2136,TRUE) -> 7.561363007
C163: 1.1 | D163: =LinInterpolate(E163,Hydrostatics!D2138:D2218,Hydrostatics!C2138:C2218,TRUE) -> 6.695498425 | E163: 4733.647617 | F163: =LinInterpolate($E163,Hydrostatics!$D2138:$D2218,Hydrostatics!I2138:I2218,TRUE) -> 25.04270094 | G163: =LinInterpolate($E163,Hydrostatics!$D2138:$D2218,Hydrostatics!J2138:J2218,TRUE) -> 3.62819937 | H163: 0.02083032004 | I163: 24.93176769 | J163: 25.11828843 | K163: -0.1865207427 | M163: =LinInterpolate($E163,Hydrostatics!$D2138:$D2218,Hydrostatics!K2138:K2218,TRUE) -> 21.84061071 | N163: =LinInterpolate($E163,Hydrostatics!$D2138:$D2218,Hydrostatics!E2138:E2218,TRUE) -> 7.540803779
C164: 1.2 | D164: =LinInterpolate(E164,Hydrostatics!D2220:D2300,Hydrostatics!C2220:C2300,TRUE) -> 6.704223354 | E164: 4733.647617 | F164: =LinInterpolate($E164,Hydrostatics!$D2220:$D2300,Hydrostatics!I2220:I2300,TRUE) -> 25.12746599 | G164: =LinInterpolate($E164,Hydrostatics!$D2220:$D2300,Hydrostatics!J2220:J2300,TRUE) -> 3.632534012 | H164: 0.02272336084 | I164: 24.94107644 | J164: 25.21002358 | K164: -0.2689471386 | M164: =LinInterpolate($E164,Hydrostatics!$D2220:$D2300,Hydrostatics!K2220:K2300,TRUE) -> 21.73634922 | N164: =LinInterpolate($E164,Hydrostatics!$D2220:$D2300,Hydrostatics!E2220:E2300,TRUE) -> 7.49986395
C165: 1.3 | D165: =LinInterpolate(E165,Hydrostatics!D2302:D2382,Hydrostatics!C2302:C2382,TRUE) -> 6.713302646 | E165: 4733.647617 | F165: =LinInterpolate($E165,Hydrostatics!$D2302:$D2382,Hydrostatics!I2302:I2382,TRUE) -> 25.21201841 | G165: =LinInterpolate($E165,Hydrostatics!$D2302:$D2382,Hydrostatics!J2302:J2382,TRUE) -> 3.635321058 | H165: 0.02461623877 | I165: 24.95038519 | J165: 25.30152442 | K165: -0.3511392319 | M165: =LinInterpolate($E165,Hydrostatics!$D2302:$D2382,Hydrostatics!K2302:K2382,TRUE) -> 21.66082624 | N165: =LinInterpolate($E165,Hydrostatics!$D2302:$D2382,Hydrostatics!E2302:E2382,TRUE) -> 7.45807365
C166: 1.4 | D166: =LinInterpolate(E166,Hydrostatics!D2328:D2464,Hydrostatics!C2328:C2464,TRUE) -> 6.722305762 | E166: 4733.647617 | F166: =LinInterpolate($E166,Hydrostatics!$D2328:$D2464,Hydrostatics!I2328:I2464,TRUE) -> 25.30215539 | G166: =LinInterpolate($E166,Hydrostatics!$D2328:$D2464,Hydrostatics!J2328:J2464,TRUE) -> 3.638922305 | H166: 0.02650894028 | I166: 24.95969394 | J166: 25.39864197 | K166: -0.4389480238 | M166: =LinInterpolate($E166,Hydrostatics!$D2328:$D2464,Hydrostatics!K2328:K2464,TRUE) -> 21.63847119 | N166: =LinInterpolate($E166,Hydrostatics!$D2328:$D2464,Hydrostatics!E2328:E2464,TRUE) -> 7.44646617
C167: 1.5 | D167: =LinInterpolate(E167,Hydrostatics!D2466:D2546,Hydrostatics!C2466:C2546,TRUE) -> 6.731352059 | E167: 4733.647617 | F167: =LinInterpolate($E167,Hydrostatics!$D2466:$D2546,Hydrostatics!I2466:I2546,TRUE) -> 25.39118876 | G167: =LinInterpolate($E167,Hydrostatics!$D2466:$D2546,Hydrostatics!J2466:J2546,TRUE) -> 3.638811236 | H167: 0.02840145184 | I167: 24.96900269 | J167: 25.49456408 | K167: -0.52556139 | M167: =LinInterpolate($E167,Hydrostatics!$D2466:$D2546,Hydrostatics!K2466:K2546,TRUE) -> 21.59459176 | N167: =LinInterpolate($E167,Hydrostatics!$D2466:$D2546,Hydrostatics!E2466:E2546,TRUE) -> 7.407295882
C169: Total trim | G169: =LinInterpolate(0,(K137:K167),(C137:C167),FALSE) -> 0.8805628702 | H169: m
C170: Mean Draft | D170: From Hydro Table | G170: =LinInterpolate(0,(K137:K167),(D137:D167),FALSE) -> 6.677157159 | H170: m
C171: LBP/2 | D171: From Hydro Table | G171: =G172/2 -> 26.4 | H171: m
C172: LBP | D172: Ship Data | G172: 52.8 | H172: m
C174: Draft aft | G174: =G170-(G169/2) -> 6.236875724 | H174: m
C175: Draft forward | G175: =G170+G169/2 -> 7.117438595 | H175: m
C176: Draft midships | G176: =(G174+G175)/2 -> 6.677157159 | H176: m
C178: Transverse Stability
C179: KMt | D179: From Hydro Table | G179: =LinInterpolate(G169,(C137:C167),(N137:N167),FALSE) -> 7.613448626 | H179: m
C180: KGsolid | G180: =K128 -> 4.91502062 | H180: m
C181: KGfluid | D181: KMt-GMtfluid | G181: =G179-G183 -> 4.917974876 | H181: m
C182: GMtsolid | D182: KMt-KGsolid | G182: =G179-G180 -> 2.698428006 | H182: m
C183: GMtfluid | D183: GMtsolid-FSMt | G183: =G182-P128 -> 2.69547375 | H183: m

Sheet INDEX (Corrected trim 3)
D2: Stability Calculation | R2: Explanation of worksheet:
D3: Project : | N3: Originator : | R3: Changing tank filling
D4: Doc. No : | N4: Checked : | R4: Fill in all sounding heights of tanks in following cells:
D5: Subject/Remarks : | N5: Revision : | R5: The following data will be calculated automatically, with help of tank tables: | Y5: Volume | Z5: m³
N6: Date : | Y6: Weight | Z6: t
Y7: LCG | Z7: m
B8: Summary Stability Results | I8: Summary Loading condition | Y8: TCG | Z8: m
I9: Item | J9: % Full | K9: Volume | M9: Weight | N9: LCG | O9: TCG | P9: VCG | Y9: VCG | Z9: m
B10: Displ. | C10: =H128 -> 4733.647617 | D10: t | E10: Draft mid. | G10: =G176 -> 6.677157159 | H10: m | I10: F.O. | J10: =F32 -> 99.93294 | K10: =G32 -> 343.6693807 | M10: =H32 -> 295.5556674 | N10: =I32 -> 29.87702819 | O10: =J32 -> 0.09977612766 | P10: =K32 -> 3.766698308 | Y10: FSM | Z10: m
B11: DW | C11: =H129 -> 3033.647617 | D11: t | E11: Draft aft | G11: =G174 -> 6.236875724 | H11: m | I11: HFO | J11: =F45 -> 100.0060259 | K11: =G45 -> 995.76 | M11: =H45 -> 975.8448 | N11: =I45 -> 18.41775458 | O11: =J45 -> 0 | P11: =K45 -> 4.088628284 | R11: Add or remove deckloads
B12: LCG | C12: =I128 -> 24.82937143 | D12: m | E12: Draft fw | G12: =G175 -> 7.117438595 | H12: m | I12: WB | J12: =F78 -> 99.98391785 | K12: =G78 -> 1032.034 | M12: =H78 -> 1057.81435 | N12: =I78 -> 22.74410812 | O12: =J78 -> -0.00736067534 | P12: =K78 -> 3.081373373 | R12: Add or remove deckloads and fill the required data in the following cells:
B13: TCG | C13: =J128 -> -0.007784412989 | D13: m | E13: KMt | G13: =G179 -> 7.613448626 | H13: m | I13: FW | J13: =F86 -> 99.9834574 | K13: =G86 -> 483.52 | M13: =H86 -> 483.52 | N13: =I86 -> 20.14157284 | O13: =J86 -> 0 | P13: =K86 -> 4.711368299 | R13: The following input data is required to calculated the stability results: | Y13: Weight | Z13: t
B14: VCG | C14: =K128 -> 4.91502062 | D14: m | E14: KGfluid | G14: =G181 -> 4.917974876 | H14: m | I14: MISC | J14: =F100 -> 105.4299255 | K14: =G100 -> 155.72 | M14: =H100 -> 150.9128 | N14: =I100 -> 36.26201755 | O14: =J100 -> -0.3879845845 | P14: =K100 -> 1.559034038 | R14: Attention! | Y14: LCG | Z14: m
B15: Trim tot. | C15: =G169 -> 0.8805628702 | D15: m | E15: GMtfluid | G15: =G183 -> 2.69547375 | H15: m | I15: (DECK) LOADS | M15: =H121 -> 70 | N15: =I121 -> 6.571428571 | O15: =J121 -> 0 | P15: =K121 -> 7 | R15: This worksheet is only valid when the heel of the vessel is equal to 0° | Y15: TCG | Z15: m
R16: The results of this worksheet are not checked to any stability criteria! | Y16: VCG | Z16: m
B17: Sheet No. | C17: Name | D17: Sort of Fluid | E17: Sounding Height | F17: % Full | G17: Volume | H17: Weight | I17: LCG | J17: TCG | K17: VCG | M17: Longitudinal | N17: Transverse | O17: Vertical | P17: FSMt | R17: To print the loading conditon press the button:
I18: Fwd of AP | J18: PS:+ | K18: Above BL | M18: Moment | N18: Moment | O18: Moment
F19: % | G19: m³ | H19: t | I19: m | J19: m | K19: m | M19: t·m | N19: t·m | O19: t·m | P19: t·m
C20: SHIP DATA
C21: Lightship | H21: =INDEX!H22 -> 1700 | I21: =INDEX!I22 -> 30 | J21: =INDEX!J22 -> 0 | K21: =INDEX!K22 -> 7 | M21: =INDEX!M22 -> 51000 | N21: =INDEX!N22 -> 0 | O21: =INDEX!O22 -> 11900 | R21: Volume at each Trim | Y21: Volume Interpolation
C23: F.O. (SG 0.860) | R23: -1.5 | S23: -1 | T23: -0.5 | U23: 0 | V23: 0.5 | W23: 1 | X23: 1.5 | Y23: Volume | Z23: ∆Volume | AA23: Volume2
B24: 1 | C24: F.O. 1 PS | D24: MGO | E24: =INDEX!E25 -> 3.8 | F24: =IF(G24<'1'!M83,LinInterpolate(G24,'1'!M7:M83,'1'!I7:I83,TRUE),100) -> 100 | G24: ='INDEX (Corrected trim 2)'!AA24 -> 31.01969033 | H24: =LinInterpolate(F24,'1'!I7:I83,'1'!H7:H83,TRUE) -> 26.67693369 | I24: =LinInterpolate(F24,'1'!I7:I83,'1'!C7:C83,TRUE) -> 32.98 | J24: =LinInterpolate(F24,'1'!I7:I82,'1'!D7:D83,TRUE) -> 5.38 | K24: =LinInterpolate(F24,'1'!I7:I83,'1'!E7:E83,TRUE) -> 2.999982796 | M24: =$H24*I24 -> 879.805273 | N24: 143.5219032 | O24: 80.03034212 | P24: =IF(LinInterpolate(F24,'1'!I7:I83,'1'!F7:F83,TRUE)>0,LinInterpolate(F24,'1'!I7:I83,'1'!F7:F83,TRUE),0) -> 0.01720368565 | R24: =LinInterpolate($E$24,'1'!$B7:$B83,'1'!J7:J83,TRUE) -> 31.02 | S24: =LinInterpolate($E$24,'1'!$B7:$B83,'1'!K7:K83,TRUE) -> 31.02 | T24: =LinInterpolate($E$24,'1'!$B7:$B83,'1'!L7:L83,TRUE) -> 31.02 | U24: =LinInterpolate($E$24,'1'!$B7:$B83,'1'!M7:M83,TRUE) -> 31.02 | V24: =LinInterpolate($E$24,'1'!$B7:$B83,'1'!N7:N83,TRUE) -> 31.02 | W24: =LinInterpolate($E$24,'1'!$B7:$B83,'1'!O7:O83,TRUE) -> 31.01 | X24: =LinInterpolate($E$24,'1'!$B7:$B83,'1'!P7:P83,TRUE) -> 30.96 | Y24: =G24 -> 31.01969033 | Z24: =IF(E24<'1'!B83,Y24-AA24,0) -> 0 | AA24: =IF(E24=0,0,IF(E24<'1'!B83,LinInterpolate($G$169,$R$23:$X$23,R24:X24,TRUE),Y24)) -> 31.01969033
B25: 2 | C25: F.O. 1 SB | D25: MGO | E25: =INDEX!E26 -> 3.8 | F25: =IF(G25<'2'!M83,LinInterpolate(G25,'2'!M7:M83,'2'!I7:I83,TRUE),100) -> 100 | G25: ='INDEX (Corrected trim 2)'!AA25 -> 31.01969033 | H25: =LinInterpolate(F25,'2'!I7:I83,'2'!H7:H83,TRUE) -> 26.67693369 | I25: =LinInterpolate(F25,'2'!I7:I83,'2'!C7:C83,TRUE) -> 32.98 | J25: =LinInterpolate(F25,'2'!I7:I83,'2'!D7:D83,TRUE) -> -5.38 | K25: =LinInterpolate(F25,'2'!I7:I83,'2'!E7:E83,TRUE) -> 2.999982796 | M25: 879.805273 | N25: -143.5219032 | O25: 80.03034212 | P25: =IF(LinInterpolate(F25,'2'!I7:I83,'2'!F7:F83,TRUE)>0,LinInterpolate(F25,'2'!I7:I83,'2'!F7:F83,TRUE),0) -> 0.01720368565 | R25: =LinInterpolate($E$25,'2'!$B7:$B83,'2'!J7:J83,TRUE) -> 31.02 | S25: =LinInterpolate($E$25,'2'!$B7:$B83,'2'!K7:K83,TRUE) -> 31.02 | T25: =LinInterpolate($E$25,'2'!$B7:$B83,'2'!L7:L83,TRUE) -> 31.02 | U25: =LinInterpolate($E$25,'2'!$B7:$B83,'2'!M7:M83,TRUE) -> 31.02 | V25: =LinInterpolate($E$25,'2'!$B7:$B83,'2'!N7:N83,TRUE) -> 31.02 | W25: =LinInterpolate($E$25,'2'!$B7:$B83,'2'!O7:O83,TRUE) -> 31.01 | X25: =LinInterpolate($E$25,'2'!$B7:$B83,'2'!P7:P83,TRUE) -> 30.96 | Y25: 31.01969033 | Z25: =IF(E25<'2'!B83,Y25-AA25,0) -> 0 | AA25: =IF(E25=0,0,IF(E25<'2'!B83, LinInterpolate($G$169,$R$23:$X$23,R25:X25,TRUE),Y25)) -> 31.01969033
B26: 3 | C26: F.O.1 C | D26: MGO | E26: =INDEX!E27 -> 5.77 | F26: =IF(G26<'3'!M123,LinInterpolate(G26,'3'!M7:M123,'3'!I7:I123,TRUE),100) -> 100 | G26: ='INDEX (Corrected trim 2)'!AA26 -> 102.32 | H26: =LinInterpolate(F26,'3'!I7:I123,'3'!H7:H123,TRUE) -> 87.9952 | I26: =LinInterpolate(F26,'3'!I7:I123,'3'!C7:C123,TRUE) -> 26.1 | J26: =LinInterpolate(F26,'3'!I7:I123,'3'!D7:D123,TRUE) -> 0 | K26: =LinInterpolate(F26,'3'!I7:I123,'3'!E7:E123,TRUE) -> 3.9 | M26: 2296.67472 | N26: 0 | O26: 343.18128 | P26: =IF(LinInterpolate(F26,'3'!I7:I123,'3'!F7:F123,TRUE)>0,LinInterpolate(F26,'3'!I7:I123,'3'!F7:F123,TRUE),0) -> 0 | R26: =LinInterpolate($E$26,'3'!$B7:$B123,'3'!J7:J123,TRUE) -> 102.32 | S26: =LinInterpolate($E$26,'3'!$B7:$B123,'3'!K7:K123,TRUE) -> 102.32 | T26: =LinInterpolate($E$26,'3'!$B7:$B123,'3'!L7:L123,TRUE) -> 102.32 | U26: =LinInterpolate($E$26,'3'!$B7:$B123,'3'!M7:M123,TRUE) -> 102.32 | V26: =LinInterpolate($E$26,'3'!$B7:$B123,'3'!N7:N123,TRUE) -> 101.93 | W26: =LinInterpolate($E$26,'3'!$B7:$B123,'3'!O7:O123,TRUE) -> 101.55 | X26: =LinInterpolate($E$26,'3'!$B7:$B123,'3'!P7:P123,TRUE) -> 101.17 | Y26: 102.32 | Z26: =IF(E26<'3'!B123,Y26-AA26,0) -> 0 | AA26: =IF(E26=0,0,IF(E26<'3'!B123, LinInterpolate($G$169,$R$23:$X$23,R26:X26,TRUE),Y26)) -> 102.32
B27: 4 | C27: F.O. 2 PS | D27: MGO | E27: =INDEX!E28 -> 2 | F27: =IF(G27<'4'!M47,LinInterpolate(G27,'4'!M7:M47,'4'!I7:I47,TRUE),100) -> 100 | G27: ='INDEX (Corrected trim 2)'!AA27 -> 39.69 | H27: =LinInterpolate(F27,'4'!I7:I47,'4'!H7:H47,TRUE) -> 34.1334 | I27: =LinInterpolate(F27,'4'!I7:I47,'4'!C7:C47,TRUE) -> 31.5 | J27: =LinInterpolate(F27,'4'!I7:I47,'4'!D7:D47,TRUE) -> 5.47 | K27: =LinInterpolate(F27,'4'!I7:I47,'4'!E7:E47,TRUE) -> 5.8 | M27: 1075.2021 | N27: 186.709698 | O27: 197.97372 | P27: =IF(LinInterpolate(F27,'4'!I7:I47,'4'!F7:F47,TRUE)>0,LinInterpolate(F27,'4'!I7:I47,'4'!F7:F47,TRUE),0) -> 0 | R27: =LinInterpolate($E$27,'4'!$B7:$B47,'4'!J7:J47,TRUE) -> 39.69 | S27: =LinInterpolate($E$27,'4'!$B7:$B47,'4'!K7:K47,TRUE) -> 39.69 | T27: =LinInterpolate($E$27,'4'!$B7:$B47,'4'!L7:L47,TRUE) -> 39.69 | U27: =LinInterpolate($E$27,'4'!$B7:$B47,'4'!M7:M47,TRUE) -> 39.69 | V27: =LinInterpolate($E$27,'4'!$B7:$B47,'4'!N7:N47,TRUE) -> 39.69 | W27: =LinInterpolate($E$27,'4'!$B7:$B47,'4'!O7:O47,TRUE) -> 39.69 | X27: =LinInterpolate($E$27,'4'!$B7:$B47,'4'!P7:P47,TRUE) -> 39.69 | Y27: 39.69 | Z27: =IF(E27<'4'!B47,Y27-AA27,0) -> 0 | AA27: =IF(E27=0,0,IF(E27<'4'!B47, LinInterpolate($G$169,$R$23:$X$23,R27:X27,TRUE),Y27)) -> 39.69
B28: 5 | C28: F.O. 2 SB | D28: MGO | E28: =INDEX!E29 -> 2 | F28: =IF(G28<'5'!M47,LinInterpolate(G28,'5'!M7:M47,'5'!I7:I47,TRUE),100) -> 100 | G28: ='INDEX (Corrected trim 2)'!AA28 -> 39.69 | H28: =LinInterpolate(F28,'5'!I7:I47,'5'!H7:H47,TRUE) -> 34.1334 | I28: =LinInterpolate(F28,'5'!I7:I47,'5'!C7:C47,TRUE) -> 31.5 | J28: =LinInterpolate(F28,'5'!I7:I47,'5'!D7:D47,TRUE) -> -5.47 | K28: =LinInterpolate(F28,'5'!I7:I47,'5'!E7:E47,TRUE) -> 5.8 | M28: 1075.2021 | N28: -186.709698 | O28: 197.97372 | P28: =IF(LinInterpolate(F28,'5'!I7:I47,'5'!F7:F47,TRUE)>0,LinInterpolate(F28,'5'!I7:I47,'5'!F7:F47,TRUE),0) -> 0 | R28: =LinInterpolate($E$28,'5'!$B7:$B47,'5'!J7:J47,TRUE) -> 39.69 | S28: =LinInterpolate($E$28,'5'!$B7:$B47,'5'!K7:K47,TRUE) -> 39.69 | T28: =LinInterpolate($E$28,'5'!$B7:$B47,'5'!L7:L47,TRUE) -> 39.69 | U28: =LinInterpolate($E$28,'5'!$B7:$B47,'5'!M7:M47,TRUE) -> 39.69 | V28: =LinInterpolate($E$28,'5'!$B7:$B47,'5'!N7:N47,TRUE) -> 39.69 | W28: =LinInterpolate($E$28,'5'!$B7:$B47,'5'!O7:O47,TRUE) -> 39.69 | X28: =LinInterpolate($E$28,'5'!$B7:$B47,'5'!P7:P47,TRUE) -> 39.69 | Y28: 39.69 | Z28: =IF(E28<'5'!B47,Y28-AA28,0) -> 0 | AA28: =IF(E28=0,0,IF(E28<'5'!B47, LinInterpolate($G$169,$R$23:$X$23,R28:X28,TRUE),Y28)) -> 39.69
B29: 6 | C29: F.O. 3 PS | D29: MGO | E29: =INDEX!E30 -> 3.8 | F29: =IF(G29<'6'!M83,LinInterpolate(G29,'6'!M7:M83,'6'!I7:I83,TRUE),100) -> 100 | G29: ='INDEX (Corrected trim 2)'!AA29 -> 40.44 | H29: =LinInterpolate(F29,'6'!I7:I83,'6'!H7:H83,TRUE) -> 34.7784 | I29: =LinInterpolate(F29,'6'!I7:I83,'6'!C7:C83,TRUE) -> 30.3 | J29: =LinInterpolate(F29,'6'!I7:I83,'6'!D7:D83,TRUE) -> 5.45 | K29: =LinInterpolate(F29,'6'!I7:I83,'6'!E7:E83,TRUE) -> 2.96 | M29: 1053.78552 | N29: 189.54228 | O29: 102.944064 | P29: =IF(LinInterpolate(F29,'6'!I7:I83,'6'!F7:F83,TRUE)>0,LinInterpolate(F29,'6'!I7:I83,'6'!F7:F83,TRUE),0) -> 0.85 | R29: =LinInterpolate($E$29,'6'!$B7:$B83,'6'!J7:J83,TRUE) -> 40.44 | S29: =LinInterpolate($E$29,'6'!$B7:$B83,'6'!K7:K83,TRUE) -> 40.44 | T29: =LinInterpolate($E$29,'6'!$B7:$B83,'6'!L7:L83,TRUE) -> 40.44 | U29: =LinInterpolate($E$29,'6'!$B7:$B83,'6'!M7:M83,TRUE) -> 40.44 | V29: =LinInterpolate($E$29,'6'!$B7:$B83,'6'!N7:N83,TRUE) -> 40.44 | W29: =LinInterpolate($E$29,'6'!$B7:$B83,'6'!O7:O83,TRUE) -> 40.44 | X29: =LinInterpolate($E$29,'6'!$B7:$B83,'6'!P7:P83,TRUE) -> 40.44 | Y29: 40.44 | Z29: =IF(E29<'6'!B83,Y29-AA29,0) -> 0 | AA29: =IF(E29=0,0,IF(E29<'6'!B83, LinInterpolate($G$169,$R$23:$X$23,R29:X29,TRUE),Y29)) -> 40.44
B30: 7 | C30: F.O. 3 SB | D30: MGO | E30: =INDEX!E31 -> 3.8 | F30: =IF(G30<'7'!M83,LinInterpolate(G30,'7'!M7:M83,'7'!I7:I83,TRUE),100) -> 100 | G30: ='INDEX (Corrected trim 2)'!AA30 -> 40.44 | H30: =LinInterpolate(F30,'7'!I7:I83,'7'!H7:H83,TRUE) -> 34.7784 | I30: =LinInterpolate(F30,'7'!I7:I83,'7'!C7:C83,TRUE) -> 30.3 | J30: =LinInterpolate(F30,'7'!I7:I83,'7'!D7:D83,TRUE) -> -5.45 | K30: =LinInterpolate(F30,'7'!I7:I83,'7'!E7:E83,TRUE) -> 2.96 | M30: 1053.78552 | N30: -189.54228 | O30: 102.944064 | P30: =IF(LinInterpolate(F30,'7'!I7:I83,'7'!F7:F83,TRUE)>0,LinInterpolate(F30,'7'!I7:I83,'7'!F7:F83,TRUE),0) -> 11.1 | R30: =LinInterpolate($E$30,'7'!$B7:$B83,'7'!J7:J83,TRUE) -> 40.44 | S30: =LinInterpolate($E$30,'7'!$B7:$B83,'7'!K7:K83,TRUE) -> 40.44 | T30: =LinInterpolate($E$30,'7'!$B7:$B83,'7'!L7:L83,TRUE) -> 40.44 | U30: =LinInterpolate($E$30,'7'!$B7:$B83,'7'!M7:M83,TRUE) -> 40.44 | V30: =LinInterpolate($E$30,'7'!$B7:$B83,'7'!N7:N83,TRUE) -> 40.44 | W30: =LinInterpolate($E$30,'7'!$B7:$B83,'7'!O7:O83,TRUE) -> 40.44 | X30: =LinInterpolate($E$30,'7'!$B7:$B83,'7'!P7:P83,TRUE) -> 40.44 | Y30: 40.44 | Z30: =IF(E30<'6'!B83,Y30-AA30,0) -> 0 | AA30: =IF(E30=0,0,IF(E30<'7'!B83, LinInterpolate($G$169,$R$23:$X$23,R30:X30,TRUE),Y30)) -> 40.44
B31: 8 | C31: F.O. 4 PS | D31: MGO | E31: =INDEX!E32 -> 1 | F31: =IF(G31<'8'!M28,LinInterpolate(G31,'8'!M10:M28,'8'!I10:I28,TRUE),100) -> 100 | G31: ='INDEX (Corrected trim 2)'!AA31 -> 19.05 | H31: =LinInterpolate(F31,'8'!I7:I28,'8'!H7:H28,TRUE) -> 16.383 | I31: =LinInterpolate(F31,'8'!I7:I28,'8'!C7:C28,TRUE) -> 31.5 | J31: =LinInterpolate(F31,'8'!I7:I28,'8'!D7:D28,TRUE) -> 1.8 | K31: =LinInterpolate(F31,'8'!I7:I28,'8'!E7:E28,TRUE) -> 0.5 | M31: 516.0645 | N31: 29.4894 | O31: 8.1915 | P31: =IF(LinInterpolate(F31,'8'!I7:I28,'8'!F7:F28,TRUE)>0,LinInterpolate(F31,'8'!I7:I28,'8'!F7:F28,TRUE),0) -> 2 | R31: =LinInterpolate($E$31,'8'!$B7:$B28,'8'!J7:J28,TRUE) -> 19.05 | S31: =LinInterpolate($E$31,'8'!$B7:$B28,'8'!K7:K28,TRUE) -> 19.05 | T31: =LinInterpolate($E$31,'8'!$B7:$B28,'8'!L7:L28,TRUE) -> 19.05 | U31: =LinInterpolate($E$31,'8'!$B7:$B28,'8'!M7:M28,TRUE) -> 19.05 | V31: =LinInterpolate($E$31,'8'!$B7:$B28,'8'!N7:N28,TRUE) -> 19.05 | W31: =LinInterpolate($E$31,'8'!$B7:$B28,'8'!O7:O28,TRUE) -> 19.05 | X31: =LinInterpolate($E$31,'8'!$B7:$B28,'8'!P7:P28,TRUE) -> 19.05 | Y31: 19.05 | Z31: =IF(E31<'8'!B28,Y31-AA31,0) -> 0 | AA31: =IF(E31=0,0,IF(E31<'8'!B28, LinInterpolate($G$169,$R$23:$X$23,R31:X31,TRUE),Y31)) -> 19.05
C32: Total F.O. | F32: =(G32/343.9)*100 -> 99.93294 | G32: =SUM((G24:G31)) -> 343.6693807 | H32: =SUM((H24:H31)) -> 295.5556674 | I32: =M32/H32 -> 29.87702819 | J32: =N32/H32 -> 0.09977612766 | K32: =O32/H32 -> 3.766698308 | M32: =SUM((M24:M31)) -> 8830.325006 | N32: =SUM((N24:N31)) -> 29.4894 | O32: =SUM((O24:O31)) -> 1113.269032 | P32: =SUM((P24:P31)) -> 13.98440737 | Z32: =SUM((Z24:Z31)) -> 0 | AA32: =SUM((AA24:AA31)) -> 343.6693807
C34: HFO (SG 0.980) | R34: -1.5 | S34: -1 | T34: -0.5 | U34: 0 | V34: 0.5 | W34: 1 | X34: 1.5 | Y34: Volume | Z34: ∆Volume | AA34: Volume2
B35: 9 | C35: H.F.O 1 PS | D35: HFO | E35: =INDEX!E36 -> 5.75 | F35: =IF(G35<'9'!M122,LinInterpolate(G35,'9'!M7:M122,'9'!I7:I122,TRUE),100) -> 100 | G35: ='INDEX (Corrected trim 2)'!AA35 -> 112.74 | H35: =LinInterpolate(F35,'9'!I7:I122,'9'!H7:H122,TRUE) -> 110.4852 | I35: =LinInterpolate(F35,'9'!I7:I122,'9'!C7:C122,TRUE) -> 26.02 | J35: =LinInterpolate(F35,'9'!I7:I122,'9'!D7:D122,TRUE) -> 5.46 | K35: =LinInterpolate(F35,'9'!I7:I122,'9'!E7:E122,TRUE) -> 3.96 | M35: =$H35*I35 -> 2874.824904 | N35: 603.249192 | O35: 437.521392 | P35: =IF(LinInterpolate(F35,'9'!I7:I122,'9'!F7:F122,TRUE)>0,LinInterpolate(F35,'9'!I7:I122,'9'!F7:F122,TRUE),0) -> 0 | R35: =LinInterpolate($E$35,'9'!$B7:$B122,'9'!J7:J122,TRUE) -> 111.41 | S35: =LinInterpolate($E$35,'9'!$B7:$B122,'9'!K7:K122,TRUE) -> 111.85 | T35: =LinInterpolate($E$35,'9'!$B7:$B122,'9'!L7:L122,TRUE) -> 112.29 | U35: =LinInterpolate($E$35,'9'!$B7:$B122,'9'!M7:M122,TRUE) -> 112.74 | V35: =LinInterpolate($E$35,'9'!$B7:$B122,'9'!N7:N122,TRUE) -> 112.73 | W35: =LinInterpolate($E$35,'9'!$B7:$B122,'9'!O7:O122,TRUE) -> 112.73 | X35: =LinInterpolate($E$35,'9'!$B7:$B122,'9'!P7:P122,TRUE) -> 112.72 | Y35: =G35 -> 112.74 | Z35: =IF(E35<'9'!AB122,Y35-AA35,0) -> 0 | AA35: =IF(E35=0,0,IF(E35<'9'!B122, LinInterpolate($G$169,$R$23:$X$23,R35:X35,TRUE),Y35)) -> 112.74
B36: 10 | C36: H.F.O 1 SB | D36: HFO | E36: =INDEX!E37 -> 5.75 | F36: =IF(G36<'10'!M122,LinInterpolate(G36,'10'!M7:M122,'10'!I7:I122,TRUE),100) -> 100 | G36: ='INDEX (Corrected trim 2)'!AA36 -> 112.74 | H36: =LinInterpolate(F36,'10'!I7:I122,'10'!H7:H122,TRUE) -> 110.4852 | I36: =LinInterpolate(F36,'10'!I7:I122,'10'!C7:C122,TRUE) -> 26.02 | J36: =LinInterpolate(F36,'10'!I7:I122,'10'!D7:D122,TRUE) -> -5.46 | K36: =LinInterpolate(F36,'10'!I7:I122,'10'!E7:E122,TRUE) -> 3.96 | M36: 2874.824904 | N36: -603.249192 | O36: 437.521392 | P36: =LinInterpolate(F36,'10'!I7:I122,'10'!F7:F122,TRUE) -> 0 | R36: =LinInterpolate($E$36,'10'!$B7:$B122,'10'!J7:J122,TRUE) -> 111.41 | S36: =LinInterpolate($E$36,'10'!$B7:$B122,'10'!K7:K122,TRUE) -> 111.85 | T36: =LinInterpolate($E$36,'10'!$B7:$B122,'10'!L7:L122,TRUE) -> 112.29 | U36: =LinInterpolate($E$36,'10'!$B7:$B122,'10'!M7:M122,TRUE) -> 112.74 | V36: =LinInterpolate($E$36,'10'!$B7:$B122,'10'!N7:N122,TRUE) -> 112.73 | W36: =LinInterpolate($E$36,'10'!$B7:$B122,'10'!O7:O122,TRUE) -> 112.73 | X36: =LinInterpolate($E$36,'10'!$B7:$B122,'10'!P7:P122,TRUE) -> 112.72 | Y36: 112.74 | Z36: =IF(E36<'10'!AB122,AA36-Y36,0) -> 0 | AA36: =IF(E36=0,0,IF(E36<'10'!B122, LinInterpolate($G$169,$R$23:$X$23,R36:X36,TRUE),Y36)) -> 112.74
B37: 11 | C37: H.F.O 2 PS | D37: HFO | E37: =INDEX!E38 -> 5.75 | F37: =IF(G37<'11'!M122,LinInterpolate(G37,'11'!M7:M122,'11'!I7:I122,TRUE),100) -> 100 | G37: ='INDEX (Corrected trim 2)'!AA37 -> 100.05 | H37: =LinInterpolate(F37,'11'!I7:I122,'11'!H7:H122,TRUE) -> 98.049 | I37: =LinInterpolate(F37,'11'!I7:I122,'11'!C7:C122,TRUE) -> 20.85 | J37: =LinInterpolate(F37,'11'!I7:I122,'11'!D7:D122,TRUE) -> 5.46 | K37: =LinInterpolate(F37,'11'!I7:I122,'11'!E7:E122,TRUE) -> 3.96 | M37: 2044.32165 | N37: 535.34754 | O37: 388.27404 | P37: =IF(LinInterpolate(F37,'11'!I7:I122,'11'!F7:F122,TRUE)>0,LinInterpolate(F37,'11'!I7:I122,'11'!F7:F122,TRUE),0) -> 0 | R37: =LinInterpolate($E$37,'11'!$B7:$B122,'11'!J7:J122,TRUE) -> 99.06 | S37: =LinInterpolate($E$37,'11'!$B7:$B122,'11'!K7:K122,TRUE) -> 99.39 | T37: =LinInterpolate($E$37,'11'!$B7:$B122,'11'!L7:L122,TRUE) -> 99.72 | U37: =LinInterpolate($E$37,'11'!$B7:$B122,'11'!M7:M122,TRUE) -> 100.05 | V37: =LinInterpolate($E$37,'11'!$B7:$B122,'11'!N7:N122,TRUE) -> 100.05 | W37: =LinInterpolate($E$37,'11'!$B7:$B122,'11'!O7:O122,TRUE) -> 100.05 | X37: =LinInterpolate($E$37,'11'!$B7:$B122,'11'!P7:P122,TRUE) -> 100.04 | Y37: 100.05 | Z37: =IF(F37<'11'!AB122,Y37-AA37,0) -> 0 | AA37: =IF(E37=0,0,IF(E37<'11'!B122, LinInterpolate($G$169,$R$23:$X$23,R37:X37,TRUE),Y37)) -> 100.05
B38: 12 | C38: H.F.O 2 SB | D38: HFO | E38: =INDEX!E39 -> 5.75 | F38: =IF(G38<'12'!M122,LinInterpolate(G38,'12'!M7:M122,'12'!I7:I122,TRUE),100) -> 100 | G38: ='INDEX (Corrected trim 2)'!AA38 -> 100.05 | H38: =LinInterpolate(F38,'12'!I7:I122,'12'!H7:H122,TRUE) -> 98.049 | I38: =LinInterpolate(F38,'12'!I7:I122,'12'!C7:C122,TRUE) -> 20.85 | J38: =LinInterpolate(F38,'12'!I7:I122,'12'!D7:D122,TRUE) -> -5.46 | K38: =LinInterpolate(F38,'12'!I7:I122,'12'!E7:E122,TRUE) -> 3.96 | M38: 2044.32165 | N38: -535.34754 | O38: 388.27404 | P38: =IF(LinInterpolate(F38,'12'!I7:I122,'12'!F7:F122,TRUE)>0,LinInterpolate(F38,'12'!I7:I122,'12'!F7:F122,TRUE),0) -> 0 | R38: =LinInterpolate($E$38,'12'!$B7:$B122,'12'!J7:J122,TRUE) -> 99.06 | S38: =LinInterpolate($E$38,'12'!$B7:$B122,'12'!K7:K122,TRUE) -> 99.39 | T38: =LinInterpolate($E$38,'12'!$B7:$B122,'12'!L7:L122,TRUE) -> 99.72 | U38: =LinInterpolate($E$38,'12'!$B7:$B122,'12'!M7:M122,TRUE) -> 100.05 | V38: =LinInterpolate($E$38,'12'!$B7:$B122,'12'!N7:N122,TRUE) -> 100.05 | W38: =LinInterpolate($E$38,'12'!$B7:$B122,'12'!O7:O122,TRUE) -> 100.04 | X38: =LinInterpolate($E$38,'12'!$B7:$B122,'12'!P7:P122,TRUE) -> 100.04 | Y38: 100.05 | Z38: =IF(F38<'12'!AB122,Y38-AA38,0) -> 0 | AA38: =IF(E38=0,0,IF(E38<'12'!B122, LinInterpolate($G$169,$R$23:$X$23,R38:X38,TRUE),Y38)) -> 100.05
B39: 13 | C39: H.F.O 2 C | D39: HFO | E39: =INDEX!E40 -> 5.77 | F39: =IF(G39<'13'!M123,LinInterpolate(G39,'13'!M7:M123,'13'!I7:I123,TRUE),100) -> 100 | G39: ='INDEX (Corrected trim 2)'!AA39 -> 102.33 | H39: =LinInterpolate(F39,'13'!I7:I123,'13'!H7:H123,TRUE) -> 100.2834 | I39: =LinInterpolate(F39,'13'!I7:I123,'13'!C7:C123,TRUE) -> 21 | J39: =LinInterpolate(F39,'13'!I7:I123,'13'!D7:D123,TRUE) -> 0 | K39: =LinInterpolate(F39,'13'!I7:I123,'13'!E7:E123,TRUE) -> 3.9 | M39: 2105.9514 | N39: 0 | O39: 391.10526 | P39: =IF(LinInterpolate(F39,'13'!I7:I123,'13'!F7:F123,TRUE)>0,LinInterpolate(F39,'13'!I7:I123,'13'!F7:F123,TRUE),0) -> 0 | R39: =LinInterpolate($E$39,'13'!$B7:$B123,'13'!J7:J123,TRUE) -> 102.33 | S39: =LinInterpolate($E$39,'13'!$B7:$B123,'13'!K7:K123,TRUE) -> 102.33 | T39: =LinInterpolate($E$39,'13'!$B7:$B123,'13'!L7:L123,TRUE) -> 102.33 | U39: =LinInterpolate($E$39,'13'!$B7:$B123,'13'!M7:M123,TRUE) -> 102.33 | V39: =LinInterpolate($E$39,'13'!$B7:$B123,'13'!N7:N123,TRUE) -> 101.95 | W39: =LinInterpolate($E$39,'13'!$B7:$B123,'13'!O7:O123,TRUE) -> 101.58 | X39: =LinInterpolate($E$39,'13'!$B7:$B123,'13'!P7:P123,TRUE) -> 101.2 | Y39: 102.33 | Z39: =IF(E39<'13'!AB123,Y39-AA39,0) -> 0 | AA39: =IF(E39=0,0,IF(E39<'13'!B123, LinInterpolate($G$169,$R$23:$X$23,R39:X39,TRUE),Y39)) -> 102.33
B40: 14 | C40: H.F.O 3 PS | D40: HFO | E40: =INDEX!E41 -> 5.76 | F40: =IF(G40<'14'!M123,LinInterpolate(G40,'14'!M7:M123,'14'!I7:I123,TRUE),100) -> 100 | G40: ='INDEX (Corrected trim 2)'!AA40 -> 99.48 | H40: =LinInterpolate(F40,'14'!I7:I123,'14'!H7:H123,TRUE) -> 97.4904 | I40: =LinInterpolate(F40,'14'!I7:I123,'14'!C7:C123,TRUE) -> 16.06 | J40: =LinInterpolate(F40,'14'!I7:I123,'14'!D7:D123,TRUE) -> 5.45 | K40: =LinInterpolate(F40,'14'!I7:I123,'14'!E7:E123,TRUE) -> 3.98 | M40: 1565.695824 | N40: 531.32268 | O40: 388.011792 | P40: =IF(LinInterpolate(F40,'14'!I7:I123,'14'!F7:F123,TRUE)>0,LinInterpolate(F40,'14'!I7:I123,'14'!F7:F123,TRUE),0) -> 0 | R40: =LinInterpolate($E$40,'14'!$B7:$B123,'14'!J7:J123,TRUE) -> 99.48 | S40: =LinInterpolate($E$40,'14'!$B7:$B123,'14'!K7:K123,TRUE) -> 99.48 | T40: =LinInterpolate($E$40,'14'!$B7:$B123,'14'!L7:L123,TRUE) -> 99.48 | U40: =LinInterpolate($E$40,'14'!$B7:$B123,'14'!M7:M123,TRUE) -> 99.48 | V40: =LinInterpolate($E$40,'14'!$B7:$B123,'14'!N7:N123,TRUE) -> 99.09 | W40: =LinInterpolate($E$40,'14'!$B7:$B123,'14'!O7:O123,TRUE) -> 98.7 | X40: =LinInterpolate($E$40,'14'!$B7:$B123,'14'!P7:P123,TRUE) -> 98.31 | Y40: 99.48 | Z40: =IF(E40<'14'!AB123,Y40-AA40,0) -> 0 | AA40: =IF(E40=0,0,IF(E40<'14'!B123, LinInterpolate($G$169,$R$23:$X$23,R40:X40,TRUE),Y40)) -> 99.48
B41: 15 | C41: H.F.O 3 SB | D41: HFO | E41: =INDEX!E42 -> 5.76 | F41: =IF(G41<'15'!M123,LinInterpolate(G41,'15'!M7:M123,'15'!I7:I123,TRUE),100) -> 100 | G41: ='INDEX (Corrected trim 2)'!AA41 -> 99.48 | H41: =LinInterpolate(F41,'15'!I7:I123,'15'!H7:H123,TRUE) -> 97.4904 | I41: =LinInterpolate(F41,'15'!I7:I123,'15'!C7:C123,TRUE) -> 16.06 | J41: =LinInterpolate(F41,'15'!I7:I123,'15'!D7:D123,TRUE) -> -5.45 | K41: =LinInterpolate(F41,'15'!I7:I123,'15'!E7:E123,TRUE) -> 3.98 | M41: 1565.695824 | N41: -531.32268 | O41: 388.011792 | P41: =IF(LinInterpolate(F41,'15'!I7:I123,'15'!F7:F123,TRUE)>0,LinInterpolate(F41,'15'!I7:I123,'15'!F7:F123,TRUE),0) -> 0 | R41: =LinInterpolate($E$41,'15'!$B7:$B123,'15'!J7:J123,TRUE) -> 99.48 | S41: =LinInterpolate($E$41,'15'!$B7:$B123,'15'!K7:K123,TRUE) -> 99.48 | T41: =LinInterpolate($E$41,'15'!$B7:$B123,'15'!L7:L123,TRUE) -> 99.48 | U41: =LinInterpolate($E$41,'15'!$B7:$B123,'15'!M7:M123,TRUE) -> 99.48 | V41: =LinInterpolate($E$41,'15'!$B7:$B123,'15'!N7:N123,TRUE) -> 99.09 | W41: =LinInterpolate($E$41,'15'!$B7:$B123,'15'!O7:O123,TRUE) -> 98.7 | X41: =LinInterpolate($E$41,'15'!$B7:$B123,'15'!P7:P123,TRUE) -> 98.31 | Y41: 99.48 | Z41: =IF(E41<'15'!AB123,Y41-AA41,0) -> 0 | AA41: =IF(E41=0,0,IF(E41<'15'!B123, LinInterpolate($G$169,$R$23:$X$23,R41:X41,TRUE),Y41)) -> 99.48
B42: 16 | C42: H.F.O 4 PS | D42: HFO | E42: =INDEX!E43 -> 5.46 | F42: =IF(G42<'16'!M117,LinInterpolate(G42,'16'!M7:M117,'16'!I7:I117,TRUE),100) -> 100 | G42: ='INDEX (Corrected trim 2)'!AA42 -> 90.63 | H42: =LinInterpolate(F42,'16'!I7:I117,'16'!H7:H117,TRUE) -> 88.8174 | I42: =LinInterpolate(F42,'16'!I7:I117,'16'!C7:C117,TRUE) -> 11.2 | J42: =LinInterpolate(F42,'16'!I7:I117,'16'!D7:D117,TRUE) -> 5.39 | K42: =LinInterpolate(F42,'16'!I7:I117,'16'!E7:E117,TRUE) -> 4.49 | M42: 994.75488 | N42: 478.725786 | O42: 398.790126 | P42: =IF(LinInterpolate(F42,'16'!I7:I117,'16'!F7:F117,TRUE)>0,LinInterpolate(F42,'16'!I7:I117,'16'!F7:F117,TRUE),0) -> 0 | R42: =LinInterpolate($E$42,'16'!$B7:$B117,'16'!J7:J117,TRUE) -> 90.63 | S42: =LinInterpolate($E$42,'16'!$B7:$B117,'16'!K7:K117,TRUE) -> 90.63 | T42: =LinInterpolate($E$42,'16'!$B7:$B117,'16'!L7:L117,TRUE) -> 90.63 | U42: =LinInterpolate($E$42,'16'!$B7:$B117,'16'!M7:M117,TRUE) -> 90.63 | V42: =LinInterpolate($E$42,'16'!$B7:$B117,'16'!N7:N117,TRUE) -> 90.19 | W42: =LinInterpolate($E$42,'16'!$B7:$B117,'16'!O7:O117,TRUE) -> 89.75 | X42: =LinInterpolate($E$42,'16'!$B7:$B117,'16'!P7:P117,TRUE) -> 89.31 | Y42: 90.63 | Z42: =IF(E42<'16'!AB117,Y42-AA42,0) -> 0 | AA42: =IF(E42=0,0,IF(E42<'16'!B117, LinInterpolate($G$169,$R$23:$X$23,R42:X42,TRUE),Y42)) -> 90.63
B43: 17 | C43: H.F.O 4 SB | D43: HFO | E43: =INDEX!E44 -> 5.46 | F43: =IF(G43<'17'!M115,LinInterpolate(G43,'17'!M7:M115,'17'!I7:I115,TRUE),100) -> 100 | G43: ='INDEX (Corrected trim 2)'!AA43 -> 90.63 | H43: =LinInterpolate(F43,'17'!I7:I115,'17'!H7:H115,TRUE) -> 88.8174 | I43: =LinInterpolate(F43,'17'!I7:I115,'17'!C7:C115,TRUE) -> 11.2 | J43: =LinInterpolate(F43,'17'!I7:I115,'17'!D7:D115,TRUE) -> -5.39 | K43: =LinInterpolate(F43,'17'!I7:I115,'17'!E7:E115,TRUE) -> 4.49 | M43: 994.75488 | N43: -478.725786 | O43: 398.790126 | P43: =IF(LinInterpolate(F43,'17'!I7:I115,'17'!F7:F115,TRUE)>0,LinInterpolate(F43,'17'!I7:I115,'17'!F7:F115,TRUE),0) -> 0 | R43: =LinInterpolate($E$43,'17'!$B7:$B115,'17'!J7:J115,TRUE) -> 90.97666667 | S43: =LinInterpolate($E$43,'17'!$B7:$B115,'17'!K7:K115,TRUE) -> 91.05666667 | T43: =LinInterpolate($E$43,'17'!$B7:$B115,'17'!L7:L115,TRUE) -> 91.40333333 | U43: =LinInterpolate($E$43,'17'!$B7:$B115,'17'!M7:M115,TRUE) -> 92.49666667 | V43: =LinInterpolate($E$43,'17'!$B7:$B115,'17'!N7:N115,TRUE) -> 92.05666667 | W43: =LinInterpolate($E$43,'17'!$B7:$B115,'17'!O7:O115,TRUE) -> 91.61666667 | X43: =LinInterpolate($E$43,'17'!$B7:$B115,'17'!P7:P115,TRUE) -> 91.17666667 | Y43: 90.63 | Z43: =IF(E43<'17'!AB115,Y43-AA43,0) -> 0 | AA43: =IF(E43=0,0,IF(E43<'17'!B115, LinInterpolate($G$169,$R$23:$X$23,R43:X43,TRUE),Y43)) -> 90.63
B44: 18 | C44: H.F.O 4 C | D44: HFO | E44: =INDEX!E45 -> 5.38 | F44: =IF(G44<'18'!M115,LinInterpolate(G44,'18'!M7:M115,'18'!I7:I115,TRUE),100) -> 100 | G44: ='INDEX (Corrected trim 2)'!AA44 -> 87.63 | H44: =LinInterpolate(F44,'18'!I7:I115,'18'!H7:H115,TRUE) -> 85.8774 | I44: =LinInterpolate(F44,'18'!I7:I115,'18'!C7:C115,TRUE) -> 10.57 | J44: =LinInterpolate(F44,'18'!I7:I115,'18'!D7:D115,TRUE) -> 0 | K44: =LinInterpolate(F44,'18'!I7:I115,'18'!E7:E115,TRUE) -> 4.35 | M44: 907.724118 | N44: 0 | O44: 373.56669 | P44: =IF(LinInterpolate(F44,'18'!I7:I115,'18'!F7:F115,TRUE)>0,LinInterpolate(F44,'18'!I7:I115,'18'!F7:F115,TRUE),0) -> 0 | R44: =LinInterpolate($E$44,'18'!$B7:$B115,'18'!J7:J115,TRUE) -> 87.65 | S44: =LinInterpolate($E$44,'18'!$B7:$B115,'18'!K7:K115,TRUE) -> 87.65 | T44: =LinInterpolate($E$44,'18'!$B7:$B115,'18'!L7:L115,TRUE) -> 87.67 | U44: =LinInterpolate($E$44,'18'!$B7:$B115,'18'!M7:M115,TRUE) -> 87.99 | V44: =LinInterpolate($E$44,'18'!$B7:$B115,'18'!N7:N115,TRUE) -> 87.63 | W44: =LinInterpolate($E$44,'18'!$B7:$B115,'18'!O7:O115,TRUE) -> 87.26 | X44: =LinInterpolate($E$44,'18'!$B7:$B115,'18'!P7:P115,TRUE) -> 86.9 | Y44: 87.63 | Z44: =IF(E44<'18'!AB115,Y44-AA44,0) -> 0 | AA44: =IF(E44=0,0,IF(E44<'18'!B115, LinInterpolate($G$169,$R$23:$X$23,R44:X44,TRUE),Y44)) -> 87.63
C45: Total H.F.O | F45: =G45/995.7*100 -> 100.0060259 | G45: =SUM((G35:G44)) -> 995.76 | H45: =SUM((H35:H44)) -> 975.8448 | I45: =M45/H45 -> 18.41775458 | J45: =N45/H45 -> 0 | K45: =O45/H45 -> 4.088628284 | M45: =SUM((M35:M44)) -> 17972.87003 | N45: =SUM((N35:N44)) -> 0 | O45: =SUM((O35:O44)) -> 3989.86665 | P45: =SUM((P35:P44)) -> 0 | Z45: =SUM((Z35:Z44)) -> 0 | AA45: =SUM((AA35:AA44)) -> 995.76
B47: Sheet No. | C47: Name | D47: Sort of Fluid | E47: Sounding Height | F47: % Full | G47: Volume | H47: Weight | I47: LCG | J47: TCG | K47: VCG | M47: Longitudinal | N47: Transverse | O47: Vertical | P47: FSMt
I48: Fwd of AP | J48: PS:+ | K48: Above BL | M48: Moment | N48: Moment | O48: Moment
F49: % | G49: m³ | H49: t | I49: m | J49: m | K49: m | M49: t·m | N49: t·m | O49: t·m | P49: t·m
C50: WB (S.G. 1.025) | R50: -1.5 | S50: -1 | T50: -0.5 | U50: 0 | V50: 0.5 | W50: 1 | X50: 1.5 | Y50: Volume | Z50: ∆Volume | AA50: Volume2
B51: 19 | C51: W.B 1 PS | D51: FW | E51: =INDEX!E52 -> 3.25 | F51: =IF(G51<'19'!M72,LinInterpolate(G51,'19'!M7:M72,'19'!I7:I72,TRUE),100) -> 100 | G51: ='INDEX (Corrected trim 2)'!AA51 -> 63.76 | H51: =LinInterpolate(F51,'19'!I7:I72,'19'!H7:H72,TRUE) -> 65.354 | I51: =LinInterpolate(F51,'19'!I7:I72,'19'!C7:C72,TRUE) -> -2.24 | J51: =LinInterpolate(F51,'19'!I7:I72,'19'!D7:D72,TRUE) -> 4.49 | K51: =LinInterpolate(F51,'19'!I7:I72,'19'!E7:E72,TRUE) -> 5.71 | M51: =$H51*I51 -> -146.39296 | N51: 293.43946 | O51: 373.17134 | P51: =IF(LinInterpolate(F51,'19'!I7:I72,'19'!F7:F72,TRUE)>0,LinInterpolate(F51,'19'!I7:I72,'19'!F7:F72,TRUE),0) -> 0 | R51: =LinInterpolate($E$51,'19'!$B7:$B72,'19'!J7:J72,TRUE) -> 63.62666667 | S51: =LinInterpolate($E$51,'19'!$B7:$B72,'19'!K7:K72,TRUE) -> 63.81333333 | T51: =LinInterpolate($E$51,'19'!$B7:$B72,'19'!L7:L72,TRUE) -> 64.07333333 | U51: =LinInterpolate($E$51,'19'!$B7:$B72,'19'!M7:M72,TRUE) -> 64.38 | V51: =LinInterpolate($E$51,'19'!$B7:$B72,'19'!N7:N72,TRUE) -> 64.03666667 | W51: =LinInterpolate($E$51,'19'!$B7:$B72,'19'!O7:O72,TRUE) -> 63.74 | X51: =LinInterpolate($E$51,'19'!$B7:$B72,'19'!P7:P72,TRUE) -> 63.49333333 | Y51: =G51 -> 63.76 | Z51: =IF(E51<'19'!B72,Y51-AA51,0) -> 0 | AA51: =IF(E51=0,0,IF(E51<'19'!B72, LinInterpolate($G$169,$R$23:$X$23,R51:X51,TRUE),Y51)) -> 63.76
B52: 20 | C52: W.B 1 SB | D52: FW | E52: =INDEX!E53 -> 3.25 | F52: =IF(G52<'20'!M72,LinInterpolate(G52,'20'!M7:M72,'20'!I7:I72,TRUE),100) -> 100 | G52: ='INDEX (Corrected trim 2)'!AA52 -> 63.76 | H52: =LinInterpolate(F52,'20'!I7:I72,'20'!H7:H72,TRUE) -> 65.354 | I52: =LinInterpolate(F52,'20'!I7:I72,'20'!C7:C72,TRUE) -> -2.24 | J52: =LinInterpolate(F52,'20'!I7:I72,'20'!D7:D72,TRUE) -> -4.49 | K52: =LinInterpolate(F52,'20'!I7:I72,'20'!E7:E72,TRUE) -> 5.71 | M52: -146.39296 | N52: -293.43946 | O52: 373.17134 | P52: =IF(LinInterpolate(F52,'20'!I7:I72,'20'!F7:F72,TRUE)>0,LinInterpolate(F52,'20'!I7:I72,'20'!F7:F72,TRUE),0) -> 0 | R52: =LinInterpolate($E$52,'20'!$B7:$B72,'20'!J7:J72,TRUE) -> 63.34 | S52: =LinInterpolate($E$52,'20'!$B7:$B72,'20'!K7:K72,TRUE) -> 63.48 | T52: =LinInterpolate($E$52,'20'!$B7:$B72,'20'!L7:L72,TRUE) -> 63.62 | U52: =LinInterpolate($E$52,'20'!$B7:$B72,'20'!M7:M72,TRUE) -> 63.76 | V52: =LinInterpolate($E$52,'20'!$B7:$B72,'20'!N7:N72,TRUE) -> 63.51 | W52: =LinInterpolate($E$52,'20'!$B7:$B72,'20'!O7:O72,TRUE) -> 63.26 | X52: =LinInterpolate($E$52,'20'!$B7:$B72,'20'!P7:P72,TRUE) -> 63.02 | Y52: 63.76 | Z52: =IF(E52<'19'!B72,Y52-AA52,0) -> 0 | AA52: =IF(E52=0,0,IF(E52<'20'!B72, LinInterpolate($G$169,$R$23:$X$23,R52:X52,TRUE),Y52)) -> 63.76
B53: 21 | C53: ='INDEX (Corrected trim 4)'!C52 -> W.B 1 SB | D53: SW | E53: =INDEX!E54 -> 7.8 | F53: =IF(G53<'21'!M163,LinInterpolate(G53,'21'!M7:M163,'21'!I7:I163,TRUE),100) -> 100 | G53: ='INDEX (Corrected trim 2)'!AA53 -> 64.81 | H53: =LinInterpolate(F53,'21'!I7:I163,'21'!H7:H163,TRUE) -> 66.43025 | I53: =LinInterpolate(F53,'21'!I7:I163,'21'!C7:C163,TRUE) -> 51.05 | J53: =LinInterpolate(F53,'21'!I7:I163,'21'!D7:D163,TRUE) -> 0 | K53: =LinInterpolate(F53,'21'!I7:I163,'21'!E7:E163,TRUE) -> 4.75 | M53: 3391.264262 | N53: 0 | O53: 315.5436875 | P53: =IF(LinInterpolate(F53,'21'!I7:I163,'21'!F7:F163,TRUE)>0,LinInterpolate(F53,'21'!I7:I163,'21'!F7:F163,TRUE),0) -> 0 | R53: =LinInterpolate($E$53,'21'!$B7:$B163,'21'!J7:J163,TRUE) -> 64.8 | S53: =LinInterpolate($E$53,'21'!$B7:$B163,'21'!K7:K163,TRUE) -> 64.81 | T53: =LinInterpolate($E$53,'21'!$B7:$B163,'21'!L7:L163,TRUE) -> 64.81 | U53: =LinInterpolate($E$53,'21'!$B7:$B163,'21'!M7:M163,TRUE) -> 64.81 | V53: =LinInterpolate($E$53,'21'!$B7:$B163,'21'!N7:N163,TRUE) -> 64.81 | W53: =LinInterpolate($E$53,'21'!$B7:$B163,'21'!O7:O163,TRUE) -> 64.78 | X53: =LinInterpolate($E$53,'21'!$B7:$B163,'21'!P7:P163,TRUE) -> 64.66 | Y53: 64.81 | Z53: =IF(E53<'19'!B163,Y53-AA53,0) -> 0 | AA53: =IF(E53=0,0,IF(E53<'21'!B163, LinInterpolate($G$169,$R$23:$X$23,R53:X53,TRUE),Y53)) -> 64.81
B54: 22 | C54: W.B. 2 PS | D54: SW | E54: =INDEX!E55 -> 7.8 | F54: =IF(G54<'22'!M163,LinInterpolate(G54,'22'!M7:M163,'22'!I7:I163,TRUE),100) -> 100 | G54: ='INDEX (Corrected trim 2)'!AA54 -> 86.038 | H54: =LinInterpolate(F54,'22'!I7:I163,'22'!H7:H163,TRUE) -> 88.18895 | I54: =LinInterpolate(F54,'22'!I7:I163,'22'!C7:C163,TRUE) -> 39.74 | J54: =LinInterpolate(F54,'22'!I7:I163,'22'!D7:D163,TRUE) -> 6.82 | K54: =LinInterpolate(F54,'22'!I7:I163,'22'!E7:E163,TRUE) -> 4.48 | M54: 3504.628873 | N54: 601.448639 | O54: 395.086496 | P54: =IF(LinInterpolate(F54,'22'!I7:I163,'22'!F7:F163,TRUE)>0,LinInterpolate(F54,'22'!I7:I163,'22'!F7:F163,TRUE),0) -> 0 | R54: =LinInterpolate(E54,'22'!$B7:$B163,'22'!J7:J163,TRUE) -> 85.09 | S54: =LinInterpolate(E54,'22'!$B7:$B163,'22'!K7:K163,TRUE) -> 85.85 | T54: =LinInterpolate(E54,'22'!$B7:$B163,'22'!L7:L163,TRUE) -> 86.03 | U54: =LinInterpolate(E54,'22'!$B7:$B163,'22'!M7:M163,TRUE) -> 86.038 | V54: =LinInterpolate(E54,'22'!$B7:$B163,'22'!N7:N163,TRUE) -> 86.03 | W54: =LinInterpolate(E54,'22'!$B7:$B163,'22'!O7:O163,TRUE) -> 86.03 | X54: =LinInterpolate(E54,'22'!$B7:$B163,'22'!P7:P163,TRUE) -> 86.03 | Y54: 86.038 | Z54: =IF(E54<'19'!B163,Y54-AA54,0) -> 0 | AA54: =IF(E54=0,0,IF(E54<'22'!B163, LinInterpolate($G$169,$R$23:$X$23,R54:X54,TRUE),Y54)) -> 86.038
B55: 23 | C55: W.B. 2 SB | D55: SW | E55: =INDEX!E56 -> 7.8 | F55: =IF(G55<'23'!M163,LinInterpolate(G55,'23'!M7:M163,'23'!I7:I163,TRUE),100) -> 100 | G55: ='INDEX (Corrected trim 2)'!AA55 -> 87.666 | H55: =LinInterpolate(F55,'23'!I7:I163,'23'!H7:H163,TRUE) -> 89.85765 | I55: =LinInterpolate(F55,'23'!I7:I163,'23'!C7:C163,TRUE) -> 39.83 | J55: =LinInterpolate(F55,'23'!I7:I163,'23'!D7:D163,TRUE) -> -6.78 | K55: =LinInterpolate(F55,'23'!I7:I163,'23'!E7:E163,TRUE) -> 4.42 | M55: 3579.030199 | N55: -609.234867 | O55: 397.170813 | P55: =IF(LinInterpolate(F55,'23'!I7:I163,'23'!F7:F163,TRUE)>0,LinInterpolate(F55,'23'!I7:I163,'23'!F7:F163,TRUE),0) -> 0 | R55: =LinInterpolate(E55,'23'!$B7:$B163,'23'!J7:J163,TRUE) -> 86.72 | S55: =LinInterpolate(E55,'23'!$B7:$B163,'23'!K7:K163,TRUE) -> 87.48 | T55: =LinInterpolate(E55,'23'!$B7:$B163,'23'!L7:L163,TRUE) -> 87.66 | U55: =LinInterpolate(E55,'23'!$B7:$B163,'23'!M7:M163,TRUE) -> 87.666 | V55: =LinInterpolate(E55,'23'!$B7:$B163,'23'!N7:N163,TRUE) -> 87.66 | W55: =LinInterpolate(E55,'23'!$B7:$B163,'23'!O7:O163,TRUE) -> 87.66 | X55: =LinInterpolate(E55,'23'!$B7:$B163,'23'!P7:P163,TRUE) -> 87.66 | Y55: 87.666 | Z55: =IF(E55<'19'!B163,Y55-AA55,0) -> 0 | AA55: =IF(E55=0,0,IF(E55<'23'!B163, LinInterpolate($G$169,$R$23:$X$23,R55:X55,TRUE),Y55)) -> 87.666
B56: 24 | C56: W.B. 3 PS | D56: SW | E56: =INDEX!E57 -> 5.48 | F56: =IF(G56<'24'!M117,LinInterpolate(G56,'24'!M7:M117,'24'!I7:I117,TRUE),100) -> 100 | G56: ='INDEX (Corrected trim 2)'!AA56 -> 28.05 | H56: =LinInterpolate(F56,'24'!I7:I117,'24'!H7:H117,TRUE) -> 28.75125 | I56: =LinInterpolate(F56,'24'!I7:I117,'24'!C7:C117,TRUE) -> 31.59 | J56: =LinInterpolate(F56,'24'!I7:I117,'24'!D7:D117,TRUE) -> 7.77 | K56: =LinInterpolate(F56,'24'!I7:I117,'24'!E7:E117,TRUE) -> 3.95 | M56: 908.2519875 | N56: 223.3972125 | O56: 113.5674375 | P56: =IF(LinInterpolate(F56,'24'!I7:I117,'24'!F7:F117,TRUE)>0,LinInterpolate(F56,'24'!I7:I117,'24'!F7:F117,TRUE),0) -> 0 | R56: =LinInterpolate(E56,'24'!$B7:$B117,'24'!J7:J117,TRUE) -> 27.91 | S56: =LinInterpolate(E56,'24'!$B7:$B117,'24'!K7:K117,TRUE) -> 27.95 | T56: =LinInterpolate(E56,'24'!$B7:$B117,'24'!L7:L117,TRUE) -> 28 | U56: =LinInterpolate(E56,'24'!$B7:$B117,'24'!M7:M117,TRUE) -> 28.05 | V56: =LinInterpolate(E56,'24'!$B7:$B117,'24'!N7:N117,TRUE) -> 28.03 | W56: =LinInterpolate(E56,'24'!$B7:$B117,'24'!O7:O117,TRUE) -> 28.01 | X56: =LinInterpolate(E56,'24'!$B7:$B117,'24'!P7:P117,TRUE) -> 28 | Y56: 28.05 | Z56: =IF(E56<'19'!B117,Y56-AA56,0) -> 0 | AA56: =IF(E56=0,0,IF(E56<'24'!B117,LinInterpolate($G$169,$R$23:$X$23,R56:X56,TRUE),Y56)) -> 28.05
B57: 25 | C57: W.B. 3 SB | D57: SW | E57: =INDEX!E58 -> 5.48 | F57: =IF(G57<'25'!M117,LinInterpolate(G57,'25'!M7:M117,'25'!I7:I117,TRUE),100) -> 100 | G57: ='INDEX (Corrected trim 2)'!AA57 -> 28.05 | H57: =LinInterpolate(F57,'25'!I7:I117,'25'!H7:H117,TRUE) -> 28.75125 | I57: =LinInterpolate(F57,'25'!I7:I117,'25'!C7:C117,TRUE) -> 31.59 | J57: =LinInterpolate(F57,'25'!I7:I117,'25'!D7:D117,TRUE) -> -7.77 | K57: =LinInterpolate(F57,'25'!I7:I117,'25'!E7:E117,TRUE) -> 3.95 | M57: 908.2519875 | N57: -223.3972125 | O57: 113.5674375 | P57: =IF(LinInterpolate(F57,'25'!I7:I117,'25'!F7:F117,TRUE)>0,LinInterpolate(F57,'25'!I7:I117,'25'!F7:F117,TRUE),0) -> 0 | R57: =LinInterpolate(E57,'25'!$B7:$B117,'25'!J7:J117,TRUE) -> 28.03 | S57: =LinInterpolate(E57,'25'!$B7:$B117,'25'!K7:K117,TRUE) -> 28.04 | T57: =LinInterpolate(E57,'25'!$B7:$B117,'25'!L7:L117,TRUE) -> 28.04 | U57: =LinInterpolate(E57,'25'!$B7:$B117,'25'!M7:M117,TRUE) -> 28.05 | V57: =LinInterpolate(E57,'25'!$B7:$B117,'25'!N7:N117,TRUE) -> 27.98 | W57: =LinInterpolate(E57,'25'!$B7:$B117,'25'!O7:O117,TRUE) -> 27.91 | X57: =LinInterpolate(E57,'25'!$B7:$B117,'25'!P7:P117,TRUE) -> 27.84 | Y57: 28.05 | Z57: =IF(E57<'19'!B117,Y57-AA57,0) -> 0 | AA57: =IF(E57=0,0,IF(E57<'25'!B117, LinInterpolate($G$169,$R$23:$X$23,R57:X57,TRUE),Y57)) -> 28.05
B58: 26 | C58: W.B. 3 PS DB | D58: SW | E58: =INDEX!E59 -> 1.35 | F58: =IF(G58<'26'!M34,LinInterpolate(G58,'26'!M7:M34,'26'!I7:I34,TRUE),100) -> 100 | G58: ='INDEX (Corrected trim 2)'!AA58 -> 24.36 | H58: =LinInterpolate(F58,'26'!I7:I34,'26'!H7:H34,TRUE) -> 24.969 | I58: =LinInterpolate(F58,'26'!I7:I34,'26'!C7:C34,TRUE) -> 31.46 | J58: =LinInterpolate(F58,'26'!I7:I34,'26'!D7:D34,TRUE) -> 5.71 | K58: =LinInterpolate(F58,'26'!I7:I34,'26'!E7:E34,TRUE) -> 0.63 | M58: 785.52474 | N58: 142.57299 | O58: 15.73047 | P58: =IF(LinInterpolate(F58,'26'!I7:I34,'26'!F7:F34,TRUE)>0,LinInterpolate(F58,'26'!I7:I34,'26'!F7:F34,TRUE),0) -> 0 | R58: =LinInterpolate(E58,'26'!$B7:$B34,'26'!J7:J34,TRUE) -> 24.36 | S58: =LinInterpolate(E58,'26'!$B7:$B34,'26'!K7:K34,TRUE) -> 24.36 | T58: =LinInterpolate(E58,'26'!$B7:$B34,'26'!L7:L34,TRUE) -> 24.36 | U58: =LinInterpolate(E58,'26'!$B7:$B34,'26'!M7:M34,TRUE) -> 24.36 | V58: =LinInterpolate(E58,'26'!$B7:$B34,'26'!N7:N34,TRUE) -> 24.36 | W58: =LinInterpolate(E58,'26'!$B7:$B34,'26'!O7:O34,TRUE) -> 24.36 | X58: =LinInterpolate(E58,'26'!$B7:$B34,'26'!P7:P34,TRUE) -> 24.33 | Y58: 24.36 | Z58: =IF(E58<'19'!B34,Y58-AA58,0) -> 0 | AA58: =IF(E58=0,0,IF(E58<'26'!B34,LinInterpolate($G$169,$R$23:$X$23,R58:X58,TRUE),Y58)) -> 24.36
B59: 27 | C59: W.B. 3 SB DB | D59: SW | E59: =INDEX!E60 -> 1.35 | F59: =IF(G59<'27'!M34,LinInterpolate(G59,'27'!M7:M34,'27'!I7:I34,TRUE),100) -> 100 | G59: ='INDEX (Corrected trim 2)'!AA59 -> 24.36 | H59: =LinInterpolate(F59,'27'!I7:I34,'27'!H7:H34,TRUE) -> 24.969 | I59: =LinInterpolate(F59,'27'!I7:I34,'27'!C7:C34,TRUE) -> 31.46 | J59: =LinInterpolate(F59,'27'!I7:I34,'27'!D7:D34,TRUE) -> -5.71 | K59: =LinInterpolate(F59,'27'!I7:I34,'27'!E7:E34,TRUE) -> 0.63 | M59: 785.52474 | N59: -142.57299 | O59: 15.73047 | P59: =IF(LinInterpolate(F59,'27'!I7:I34,'27'!F7:F34,TRUE)>0,LinInterpolate(F59,'27'!I7:I34,'27'!F7:F34,TRUE),0) -> 0 | R59: =LinInterpolate(E59,'27'!$B7:$B34,'27'!J7:J34,TRUE) -> 24.36 | S59: =LinInterpolate(E59,'27'!$B7:$B34,'27'!K7:K34,TRUE) -> 24.36 | T59: =LinInterpolate(E59,'27'!$B7:$B34,'27'!L7:L34,TRUE) -> 24.36 | U59: =LinInterpolate(E59,'27'!$B7:$B34,'27'!M7:M34,TRUE) -> 24.36 | V59: =LinInterpolate(E59,'27'!$B7:$B34,'27'!N7:N34,TRUE) -> 24.36 | W59: =LinInterpolate(E59,'27'!$B7:$B34,'27'!O7:O34,TRUE) -> 24.36 | X59: =LinInterpolate(E59,'27'!$B7:$B34,'27'!P7:P34,TRUE) -> 24.33 | Y59: 24.36 | Z59: =IF(E59<'19'!B34,Y59-AA59,0) -> 0 | AA59: =IF(E59=0,0,IF(E59<'27'!B34, LinInterpolate($G$169,$R$23:$X$23,R59:X59,TRUE),Y59)) -> 24.36
B60: 28 | C60: W.B. 4 PS | D60: SW | E60: =INDEX!E61 -> 5.52 | F60: =IF(G60<'28'!M118,LinInterpolate(G60,'28'!M7:M118,'28'!I7:I118,TRUE),100) -> 100 | G60: ='INDEX (Corrected trim 2)'!AA60 -> 26.7 | H60: =LinInterpolate(F60,'28'!I7:I118,'28'!H7:H118,TRUE) -> 27.3675 | I60: =LinInterpolate(F60,'28'!I7:I118,'28'!C7:C118,TRUE) -> 26.1 | J60: =LinInterpolate(F60,'28'!I7:I118,'28'!D7:D118,TRUE) -> 7.8 | K60: =LinInterpolate(F60,'28'!I7:I118,'28'!E7:E118,TRUE) -> 4.04 | M60: 714.29175 | N60: 213.4665 | O60: 110.5647 | P60: =IF(LinInterpolate(F60,'28'!I7:I118,'28'!F7:F118,TRUE)>0,LinInterpolate(F60,'28'!I7:I118,'28'!F7:F118,TRUE),0) -> 0 | R60: =LinInterpolate(E60,'28'!$B7:$B118,'28'!J7:J118,TRUE) -> 26.35 | S60: =LinInterpolate(E60,'28'!$B7:$B118,'28'!K7:K118,TRUE) -> 26.47 | T60: =LinInterpolate(E60,'28'!$B7:$B118,'28'!L7:L118,TRUE) -> 26.58 | U60: =LinInterpolate(E60,'28'!$B7:$B118,'28'!M7:M118,TRUE) -> 26.7 | V60: =LinInterpolate(E60,'28'!$B7:$B118,'28'!N7:N118,TRUE) -> 26.7 | W60: =LinInterpolate(E60,'28'!$B7:$B118,'28'!O7:O118,TRUE) -> 26.7 | X60: =LinInterpolate(E60,'28'!$B7:$B118,'28'!P7:P118,TRUE) -> 26.7 | Y60: 26.7 | Z60: =IF(E60<'19'!B118,Y60-AA60,0) -> 0 | AA60: =IF(E60=0,0,IF(E60<'28'!B118,LinInterpolate($G$169,$R$23:$X$23,R60:X60,TRUE),Y60)) -> 26.7
B61: 29 | C61: W.B. 4 SB | D61: SW | E61: =INDEX!E62 -> 5.52 | F61: =IF(G61<'29'!M118,LinInterpolate(G61,'29'!M7:M118,'29'!I7:I118,TRUE),100) -> 100 | G61: ='INDEX (Corrected trim 2)'!AA61 -> 26.7 | H61: =LinInterpolate(F61,'29'!I7:I118,'29'!H7:H118,TRUE) -> 27.3675 | I61: =LinInterpolate(F61,'29'!I7:I118,'29'!C7:C118,TRUE) -> 26.1 | J61: =LinInterpolate(F61,'29'!I7:I118,'29'!D7:D118,TRUE) -> -7.8 | K61: =LinInterpolate(F61,'29'!I7:I118,'29'!E7:E118,TRUE) -> 4.04 | M61: 714.29175 | N61: -213.4665 | O61: 110.5647 | P61: =IF(LinInterpolate(F61,'29'!I7:I118,'29'!F7:F118,TRUE)>0,LinInterpolate(F61,'29'!I7:I118,'29'!F7:F118,TRUE),0) -> 0 | R61: =LinInterpolate(E61,'29'!$B7:$B118,'29'!J7:J118,TRUE) -> 26.35 | S61: =LinInterpolate(E61,'29'!$B7:$B118,'29'!K7:K118,TRUE) -> 26.47 | T61: =LinInterpolate(E61,'29'!$B7:$B118,'29'!L7:L118,TRUE) -> 26.58 | U61: =LinInterpolate(E61,'29'!$B7:$B118,'29'!M7:M118,TRUE) -> 26.7 | V61: =LinInterpolate(E61,'29'!$B7:$B118,'29'!N7:N118,TRUE) -> 26.7 | W61: =LinInterpolate(E61,'29'!$B7:$B118,'29'!O7:O118,TRUE) -> 26.7 | X61: =LinInterpolate(E61,'29'!$B7:$B118,'29'!P7:P118,TRUE) -> 26.7 | Y61: 26.7 | Z61: =IF(E61<'19'!B118,Y61-AA61,0) -> 0 | AA61: =IF(E61=0,0,IF(E61<'29'!B118,LinInterpolate($G$169,$R$23:$X$23,R61:X61,TRUE),Y61)) -> 26.7
B62: 30 | C62: W.B. 4 PS DB | D62: SW | E62: =INDEX!E63 -> 1.3 | F62: =IF(G62<'30'!M34,LinInterpolate(G62,'30'!M7:M34,'30'!I7:I34,TRUE),100) -> 100 | G62: ='INDEX (Corrected trim 2)'!AA62 -> 45.49 | H62: =LinInterpolate(F62,'30'!I7:I34,'30'!H7:H34,TRUE) -> 46.62725 | I62: =LinInterpolate(F62,'30'!I7:I34,'30'!C7:C34,TRUE) -> 26.09 | J62: =LinInterpolate(F62,'30'!I7:I34,'30'!D7:D34,TRUE) -> 4.1 | K62: =LinInterpolate(F62,'30'!I7:I34,'30'!E7:E34,TRUE) -> 0.56 | M62: 1216.504952 | N62: 191.171725 | O62: 26.11126 | P62: =IF(LinInterpolate(F62,'30'!I7:I34,'30'!F7:F34,TRUE)>0,LinInterpolate(F62,'30'!I7:I34,'30'!F7:F34,TRUE),0) -> 0 | R62: =LinInterpolate(E62,'30'!$B7:$B34,'30'!J7:J34,TRUE) -> 45.38 | S62: =LinInterpolate(E62,'30'!$B7:$B34,'30'!K7:K34,TRUE) -> 45.46 | T62: =LinInterpolate(E62,'30'!$B7:$B34,'30'!L7:L34,TRUE) -> 45.49 | U62: =LinInterpolate(E62,'30'!$B7:$B34,'30'!M7:M34,TRUE) -> 45.49 | V62: =LinInterpolate(E62,'30'!$B7:$B34,'30'!N7:N34,TRUE) -> 45.49 | W62: =LinInterpolate(E62,'30'!$B7:$B34,'30'!O7:O34,TRUE) -> 45.49 | X62: =LinInterpolate(E62,'30'!$B7:$B34,'30'!P7:P34,TRUE) -> 45.49 | Y62: 45.49 | Z62: =IF(E62<'19'!B34,Y62-AA62,0) -> 0 | AA62: =IF(E62=0,0,IF(E62<'30'!B34, LinInterpolate($G$169,$R$23:$X$23,S62:X62,TRUE),Y62)) -> 45.49
B63: 31 | C63: W.B. 4 SB DB | D63: SW | E63: =INDEX!E64 -> 5.52 | F63: =IF(G63<'31'!M34,LinInterpolate(G63,'31'!M7:M34,'31'!I7:I34,TRUE),100) -> 100 | G63: ='INDEX (Corrected trim 2)'!AA63 -> 45.49 | H63: =LinInterpolate(F63,'31'!I7:I34,'31'!H7:H34,TRUE) -> 46.62725 | I63: =LinInterpolate(F63,'31'!I7:I34,'31'!C7:C34,TRUE) -> 26.09 | J63: =LinInterpolate(F63,'31'!I7:I34,'31'!D7:D34,TRUE) -> -4.1 | K63: =LinInterpolate(F63,'31'!I7:I34,'31'!E7:E34,TRUE) -> 0.56 | M63: 1216.504952 | N63: -191.171725 | O63: 26.11126 | P63: =IF(LinInterpolate(F63,'31'!I7:I34,'31'!F7:F34,TRUE)>0,LinInterpolate(F63,'31'!I7:I34,'31'!F7:F34,TRUE),0) -> 0 | R63: =LinInterpolate(E63,'31'!$B7:$B34,'31'!J7:J34,TRUE) -> 53.81 | S63: =LinInterpolate(E63,'31'!$B7:$B34,'31'!K7:K34,TRUE) -> 48.826 | T63: =LinInterpolate(E63,'31'!$B7:$B34,'31'!L7:L34,TRUE) -> 45.49 | U63: =LinInterpolate(E63,'31'!$B7:$B34,'31'!M7:M34,TRUE) -> 45.49 | V63: =LinInterpolate(E63,'31'!$B7:$B34,'31'!N7:N34,TRUE) -> 45.49 | W63: =LinInterpolate(E63,'31'!$B7:$B34,'31'!O7:O34,TRUE) -> 45.49 | X63: =LinInterpolate(E63,'31'!$B7:$B34,'31'!P7:P34,TRUE) -> 45.49 | Y63: 45.49 | Z63: =IF(E63<'19'!B34,Y63-AA63,0) -> 0 | AA63: =IF(E63=0,0,IF(E63<'31'!B34,LinInterpolate($G$169,$R$23:$X$23,R63:X63,TRUE),Y63)) -> 45.49
B64: 32 | C64: W.B. 5 PS | D64: SW | E64: =INDEX!E65 -> 5.52 | F64: =IF(G64<'32'!M118,LinInterpolate(G64,'32'!M7:M118,'32'!I7:I118,TRUE),100) -> 100 | G64: ='INDEX (Corrected trim 2)'!AA64 -> 23.67 | H64: =LinInterpolate(F64,'32'!I7:I118,'32'!H7:H118,TRUE) -> 24.26175 | I64: =LinInterpolate(F64,'32'!I7:I118,'32'!C7:C118,TRUE) -> 21 | J64: =LinInterpolate(F64,'32'!I7:I118,'32'!D7:D118,TRUE) -> 7.8 | K64: =LinInterpolate(F64,'32'!I7:I118,'32'!E7:E118,TRUE) -> 4.04 | M64: 509.49675 | N64: 189.24165 | O64: 98.01747 | P64: =IF(LinInterpolate(F64,'32'!I7:I118,'32'!F7:F118,TRUE)>0,LinInterpolate(F64,'32'!I7:I118,'32'!F7:F118,TRUE),0) -> 0 | R64: =LinInterpolate(E64,'32'!$B7:$B118,'32'!J7:J118,TRUE) -> 23.41 | S64: =LinInterpolate(E64,'32'!$B7:$B118,'32'!K7:K118,TRUE) -> 23.5 | T64: =LinInterpolate(E64,'32'!$B7:$B118,'32'!L7:L118,TRUE) -> 23.58 | U64: =LinInterpolate(E64,'32'!$B7:$B118,'32'!M7:M118,TRUE) -> 23.67 | V64: =LinInterpolate(E64,'32'!$B7:$B118,'32'!N7:N118,TRUE) -> 23.67 | W64: =LinInterpolate(E64,'32'!$B7:$B118,'32'!O7:O118,TRUE) -> 23.67 | X64: =LinInterpolate(E64,'32'!$B7:$B118,'32'!P7:P118,TRUE) -> 23.67 | Y64: 23.67 | Z64: =IF(E64<'19'!B118,Y64-AA64,0) -> 0 | AA64: =IF(E64=0,0,IF(E64<'32'!B118,LinInterpolate($G$169,$R$23:$X$23,R64:X64,TRUE),Y64)) -> 23.67
B65: 33 | C65: W.B. 5 SB | D65: SW | E65: =INDEX!E66 -> 5.52 | F65: =IF(G65<'33'!M118,LinInterpolate(G65,'33'!M7:M118,'33'!I7:I118,TRUE),100) -> 100 | G65: ='INDEX (Corrected trim 2)'!AA65 -> 23.67 | H65: =LinInterpolate(F65,'33'!I7:I118,'33'!H7:H118,TRUE) -> 24.26175 | I65: =LinInterpolate(F65,'33'!I7:I118,'33'!C7:C118,TRUE) -> 21 | J65: =LinInterpolate(F65,'33'!I7:I118,'33'!D7:D118,TRUE) -> -7.8 | K65: =LinInterpolate(F65,'33'!I7:I118,'33'!E7:E118,TRUE) -> 4.04 | M65: 509.49675 | N65: -189.24165 | O65: 98.01747 | P65: =IF(LinInterpolate(F65,'33'!I7:I118,'33'!F7:F118,TRUE)>0,LinInterpolate(F65,'33'!I7:I118,'33'!F7:F118,TRUE),0) -> 0 | R65: =LinInterpolate(E65,'33'!$B7:$B118,'33'!J7:J118,TRUE) -> 23.41 | S65: =LinInterpolate(E65,'33'!$B7:$B118,'33'!K7:K118,TRUE) -> 23.5 | T65: =LinInterpolate(E65,'33'!$B7:$B118,'33'!L7:L118,TRUE) -> 23.58 | U65: =LinInterpolate(E65,'33'!$B7:$B118,'33'!M7:M118,TRUE) -> 23.67 | V65: =LinInterpolate(E65,'33'!$B7:$B118,'33'!N7:N118,TRUE) -> 23.67 | W65: =LinInterpolate(E65,'33'!$B7:$B118,'33'!O7:O118,TRUE) -> 23.67 | X65: =LinInterpolate(E65,'33'!$B7:$B118,'33'!P7:P118,TRUE) -> 23.67 | Y65: 23.67 | Z65: =IF(E65<'19'!B118,Y65-AA65,0) -> 0 | AA65: =IF(E65=0,0,IF(E65<'33'!B118, LinInterpolate($G$169,$R$23:$X$23,R65:X65,TRUE),Y65)) -> 23.67
B66: 34 | C66: W.B. 5 PS DB | D66: SW | E66: =INDEX!E67 -> 1.35 | F66: =IF(G66<'34'!M34,LinInterpolate(G66,'34'!M7:M34,'34'!I7:I34,TRUE),100) -> 100 | G66: ='INDEX (Corrected trim 2)'!AA66 -> 40.16 | H66: =LinInterpolate(F66,'34'!I7:I34,'34'!H7:H34,TRUE) -> 41.164 | I66: =LinInterpolate(F66,'34'!I7:I34,'34'!C7:C34,TRUE) -> 21 | J66: =LinInterpolate(F66,'34'!I7:I34,'34'!D7:D34,TRUE) -> 4.15 | K66: =LinInterpolate(F66,'34'!I7:I34,'34'!E7:E34,TRUE) -> 0.56 | M66: 864.444 | N66: 170.8306 | O66: 23.05184 | P66: =IF(LinInterpolate(F66,'34'!I7:I34,'34'!F7:F34,TRUE)>0,LinInterpolate(F66,'34'!I7:I34,'34'!F7:F34,TRUE),0) -> 0 | R66: =LinInterpolate(E66,'34'!$B7:$B34,'34'!J7:J34,TRUE) -> 40.14 | S66: =LinInterpolate(E66,'34'!$B7:$B34,'34'!K7:K34,TRUE) -> 40.16 | T66: =LinInterpolate(E66,'34'!$B7:$B34,'34'!L7:L34,TRUE) -> 40.16 | U66: =LinInterpolate(E66,'34'!$B7:$B34,'34'!M7:M34,TRUE) -> 40.16 | V66: =LinInterpolate(E66,'34'!$B7:$B34,'34'!N7:N34,TRUE) -> 40.16 | W66: =LinInterpolate(E66,'34'!$B7:$B34,'34'!O7:O34,TRUE) -> 40.16 | X66: =LinInterpolate(E66,'34'!$B7:$B34,'34'!P7:P34,TRUE) -> 40.16 | Y66: 40.16 | Z66: =IF(E66<'19'!B34,Y66-AA66,0) -> 0 | AA66: =IF(E66=0,0,IF(E66<'34'!B34,LinInterpolate($G$169,$R$23:$X$23,R66:X66,TRUE),Y66)) -> 40.16
B67: 35 | C67: W.B. 5 SB DB | D67: SW | E67: =INDEX!E68 -> 1.35 | F67: =IF(G67<'35'!M34,LinInterpolate(G67,'35'!M7:M34,'35'!I7:I34,TRUE),100) -> 100 | G67: ='INDEX (Corrected trim 2)'!AA67 -> 40.16 | H67: =LinInterpolate(F67,'35'!I7:I34,'35'!H7:H34,TRUE) -> 41.164 | I67: =LinInterpolate(F67,'35'!I7:I34,'35'!C7:C34,TRUE) -> 21 | J67: =LinInterpolate(F67,'35'!I7:I34,'35'!D7:D34,TRUE) -> -4.15 | K67: =LinInterpolate(F67,'35'!I7:I34,'35'!E7:E34,TRUE) -> 0.56 | M67: =$H67*I67 -> 864.444 | N67: -170.8306 | O67: 23.05184 | P67: =IF(LinInterpolate(F67,'35'!I7:I34,'35'!F7:F34,TRUE)>0,LinInterpolate(F67,'35'!I7:I34,'35'!F7:F34,TRUE),0) -> 0 | R67: =LinInterpolate(E67,'35'!$B7:$B34,'35'!J7:J34,TRUE) -> 40.14 | S67: =LinInterpolate(E67,'35'!$B7:$B34,'35'!K7:K34,TRUE) -> 40.16 | T67: =LinInterpolate(E67,'35'!$B7:$B34,'35'!L7:L34,TRUE) -> 40.16 | U67: =LinInterpolate(E67,'35'!$B7:$B34,'35'!M7:M34,TRUE) -> 40.16 | V67: =LinInterpolate(E67,'35'!$B7:$B34,'35'!N7:N34,TRUE) -> 40.16 | W67: =LinInterpolate(E67,'35'!$B7:$B34,'35'!O7:O34,TRUE) -> 40.16 | X67: =LinInterpolate(E67,'35'!$B7:$B34,'35'!P7:P34,TRUE) -> 40.16 | Y67: 40.16 | Z67: =IF(E67<'19'!B34,Y67-AA67,0) -> 0 | AA67: =IF(E67=0,0,IF(E67<'35'!B34,LinInterpolate($G$169,$R$23:$X$23,R67:X67,TRUE),Y67)) -> 40.16
B68: 36 | C68: W.B. 6 PS | D68: SW | E68: =INDEX!E69 -> 5.51 | F68: =IF(G68<'36'!M118,LinInterpolate(G68,'36'!M7:M118,'36'!I7:I118,TRUE),100) -> 100 | G68: ='INDEX (Corrected trim 2)'!AA68 -> 22.31 | H68: =LinInterpolate(F68,'36'!I7:I118,'36'!H7:H118,TRUE) -> 22.8575 | I68: =LinInterpolate(F68,'36'!I7:I118,'36'!C7:C118,TRUE) -> 16.26 | J68: =LinInterpolate(F68,'36'!I7:I118,'36'!D7:D118,TRUE) -> 7.79 | K68: =LinInterpolate(F68,'36'!I7:I118,'36'!E7:E118,TRUE) -> 4.21 | M68: 371.66295 | N68: 178.059925 | O68: 96.230075 | P68: =IF(LinInterpolate(F68,'36'!I7:I118,'36'!F7:F118,TRUE)>0,LinInterpolate(F68,'36'!I7:I118,'36'!F7:F118,TRUE),0) -> 0 | R68: =LinInterpolate(E68,'36'!$B21:$B118,'36'!J21:J118,TRUE) -> 22.3 | S68: =LinInterpolate(E68,'36'!$B21:$B118,'36'!K21:K118,TRUE) -> 22.3 | T68: =LinInterpolate(E68,'36'!$B21:$B118,'36'!L21:L118,TRUE) -> 22.31 | U68: =LinInterpolate(E68,'36'!$B21:$B118,'36'!M21:M118,TRUE) -> 22.31 | V68: =LinInterpolate(E68,'36'!$B21:$B118,'36'!N21:N118,TRUE) -> 22.24 | W68: =LinInterpolate(E68,'36'!$B21:$B118,'36'!O21:O118,TRUE) -> 22.17 | X68: =LinInterpolate(E68,'36'!$B21:$B118,'36'!P21:P118,TRUE) -> 22.1 | Y68: 22.31 | Z68: =IF(E68<'19'!B118,Y68-AA68,0) -> 0 | AA68: =IF(E68=0,0,IF(E68<'36'!B118,LinInterpolate($G$169,$R$23:$X$23,R68:X68,TRUE),Y68)) -> 22.31
B69: 37 | C69: W.B. 6 SB | D69: SW | E69: =INDEX!E70 -> 5.51 | F69: =IF(G69<'37'!M118,LinInterpolate(G69,'37'!M7:M118,'37'!I7:I118,TRUE),100) -> 100 | G69: ='INDEX (Corrected trim 2)'!AA69 -> 22.31 | H69: =LinInterpolate(F69,'37'!I7:I118,'37'!H7:H118,TRUE) -> 22.8575 | I69: =LinInterpolate(F69,'37'!I7:I118,'37'!C7:C118,TRUE) -> 16.26 | J69: =LinInterpolate(F69,'37'!I7:I118,'37'!D7:D118,TRUE) -> -7.79 | K69: =LinInterpolate(F69,'37'!I7:I118,'37'!E7:E118,TRUE) -> 4.21 | M69: 371.66295 | N69: -178.059925 | O69: 96.230075 | P69: =IF(LinInterpolate(F69,'37'!I7:I118,'37'!F7:F118,TRUE)>0,LinInterpolate(F69,'37'!I7:I118,'37'!F7:F118,TRUE),0) -> 0 | R69: =LinInterpolate(E69,'37'!$B7:$B118,'37'!J7:J118,TRUE) -> 22.3 | S69: =LinInterpolate(E69,'37'!$B7:$B118,'37'!K7:K118,TRUE) -> 22.3 | T69: =LinInterpolate(E69,'37'!$B7:$B118,'37'!L7:L118,TRUE) -> 22.3 | U69: =LinInterpolate(E69,'37'!$B7:$B118,'37'!M7:M118,TRUE) -> 22.31 | V69: =LinInterpolate(E69,'37'!$B7:$B118,'37'!N7:N118,TRUE) -> 22.24 | W69: =LinInterpolate(E69,'37'!$B7:$B118,'37'!O7:O118,TRUE) -> 22.18 | X69: =LinInterpolate(E69,'37'!$B7:$B118,'37'!P7:P118,TRUE) -> 22.11 | Y69: 22.31 | Z69: =IF(E69<'19'!B118,Y69-AA69,0) -> 0 | AA69: =IF(E69=0,0,IF(E69<'37'!B118,LinInterpolate($G$169,$R$23:$X$23,R69:X69,TRUE),Y69)) -> 22.31
B70: 38 | C70: W.B. 6 PS DB | D70: SW | E70: =INDEX!E71 -> 2.2 | F70: =IF(G70<'38'!M51,LinInterpolate(G70,'38'!M7:M51,'38'!I7:I51,TRUE),100) -> 100 | G70: ='INDEX (Corrected trim 2)'!AA70 -> 39.67 | H70: =LinInterpolate(F70,'38'!I7:I51,'38'!H7:H51,TRUE) -> 40.66175 | I70: =LinInterpolate(F70,'38'!I7:I51,'38'!C7:C51,TRUE) -> 16.2 | J70: =LinInterpolate(F70,'38'!I7:I51,'38'!D7:D51,TRUE) -> 4.16 | K70: =LinInterpolate(F70,'38'!I7:I51,'38'!E7:E51,TRUE) -> 0.63 | M70: 658.72035 | N70: 169.15288 | O70: 25.6169025 | P70: =IF(LinInterpolate(F70,'38'!I7:I51,'38'!F7:F51,TRUE)>0,LinInterpolate(F70,'38'!I7:I51,'38'!F7:F51,TRUE),0) -> 0 | R70: =LinInterpolate(E70,'38'!$B7:$B51,'38'!J7:J51,TRUE) -> 39.67 | S70: =LinInterpolate(E70,'38'!$B7:$B51,'38'!K7:K51,TRUE) -> 39.67 | T70: =LinInterpolate(E70,'38'!$B7:$B51,'38'!L7:L51,TRUE) -> 39.67 | U70: =LinInterpolate(E70,'38'!$B7:$B51,'38'!M7:M51,TRUE) -> 39.67 | V70: =LinInterpolate(E70,'38'!$B7:$B51,'38'!N7:N51,TRUE) -> 39.66 | W70: =LinInterpolate(E70,'38'!$B7:$B51,'38'!O7:O51,TRUE) -> 39.66 | X70: =LinInterpolate(E70,'38'!$B7:$B51,'38'!P7:P51,TRUE) -> 39.65 | Y70: 39.67 | Z70: =IF(E70<'19'!B51,Y70-AA70,0) -> 0 | AA70: =IF(E70=0,0,IF(E70<'38'!B51, LinInterpolate($G$169,$R$23:$X$23,R70:X70,TRUE),Y70)) -> 39.67
B71: 39 | C71: W.B. 6 SB DB | D71: SW | E71: =INDEX!E72 -> 2.2 | F71: =IF(G71<'39'!M51,LinInterpolate(G71,'39'!M7:M51,'39'!I7:I51,TRUE),100) -> 100 | G71: ='INDEX (Corrected trim 2)'!AA71 -> 39.67 | H71: =LinInterpolate(F71,'39'!I7:I51,'39'!H7:H51,TRUE) -> 40.66175 | I71: =LinInterpolate(F71,'39'!I7:I51,'39'!C7:C51,TRUE) -> 16.2 | J71: =LinInterpolate(F71,'39'!I7:I51,'39'!D7:D51,TRUE) -> -4.16 | K71: =LinInterpolate(F71,'39'!I7:I51,'39'!E7:E51,TRUE) -> 0.63 | M71: 658.72035 | N71: -169.15288 | O71: 25.6169025 | P71: =IF(LinInterpolate(F71,'39'!I7:I51,'39'!F7:F51,TRUE)>0,LinInterpolate(F71,'39'!I7:I51,'39'!F7:F51,TRUE),0) -> 0 | R71: =LinInterpolate(E71,'39'!$B7:$B51,'39'!J7:J51,TRUE) -> 39.67 | S71: =LinInterpolate(E71,'39'!$B7:$B51,'39'!K7:K51,TRUE) -> 39.67 | T71: =LinInterpolate(E71,'39'!$B7:$B51,'39'!L7:L51,TRUE) -> 39.67 | U71: =LinInterpolate(E71,'39'!$B7:$B51,'39'!M7:M51,TRUE) -> 39.67 | V71: =LinInterpolate(E71,'39'!$B7:$B51,'39'!N7:N51,TRUE) -> 39.66 | W71: =LinInterpolate(E71,'39'!$B7:$B51,'39'!O7:O51,TRUE) -> 39.66 | X71: =LinInterpolate(E71,'39'!$B7:$B51,'39'!P7:P51,TRUE) -> 39.66 | Y71: 39.67 | Z71: =IF(E71<'19'!B51,Y71-AA71,0) -> 0 | AA71: =IF(E71=0,0,IF(E71<'39'!B51, LinInterpolate($G$169,$R$23:$X$23,R71:X71,TRUE),Y71)) -> 39.67
B72: 40 | C72: W.B. 7 PS | D72: SW | E72: =INDEX!E73 -> 4.64 | F72: =IF(G72<'40'!M100,LinInterpolate(G72,'40'!M7:M100,'40'!I7:I100,TRUE),100) -> 100 | G72: ='INDEX (Corrected trim 2)'!AA72 -> 17.48 | H72: =LinInterpolate(F72,'40'!I7:I100,'40'!H7:H100,TRUE) -> 17.917 | I72: =LinInterpolate(F72,'40'!I7:I100,'40'!C7:C100,TRUE) -> 11.34 | J72: =LinInterpolate(F72,'40'!I7:I100,'40'!D7:D100,TRUE) -> 7.79 | K72: =LinInterpolate(F72,'40'!I7:I100,'40'!E7:E100,TRUE) -> 4.92 | M72: 203.17878 | N72: 139.57343 | O72: 88.15164 | P72: =IF(LinInterpolate(F72,'40'!I7:I100,'40'!F7:F100,TRUE)>0,LinInterpolate(F72,'40'!I7:I100,'40'!F7:F100,TRUE),0) -> 0 | R72: =LinInterpolate(E72,'40'!$B7:$B100,'40'!J7:J100,TRUE) -> 17.48 | S72: =LinInterpolate(E72,'40'!$B7:$B100,'40'!K7:K100,TRUE) -> 17.48 | T72: =LinInterpolate(E72,'40'!$B7:$B100,'40'!L7:L100,TRUE) -> 17.48 | U72: =LinInterpolate(E72,'40'!$B7:$B100,'40'!M7:M100,TRUE) -> 17.48 | V72: =LinInterpolate(E72,'40'!$B7:$B100,'40'!N7:N100,TRUE) -> 17.37 | W72: =LinInterpolate(E72,'40'!$B7:$B100,'40'!O7:O100,TRUE) -> 17.26 | X72: =LinInterpolate(E72,'40'!$B7:$B100,'40'!P7:P100,TRUE) -> 17.15 | Y72: 17.48 | Z72: =IF(E72<'19'!B100,Y72-AA72,0) -> 0 | AA72: =IF(E72=0,0,IF(E72<'40'!B100,LinInterpolate($G$169,$R$23:$X$23,R72:X72,TRUE),Y72)) -> 17.48
B73: 41 | C73: W.B. 7 SB | D73: SW | E73: =INDEX!E74 -> 4.64 | F73: =IF(G73<'41'!M100,LinInterpolate(G73,'41'!M7:M100,'41'!I7:I100,TRUE),100) -> 100 | G73: ='INDEX (Corrected trim 2)'!AA73 -> 17.48 | H73: =LinInterpolate(F73,'41'!I7:I100,'41'!H7:H100,TRUE) -> 17.917 | I73: =LinInterpolate(F73,'41'!I7:I100,'41'!C7:C100,TRUE) -> 11.34 | J73: =LinInterpolate(F73,'41'!I7:I100,'41'!D7:D100,TRUE) -> -7.79 | K73: =LinInterpolate(F73,'41'!I7:I100,'41'!E7:E100,TRUE) -> 4.92 | M73: 203.17878 | N73: -139.57343 | O73: 88.15164 | P73: =IF(LinInterpolate(F73,'41'!I7:I100,'41'!F7:F100,TRUE)>0,LinInterpolate(F73,'41'!I7:I100,'41'!F7:F100,TRUE),0) -> 0 | R73: =LinInterpolate(E73,'41'!$B7:$B100,'41'!J7:J100,TRUE) -> 17.48 | S73: =LinInterpolate(E73,'41'!$B7:$B100,'41'!K7:K100,TRUE) -> 17.48 | T73: =LinInterpolate(E73,'41'!$B7:$B100,'41'!L7:L100,TRUE) -> 17.48 | U73: =LinInterpolate(E73,'41'!$B7:$B100,'41'!M7:M100,TRUE) -> 17.48 | V73: =LinInterpolate(E73,'41'!$B7:$B100,'41'!N7:N100,TRUE) -> 17.37 | W73: =LinInterpolate(E73,'41'!$B7:$B100,'41'!O7:O100,TRUE) -> 17.26 | X73: =LinInterpolate(E73,'41'!$B7:$B100,'41'!P7:P100,TRUE) -> 17.15 | Y73: 17.48 | Z73: =IF(E73<'19'!B100,Y73-AA73,0) -> 0 | AA73: =IF(E73=0,0,IF(E73<'41'!B100, LinInterpolate($G$169,$R$23:$X$23,R73:X73,TRUE),Y73)) -> 17.48
B74: 42 | C74: W.B. 7 PS DB | D74: SW | E74: =INDEX!E75 -> 4.55 | F74: =IF(G74<'42'!M98,LinInterpolate(G74,'42'!M7:M98,'42'!I7:I98,TRUE),100) -> 100 | G74: ='INDEX (Corrected trim 2)'!AA74 -> 35.4 | H74: =LinInterpolate(F74,'42'!I7:I98,'42'!H7:H98,TRUE) -> 36.285 | I74: =LinInterpolate(F74,'42'!I7:I98,'42'!C7:C98,TRUE) -> 10.63 | J74: =LinInterpolate(F74,'42'!I7:I98,'42'!D7:D98,TRUE) -> 5.9 | K74: =LinInterpolate(F74,'42'!I7:I98,'42'!E7:E98,TRUE) -> 1.98 | M74: 385.70955 | N74: 214.0815 | O74: 71.8443 | P74: =IF(LinInterpolate(F74,'42'!I7:I98,'42'!F7:F98,TRUE)>0,LinInterpolate(F74,'42'!I7:I98,'42'!F7:F98,TRUE),0) -> 0 | R74: =LinInterpolate(E74,'42'!$B7:$B98,'42'!J7:J98,TRUE) -> 35.4 | S74: =LinInterpolate(E74,'42'!$B7:$B98,'42'!K7:K98,TRUE) -> 35.4 | T74: =LinInterpolate(E74,'42'!$B7:$B98,'42'!L7:L98,TRUE) -> 35.4 | U74: =LinInterpolate(E74,'42'!$B7:$B98,'42'!M7:M98,TRUE) -> 35.4 | V74: =LinInterpolate(E74,'42'!$B7:$B98,'42'!N7:N98,TRUE) -> 35.39 | W74: =LinInterpolate(E74,'42'!$B7:$B98,'42'!O7:O98,TRUE) -> 35.39 | X74: =LinInterpolate(E74,'42'!$B7:$B98,'42'!P7:P98,TRUE) -> 35.38 | Y74: 35.4 | Z74: =IF(E74<'19'!B98,Y74-AA74,0) -> 0 | AA74: =IF(E74=0,0,IF(E74<'42'!B98,LinInterpolate($G$169,$R$23:$X$23,R74:X74,TRUE),Y74)) -> 35.4
B75: 43 | C75: W.B. 7 SB DB | D75: SW | E75: =INDEX!E76 -> 4.55 | F75: =IF(G75<'43'!M98,LinInterpolate(G75,'43'!M7:M98,'43'!I7:I98,TRUE),100) -> 100 | G75: ='INDEX (Corrected trim 2)'!AA75 -> 35.4 | H75: =LinInterpolate(F75,'43'!I7:I98,'43'!H7:H98,TRUE) -> 36.285 | I75: =LinInterpolate(F75,'43'!I7:I98,'43'!C7:C98,TRUE) -> 10.63 | J75: =LinInterpolate(F75,'43'!I7:I98,'43'!D7:D98,TRUE) -> -5.9 | K75: =LinInterpolate(F75,'43'!I7:I98,'43'!E7:E98,TRUE) -> 1.98 | M75: 385.70955 | N75: -214.0815 | O75: 71.8443 | P75: =IF(LinInterpolate(F75,'43'!I7:I98,'43'!F7:F98,TRUE)>0,LinInterpolate(F75,'43'!I7:I98,'43'!F7:F98,TRUE),0) -> 0 | R75: =LinInterpolate(E75,'43'!$B7:$B98,'43'!J7:J98,TRUE) -> 35.4 | S75: =LinInterpolate(E75,'43'!$B7:$B98,'43'!K7:K98,TRUE) -> 35.4 | T75: =LinInterpolate(E75,'43'!$B7:$B98,'43'!L7:L98,TRUE) -> 35.4 | U75: =LinInterpolate(E75,'43'!$B7:$B98,'43'!M7:M98,TRUE) -> 35.4 | V75: =LinInterpolate(E75,'43'!$B7:$B98,'43'!N7:N98,TRUE) -> 35.39 | W75: =LinInterpolate(E75,'43'!$B7:$B98,'43'!O7:O98,TRUE) -> 35.39 | X75: =LinInterpolate(E75,'43'!$B7:$B98,'43'!P7:P98,TRUE) -> 35.38 | Y75: 35.4 | Z75: =IF(E75<'19'!B98,Y75-AA75,0) -> 0 | AA75: =IF(E75=0,0,IF(E75<'43'!B98,LinInterpolate($G$169,$R$23:$X$23,R75:X75,TRUE),Y75)) -> 35.4
B76: 44 | C76: W.B. 8 PS DB | D76: SW | E76: =INDEX!E77 -> 2.7 | F76: =IF(G76<'44'!M61,LinInterpolate(G76,'44'!M7:M61,'44'!I7:I61,TRUE),100) -> 100 | G76: ='INDEX (Corrected trim 2)'!AA76 -> 29.71 | H76: =LinInterpolate(F76,'44'!I7:I61,'44'!H7:H61,TRUE) -> 30.45275 | I76: =LinInterpolate(F76,'44'!I7:I61,'44'!C7:C61,TRUE) -> 10.53 | J76: =LinInterpolate(F76,'44'!I7:I61,'44'!D7:D61,TRUE) -> 1.47 | K76: =LinInterpolate(F76,'44'!I7:I61,'44'!E7:E61,TRUE) -> 1.11 | M76: 320.6674575 | N76: 44.7655425 | O76: 33.8025525 | P76: =IF(LinInterpolate(F76,'44'!I7:I61,'44'!F7:F61,TRUE)>0,LinInterpolate(F76,'44'!I7:I61,'44'!F7:F61,TRUE),0) -> 0 | R76: =LinInterpolate(E76,'44'!$B7:$B61,'44'!J7:J61,TRUE) -> 29.71 | S76: =LinInterpolate(E76,'44'!$B7:$B61,'44'!K7:K61,TRUE) -> 29.71 | T76: =LinInterpolate(E76,'44'!$B7:$B61,'44'!L7:L61,TRUE) -> 29.71 | U76: =LinInterpolate(E76,'44'!$B7:$B61,'44'!M7:M61,TRUE) -> 29.71 | V76: =LinInterpolate(E76,'44'!$B7:$B61,'44'!N7:N61,TRUE) -> 29.7 | W76: =LinInterpolate(E76,'44'!$B7:$B61,'44'!O7:O61,TRUE) -> 29.67 | X76: =LinInterpolate(E76,'44'!$B7:$B61,'44'!P7:P61,TRUE) -> 29.59 | Y76: 29.71 | Z76: =IF(E76<'19'!B61,Y76-AA76,0) -> 0 | AA76: =IF(E76=0,0,IF(E76<'44'!B61,LinInterpolate($G$169,$R$23:$X$23,R76:X76,TRUE),Y76)) -> 29.71
B77: 45 | C77: W.B. 8 SB DB | D77: SW | E77: =INDEX!E78 -> 2.7 | F77: =IF(G77<'45'!M61,LinInterpolate(G77,'45'!M7:M61,'45'!I7:I61,TRUE),100) -> 100 | G77: ='INDEX (Corrected trim 2)'!AA77 -> 29.71 | H77: =LinInterpolate(F77,'45'!I7:I61,'45'!H7:H61,TRUE) -> 30.45275 | I77: =LinInterpolate(F77,'45'!I7:I61,'45'!C7:C61,TRUE) -> 10.53 | J77: =LinInterpolate(F77,'45'!I7:I61,'45'!D7:D61,TRUE) -> -1.47 | K77: =LinInterpolate(F77,'45'!I7:I61,'45'!E7:E61,TRUE) -> 1.11 | M77: 320.6674575 | N77: -44.7655425 | O77: 33.8025525 | P77: =IF(LinInterpolate(F77,'45'!I7:I61,'45'!F7:F61,TRUE)>0,LinInterpolate(F77,'45'!I7:I61,'45'!F7:F61,TRUE),0) -> 0 | R77: =LinInterpolate(E77,'45'!$B7:$B61,'45'!J7:J61,TRUE) -> 29.71 | S77: =LinInterpolate(E77,'45'!$B7:$B61,'45'!K7:K61,TRUE) -> 29.71 | T77: =LinInterpolate(E77,'45'!$B7:$B61,'45'!L7:L61,TRUE) -> 29.71 | U77: =LinInterpolate(E77,'45'!$B7:$B61,'45'!M7:M61,TRUE) -> 29.71 | V77: =LinInterpolate(E77,'45'!$B7:$B61,'45'!N7:N61,TRUE) -> 29.7 | W77: =LinInterpolate(E77,'45'!$B7:$B61,'45'!O7:O61,TRUE) -> 29.67 | X77: =LinInterpolate(E77,'45'!$B7:$B61,'45'!P7:P61,TRUE) -> 29.59 | Y77: 29.71 | Z77: =IF(E77<'19'!B61,Y77-AA77,0) -> 0 | AA77: =IF(E77=0,0,IF(E77<'45'!B61, LinInterpolate($G$169,$R$23:$X$23,R77:X77,TRUE),Y77)) -> 29.71
C78: Total BW | F78: =(G78/1032.2)*100 -> 99.98391785 | G78: =SUM((G51:G77)) -> 1032.034 | H78: =SUM((H51:H77)) -> 1057.81435 | I78: =M78/H78 -> 22.74410812 | J78: =N78/H78 -> -0.00736067534 | K78: =O78/H78 -> 3.081373373 | M78: =SUM((M51:M77)) -> 24059.04395 | N78: =SUM((N51:N77)) -> -7.786228 | O78: =SUM((O51:O77)) -> 3259.520972 | P78: =SUM((P51:P77)) -> 0 | Z78: =SUM((Z51:Z77)) -> 0 | AA78: =SUM((AA51:AA77)) -> 1032.034
C80: FW (S.G. 1.000) | R80: -1.5 | S80: -1 | T80: -0.5 | U80: 0 | V80: 0.5 | W80: 1 | X80: 1.5 | Y80: Volume | Z80: ∆Volume | AA80: Volume2
B81: 46 | C81: F.W. 1 PS | D81: FW | E81: =INDEX!E82 -> 7.77 | F81: =IF(G81<'46'!M163,LinInterpolate(G81,'46'!M7:M163,'46'!I7:I163,TRUE),100) -> 100 | G81: ='INDEX (Corrected trim 2)'!AA81 -> 73.35 | H81: =LinInterpolate(F81,'46'!I7:I163,'46'!H7:H163,TRUE) -> 73.35 | I81: =LinInterpolate(F81,'46'!I7:I163,'46'!C7:C163,TRUE) -> 47.04 | J81: =LinInterpolate(F81,'46'!I7:I163,'46'!D7:D163,TRUE) -> 2.93 | K81: =LinInterpolate(F81,'46'!I7:I163,'46'!E7:E163,TRUE) -> 4.93 | M81: =$H81*I81 -> 3450.384 | N81: 214.9155 | O81: 361.6155 | P81: =IF(LinInterpolate(F81,'46'!I7:I163,'46'!F7:F163,TRUE)>0,LinInterpolate(F81,'46'!I7:I163,'46'!F7:F163,TRUE),0) -> 0 | R81: =LinInterpolate(E81,'46'!$B7:$B163,'46'!J7:J163,TRUE) -> 72.15 | S81: =LinInterpolate(E81,'46'!$B7:$B163,'46'!K7:K163,TRUE) -> 72.55 | T81: =LinInterpolate(E81,'46'!$B7:$B163,'46'!L7:L163,TRUE) -> 72.95 | U81: =LinInterpolate(E81,'46'!$B7:$B163,'46'!M7:M163,TRUE) -> 73.35 | V81: =LinInterpolate(E81,'46'!$B7:$B163,'46'!N7:N163,TRUE) -> 73.35 | W81: =LinInterpolate(E81,'46'!$B7:$B163,'46'!O7:O163,TRUE) -> 73.35 | X81: =LinInterpolate(E81,'46'!$B7:$B163,'46'!P7:P163,TRUE) -> 73.35 | Y81: =G81 -> 73.35 | Z81: =IF(E81<'19'!B163,Y81-AA81,0) -> 0 | AA81: =IF(E81=0,0,IF(E81<'46'!B163,LinInterpolate($G$169,$R$23:$X$23,R81:X81,TRUE),Y81)) -> 73.35
B82: 47 | C82: F.W. 1 SB | D82: FW | E82: =INDEX!E83 -> 7.77 | F82: =IF(G82<'47'!M163,LinInterpolate(G82,'47'!M7:M163,'47'!I7:I163,TRUE),100) -> 100 | G82: ='INDEX (Corrected trim 2)'!AA82 -> 73.35 | H82: =LinInterpolate(F82,'47'!I7:I163,'47'!H7:H163,TRUE) -> 73.35 | I82: =LinInterpolate(F82,'47'!I7:I163,'47'!C7:C163,TRUE) -> 47.05 | J82: =LinInterpolate(F82,'47'!I7:I163,'47'!D7:D163,TRUE) -> -2.93 | K82: =LinInterpolate(F82,'47'!I7:I163,'47'!E7:E163,TRUE) -> 4.93 | M82: 3451.1175 | N82: -214.9155 | O82: 361.6155 | P82: =IF(LinInterpolate(F82,'47'!I7:I163,'47'!F7:F163,TRUE)>0,LinInterpolate(F82,'47'!I7:I163,'47'!F7:F163,TRUE),0) -> 0 | R82: =LinInterpolate(E82,'47'!$B7:$B163,'47'!J7:J163,TRUE) -> 72.15 | S82: =LinInterpolate(E82,'47'!$B7:$B163,'47'!K7:K163,TRUE) -> 72.55 | T82: =LinInterpolate(E82,'47'!$B7:$B163,'47'!L7:L163,TRUE) -> 72.95 | U82: =LinInterpolate(E82,'47'!$B7:$B163,'47'!M7:M163,TRUE) -> 73.35 | V82: =LinInterpolate(E82,'47'!$B7:$B163,'47'!N7:N163,TRUE) -> 73.35 | W82: =LinInterpolate(E82,'47'!$B7:$B163,'47'!O7:O163,TRUE) -> 73.35 | X82: =LinInterpolate(E82,'47'!$B7:$B163,'47'!P7:P163,TRUE) -> 73.35 | Y82: =G82 -> 73.35 | Z82: =IF(E82<'19'!B163,Y82-AA82,0) -> 0 | AA82: =IF(E82=0,0,IF(E82<'47'!B163, LinInterpolate($G$169,$R$23:$X$23,R82:X82,TRUE),Y82)) -> 73.35
B83: 48 | C83: F.W. 1 C | D83: FW | E83: =INDEX!E84 -> 5.77 | F83: =IF(G83<'48'!M123,LinInterpolate(G83,'48'!M7:M123,'48'!I7:I123,TRUE),100) -> 100 | G83: ='INDEX (Corrected trim 2)'!AA83 -> 103.64 | H83: =LinInterpolate(F83,'48'!I7:I123,'48'!H7:H123,TRUE) -> 103.64 | I83: =LinInterpolate(F83,'48'!I7:I123,'48'!C7:C123,TRUE) -> 15.61 | J83: =LinInterpolate(F83,'48'!I7:I123,'48'!D7:D123,TRUE) -> 0 | K83: =LinInterpolate(F83,'48'!I7:I123,'48'!E7:E123,TRUE) -> 3.91 | M83: 1617.8204 | N83: 0 | O83: 405.2324 | P83: =IF(LinInterpolate(F83,'48'!I7:I123,'48'!F7:F123,TRUE)>0,LinInterpolate(F83,'48'!I7:I123,'48'!F7:F123,TRUE),0) -> 0 | R83: =LinInterpolate(E83,'48'!$B7:$B123,'48'!J7:J123,TRUE) -> 103.63 | S83: =LinInterpolate(E83,'48'!$B7:$B123,'48'!K7:K123,TRUE) -> 103.64 | T83: =LinInterpolate(E83,'48'!$B7:$B123,'48'!L7:L123,TRUE) -> 103.64 | U83: =LinInterpolate(E83,'48'!$B7:$B123,'48'!M7:M123,TRUE) -> 103.64 | V83: =LinInterpolate(E83,'48'!$B7:$B123,'48'!N7:N123,TRUE) -> 103.28 | W83: =LinInterpolate(E83,'48'!$B7:$B123,'48'!O7:O123,TRUE) -> 102.93 | X83: =LinInterpolate(E83,'48'!$B7:$B123,'48'!P7:P123,TRUE) -> 102.58 | Y83: =G83 -> 103.64 | Z83: =IF(E83<'19'!B123,Y83-AA83,0) -> 0 | AA83: =IF(E83=0,0,IF(E83<'48'!B123, LinInterpolate($G$169,$R$23:$X$23,R83:X83,TRUE),Y83)) -> 103.64
B84: 49 | C84: F.W. 2 PS | D84: FW | E84: =INDEX!E85 -> 5.8 | F84: =IF(G84<'49'!M123,LinInterpolate(G84,'49'!M7:M123,'49'!I7:I123,TRUE),100) -> 100 | G84: ='INDEX (Corrected trim 2)'!AA84 -> 116.59 | H84: =LinInterpolate(F84,'49'!I7:I123,'49'!H7:H123,TRUE) -> 116.59 | I84: =LinInterpolate(F84,'49'!I7:I123,'49'!C7:C123,TRUE) -> 5.23 | J84: =LinInterpolate(F84,'49'!I7:I123,'49'!D7:D123,TRUE) -> 4.01 | K84: =LinInterpolate(F84,'49'!I7:I123,'49'!E7:E123,TRUE) -> 4.93 | M84: 609.7657 | N84: 467.5259 | O84: 574.7887 | P84: =IF(LinInterpolate(F84,'49'!I7:I123,'49'!F7:F123,TRUE)>0,LinInterpolate(F84,'49'!I7:I123,'49'!F7:F123,TRUE),0) -> 0 | R84: =LinInterpolate(E84,'49'!$B7:$B123,'49'!J7:J123,TRUE) -> 116.59 | S84: =LinInterpolate(E84,'49'!$B7:$B123,'49'!K7:K123,TRUE) -> 116.59 | T84: =LinInterpolate(E84,'49'!$B7:$B123,'49'!L7:L123,TRUE) -> 116.59 | U84: =LinInterpolate(E84,'49'!$B7:$B123,'49'!M7:M123,TRUE) -> 116.59 | V84: =LinInterpolate(E84,'49'!$B7:$B123,'49'!N7:N123,TRUE) -> 115.95 | W84: =LinInterpolate(E84,'49'!$B7:$B123,'49'!O7:O123,TRUE) -> 115.32 | X84: =LinInterpolate(E84,'49'!$B7:$B123,'49'!P7:P123,TRUE) -> 114.68 | Y84: =G84 -> 116.59 | Z84: =IF(E84<'19'!B123,Y84-AA84,0) -> 0 | AA84: =IF(E84=0,0,IF(E84<'49'!B123,LinInterpolate($G$169,$R$23:$X$23,R84:X84,TRUE),Y84)) -> 116.59
B85: 50 | C85: F.W. 2 SB | D85: FW | E85: =INDEX!E86 -> 5.8 | F85: =IF(G85<'50'!M123,LinInterpolate(G85,'50'!M7:M123,'50'!I7:I123,TRUE),100) -> 100 | G85: ='INDEX (Corrected trim 2)'!AA85 -> 116.59 | H85: =LinInterpolate(F85,'50'!I7:I123,'50'!H7:H123,TRUE) -> 116.59 | I85: =LinInterpolate(F85,'50'!I7:I123,'50'!C7:C123,TRUE) -> 5.23 | J85: =LinInterpolate(F85,'50'!I7:I123,'50'!D7:D123,TRUE) -> -4.01 | K85: =LinInterpolate(F85,'50'!I7:I123,'50'!E7:E123,TRUE) -> 4.93 | M85: 609.7657 | N85: -467.5259 | O85: 574.7887 | P85: =IF(LinInterpolate(F85,'50'!I7:I123,'50'!F7:F123,TRUE)>0,LinInterpolate(F85,'50'!I7:I123,'50'!F7:F123,TRUE),0) -> 0 | R85: =LinInterpolate(E85,'50'!$B7:$B123,'50'!J7:J123,TRUE) -> 116.59 | S85: =LinInterpolate(E85,'50'!$B7:$B123,'50'!K7:K123,TRUE) -> 116.59 | T85: =LinInterpolate(E85,'50'!$B7:$B123,'50'!L7:L123,TRUE) -> 116.59 | U85: =LinInterpolate(E85,'50'!$B7:$B123,'50'!M7:M123,TRUE) -> 116.59 | V85: =LinInterpolate(E85,'50'!$B7:$B123,'50'!N7:N123,TRUE) -> 115.95 | W85: =LinInterpolate(E85,'50'!$B7:$B123,'50'!O7:O123,TRUE) -> 115.32 | X85: =LinInterpolate(E85,'50'!$B7:$B123,'50'!P7:P123,TRUE) -> 114.68 | Y85: =G85 -> 116.59 | Z85: =IF(E85<'19'!B123,Y85-AA85,0) -> 0 | AA85: =IF(E85=0,0,IF(E85<'50'!B123,LinInterpolate($G$169,$R$23:$X$23,R85:X85,TRUE),Y85)) -> 116.59
C86: TOTAL FW | F86: =(G86/483.6)*100 -> 99.9834574 | G86: =SUM((G81:G85)) -> 483.52 | H86: =SUM((H81:H85)) -> 483.52 | I86: =M86/H86 -> 20.14157284 | J86: =N86/H86 -> 0 | K86: =O86/H86 -> 4.711368299 | M86: =SUM((M81:M85)) -> 9738.8533 | N86: =SUM((N81:N85)) -> 0 | O86: =SUM((O81:O85)) -> 2278.0408 | P86: =SUM((P81:P85)) -> 0 | Z86: =SUM((Z81:Z85)) -> 0 | AA86: =SUM((AA81:AA85)) -> 483.52
B88: Sheet No. | C88: Name | D88: Sort of Fluid | E88: Sounding Height | F88: % Full | G88: Volume | H88: Weight | I88: LCG | J88: TCG | K88: VCG | M88: Longitudinal | N88: Transverse | O88: Vertical | P88: FSMt
I89: Fwd of AP | J89: PS:+ | K89: Above BL | M89: Moment | N89: Moment | O89: Moment
F90: % | G90: m³ | H90: t | I90: m | J90: m | K90: m | M90: t·m | N90: t·m | O90: t·m | P90: t·m
C91: MISC (S.G. Various) | R91: -1.5 | S91: -1 | T91: -0.5 | U91: 0 | V91: 0.5 | W91: 1 | X91: 1.5 | Y91: Volume | Z91: ∆Volume | AA91: Volume2
B92: 51 | C92: DIRTY OIL | D92: DIRTY | E92: =INDEX!E93 -> 2 | F92: =IF(G92<'51'!M27,LinInterpolate(G92,'51'!M7:M27,'51'!I7:I27,TRUE),100) -> 100 | G92: ='INDEX (Corrected trim 2)'!AA92 -> 13.43 | H92: =LinInterpolate(F92,'51'!I7:I27,'51'!H7:H27,TRUE) -> 13.1614 | I92: =LinInterpolate(F92,'51'!I7:I27,'51'!C7:C27,TRUE) -> 36.93 | J92: =LinInterpolate(F92,'51'!I7:I27,'51'!D7:D27,TRUE) -> 0 | K92: =LinInterpolate(F92,'51'!I7:I27,'51'!E7:E27,TRUE) -> 0.5 | M92: =$H92*I92 -> 486.050502 | N92: 0 | O92: 6.5807 | P92: =IF(LinInterpolate(F92,'51'!I7:I27,'51'!F7:F27,TRUE)>0,LinInterpolate(F92,'51'!I7:I27,'51'!F7:F27,TRUE),0) -> 0 | R92: =LinInterpolate(E92,'51'!$B7:$B27,'51'!J7:J27,TRUE) -> 24.64 | S92: =LinInterpolate(E92,'51'!$B7:$B27,'51'!K7:K27,TRUE) -> 24.17 | T92: =LinInterpolate(E92,'51'!$B7:$B27,'51'!L7:L27,TRUE) -> 22.03 | U92: =LinInterpolate(E92,'51'!$B7:$B27,'51'!M7:M27,TRUE) -> 18.83 | V92: =LinInterpolate(E92,'51'!$B7:$B27,'51'!N7:N27,TRUE) -> 15.83 | W92: =LinInterpolate(E92,'51'!$B7:$B27,'51'!O7:O27,TRUE) -> 14.83 | X92: =LinInterpolate(E92,'51'!$B7:$B27,'51'!P7:P27,TRUE) -> 14.63 | Y92: =G92 -> 13.43 | Z92: =IF(E92<'19'!B27,Y92-AA92,0) -> 0 | AA92: =IF(E92=0,0,IF(E92<'51'!B27,LinInterpolate($G$169,$R$23:$X$23,R92:X92,TRUE),Y92)) -> 13.43
B93: 52 | C93: OILY WATER | D93: OILY | E93: =INDEX!E94 -> 2 | F93: =IF(G93<'52'!M31,LinInterpolate(G93,'52'!M7:M31,'52'!I7:I31,TRUE),100) -> 100 | G93: ='INDEX (Corrected trim 2)'!AA93 -> 30.2 | H93: =LinInterpolate(F93,'52'!I7:I31,'52'!H7:H31,TRUE) -> 29.596 | I93: =LinInterpolate(F93,'52'!I7:I31,'52'!C7:C31,TRUE) -> 37.85 | J93: =LinInterpolate(F93,'52'!I7:I31,'52'!D7:D31,TRUE) -> -4.3 | K93: =LinInterpolate(F93,'52'!I7:I31,'52'!E7:E31,TRUE) -> 0.57 | M93: 1120.2086 | N93: -127.2628 | O93: 16.86972 | P93: =IF(LinInterpolate(F93,'52'!I7:I31,'52'!F7:F31,TRUE)>0,LinInterpolate(F93,'52'!I7:I31,'52'!F7:F31,TRUE),0) -> 0 | R93: =LinInterpolate(E93,'52'!$B7:$B31,'52'!J7:J31,TRUE) -> 38.54 | S93: =LinInterpolate(E93,'52'!$B7:$B31,'52'!K7:K31,TRUE) -> 34.8 | T93: =LinInterpolate(E93,'52'!$B7:$B31,'52'!L7:L31,TRUE) -> 31.48 | U93: =LinInterpolate(E93,'52'!$B7:$B31,'52'!M7:M31,TRUE) -> 30.52 | V93: =LinInterpolate(E93,'52'!$B7:$B31,'52'!N7:N31,TRUE) -> 30.2 | W93: =LinInterpolate(E93,'52'!$B7:$B31,'52'!O7:O31,TRUE) -> 30.2 | X93: =LinInterpolate(E93,'52'!$B7:$B31,'52'!P7:P31,TRUE) -> 30.2 | Y93: 30.2 | Z93: =IF(E93<'19'!B31,Y93-AA93,0) -> 0 | AA93: =IF(E93=0,0,IF(E93<'52'!B31, LinInterpolate($G$169,$R$23:$X$23,R93:X93,TRUE),Y93)) -> 30.2
B94: 53 | C94: GREY WATER | D94: GREY | E94: =INDEX!E95 -> 2 | F94: =IF(G94<'53'!M27,LinInterpolate(G94,'53'!M7:M27,'53'!I7:I27,TRUE),100) -> 100 | G94: ='INDEX (Corrected trim 2)'!AA94 -> 31.1 | H94: =LinInterpolate(F94,'53'!I7:I27,'53'!H7:H27,TRUE) -> 30.478 | I94: =LinInterpolate(F94,'53'!I7:I27,'53'!C7:C27,TRUE) -> 41.56 | J94: =LinInterpolate(F94,'53'!I7:I27,'53'!D7:D27,TRUE) -> 0 | K94: =LinInterpolate(F94,'53'!I7:I27,'53'!E7:E27,TRUE) -> 0.5 | M94: 1266.66568 | N94: 0 | O94: 15.239 | P94: =IF(LinInterpolate(F94,'53'!I7:I27,'53'!F7:F27,TRUE)>0,LinInterpolate(F94,'53'!I7:I27,'53'!F7:F27,TRUE),0) -> 0 | R94: =LinInterpolate(E94,'53'!$B7:$B27,'53'!J7:J27,TRUE) -> 44.62 | S94: =LinInterpolate(E94,'53'!$B7:$B27,'53'!K7:K27,TRUE) -> 44.39 | T94: =LinInterpolate(E94,'53'!$B7:$B27,'53'!L7:L27,TRUE) -> 43.3 | U94: =LinInterpolate(E94,'53'!$B7:$B27,'53'!M7:M27,TRUE) -> 43.5 | V94: =LinInterpolate(E94,'53'!$B7:$B27,'53'!N7:N27,TRUE) -> 44.9 | W94: =LinInterpolate(E94,'53'!$B7:$B27,'53'!O7:O27,TRUE) -> 45.96 | X94: =LinInterpolate(E94,'53'!$B7:$B27,'53'!P7:P27,TRUE) -> 46.14 | Y94: 31.1 | Z94: =IF(E94<'19'!B27,Y94-AA94,0) -> 0 | AA94: =IF(E94=0,0,IF(E94<'53'!B27, LinInterpolate($G$169,$R$23:$X$23,R94:X94,TRUE),Y94)) -> 31.1
B95: 54 | C95: SEWAGE | D95: SEWAGE | E95: =INDEX!E96 -> 2 | F95: =IF(G95<'54'!M31,LinInterpolate(G95,'54'!M7:M31,'54'!I7:I31,TRUE),100) -> 100 | G95: ='INDEX (Corrected trim 2)'!AA95 -> 30.2 | H95: =LinInterpolate(F95,'54'!I7:I31,'54'!H7:H31,TRUE) -> 29.596 | I95: =LinInterpolate(F95,'54'!I7:I31,'54'!C7:C31,TRUE) -> 37.85 | J95: =LinInterpolate(F95,'54'!I7:I31,'54'!D7:D31,TRUE) -> 4.3 | K95: =LinInterpolate(F95,'54'!I7:I31,'54'!E7:E31,TRUE) -> 0.57 | M95: 1120.2086 | N95: 127.2628 | O95: 16.86972 | P95: =IF(LinInterpolate(F95,'54'!I7:I31,'54'!F7:F31,TRUE)>0,LinInterpolate(F95,'54'!I7:I31,'54'!F7:F31,TRUE),0) -> 0 | R95: =LinInterpolate(E95,'54'!$B7:$B31,'54'!J7:J31,TRUE) -> 38.54 | S95: =LinInterpolate(E95,'54'!$B7:$B31,'54'!K7:K31,TRUE) -> 34.8 | T95: =LinInterpolate(E95,'54'!$B7:$B31,'54'!L7:L31,TRUE) -> 31.48 | U95: =LinInterpolate(E95,'54'!$B7:$B31,'54'!M7:M31,TRUE) -> 30.52 | V95: =LinInterpolate(E95,'54'!$B7:$B31,'54'!N7:N31,TRUE) -> 30.2 | W95: =LinInterpolate(E95,'54'!$B7:$B31,'54'!O7:O31,TRUE) -> 30.2 | X95: =LinInterpolate(E95,'54'!$B7:$B31,'54'!P7:P31,TRUE) -> 30.2 | Y95: 30.2 | Z95: =IF(E95<'19'!B31,Y95-AA95,0) -> 0 | AA95: =IF(E95=0,0,IF(E95<'54'!B31,LinInterpolate($G$169,$R$23:$X$23,R95:X95,TRUE),Y95)) -> 30.2
B96: 55 | C96: SLUDGE | D96: SLUDGE | E96: =INDEX!E97 -> 2 | F96: =IF(G96<'55'!M27,LinInterpolate(G96,'55'!M7:M27,'55'!I7:I27,TRUE),100) -> 100 | G96: ='INDEX (Corrected trim 2)'!AA96 -> 19.05 | H96: =LinInterpolate(F96,'55'!I7:I27,'55'!H7:H27,TRUE) -> 18.669 | I96: =LinInterpolate(F96,'55'!I7:I27,'55'!C7:C27,TRUE) -> 31.5 | J96: =LinInterpolate(F96,'55'!I7:I27,'55'!D7:D27,TRUE) -> -1.8 | K96: =LinInterpolate(F96,'55'!I7:I27,'55'!E7:E27,TRUE) -> 0.5 | M96: 588.0735 | N96: -33.6042 | O96: 9.3345 | P96: =IF(LinInterpolate(F96,'55'!I7:I27,'55'!F7:F27,TRUE)>0,LinInterpolate(F96,'55'!I7:I27,'55'!F7:F27,TRUE),0) -> 0 | R96: =LinInterpolate(E96,'55'!$B7:$B27,'55'!J7:J27,TRUE) -> 35.59 | S96: =LinInterpolate(E96,'55'!$B7:$B27,'55'!K7:K27,TRUE) -> 35.41 | T96: =LinInterpolate(E96,'55'!$B7:$B27,'55'!L7:L27,TRUE) -> 34.18 | U96: =LinInterpolate(E96,'55'!$B7:$B27,'55'!M7:M27,TRUE) -> 26.65 | V96: =LinInterpolate(E96,'55'!$B7:$B27,'55'!N7:N27,TRUE) -> 20.85 | W96: =LinInterpolate(E96,'55'!$B7:$B27,'55'!O7:O27,TRUE) -> 20.05 | X96: =LinInterpolate(E96,'55'!$B7:$B27,'55'!P7:P27,TRUE) -> 19.85 | Y96: 19.05 | Z96: =IF(E96<'19'!B27,Y96-AA96,0) -> 0 | AA96: =IF(E96=0,0,IF(E96<'55'!B27,LinInterpolate($G$169,$R$23:$X$23,R96:X96,TRUE),Y96)) -> 19.05
B97: 56 | C97: LUBRICATION OIL PS | D97: OIL | E97: =INDEX!E98 -> 2 | F97: =IF(G97<'56'!M47,LinInterpolate(G97,'56'!M7:M47,'56'!I7:I47,TRUE),100) -> 100 | G97: ='INDEX (Corrected trim 2)'!AA97 -> 10.58 | H97: =LinInterpolate(F97,'56'!I7:I47,'56'!H7:H47,TRUE) -> 9.522 | I97: =LinInterpolate(F97,'56'!I7:I47,'56'!C7:C47,TRUE) -> 30.3 | J97: =LinInterpolate(F97,'56'!I7:I47,'56'!D7:D47,TRUE) -> -0.9 | K97: =LinInterpolate(F97,'56'!I7:I47,'56'!E7:E47,TRUE) -> 5.8 | M97: 288.5166 | N97: -8.5698 | O97: 55.2276 | P97: =IF(LinInterpolate(F97,'56'!I7:I47,'56'!F7:F47,TRUE)>0,LinInterpolate(F97,'56'!I7:I47,'56'!F7:F47,TRUE),0) -> 0 | R97: =LinInterpolate(E97,'56'!$B7:$B47,'56'!J7:J47,TRUE) -> 10.595 | S97: =LinInterpolate(E97,'56'!$B7:$B47,'56'!K7:K47,TRUE) -> 10.61 | T97: =LinInterpolate(E97,'56'!$B7:$B47,'56'!L7:L47,TRUE) -> 10.64 | U97: =LinInterpolate(E97,'56'!$B7:$B47,'56'!M7:M47,TRUE) -> 10.73 | V97: =LinInterpolate(E97,'56'!$B7:$B47,'56'!N7:N47,TRUE) -> 10.685 | W97: =LinInterpolate(E97,'56'!$B7:$B47,'56'!O7:O47,TRUE) -> 10.615 | X97: =LinInterpolate(E97,'56'!$B7:$B47,'56'!P7:P47,TRUE) -> 10.53 | Y97: 10.58 | Z97: =IF(E97<'19'!B47,Y97-AA97,0) -> 0 | AA97: =IF(E97=0,0,IF(E97<'56'!B47, LinInterpolate($G$169,$R$23:$X$23,R97:X97,TRUE),Y97)) -> 10.58
B98: 57 | C98: LUBRICATION OIL SB | D98: OIL | E98: =INDEX!E99 -> 2 | F98: =IF(G98<'57'!M47,LinInterpolate(G98,'57'!M7:M47,'57'!I7:I47,TRUE),100) -> 100 | G98: ='INDEX (Corrected trim 2)'!AA98 -> 10.58 | H98: =LinInterpolate(F98,'57'!I7:I47,'57'!H7:H47,TRUE) -> 9.522 | I98: =LinInterpolate(F98,'57'!I7:I47,'57'!C7:C47,TRUE) -> 30.3 | J98: =LinInterpolate(F98,'57'!I7:I47,'57'!D7:D47,TRUE) -> -2.7 | K98: =LinInterpolate(F98,'57'!I7:I47,'57'!E7:E47,TRUE) -> 5.8 | M98: 288.5166 | N98: -25.7094 | O98: 55.2276 | P98: =IF(LinInterpolate(F98,'57'!I7:I47,'57'!F7:F47,TRUE)>0,LinInterpolate(F98,'57'!I7:I47,'57'!F7:F47,TRUE),0) -> 0 | R98: =LinInterpolate(E98,'57'!$B7:$B47,'57'!J7:J47,TRUE) -> 10.595 | S98: =LinInterpolate(E98,'57'!$B7:$B47,'57'!K7:K47,TRUE) -> 10.61 | T98: =LinInterpolate(E98,'57'!$B7:$B47,'57'!L7:L47,TRUE) -> 10.64 | U98: =LinInterpolate(E98,'57'!$B7:$B47,'57'!M7:M47,TRUE) -> 10.73 | V98: =LinInterpolate(E98,'57'!$B7:$B47,'57'!N7:N47,TRUE) -> 10.685 | W98: =LinInterpolate(E98,'57'!$B7:$B47,'57'!O7:O47,TRUE) -> 10.615 | X98: =LinInterpolate(E98,'57'!$B7:$B47,'57'!P7:P47,TRUE) -> 10.53 | Y98: 10.58 | Z98: =IF(E98<'19'!B47,Y98-AA98,0) -> 0 | AA98: =IF(E98=0,0,IF(E98<'57'!B47,LinInterpolate($G$169,$R$23:$X$23,R98:X98,TRUE),Y98)) -> 10.58
B99: 58 | C99: THERMAL OIL | D99: OIL | E99: =INDEX!E100 -> 2 | F99: =IF(G99<'58'!M47,LinInterpolate(G99,'58'!M7:M47,'58'!I7:I47,TRUE),100) -> 100 | G99: ='INDEX (Corrected trim 2)'!AA99 -> 10.58 | H99: =LinInterpolate(F99,'58'!I7:I47,'58'!H7:H47,TRUE) -> 10.3684 | I99: =LinInterpolate(F99,'58'!I7:I47,'58'!C7:C47,TRUE) -> 30.3 | J99: =LinInterpolate(F99,'58'!I7:I47,'58'!D7:D47,TRUE) -> 0.9 | K99: =LinInterpolate(F99,'58'!I7:I47,'58'!E7:E47,TRUE) -> 5.78 | M99: 314.16252 | N99: 9.33156 | O99: 59.929352 | P99: =IF(LinInterpolate(F99,'58'!I7:I47,'58'!F7:F47,TRUE)>0,LinInterpolate(F99,'58'!I7:I47,'58'!F7:F47,TRUE),0) -> 0 | R99: =LinInterpolate(E99,'58'!$B7:$B47,'58'!J7:J47,TRUE) -> 10.58 | S99: =LinInterpolate(E99,'58'!$B7:$B47,'58'!K7:K47,TRUE) -> 10.58 | T99: =LinInterpolate(E99,'58'!$B7:$B47,'58'!L7:L47,TRUE) -> 10.58 | U99: =LinInterpolate(E99,'58'!$B7:$B47,'58'!M7:M47,TRUE) -> 10.58 | V99: =LinInterpolate(E99,'58'!$B7:$B47,'58'!N7:N47,TRUE) -> 10.58 | W99: =LinInterpolate(E99,'58'!$B7:$B47,'58'!O7:O47,TRUE) -> 10.58 | X99: =LinInterpolate(E99,'58'!$B7:$B47,'58'!P7:P47,TRUE) -> 10.58 | Y99: 10.58 | Z99: =IF(E99<'19'!B47,Y99-AA99,0) -> 0 | AA99: =IF(E99=0,0,IF(E99<'58'!B47, LinInterpolate($G$169,$R$23:$X$23,R99:X99,TRUE),Y99)) -> 10.58
C100: Total MISC | F100: =(G100/147.7)*100 -> 105.4299255 | G100: =SUM((G92:G99)) -> 155.72 | H100: =SUM((H92:H99)) -> 150.9128 | I100: =M100/H100 -> 36.26201755 | J100: =N100/H100 -> -0.3879845845 | K100: =O100/H100 -> 1.559034038 | M100: =SUM((M92:M99)) -> 5472.402602 | N100: =SUM((N92:N99)) -> -58.55184 | O100: =SUM((O92:O99)) -> 235.278192 | P100: =SUM((P92:P99)) -> 0 | Z100: =SUM((Z92:Z99)) -> 0 | AA100: =SUM((AA92:AA99)) -> 155.72
C102: Total in all tanks | F102: =(G102/3086.976667)*100 -> 97.52919136 | G102: =G100+G86+G78+G45+G32 -> 3010.703381 | H102: =H100+H86+H78+H45+H32 -> 2963.647617 | I102: =M102/H102 -> 22.29465288 | J102: =N102/H102 -> -0.01243355242 | K102: =O102/H102 -> 3.669793798 | M102: =M100+M86+M78+M45+M32 -> 66073.49489 | N102: =N100+N86+N78+N45+N32 -> -36.848668 | O102: =O100+O86+O78+O45+O32 -> 10875.97565 | P102: =P100+P86+P78+P45+P32 -> 13.98440737 | Z102: =Z100+Z86+Z78+Z45+Z32 -> 0 | AA102: =AA100+AA86+AA78+AA45+AA32 -> 3010.703381
C104: Name | H104: Weight | I104: LCG | J104: TCG | K104: VCG | M104: Longitudinal | N104: Transverse | O104: Vertical | P104: FSMt
I105: Fwd of AP | J105: PS:+ | K105: Above BL | M105: Moment | N105: Moment | O105: Moment
H106: t | I106: m | J106: m | K106: m | M106: t·m | N106: t·m | O106: t·m | P106: t·m
C108: (DECK) LOADS
C109: Name | H109: Weight | I109: LCG | J109: TCG | K109: VCG | M109: Longitudinal | N109: Transverse | O109: Vertical | P109: FSMt
I110: Fwd of AP | J110: PS:+ | K110: Above BL | M110: Moment | N110: Moment | O110: Moment
H111: t | I111: m | J111: m | K111: m | M111: t·m | N111: t·m | O111: t·m | P111: t·m
C112: =INDEX!C113 -> Deck load 1 | D112: =INDEX!#REF! ->  | E112: =INDEX!#REF! ->  | F112: =INDEX!#REF! ->  | G112: =INDEX!#REF! ->  | H112: =INDEX!H113 -> 5 | I112: =INDEX!I113 -> 5 | J112: =INDEX!J113 -> 1 | K112: =INDEX!K113 -> 7 | M112: =$H112*I112 -> 25 | N112: =$H112*J112 -> 5 | O112: =$H112*K112 -> 35
C113: =INDEX!C114 -> Deck load 2 | D113: =INDEX!#REF! ->  | E113: =INDEX!#REF! ->  | F113: =INDEX!#REF! ->  | G113: =INDEX!#REF! ->  | H113: =INDEX!H114 -> 5 | I113: =INDEX!I114 -> 5 | J113: =INDEX!J114 -> -1 | K113: =INDEX!K114 -> 7 | M113: =$H113*I113 -> 25 | N113: =$H113*J113 -> -5 | O113: =$H113*K113 -> 35
C114: =INDEX!C115 -> Deck load 3 | D114: =INDEX!#REF! ->  | E114: =INDEX!#REF! ->  | F114: =INDEX!#REF! ->  | G114: =INDEX!#REF! ->  | H114: =INDEX!H115 -> 10 | I114: =INDEX!I115 -> 6 | J114: =INDEX!J115 -> 1 | K114: =INDEX!K115 -> 7 | M114: =$H114*I114 -> 60 | N114: =$H114*J114 -> 10 | O114: =$H114*K114 -> 70
C115: =INDEX!C116 -> Deck load 4 | D115: =INDEX!#REF! ->  | E115: =INDEX!#REF! ->  | F115: =INDEX!#REF! ->  | G115: =INDEX!#REF! ->  | H115: =INDEX!H116 -> 10 | I115: =INDEX!I116 -> 6 | J115: =INDEX!J116 -> -1 | K115: =INDEX!K116 -> 7 | M115: =$H115*I115 -> 60 | N115: =$H115*J115 -> -10 | O115: =$H115*K115 -> 70
C116: =INDEX!C117 -> Deck load 5 | D116: =INDEX!#REF! ->  | E116: =INDEX!#REF! ->  | F116: =INDEX!#REF! ->  | G116: =INDEX!#REF! ->  | H116: =INDEX!H117 -> 15 | I116: =INDEX!I117 -> 7 | J116: =INDEX!J117 -> 1 | K116: =INDEX!K117 -> 7 | M116: =$H116*I116 -> 105 | N116: =$H116*J116 -> 15 | O116: =$H116*K116 -> 105
C117: =INDEX!C118 -> Deck load 6 | D117: =INDEX!#REF! ->  | E117: =INDEX!#REF! ->  | F117: =INDEX!#REF! ->  | G117: =INDEX!#REF! ->  | H117: =INDEX!H118 -> 15 | I117: =INDEX!I118 -> 7 | J117: =INDEX!J118 -> -1 | K117: =INDEX!K118 -> 7 | M117: =$H117*I117 -> 105 | N117: =$H117*J117 -> -15 | O117: =$H117*K117 -> 105
C118: =INDEX!C119 -> Deck load 7 | D118: =INDEX!#REF! ->  | E118: =INDEX!#REF! ->  | F118: =INDEX!#REF! ->  | G118: =INDEX!#REF! ->  | H118: =INDEX!H119 -> 5 | I118: =INDEX!I119 -> 8 | J118: =INDEX!J119 -> 1 | K118: =INDEX!K119 -> 7 | M118: =$H118*I118 -> 40 | N118: =$H118*J118 -> 5 | O118: =$H118*K118 -> 35
C119: =INDEX!C120 -> Deck load 8 | D119: =INDEX!#REF! ->  | E119: =INDEX!#REF! ->  | F119: =INDEX!#REF! ->  | G119: =INDEX!#REF! ->  | H119: =INDEX!H120 -> 5 | I119: =INDEX!I120 -> 8 | J119: =INDEX!J120 -> -1 | K119: =INDEX!K120 -> 7 | M119: =$H119*I119 -> 40 | N119: =$H119*J119 -> -5 | O119: =$H119*K119 -> 35
C121: Total Remaining | H121: =SUM(H112:H120) -> 70 | I121: =M121/H121 -> 6.571428571 | J121: =N121/H121 -> 0 | K121: =O121/H121 -> 7 | M121: =SUM(M112:M120) -> 460 | N121: =SUM(N112:N120) -> 0 | O121: =SUM(O112:O120) -> 490
C124: Calculation Results
C126: Ship weight | I126: LCG | J126: TCG | K126: VCG | L126: Total Moments | P126: FSMt / ∆
H127: t | I127: m | J127: m | K127: m | L127: t·m | N127: t·m | O127: t·m | P127: m
C128: Displacement | H128: =H129+H21 -> 4733.647617 | I128: =L128/H128 -> 24.82937143 | J128: =N128/H128 -> -0.007784412989 | K128: =O128/H128 -> 4.91502062 | L128: =L129+M21 -> 117533.4949 | N128: =N129+N21 -> -36.848668 | O128: =O129+O21 -> 23265.97565 | P128: =P102/H128 -> 0.002954256105
C129: Total Deadweight | H129: =H121+H102 -> 3033.647617 | I129: =L129/H129 -> 21.93184683 | J129: =N129/H129 -> -0.01214665401 | K129: =O129/H129 -> 3.746636749 | L129: =M121+M102 -> 66533.49489 | N129: =N121+N102 -> -36.848668 | O129: =O121+O102 -> 11365.97565
C131: Longitudinal Stability
C132: Sheet used for calculation data: | D132: Hydrostatics
C134: Trim | D134: Draft | E134: Displ. | F134: LCB | G134: VCB | H134: ϕ | I134: LCG' | J134: LCB' | K134: LCG'-LCB' | M134: LCF | N134: KM
D135: Moulded | F135: Fwd of AP | I135: LCG + tanϕ * VCG | J135: LCB + tanϕ * VCB | M135: Fwd of AP
C136: m | D136: m | E136: t | F136: m | G136: m | H136: rad | I136: m | J136: m | K136: m | M136: m | N136: m
C137: -1.5 | D137: =LinInterpolate(E137,Hydrostatics!D6:D86,Hydrostatics!C6:C86,TRUE) -> 6.64818642 | E137: =$H$128 -> 4733.647617 | F137: =LinInterpolate($E137,Hydrostatics!$D6:$D86,Hydrostatics!I6:I86,TRUE) -> 23.42818642 | G137: =LinInterpolate($E137,Hydrostatics!$D6:$D86,Hydrostatics!J6:J86,TRUE) -> 3.629274568 | H137: =ATAN(C137/($G$172)) -> -0.02840145184 | I137: =$I$128+((TAN(H137))*$K$128) -> 24.68974016 | J137: =F137+((TAN(H137))*G137) -> 23.32508203 | K137: =I137-J137 -> 1.36465813 | M137: =LinInterpolate($E137,Hydrostatics!$D6:$D86,Hydrostatics!K6:K86,TRUE) -> 33.98134544 | N137: =LinInterpolate($E137,Hydrostatics!$D6:$D86,Hydrostatics!E6:E86,TRUE) -> 5.574352592
C138: -1.4 | D138: =LinInterpolate(E138,Hydrostatics!D88:D168,Hydrostatics!C88:C168,TRUE) -> 6.634409241 | E138: 4733.647617 | F138: =LinInterpolate($E138,Hydrostatics!$D88:$D168,Hydrostatics!I88:I168,TRUE) -> 23.44440924 | G138: =LinInterpolate($E138,Hydrostatics!$D88:$D168,Hydrostatics!J88:J168,TRUE) -> 3.626881848 | H138: -0.02650894028 | I138: 24.69904891 | J138: 23.34824192 | K138: 1.35080699 | M138: =LinInterpolate($E138,Hydrostatics!$D88:$D168,Hydrostatics!K88:K168,TRUE) -> 33.57678417 | N138: =LinInterpolate($E138,Hydrostatics!$D88:$D168,Hydrostatics!E88:E168,TRUE) -> 5.644299669
C139: -1.3 | D139: =LinInterpolate(E139,Hydrostatics!D170:D250,Hydrostatics!C170:C250,TRUE) -> 6.621172763 | E139: 4733.647617 | F139: =LinInterpolate($E139,Hydrostatics!$D170:$D250,Hydrostatics!I170:I250,TRUE) -> 23.46117276 | G139: =LinInterpolate($E139,Hydrostatics!$D170:$D250,Hydrostatics!J170:J250,TRUE) -> 3.628469105 | H139: -0.02461623877 | I139: 24.70835766 | J139: 23.37183546 | K139: 1.336522205 | M139: =LinInterpolate($E139,Hydrostatics!$D170:$D250,Hydrostatics!K170:K250,TRUE) -> 33.24381339 | N139: =LinInterpolate($E139,Hydrostatics!$D170:$D250,Hydrostatics!E170:E250,TRUE) -> 5.704950816
C140: -1.2 | D140: =LinInterpolate(E140,Hydrostatics!D252:D332,Hydrostatics!C252:C332,TRUE) -> 6.608598416 | E140: 4733.647617 | F140: =LinInterpolate($E140,Hydrostatics!$D252:$D332,Hydrostatics!I252:I332,TRUE) -> 23.46859842 | G140: =LinInterpolate($E140,Hydrostatics!$D252:$D332,Hydrostatics!J252:J332,TRUE) -> 3.623439366 | H140: -0.02272336084 | I140: 24.71766641 | J140: 23.38624752 | K140: 1.331418891 | M140: =LinInterpolate($E140,Hydrostatics!$D252:$D332,Hydrostatics!K252:K332,TRUE) -> 32.82821085 | N140: =LinInterpolate($E140,Hydrostatics!$D252:$D332,Hydrostatics!E252:E332,TRUE) -> 5.777644119
C141: -1.1 | D141: =LinInterpolate(E141,Hydrostatics!D334:D414,Hydrostatics!C334:C414,TRUE) -> 6.596940032 | E141: 4733.647617 | F141: =LinInterpolate($E141,Hydrostatics!$D334:$D414,Hydrostatics!I334:I414,TRUE) -> 23.48755203 | G141: =LinInterpolate($E141,Hydrostatics!$D334:$D414,Hydrostatics!J334:J414,TRUE) -> 3.628776013 | H141: -0.02083032004 | I141: 24.72697516 | J141: 23.41195253 | K141: 1.315022638 | M141: =LinInterpolate($E141,Hydrostatics!$D334:$D414,Hydrostatics!K334:K414,TRUE) -> 32.22900875 | N141: =LinInterpolate($E141,Hydrostatics!$D334:$D414,Hydrostatics!E334:E414,TRUE) -> 5.870403891
C142: -1 | D142: =LinInterpolate(E142,Hydrostatics!D416:D496,Hydrostatics!C416:C496,TRUE) -> 6.586823687 | E142: 4733.647617 | F142: =LinInterpolate($E142,Hydrostatics!$D416:$D496,Hydrostatics!I416:I496,TRUE) -> 23.50945895 | G142: =LinInterpolate($E142,Hydrostatics!$D416:$D496,Hydrostatics!J416:J496,TRUE) -> 3.624729475 | H142: -0.0189371299 | I142: 24.73628391 | J142: 23.44080877 | K142: 1.295475144 | M142: =LinInterpolate($E142,Hydrostatics!$D416:$D496,Hydrostatics!K416:K496,TRUE) -> 31.5258627 | N142: =LinInterpolate($E142,Hydrostatics!$D416:$D496,Hydrostatics!E416:E496,TRUE) -> 5.987434727
C143: -0.9 | D143: =LinInterpolate(E143,Hydrostatics!D498:D578,Hydrostatics!C498:C578,TRUE) -> 6.57808869 | E143: 4733.647617 | F143: =LinInterpolate($E143,Hydrostatics!$D498:$D578,Hydrostatics!I498:I578,TRUE) -> 23.53247095 | G143: =LinInterpolate($E143,Hydrostatics!$D498:$D578,Hydrostatics!J498:J578,TRUE) -> 3.625617738 | H143: -0.01704380399 | I143: 24.74559267 | J143: 23.47067065 | K143: 1.274922016 | M143: =LinInterpolate($E143,Hydrostatics!$D498:$D578,Hydrostatics!K498:K578,TRUE) -> 30.66827843 | N143: =LinInterpolate($E143,Hydrostatics!$D498:$D578,Hydrostatics!E498:E578,TRUE) -> 6.130792028
C144: -0.8 | D144: =LinInterpolate(E144,Hydrostatics!D580:D660,Hydrostatics!C580:C660,TRUE) -> 6.571061668 | E144: 4733.647617 | F144: =LinInterpolate($E144,Hydrostatics!$D580:$D660,Hydrostatics!I580:I660,TRUE) -> 23.55684933 | G144: =LinInterpolate($E144,Hydrostatics!$D580:$D660,Hydrostatics!J580:J660,TRUE) -> 3.628424667 | H144: -0.01515035587 | I144: 24.75490142 | J144: 23.5018732 | K144: 1.253028214 | M144: =LinInterpolate($E144,Hydrostatics!$D580:$D660,Hydrostatics!K580:K660,TRUE) -> 29.62770638 | N144: =LinInterpolate($E144,Hydrostatics!$D580:$D660,Hydrostatics!E580:E660,TRUE) -> 6.307842327
C145: -0.7 | D145: =LinInterpolate(E145,Hydrostatics!D662:D742,Hydrostatics!C662:C742,TRUE) -> 6.566017984 | E145: 4733.647617 | F145: =LinInterpolate($E145,Hydrostatics!$D662:$D742,Hydrostatics!I662:I742,TRUE) -> 23.58961079 | G145: =LinInterpolate($E145,Hydrostatics!$D662:$D742,Hydrostatics!J662:J742,TRUE) -> 3.626407193 | H145: -0.01325679911 | I145: 24.76421017 | J145: 23.54153342 | K145: 1.222676746 | M145: =LinInterpolate($E145,Hydrostatics!$D662:$D742,Hydrostatics!K662:K742,TRUE) -> 28.39110855 | N145: =LinInterpolate($E145,Hydrostatics!$D662:$D742,Hydrostatics!E662:E742,TRUE) -> 6.510688502
C146: -0.6 | D146: =LinInterpolate(E146,Hydrostatics!D744:D824,Hydrostatics!C744:C824,TRUE) -> 6.563717841 | E146: 4733.647617 | F146: =LinInterpolate($E146,Hydrostatics!$D744:$D824,Hydrostatics!I744:I824,TRUE) -> 23.6282307 | G146: =LinInterpolate($E146,Hydrostatics!$D744:$D824,Hydrostatics!J744:J824,TRUE) -> 3.625487136 | H146: -0.01136314726 | I146: 24.77351892 | J146: 23.58703199 | K146: 1.186486932 | M146: =LinInterpolate($E146,Hydrostatics!$D744:$D824,Hydrostatics!K744:K824,TRUE) -> 26.75455928 | N146: =LinInterpolate($E146,Hydrostatics!$D744:$D824,Hydrostatics!E744:E824,TRUE) -> 6.783975113
C147: -0.5 | D147: =LinInterpolate(E147,Hydrostatics!D826:D906,Hydrostatics!C826:C906,TRUE) -> 6.564852902 | E147: 4733.647617 | F147: =LinInterpolate($E147,Hydrostatics!$D826:$D906,Hydrostatics!I826:I906,TRUE) -> 23.68297058 | G147: =LinInterpolate($E147,Hydrostatics!$D826:$D906,Hydrostatics!J826:J906,TRUE) -> 3.625941161 | H147: -0.009469413919 | I147: 24.78282767 | J147: 23.64863402 | K147: 1.134193654 | M147: =LinInterpolate($E147,Hydrostatics!$D826:$D906,Hydrostatics!K826:K906,TRUE) -> 24.79879195 | N147: =LinInterpolate($E147,Hydrostatics!$D826:$D906,Hydrostatics!E826:E906,TRUE) -> 7.10929446
C148: -0.4 | D148: =LinInterpolate(E148,Hydrostatics!D908:D988,Hydrostatics!C908:C988,TRUE) -> 6.570404206 | E148: 4733.647617 | F148: =LinInterpolate($E148,Hydrostatics!$D908:$D988,Hydrostatics!I908:I988,TRUE) -> 23.75183832 | G148: =LinInterpolate($E148,Hydrostatics!$D908:$D988,Hydrostatics!J908:J988,TRUE) -> 3.622242524 | H148: -0.007575612651 | I148: 24.79213642 | J148: 23.72439709 | K148: 1.067739335 | M148: =LinInterpolate($E148,Hydrostatics!$D908:$D988,Hydrostatics!K908:K988,TRUE) -> 22.67267433 | N148: =LinInterpolate($E148,Hydrostatics!$D908:$D988,Hydrostatics!E908:E988,TRUE) -> 7.453089715
C149: -0.3 | D149: =LinInterpolate(E149,Hydrostatics!D990:D1070,Hydrostatics!C990:C1070,TRUE) -> 6.578544614 | E149: 4733.647617 | F149: =LinInterpolate($E149,Hydrostatics!$D990:$D1070,Hydrostatics!I990:I1070,TRUE) -> 23.82858215 | G149: =LinInterpolate($E149,Hydrostatics!$D990:$D1070,Hydrostatics!J990:J1070,TRUE) -> 3.621417846 | H149: -0.005681757041 | I149: 24.80144517 | J149: 23.80800592 | K149: 0.993439256 | M149: =LinInterpolate($E149,Hydrostatics!$D990:$D1070,Hydrostatics!K990:K1070,TRUE) -> 21.78283569 | N149: =LinInterpolate($E149,Hydrostatics!$D990:$D1070,Hydrostatics!E990:E1070,TRUE) -> 7.61
C150: -0.2 | D150: =LinInterpolate(E150,Hydrostatics!D1072:D1152,Hydrostatics!C1072:C1152,TRUE) -> 6.587244514 | E150: 4733.647617 | F150: =LinInterpolate($E150,Hydrostatics!$D1072:$D1152,Hydrostatics!I1072:I1152,TRUE) -> 23.91510219 | G150: =LinInterpolate($E150,Hydrostatics!$D1072:$D1152,Hydrostatics!J1072:J1152,TRUE) -> 3.622346708 | H150: -0.003787860672 | I150: 24.81075392 | J150: 23.90138118 | K150: 0.9093727396 | M150: =LinInterpolate($E150,Hydrostatics!$D1072:$D1152,Hydrostatics!K1072:K1152,TRUE) -> 21.81979561 | N150: =LinInterpolate($E150,Hydrostatics!$D1072:$D1152,Hydrostatics!E1072:E1152,TRUE) -> 7.61
C151: -0.1 | D151: =LinInterpolate(E151,Hydrostatics!D1154:D1234,Hydrostatics!C1154:C1234,TRUE) -> 6.595896199 | E151: 4733.647617 | F151: =LinInterpolate($E151,Hydrostatics!$D1154:$D1234,Hydrostatics!I1154:I1234,TRUE) -> 24.00164152 | G151: =LinInterpolate($E151,Hydrostatics!$D1154:$D1234,Hydrostatics!J1154:J1234,TRUE) -> 3.61835848 | H151: -0.001893937129 | I151: 24.82006267 | J151: 23.99478857 | K151: 0.8252741063 | M151: =LinInterpolate($E151,Hydrostatics!$D1154:$D1234,Hydrostatics!K1154:K1234,TRUE) -> 21.85671696 | N151: =LinInterpolate($E151,Hydrostatics!$D1154:$D1234,Hydrostatics!E1154:E1234,TRUE) -> 7.62
C152: 0 | D152: =LinInterpolate(E152,Hydrostatics!D1236:D1316,Hydrostatics!C1236:C1316,TRUE) -> 6.60442558 | E152: 4733.647617 | F152: =LinInterpolate($E152,Hydrostatics!$D1236:$D1316,Hydrostatics!I1236:I1316,TRUE) -> 24.08822977 | G152: =LinInterpolate($E152,Hydrostatics!$D1236:$D1316,Hydrostatics!J1236:J1316,TRUE) -> 3.622655348 | H152: 0 | I152: 24.82937143 | J152: 24.08822977 | K152: 0.7411416581 | M152: =LinInterpolate($E152,Hydrostatics!$D1236:$D1316,Hydrostatics!K1236:K1316,TRUE) -> 21.89354046 | N152: =LinInterpolate($E152,Hydrostatics!$D1236:$D1316,Hydrostatics!E1236:E1316,TRUE) -> 7.62
C153: 0.1 | D153: =LinInterpolate(E153,Hydrostatics!D1318:D1398,Hydrostatics!C1318:C1398,TRUE) -> 6.612916798 | E153: 4733.647617 | F153: =LinInterpolate($E153,Hydrostatics!$D1318:$D1398,Hydrostatics!I1318:I1398,TRUE) -> 24.17483328 | G153: =LinInterpolate($E153,Hydrostatics!$D1318:$D1398,Hydrostatics!J1318:J1398,TRUE) -> 3.617750079 | H153: 0.001893937129 | I153: 24.83868018 | J153: 24.18168508 | K153: 0.6569950971 | M153: =LinInterpolate($E153,Hydrostatics!$D1318:$D1398,Hydrostatics!K1318:K1398,TRUE) -> 21.93033344 | N153: =LinInterpolate($E153,Hydrostatics!$D1318:$D1398,Hydrostatics!E1318:E1398,TRUE) -> 7.62741664
C154: 0.2 | D154: =LinInterpolate(E154,Hydrostatics!D1400:D1480,Hydrostatics!C1400:C1480,TRUE) -> 6.621370109 | E154: 4733.647617 | F154: =LinInterpolate($E154,Hydrostatics!$D1400:$D1480,Hydrostatics!I1400:I1480,TRUE) -> 24.26145196 | G154: =LinInterpolate($E154,Hydrostatics!$D1400:$D1480,Hydrostatics!J1400:J1480,TRUE) -> 3.622822065 | H154: 0.003787860672 | I154: 24.84798893 | J154: 24.27517477 | K154: 0.5728141611 | M154: =LinInterpolate($E154,Hydrostatics!$D1400:$D1480,Hydrostatics!K1400:K1480,TRUE) -> 21.96709609 | N154: =LinInterpolate($E154,Hydrostatics!$D1400:$D1480,Hydrostatics!E1400:E1480,TRUE) -> 7.63
C155: 0.3 | D155: =LinInterpolate(E155,Hydrostatics!D1482:D1562,Hydrostatics!C1482:C1562,TRUE) -> 6.629740644 | E155: 4733.647617 | F155: =LinInterpolate($E155,Hydrostatics!$D1482:$D1562,Hydrostatics!I1482:I1562,TRUE) -> 24.34810374 | G155: =LinInterpolate($E155,Hydrostatics!$D1482:$D1562,Hydrostatics!J1482:J1562,TRUE) -> 3.621896258 | H155: 0.005681757041 | I155: 24.85729768 | J155: 24.3686827 | K155: 0.4886149814 | M155: =LinInterpolate($E155,Hydrostatics!$D1482:$D1562,Hydrostatics!K1482:K1562,TRUE) -> 22.00784439 | N155: =LinInterpolate($E155,Hydrostatics!$D1482:$D1562,Hydrostatics!E1482:E1562,TRUE) -> 7.64
C156: 0.4 | D156: =LinInterpolate(E156,Hydrostatics!D1564:D1644,Hydrostatics!C1564:C1644,TRUE) -> 6.637999573 | E156: 4733.647617 | F156: =LinInterpolate($E156,Hydrostatics!$D1564:$D1644,Hydrostatics!I1564:I1644,TRUE) -> 24.43480017 | G156: =LinInterpolate($E156,Hydrostatics!$D1564:$D1644,Hydrostatics!J1564:J1644,TRUE) -> 3.622799744 | H156: 0.007575612651 | I156: 24.86660643 | J156: 24.46224562 | K156: 0.4043608074 | M156: =LinInterpolate($E156,Hydrostatics!$D1564:$D1644,Hydrostatics!K1564:K1644,TRUE) -> 22.04279974 | N156: =LinInterpolate($E156,Hydrostatics!$D1564:$D1644,Hydrostatics!E1564:E1644,TRUE) -> 7.642400085
C157: 0.5 | D157: =LinInterpolate(E157,Hydrostatics!D1646:D1726,Hydrostatics!C1646:C1726,TRUE) -> 6.646266834 | E157: 4733.647617 | F157: =LinInterpolate($E157,Hydrostatics!$D1646:$D1726,Hydrostatics!I1646:I1726,TRUE) -> 24.52149327 | G157: =LinInterpolate($E157,Hydrostatics!$D1646:$D1726,Hydrostatics!J1646:J1726,TRUE) -> 3.627760101 | H157: 0.009469413919 | I157: 24.87591518 | J157: 24.55584706 | K157: 0.3200681269 | M157: =LinInterpolate($E157,Hydrostatics!$D1646:$D1726,Hydrostatics!K1646:K1726,TRUE) -> 22.0777601 | N157: =LinInterpolate($E157,Hydrostatics!$D1646:$D1726,Hydrostatics!E1646:E1726,TRUE) -> 7.65
C158: 0.6 | D158: =LinInterpolate(E158,Hydrostatics!D1728:D1808,Hydrostatics!C1728:C1808,TRUE) -> 6.654386242 | E158: 4733.647617 | F158: =LinInterpolate($E158,Hydrostatics!$D1728:$D1808,Hydrostatics!I1728:I1808,TRUE) -> 24.60736826 | G158: =LinInterpolate($E158,Hydrostatics!$D1728:$D1808,Hydrostatics!J1728:J1808,TRUE) -> 3.622631745 | H158: 0.01136314726 | I158: 24.88522393 | J158: 24.64853452 | K158: 0.2366894082 | M158: =LinInterpolate($E158,Hydrostatics!$D1728:$D1808,Hydrostatics!K1728:K1808,TRUE) -> 22.11263174 | N158: =LinInterpolate($E158,Hydrostatics!$D1728:$D1808,Hydrostatics!E1728:E1808,TRUE) -> 7.65
C159: 0.7 | D159: =LinInterpolate(E159,Hydrostatics!D1810:D1890,Hydrostatics!C1810:C1890,TRUE) -> 6.662497353 | E159: 4733.647617 | F159: =LinInterpolate($E159,Hydrostatics!$D1810:$D1890,Hydrostatics!I1810:I1890,TRUE) -> 24.69250159 | G159: =LinInterpolate($E159,Hydrostatics!$D1810:$D1890,Hydrostatics!J1810:J1890,TRUE) -> 3.627498412 | H159: 0.01325679911 | I159: 24.89453268 | J159: 24.74059342 | K159: 0.1539392609 | M159: =LinInterpolate($E159,Hydrostatics!$D1810:$D1890,Hydrostatics!K1810:K1890,TRUE) -> 22.14499894 | N159: =LinInterpolate($E159,Hydrostatics!$D1810:$D1890,Hydrostatics!E1810:E1890,TRUE) -> 7.657500529
C160: 0.8 | D160: =LinInterpolate(E160,Hydrostatics!D1892:D1972,Hydrostatics!C1892:C1972,TRUE) -> 6.670543004 | E160: 4733.647617 | F160: =LinInterpolate($E160,Hydrostatics!$D1892:$D1972,Hydrostatics!I1892:I1972,TRUE) -> 24.7776742 | G160: =LinInterpolate($E160,Hydrostatics!$D1892:$D1972,Hydrostatics!J1892:J1972,TRUE) -> 3.628217202 | H160: 0.01515035587 | I160: 24.90384144 | J160: 24.83264719 | K160: 0.07119424983 | M160: =LinInterpolate($E160,Hydrostatics!$D1892:$D1972,Hydrostatics!K1892:K1972,TRUE) -> 22.09604519 | N160: =LinInterpolate($E160,Hydrostatics!$D1892:$D1972,Hydrostatics!E1892:E1972,TRUE) -> 7.641239795
C161: 0.9 | D161: =LinInterpolate(E161,Hydrostatics!D1974:D2054,Hydrostatics!C1974:C2054,TRUE) -> 6.678752934 | E161: 4733.647617 | F161: =LinInterpolate($E161,Hydrostatics!$D1974:$D2054,Hydrostatics!I1974:I2054,TRUE) -> 24.86849883 | G161: =LinInterpolate($E161,Hydrostatics!$D1974:$D2054,Hydrostatics!J1974:J2054,TRUE) -> 3.627251761 | H161: 0.01704380399 | I161: 24.91315019 | J161: 24.93032698 | K161: -0.01717679465 | M161: =LinInterpolate($E161,Hydrostatics!$D1974:$D2054,Hydrostatics!K1974:K2054,TRUE) -> 22.00448005 | N161: =LinInterpolate($E161,Hydrostatics!$D1974:$D2054,Hydrostatics!E1974:E2054,TRUE) -> 7.606743545
C162: 1 | D162: =LinInterpolate(E162,Hydrostatics!D2056:D2136,Hydrostatics!C2056:C2136,TRUE) -> 6.68707406 | E162: 4733.647617 | F162: =LinInterpolate($E162,Hydrostatics!$D2056:$D2136,Hydrostatics!I2056:I2136,TRUE) -> 24.95517038 | G162: =LinInterpolate($E162,Hydrostatics!$D2056:$D2136,Hydrostatics!J2056:J2136,TRUE) -> 3.632244436 | H162: 0.0189371299 | I162: 24.92245894 | J162: 25.02396288 | K162: -0.1015039463 | M162: =LinInterpolate($E162,Hydrostatics!$D2056:$D2136,Hydrostatics!K2056:K2136,TRUE) -> 21.90633346 | N162: =LinInterpolate($E162,Hydrostatics!$D2056:$D2136,Hydrostatics!E2056:E2136,TRUE) -> 7.561363007
C163: 1.1 | D163: =LinInterpolate(E163,Hydrostatics!D2138:D2218,Hydrostatics!C2138:C2218,TRUE) -> 6.695498425 | E163: 4733.647617 | F163: =LinInterpolate($E163,Hydrostatics!$D2138:$D2218,Hydrostatics!I2138:I2218,TRUE) -> 25.04270094 | G163: =LinInterpolate($E163,Hydrostatics!$D2138:$D2218,Hydrostatics!J2138:J2218,TRUE) -> 3.62819937 | H163: 0.02083032004 | I163: 24.93176769 | J163: 25.11828843 | K163: -0.1865207427 | M163: =LinInterpolate($E163,Hydrostatics!$D2138:$D2218,Hydrostatics!K2138:K2218,TRUE) -> 21.84061071 | N163: =LinInterpolate($E163,Hydrostatics!$D2138:$D2218,Hydrostatics!E2138:E2218,TRUE) -> 7.540803779
C164: 1.2 | D164: =LinInterpolate(E164,Hydrostatics!D2220:D2300,Hydrostatics!C2220:C2300,TRUE) -> 6.704223354 | E164: 4733.647617 | F164: =LinInterpolate($E164,Hydrostatics!$D2220:$D2300,Hydrostatics!I2220:I2300,TRUE) -> 25.12746599 | G164: =LinInterpolate($E164,Hydrostatics!$D2220:$D2300,Hydrostatics!J2220:J2300,TRUE) -> 3.632534012 | H164: 0.02272336084 | I164: 24.94107644 | J164: 25.21002358 | K164: -0.2689471386 | M164: =LinInterpolate($E164,Hydrostatics!$D2220:$D2300,Hydrostatics!K2220:K2300,TRUE) -> 21.73634922 | N164: =LinInterpolate($E164,Hydrostatics!$D2220:$D2300,Hydrostatics!E2220:E2300,TRUE) -> 7.49986395
C165: 1.3 | D165: =LinInterpolate(E165,Hydrostatics!D2302:D2382,Hydrostatics!C2302:C2382,TRUE) -> 6.713302646 | E165: 4733.647617 | F165: =LinInterpolate($E165,Hydrostatics!$D2302:$D2382,Hydrostatics!I2302:I2382,TRUE) -> 25.21201841 | G165: =LinInterpolate($E165,Hydrostatics!$D2302:$D2382,Hydrostatics!J2302:J2382,TRUE) -> 3.635321058 | H165: 0.02461623877 | I165: 24.95038519 | J165: 25.30152442 | K165: -0.3511392319 | M165: =LinInterpolate($E165,Hydrostatics!$D2302:$D2382,Hydrostatics!K2302:K2382,TRUE) -> 21.66082624 | N165: =LinInterpolate($E165,Hydrostatics!$D2302:$D2382,Hydrostatics!E2302:E2382,TRUE) -> 7.45807365
C166: 1.4 | D166: =LinInterpolate(E166,Hydrostatics!D2328:D2464,Hydrostatics!C2328:C2464,TRUE) -> 6.722305762 | E166: 4733.647617 | F166: =LinInterpolate($E166,Hydrostatics!$D2328:$D2464,Hydrostatics!I2328:I2464,TRUE) -> 25.30215539 | G166: =LinInterpolate($E166,Hydrostatics!$D2328:$D2464,Hydrostatics!J2328:J2464,TRUE) -> 3.638922305 | H166: 0.02650894028 | I166: 24.95969394 | J166: 25.39864197 | K166: -0.4389480238 | M166: =LinInterpolate($E166,Hydrostatics!$D2328:$D2464,Hydrostatics!K2328:K2464,TRUE) -> 21.63847119 | N166: =LinInterpolate($E166,Hydrostatics!$D2328:$D2464,Hydrostatics!E2328:E2464,TRUE) -> 7.44646617
C167: 1.5 | D167: =LinInterpolate(E167,Hydrostatics!D2466:D2546,Hydrostatics!C2466:C2546,TRUE) -> 6.731352059 | E167: 4733.647617 | F167: =LinInterpolate($E167,Hydrostatics!$D2466:$D2546,Hydrostatics!I2466:I2546,TRUE) -> 25.39118876 | G167: =LinInterpolate($E167,Hydrostatics!$D2466:$D2546,Hydrostatics!J2466:J2546,TRUE) -> 3.638811236 | H167: 0.02840145184 | I167: 24.96900269 | J167: 25.49456408 | K167: -0.52556139 | M167: =LinInterpolate($E167,Hydrostatics!$D2466:$D2546,Hydrostatics!K2466:K2546,TRUE) -> 21.59459176 | N167: =LinInterpolate($E167,Hydrostatics!$D2466:$D2546,Hydrostatics!E2466:E2546,TRUE) -> 7.407295882
C169: Total trim | G169: =LinInterpolate(0,(K137:K167),(C137:C167),FALSE) -> 0.8805628702 | H169: m
C170: Mean Draft | D170: From Hydro Table | G170: =LinInterpolate(0,(K137:K167),(D137:D167),FALSE) -> 6.677157159 | H170: m
C171: LBP/2 | D171: From Hydro Table | G171: =G172/2 -> 26.4 | H171: m
C172: LBP | D172: Ship Data | G172: 52.8 | H172: m
C174: Draft aft | G174: =G170-(G169/2) -> 6.236875724 | H174: m
C175: Draft forward | G175: =G170+G169/2 -> 7.117438595 | H175: m
C176: Draft midships | G176: =(G174+G175)/2 -> 6.677157159 | H176: m
C178: Transverse Stability
C179: KMt | D179: From Hydro Table | G179: =LinInterpolate(G169,(C137:C167),(N137:N167),FALSE) -> 7.613448626 | H179: m
C180: KGsolid | G180: =K128 -> 4.91502062 | H180: m
C181: KGfluid | D181: KMt-GMtfluid | G181: =G179-G183 -> 4.917974876 | H181: m
C182: GMtsolid | D182: KMt-KGsolid | G182: =G179-G180 -> 2.698428006 | H182: m
C183: GMtfluid | D183: GMtsolid-FSMt | G183: =G182-P128 -> 2.69547375 | H183: m

Sheet INDEX (Corrected trim 2)
D2: Stability Calculation | R2: Explanation of worksheet:
D3: Project : | N3: Originator : | R3: Changing tank filling
D4: Doc. No : | N4: Checked : | R4: Fill in all sounding heights of tanks in following cells:
D5: Subject/Remarks : | N5: Revision : | R5: The following data will be calculated automatically, with help of tank tables: | Y5: Volume | Z5: m³
N6: Date : | Y6: Weight | Z6: t
Y7: LCG | Z7: m
B8: Summary Stability Results | I8: Summary Loading condition | Y8: TCG | Z8: m
I9: Item | J9: % Full | K9: Volume | M9: Weight | N9: LCG | O9: TCG | P9: VCG | Y9: VCG | Z9: m
B10: Displ. | C10: =H128 -> 4733.647617 | D10: t | E10: Draft mid. | G10: =G176 -> 6.677157159 | H10: m | I10: F.O. | J10: =F32 -> 99.93294 | K10: =G32 -> 343.6693807 | M10: =H32 -> 295.5556674 | N10: =I32 -> 29.87702819 | O10: =J32 -> 0.09977612766 | P10: =K32 -> 3.766698308 | Y10: FSM | Z10: m
B11: DW | C11: =H129 -> 3033.647617 | D11: t | E11: Draft aft | G11: =G174 -> 6.236875724 | H11: m | I11: HFO | J11: =F45 -> 100.0060259 | K11: =G45 -> 995.76 | M11: =H45 -> 975.8448 | N11: =I45 -> 18.41775458 | O11: =J45 -> 0 | P11: =K45 -> 4.088628284 | R11: Add or remove deckloads
B12: LCG | C12: =I128 -> 24.82937143 | D12: m | E12: Draft fw | G12: =G175 -> 7.117438595 | H12: m | I12: WB | J12: =F78 -> 99.98391785 | K12: =G78 -> 1032.034 | M12: =H78 -> 1057.81435 | N12: =I78 -> 22.74410812 | O12: =J78 -> -0.00736067534 | P12: =K78 -> 3.081373373 | R12: Add or remove deckloads and fill the required data in the following cells:
B13: TCG | C13: =J128 -> -0.007784412989 | D13: m | E13: KMt | G13: =G179 -> 7.613448626 | H13: m | I13: FW | J13: =F86 -> 99.9834574 | K13: =G86 -> 483.52 | M13: =H86 -> 483.52 | N13: =I86 -> 20.14157284 | O13: =J86 -> 0 | P13: =K86 -> 4.711368299 | R13: The following input data is required to calculated the stability results: | Y13: Weight | Z13: t
B14: VCG | C14: =K128 -> 4.91502062 | D14: m | E14: KGfluid | G14: =G181 -> 4.917974876 | H14: m | I14: MISC | J14: =F100 -> 105.4299255 | K14: =G100 -> 155.72 | M14: =H100 -> 150.9128 | N14: =I100 -> 36.26201755 | O14: =J100 -> -0.3879845845 | P14: =K100 -> 1.559034038 | R14: Attention! | Y14: LCG | Z14: m
B15: Trim tot. | C15: =G169 -> 0.8805628702 | D15: m | E15: GMtfluid | G15: =G183 -> 2.69547375 | H15: m | I15: (DECK) LOADS | M15: =H121 -> 70 | N15: =I121 -> 6.571428571 | O15: =J121 -> 0 | P15: =K121 -> 7 | R15: This worksheet is only valid when the heel of the vessel is equal to 0° | Y15: TCG | Z15: m
R16: The results of this worksheet are not checked to any stability criteria! | Y16: VCG | Z16: m
B17: Sheet No. | C17: Name | D17: Sort of Fluid | E17: Sounding Height | F17: % Full | G17: Volume | H17: Weight | I17: LCG | J17: TCG | K17: VCG | M17: Longitudinal | N17: Transverse | O17: Vertical | P17: FSMt | R17: To print the loading conditon press the button:
I18: Fwd of AP | J18: PS:+ | K18: Above BL | M18: Moment | N18: Moment | O18: Moment
F19: % | G19: m³ | H19: t | I19: m | J19: m | K19: m | M19: t·m | N19: t·m | O19: t·m | P19: t·m
C20: SHIP DATA
C21: Lightship | H21: =INDEX!H22 -> 1700 | I21: =INDEX!I22 -> 30 | J21: =INDEX!J22 -> 0 | K21: =INDEX!K22 -> 7 | M21: =INDEX!M22 -> 51000 | N21: =INDEX!N22 -> 0 | O21: =INDEX!O22 -> 11900 | R21: Volume at each Trim | Y21: Volume Interpolation
C23: F.O. (SG 0.860) | R23: -1.5 | S23: -1 | T23: -0.5 | U23: 0 | V23: 0.5 | W23: 1 | X23: 1.5 | Y23: Volume | Z23: ∆Volume | AA23: Volume2
B24: 1 | C24: F.O. 1 PS | D24: MGO | E24: =INDEX!E25 -> 3.8 | F24: =IF(G24<'1'!M83,LinInterpolate(G24,'1'!M7:M83,'1'!I7:I83,TRUE),100) -> 100 | G24: ='INDEX (Corrected trim 1)'!AA24 -> 31.01969033 | H24: =LinInterpolate(F24,'1'!I7:I83,'1'!H7:H83,TRUE) -> 26.67693369 | I24: =LinInterpolate(F24,'1'!I7:I83,'1'!C7:C83,TRUE) -> 32.98 | J24: =LinInterpolate(F24,'1'!I7:I82,'1'!D7:D83,TRUE) -> 5.38 | K24: =LinInterpolate(F24,'1'!I7:I83,'1'!E7:E83,TRUE) -> 2.999982796 | M24: =$H24*I24 -> 879.805273 | N24: 143.5219032 | O24: 80.03034212 | P24: =IF(LinInterpolate(F24,'1'!I7:I83,'1'!F7:F83,TRUE)>0,LinInterpolate(F24,'1'!I7:I83,'1'!F7:F83,TRUE),0) -> 0.01720368565 | R24: =LinInterpolate($E$24,'1'!$B7:$B83,'1'!J7:J83,TRUE) -> 31.02 | S24: =LinInterpolate($E$24,'1'!$B7:$B83,'1'!K7:K83,TRUE) -> 31.02 | T24: =LinInterpolate($E$24,'1'!$B7:$B83,'1'!L7:L83,TRUE) -> 31.02 | U24: =LinInterpolate($E$24,'1'!$B7:$B83,'1'!M7:M83,TRUE) -> 31.02 | V24: =LinInterpolate($E$24,'1'!$B7:$B83,'1'!N7:N83,TRUE) -> 31.02 | W24: =LinInterpolate($E$24,'1'!$B7:$B83,'1'!O7:O83,TRUE) -> 31.01 | X24: =LinInterpolate($E$24,'1'!$B7:$B83,'1'!P7:P83,TRUE) -> 30.96 | Y24: =G24 -> 31.01969033 | Z24: =IF(E24<'1'!B83,Y24-AA24,0) -> 0 | AA24: =IF(E24=0,0,IF(E24<'1'!B83,LinInterpolate($G$169,$R$23:$X$23,R24:X24,TRUE),Y24)) -> 31.01969033
B25: 2 | C25: F.O. 1 SB | D25: MGO | E25: =INDEX!E26 -> 3.8 | F25: =IF(G25<'2'!M83,LinInterpolate(G25,'2'!M7:M83,'2'!I7:I83,TRUE),100) -> 100 | G25: ='INDEX (Corrected trim 1)'!AA25 -> 31.01969033 | H25: =LinInterpolate(F25,'2'!I7:I83,'2'!H7:H83,TRUE) -> 26.67693369 | I25: =LinInterpolate(F25,'2'!I7:I83,'2'!C7:C83,TRUE) -> 32.98 | J25: =LinInterpolate(F25,'2'!I7:I83,'2'!D7:D83,TRUE) -> -5.38 | K25: =LinInterpolate(F25,'2'!I7:I83,'2'!E7:E83,TRUE) -> 2.999982796 | M25: 879.805273 | N25: -143.5219032 | O25: 80.03034212 | P25: =IF(LinInterpolate(F25,'2'!I7:I83,'2'!F7:F83,TRUE)>0,LinInterpolate(F25,'2'!I7:I83,'2'!F7:F83,TRUE),0) -> 0.01720368565 | R25: =LinInterpolate($E$25,'2'!$B7:$B83,'2'!J7:J83,TRUE) -> 31.02 | S25: =LinInterpolate($E$25,'2'!$B7:$B83,'2'!K7:K83,TRUE) -> 31.02 | T25: =LinInterpolate($E$25,'2'!$B7:$B83,'2'!L7:L83,TRUE) -> 31.02 | U25: =LinInterpolate($E$25,'2'!$B7:$B83,'2'!M7:M83,TRUE) -> 31.02 | V25: =LinInterpolate($E$25,'2'!$B7:$B83,'2'!N7:N83,TRUE) -> 31.02 | W25: =LinInterpolate($E$25,'2'!$B7:$B83,'2'!O7:O83,TRUE) -> 31.01 | X25: =LinInterpolate($E$25,'2'!$B7:$B83,'2'!P7:P83,TRUE) -> 30.96 | Y25: 31.01969033 | Z25: =IF(E25<'2'!B83,Y25-AA25,0) -> 0 | AA25: =IF(E25=0,0,IF(E25<'2'!B83, LinInterpolate($G$169,$R$23:$X$23,R25:X25,TRUE),Y25)) -> 31.01969033
B26: 3 | C26: F.O.1 C | D26: MGO | E26: =INDEX!E27 -> 5.77 | F26: =IF(G26<'3'!M123,LinInterpolate(G26,'3'!M7:M123,'3'!I7:I123,TRUE),100) -> 100 | G26: ='INDEX (Corrected trim 1)'!AA26 -> 102.32 | H26: =LinInterpolate(F26,'3'!I7:I123,'3'!H7:H123,TRUE) -> 87.9952 | I26: =LinInterpolate(F26,'3'!I7:I123,'3'!C7:C123,TRUE) -> 26.1 | J26: =LinInterpolate(F26,'3'!I7:I123,'3'!D7:D123,TRUE) -> 0 | K26: =LinInterpolate(F26,'3'!I7:I123,'3'!E7:E123,TRUE) -> 3.9 | M26: 2296.67472 | N26: 0 | O26: 343.18128 | P26: =IF(LinInterpolate(F26,'3'!I7:I123,'3'!F7:F123,TRUE)>0,LinInterpolate(F26,'3'!I7:I123,'3'!F7:F123,TRUE),0) -> 0 | R26: =LinInterpolate($E$26,'3'!$B7:$B123,'3'!J7:J123,TRUE) -> 102.32 | S26: =LinInterpolate($E$26,'3'!$B7:$B123,'3'!K7:K123,TRUE) -> 102.32 | T26: =LinInterpolate($E$26,'3'!$B7:$B123,'3'!L7:L123,TRUE) -> 102.32 | U26: =LinInterpolate($E$26,'3'!$B7:$B123,'3'!M7:M123,TRUE) -> 102.32 | V26: =LinInterpolate($E$26,'3'!$B7:$B123,'3'!N7:N123,TRUE) -> 101.93 | W26: =LinInterpolate($E$26,'3'!$B7:$B123,'3'!O7:O123,TRUE) -> 101.55 | X26: =LinInterpolate($E$26,'3'!$B7:$B123,'3'!P7:P123,TRUE) -> 101.17 | Y26: 102.32 | Z26: =IF(E26<'3'!B123,Y26-AA26,0) -> 0 | AA26: =IF(E26=0,0,IF(E26<'3'!B123, LinInterpolate($G$169,$R$23:$X$23,R26:X26,TRUE),Y26)) -> 102.32
B27: 4 | C27: F.O. 2 PS | D27: MGO | E27: =INDEX!E28 -> 2 | F27: =IF(G27<'4'!M47,LinInterpolate(G27,'4'!M7:M47,'4'!I7:I47,TRUE),100) -> 100 | G27: ='INDEX (Corrected trim 1)'!AA27 -> 39.69 | H27: =LinInterpolate(F27,'4'!I7:I47,'4'!H7:H47,TRUE) -> 34.1334 | I27: =LinInterpolate(F27,'4'!I7:I47,'4'!C7:C47,TRUE) -> 31.5 | J27: =LinInterpolate(F27,'4'!I7:I47,'4'!D7:D47,TRUE) -> 5.47 | K27: =LinInterpolate(F27,'4'!I7:I47,'4'!E7:E47,TRUE) -> 5.8 | M27: 1075.2021 | N27: 186.709698 | O27: 197.97372 | P27: =IF(LinInterpolate(F27,'4'!I7:I47,'4'!F7:F47,TRUE)>0,LinInterpolate(F27,'4'!I7:I47,'4'!F7:F47,TRUE),0) -> 0 | R27: =LinInterpolate($E$27,'4'!$B7:$B47,'4'!J7:J47,TRUE) -> 39.69 | S27: =LinInterpolate($E$27,'4'!$B7:$B47,'4'!K7:K47,TRUE) -> 39.69 | T27: =LinInterpolate($E$27,'4'!$B7:$B47,'4'!L7:L47,TRUE) -> 39.69 | U27: =LinInterpolate($E$27,'4'!$B7:$B47,'4'!M7:M47,TRUE) -> 39.69 | V27: =LinInterpolate($E$27,'4'!$B7:$B47,'4'!N7:N47,TRUE) -> 39.69 | W27: =LinInterpolate($E$27,'4'!$B7:$B47,'4'!O7:O47,TRUE) -> 39.69 | X27: =LinInterpolate($E$27,'4'!$B7:$B47,'4'!P7:P47,TRUE) -> 39.69 | Y27: 39.69 | Z27: =IF(E27<'4'!B47,Y27-AA27,0) -> 0 | AA27: =IF(E27=0,0,IF(E27<'4'!B47, LinInterpolate($G$169,$R$23:$X$23,R27:X27,TRUE),Y27)) -> 39.69
B28: 5 | C28: F.O. 2 SB | D28: MGO | E28: =INDEX!E29 -> 2 | F28: =IF(G28<'5'!M47,LinInterpolate(G28,'5'!M7:M47,'5'!I7:I47,TRUE),100) -> 100 | G28: ='INDEX (Corrected trim 1)'!AA28 -> 39.69 | H28: =LinInterpolate(F28,'5'!I7:I47,'5'!H7:H47,TRUE) -> 34.1334 | I28: =LinInterpolate(F28,'5'!I7:I47,'5'!C7:C47,TRUE) -> 31.5 | J28: =LinInterpolate(F28,'5'!I7:I47,'5'!D7:D47,TRUE) -> -5.47 | K28: =LinInterpolate(F28,'5'!I7:I47,'5'!E7:E47,TRUE) -> 5.8 | M28: 1075.2021 | N28: -186.709698 | O28: 197.97372 | P28: =IF(LinInterpolate(F28,'5'!I7:I47,'5'!F7:F47,TRUE)>0,LinInterpolate(F28,'5'!I7:I47,'5'!F7:F47,TRUE),0) -> 0 | R28: =LinInterpolate($E$28,'5'!$B7:$B47,'5'!J7:J47,TRUE) -> 39.69 | S28: =LinInterpolate($E$28,'5'!$B7:$B47,'5'!K7:K47,TRUE) -> 39.69 | T28: =LinInterpolate($E$28,'5'!$B7:$B47,'5'!L7:L47,TRUE) -> 39.69 | U28: =LinInterpolate($E$28,'5'!$B7:$B47,'5'!M7:M47,TRUE) -> 39.69 | V28: =LinInterpolate($E$28,'5'!$B7:$B47,'5'!N7:N47,TRUE) -> 39.69 | W28: =LinInterpolate($E$28,'5'!$B7:$B47,'5'!O7:O47,TRUE) -> 39.69 | X28: =LinInterpolate($E$28,'5'!$B7:$B47,'5'!P7:P47,TRUE) -> 39.69 | Y28: 39.69 | Z28: =IF(E28<'5'!B47,Y28-AA28,0) -> 0 | AA28: =IF(E28=0,0,IF(E28<'5'!B47, LinInterpolate($G$169,$R$23:$X$23,R28:X28,TRUE),Y28)) -> 39.69
B29: 6 | C29: F.O. 3 PS | D29: MGO | E29: =INDEX!E30 -> 3.8 | F29: =IF(G29<'6'!M83,LinInterpolate(G29,'6'!M7:M83,'6'!I7:I83,TRUE),100) -> 100 | G29: ='INDEX (Corrected trim 1)'!AA29 -> 40.44 | H29: =LinInterpolate(F29,'6'!I7:I83,'6'!H7:H83,TRUE) -> 34.7784 | I29: =LinInterpolate(F29,'6'!I7:I83,'6'!C7:C83,TRUE) -> 30.3 | J29: =LinInterpolate(F29,'6'!I7:I83,'6'!D7:D83,TRUE) -> 5.45 | K29: =LinInterpolate(F29,'6'!I7:I83,'6'!E7:E83,TRUE) -> 2.96 | M29: 1053.78552 | N29: 189.54228 | O29: 102.944064 | P29: =IF(LinInterpolate(F29,'6'!I7:I83,'6'!F7:F83,TRUE)>0,LinInterpolate(F29,'6'!I7:I83,'6'!F7:F83,TRUE),0) -> 0.85 | R29: =LinInterpolate($E$29,'6'!$B7:$B83,'6'!J7:J83,TRUE) -> 40.44 | S29: =LinInterpolate($E$29,'6'!$B7:$B83,'6'!K7:K83,TRUE) -> 40.44 | T29: =LinInterpolate($E$29,'6'!$B7:$B83,'6'!L7:L83,TRUE) -> 40.44 | U29: =LinInterpolate($E$29,'6'!$B7:$B83,'6'!M7:M83,TRUE) -> 40.44 | V29: =LinInterpolate($E$29,'6'!$B7:$B83,'6'!N7:N83,TRUE) -> 40.44 | W29: =LinInterpolate($E$29,'6'!$B7:$B83,'6'!O7:O83,TRUE) -> 40.44 | X29: =LinInterpolate($E$29,'6'!$B7:$B83,'6'!P7:P83,TRUE) -> 40.44 | Y29: 40.44 | Z29: =IF(E29<'6'!B83,Y29-AA29,0) -> 0 | AA29: =IF(E29=0,0,IF(E29<'6'!B83, LinInterpolate($G$169,$R$23:$X$23,R29:X29,TRUE),Y29)) -> 40.44
B30: 7 | C30: F.O. 3 SB | D30: MGO | E30: =INDEX!E31 -> 3.8 | F30: =IF(G30<'7'!M83,LinInterpolate(G30,'7'!M7:M83,'7'!I7:I83,TRUE),100) -> 100 | G30: ='INDEX (Corrected trim 1)'!AA30 -> 40.44 | H30: =LinInterpolate(F30,'7'!I7:I83,'7'!H7:H83,TRUE) -> 34.7784 | I30: =LinInterpolate(F30,'7'!I7:I83,'7'!C7:C83,TRUE) -> 30.3 | J30: =LinInterpolate(F30,'7'!I7:I83,'7'!D7:D83,TRUE) -> -5.45 | K30: =LinInterpolate(F30,'7'!I7:I83,'7'!E7:E83,TRUE) -> 2.96 | M30: 1053.78552 | N30: -189.54228 | O30: 102.944064 | P30: =IF(LinInterpolate(F30,'7'!I7:I83,'7'!F7:F83,TRUE)>0,LinInterpolate(F30,'7'!I7:I83,'7'!F7:F83,TRUE),0) -> 11.1 | R30: =LinInterpolate($E$30,'7'!$B7:$B83,'7'!J7:J83,TRUE) -> 40.44 | S30: =LinInterpolate($E$30,'7'!$B7:$B83,'7'!K7:K83,TRUE) -> 40.44 | T30: =LinInterpolate($E$30,'7'!$B7:$B83,'7'!L7:L83,TRUE) -> 40.44 | U30: =LinInterpolate($E$30,'7'!$B7:$B83,'7'!M7:M83,TRUE) -> 40.44 | V30: =LinInterpolate($E$30,'7'!$B7:$B83,'7'!N7:N83,TRUE) -> 40.44 | W30: =LinInterpolate($E$30,'7'!$B7:$B83,'7'!O7:O83,TRUE) -> 40.44 | X30: =LinInterpolate($E$30,'7'!$B7:$B83,'7'!P7:P83,TRUE) -> 40.44 | Y30: 40.44 | Z30: =IF(E30<'6'!B83,Y30-AA30,0) -> 0 | AA30: =IF(E30=0,0,IF(E30<'7'!B83, LinInterpolate($G$169,$R$23:$X$23,R30:X30,TRUE),Y30)) -> 40.44
B31: 8 | C31: F.O. 4 PS | D31: MGO | E31: =INDEX!E32 -> 1 | F31: =IF(G31<'8'!M28,LinInterpolate(G31,'8'!M10:M28,'8'!I10:I28,TRUE),100) -> 100 | G31: ='INDEX (Corrected trim 1)'!AA31 -> 19.05 | H31: =LinInterpolate(F31,'8'!I7:I28,'8'!H7:H28,TRUE) -> 16.383 | I31: =LinInterpolate(F31,'8'!I7:I28,'8'!C7:C28,TRUE) -> 31.5 | J31: =LinInterpolate(F31,'8'!I7:I28,'8'!D7:D28,TRUE) -> 1.8 | K31: =LinInterpolate(F31,'8'!I7:I28,'8'!E7:E28,TRUE) -> 0.5 | M31: 516.0645 | N31: 29.4894 | O31: 8.1915 | P31: =IF(LinInterpolate(F31,'8'!I7:I28,'8'!F7:F28,TRUE)>0,LinInterpolate(F31,'8'!I7:I28,'8'!F7:F28,TRUE),0) -> 2 | R31: =LinInterpolate($E$31,'8'!$B7:$B28,'8'!J7:J28,TRUE) -> 19.05 | S31: =LinInterpolate($E$31,'8'!$B7:$B28,'8'!K7:K28,TRUE) -> 19.05 | T31: =LinInterpolate($E$31,'8'!$B7:$B28,'8'!L7:L28,TRUE) -> 19.05 | U31: =LinInterpolate($E$31,'8'!$B7:$B28,'8'!M7:M28,TRUE) -> 19.05 | V31: =LinInterpolate($E$31,'8'!$B7:$B28,'8'!N7:N28,TRUE) -> 19.05 | W31: =LinInterpolate($E$31,'8'!$B7:$B28,'8'!O7:O28,TRUE) -> 19.05 | X31: =LinInterpolate($E$31,'8'!$B7:$B28,'8'!P7:P28,TRUE) -> 19.05 | Y31: 19.05 | Z31: =IF(E31<'8'!B28,Y31-AA31,0) -> 0 | AA31: =IF(E31=0,0,IF(E31<'8'!B28, LinInterpolate($G$169,$R$23:$X$23,R31:X31,TRUE),Y31)) -> 19.05
C32: Total F.O. | F32: =(G32/343.9)*100 -> 99.93294 | G32: =SUM((G24:G31)) -> 343.6693807 | H32: =SUM((H24:H31)) -> 295.5556674 | I32: =M32/H32 -> 29.87702819 | J32: =N32/H32 -> 0.09977612766 | K32: =O32/H32 -> 3.766698308 | M32: =SUM((M24:M31)) -> 8830.325006 | N32: =SUM((N24:N31)) -> 29.4894 | O32: =SUM((O24:O31)) -> 1113.269032 | P32: =SUM((P24:P31)) -> 13.98440737 | Z32: =SUM((Z24:Z31)) -> 0 | AA32: =SUM((AA24:AA31)) -> 343.6693807
C34: HFO (SG 0.980) | R34: -1.5 | S34: -1 | T34: -0.5 | U34: 0 | V34: 0.5 | W34: 1 | X34: 1.5 | Y34: Volume | Z34: ∆Volume | AA34: Volume2
